{"text_format":"1","workbook":"xlsx","n_sheets":6,"sheets":["ADS_spreadsheet_metadata","Roman Coin ID Template","Emperor-Issuer tbl","Denominations tbl","Mints tbl","RCIP tbl"],"not_rendered":{"charts":0,"images":3,"macros":1,"external_links":0,"defined_names":20,"comments":0,"pivot_tables":0},"unopened":[],"bounds":{"document_bytes":16777216,"sheet_cells":100000,"rows_first":2000,"rows_last":500,"rows_between":2000,"halvings":0,"cell_chars":16384,"cell_head_chars":4096},"cells_cut":0,"cells_raw":0,"read":"whole","date_system":"1900"}

{"sheet":"ADS_spreadsheet_metadata","index":0,"n_rows":30,"n_cols":14,"rows_kept":30,"cut":false,"hidden":false,"merged":[[0,13,1,13],[0,6,0,8],[0,9,0,10],[0,0,1,0],[0,1,1,1],[0,2,1,2],[0,3,0,5],[0,12,1,12]]}
["File Name","Title","Description","Creator (if more than one individual/organisation, add on a new row)",null,null,"Copyright holder (if more than one individual/organisation, add on a new row)",null,null,"Period of Creation",null,"Language","Software used","Software version"]
[null,null,null,"First Name","Last Name","Organisation","First Name","Last Name","Organisation","Start Date","End Date"]
["This is the name of the file - e.g., Caerleon Roman Coins.xlsx","This is the title of the spreadsheet - e.g., 'Caerleon: Roman coin report'","Brief description of the contents of the spreadsheet (include site name and OASIS reference number)",null,null,null,null,null,null,null,null,null,"Microsoft Excel","2019 v16.0"]
[]
[]
[]
["Sheet Name","Sheet Description","Number of rows",null,"Primary Field name","Primary Field description"]
["ADS_Spreadsheet_metadata","Metadata suitable for depositing this workbook with the Archaeology Data Service","n/a",null,"SITE CODE","Unique code for site or fieldwork project."]
["Roman Coin ID Template","Data table listing coins following CIfA's Toolkit for Finds Reporting: Roman Coinage","n/a",null,"COIN ID","Unique number for each coin in an assemblage. Most commonly the registration number allocated on-site to archaeological artefacts that are recorded individually (usually made of metal, glass, or worked bone and stone), including coins. Artefacts in this category are variously referred to as Registered Finds (RF), Registered Artefacts (RA) and Small Finds (SF).\n\nRFs often require special treatment, including conservation and/or individual protective packaging, or are subject to decay or disintegration and thus require specific storage environments (e.g. low humidity for metalwork)."]
["Emperor-Issuer list_ dropdown","Controlled list of terms for authorities responsible for issuing Roman coins (emperors, empresses, princes, dynasties), with dates and RCIPs.",237,null,"CONTEXT","Number denoting the context from which the coin was recovered. \n\nContext numbers are allocated on-site to excavated deposits or archaeological features (e.g., layers and fills of negative features such as ditches and pits)."]
["Denominations list_dropdown","Controlled list of terms for Roman currency denominations",30,null,"DATE","Broad date of the coin’s production. Can be a:\n• specific year: e.g., 81 for a coin of Domitian struck during the emperor’s 7th consulship\n• emperor’s reign: e.g., 81-96 for a coin of Domitian that cannot be more closely dated\n• dynastic date: e.g., 69-96 for a coin struck for a Flavian emperor (Vespasian, Titus or Domitian), or 364-392 for a coin issued by the House of Valentinian (Valentinian I, Gratian or Valentinian II).\n• Issue Period for 4th-century reverse types: e.g., 364-378 for a coin of the SECVRITAS REIPVLICAE type\n• general date: e.g., Uncertain (1st-2nd century) for early coins that cannot be identified to an emperor or dynasty, or Uncertain (late 3rd-4th century) for bronzes that could be radiates or post-Diocletianic ‘nummi’"]
["Mints list_dropdown","Controlled list of terms for Roman mints",37,null,"DATE FROM","The earliest date the coin could have been struck. For example:\n• 81 for a coin of Domitian struck during the emperor’s 7th consulship\n• 81 for a coin of Domitian that cannot be more closely identified\n• 69 for a coin struck for a Flavian emperor\n• 260 for a bronze coin that could be a later 3rd century radiate or post-Diocletianic ‘nummus’\n• 364 for a coin of the reverse type SECVRITAS REIPVLICAE\n\nDates BC are indicated with minus sign (-)  before the date (e.g., -32 for a legionary denarius for Mark Antony)"]
["RCIP_dropdown","Controlled list of terms for Roman Coinage Issue Period sequence",22,null,"DATE TO","The latest date the coin could have been struck. For example:\n• 81 for a coin of Domitian struck during the emperor’s 7th consulship (i.e., same as the ‘date from’ entry)\n• 96 for a coin of Domitian that cannot be more closely identified\n• 96 for a coin struck for a Flavian emperor\n• 378 for a coin with the reverse type SECVRITAS REIPVLICAE that cannot be more closely identified\n• 402 for a bronze coin that could be a later 3rd century radiate or post-Diocletianic ‘nummus’\n\nDates BC are indicated with minus sign (-)  before the date (e.g., -31 for a legionary denarius for Mark Antony)."]
[null,null,null,null,"RCIP","Roman Coinage Issue Period (abbreviated to Issue Period). Available from a dropdown list.\n\nStandard sequence of 21 periods representing the production of Roman coins from Augustus to the beginning of the 5th century.\n\n(Also known as ‘Reece Periods’, ‘Reece Coin Periods’, ‘Coin Period’s, ‘Numismatic Issue Periods’, or just 'Periods')."]
[null,null,null,null,"DENOMINATION","Denomination of the coin when known (e.g., Sestertius, Radiate, or Siliqua). Available from a dropdown list.\n\nAlternatives that can be used when the denomination cannot be determined include:\n• Uncertain Au – gold coins of uncertain denomination\n• Uncertain Ag – silver coins of uncertain denomination\n• Dupondius/As – for 1st and 2nd century large bronzes that could be dupondii or ases\n• Nummus – for 4th century bronze coins (usually post-318)\n• AE1 – bronze coin of any period with a diameter greater than 25mm\n• AE2 - bronze coin of any period with a 19-25mm diameter\n• AE3 - bronze coin of any period with a 14-18mm diameter\n• AE4 - bronze coin of any period with a 5-14mm diameter\n• AE4 minim - bronze coin of any period with a diameter less than 5mm"]
[null,null,null,null,"COPY?","Copy if the coin is identified as an imitation (copy or forgery), otherwise blank."]
[null,null,null,null,"RULER / OBVERSE","Authority responsible for issuing the coin. Available from a dropdown list. Can be:\n• an Emperor, such as Antoninus Pius\n• an Empress, such as Faustina I\n• a Prince, such as Marcus Aurelius Caesar (Antoninus Pius)\n• a Dynasty, such as Uncertain (Antonine).\n\nIn instances where the individual ruler cannot be identified from the legend or obverse bust, or the reverse type, entries can include options such as:\n• Uncertain (Flavian)\n• Uncertain (1st/2nd century)\n• Uncertain (Radiate)\n• Uncertain (late 3rd/4th century)"]
[null,null,null,null,"REVERSE","Reverse type of the coin. Usually referred to using standardised numismatic types or reverse legends, such as:\n• Minerva type\n• SALVS AVG\n• FEL TEMP REPARATIO - falling horseman\n\nAlso can be non-standard entries for very worn or corroded coins (for example, ‘Female figure standing facing with left arm raised’), or ‘Uncertain’ or ‘Illegible’"]
[null,null,null,null,"MINT MARK","Details of any mint mark. Follows British Museum method of recording mint marks, which is explained in the series ‘Coin Hoards from Roman Britain’ thus:\n\n'The following convention is used to denote the marks used on the reverses: - -//-, where the first - refers to the left field, the second to the right field and the third, after the //, to the exergue. Marks in the centre field are indicated as follows: A//XXI, and where marks in the field are on more than one level they are shown as follows: R - /A F//BSISC.'"]
[null,null,null,null,"MINT","Mint where coin was struck (if known). Available from a dropdown list."]
[null,null,null,null,"REFERENCE","Reference to a standard numismatic catalogue, where identification is possible."]
[null,null,null,null,"REMARKS","Used to indicate unusual treatment or condition of the coin, such as if pierced, cut, clipped or countermarked."]
[]
[null,null,null,null,"Secondary Field name","Secondary Field description"]
[null,null,null,null,"OBVERSE LEGEND","Obverse legend of the coin (preferably as catalogued if fully identifiable):\n\nANTONINVS AVG PIVS PP TRP COS III, rather than\nANTONINVS AVG PIV-S PP TRP COS III, or\nANTONINVS AVG PIVS PP [TRP COS III]"]
[null,null,null,null,"REVERSE LEGEND","Reverse legend of the coin (preferably as catalogued if fully identifiable):\n\nSECVRITAS REIPVBLICAE, rather than\nSECVRITAS REI-PVBLICAE, or\nSECVRI[TAS REIPVBLICAE]"]
[null,null,null,null,"DIAMETER (mm)","Maximum diameter of the coin (recorded in millimetres).\n\nThe project’s archaeological numismatist will decide which coins, if any, should be measured. Likely to include coins where their it been shown that their diameters reveal information about them (e.g., Claudian copies and siliquae)."]
[null,null,null,null,"WEIGHT (g)","Weight of the coin (recorded in grammes).\n\nThe project’s archaeological numismatist will decide which coins, if any, should be weighed. Likely to include coins where it been shown that their weights reveal information about them (e.g., Claudian copies and siliquae)."]
[null,null,null,null,"WEAR","Records the level of wear of the coin.\n\nVarious schemes are available.\n\nIt is misleading to attempt to record the wear of corroded coins"]
[null,null,null,null,"DIE-AXIS","Alignment of the obverse and reverse dies."]

{"sheet":"Roman Coin ID Template","index":1,"n_rows":3,"n_cols":21,"rows_kept":3,"cut":false,"hidden":false,"merged":[]}
["SITE CODE","COIN ID","CONTEXT","DATE","DATE FROM","DATE TO","IP","DENOMINATION","COPY?","EMPEROR/ISSUER","REVERSE","MINT MARK","MINT","REFERENCE","REMARKS","OBVERSE LEGEND","REVERSE LEGEND","DIAMETER (mm)","WEIGHT (g)","WEAR","DIE-AXIS"]
[]
[{"$f":"REPT(\"    'Add coin data above this row'   'Additional information can be recorded in Column V onwards (deleted automatically when the Template is saved as an .xlxs file by pressing the blue button on the coversheet)'                                           \",2)","v":"    'Add coin data above this row'   'Additional information can be recorded in Column V onwards (deleted automatically when the Template is saved as an .xlxs file by pressing the blue button on the coversheet)'                                               'Add coin data above this row'   'Additional information can be recorded in Column V onwards (deleted automatically when the Template is saved as an .xlxs file by pressing the blue button on the coversheet)'                                           "}]

{"sheet":"Emperor-Issuer tbl","index":2,"n_rows":238,"n_cols":18,"rows_kept":238,"cut":false,"hidden":false,"merged":[]}
["Turn OFF Controls","Date","Date from","Date to","IP","heirarchy","Helper Key","Helper 1","Helper 2","Helper 3","Helper 4","Helper 5","Link","FilterEmpIss",null,"rng_Emp_Filter >>>",null,"<<< Hidden Technical Area"]
["Roman Republican","200-31 BC",-200,-31,1,100,{"$f":"tbl_Emp[[#This Row],[Turn OFF Controls]]","v":"Roman Republican"},{"$f":"IF(ISTEXT(OFFSET(tbl_Emp[[#This Row],[Helper 1]],-1,0)),1,OFFSET(tbl_Emp[[#This Row],[Helper 1]],-1,0)+1)","v":1},{"$f":"IF(rng_Emp_Filter=\"\",0,IF(ISNUMBER(SEARCH(rng_Emp_Filter,tbl_Emp[[#This Row],[Helper Key]])),tbl_Emp[[#This Row],[Helper 1]],\"\"))","v":0},{"$f":"IFERROR(SMALL(tbl_Emp[Helper 2],tbl_Emp[[#This Row],[Helper 1]]),\"\")","v":0},{"$f":"IF(OR(tbl_Emp[[#This Row],[Helper 2]]<>\"\",tbl_Emp[[#This Row],[Helper 3]]<>\"\"),1,0)","v":1},{"$f":"IF(rng_Emp_Filter=\"\",0,IF(tbl_Emp[[#This Row],[Helper 2]]<>\"\",1,0))","v":0},{"$f":"IF(rng_Emp_Filter=\"\",tbl_Emp[[#This Row],[Helper 1]],INDEX(tbl_Emp[Helper 3],tbl_Emp[[#This Row],[Helper 1]]))","v":1},{"$f":"IFERROR(INDEX(tbl_Emp[Turn OFF Controls],tbl_Emp[[#This Row],[Link]]),\"\")","v":"Roman Republican"},null,"rng_Emp_Count >>>",{"$f":"COUNTA(tbl_Emp[FilterEmpIss])-COUNTIF(tbl_Emp[Link],\"\")","v":237}]
["MARC ANTONY","41-31 BC",-41,-31,1,{"$f":"F2+100","v":200},{"$f":"tbl_Emp[[#This Row],[Turn OFF Controls]]","v":"MARC ANTONY"},{"$f":"IF(ISTEXT(OFFSET(tbl_Emp[[#This Row],[Helper 1]],-1,0)),1,OFFSET(tbl_Emp[[#This Row],[Helper 1]],-1,0)+1)","v":2},{"$f":"IF(rng_Emp_Filter=\"\",0,IF(ISNUMBER(SEARCH(rng_Emp_Filter,tbl_Emp[[#This Row],[Helper Key]])),tbl_Emp[[#This Row],[Helper 1]],\"\"))","v":0},{"$f":"IFERROR(SMALL(tbl_Emp[Helper 2],tbl_Emp[[#This Row],[Helper 1]]),\"\")","v":0},{"$f":"IF(OR(tbl_Emp[[#This Row],[Helper 2]]<>\"\",tbl_Emp[[#This Row],[Helper 3]]<>\"\"),1,0)","v":1},{"$f":"IF(rng_Emp_Filter=\"\",0,IF(tbl_Emp[[#This Row],[Helper 2]]<>\"\",1,0))","v":0},{"$f":"IF(rng_Emp_Filter=\"\",tbl_Emp[[#This Row],[Helper 1]],INDEX(tbl_Emp[Helper 3],tbl_Emp[[#This Row],[Helper 1]]))","v":2},{"$f":"IFERROR(INDEX(tbl_Emp[Turn OFF Controls],tbl_Emp[[#This Row],[Link]]),\"\")","v":"MARC ANTONY"},null,"rng_EmpSel >>>","TIBERIUS"]
["AUGUSTUS","31 BC-14",-31,14,1,300,{"$f":"tbl_Emp[[#This Row],[Turn OFF Controls]]","v":"AUGUSTUS"},{"$f":"IF(ISTEXT(OFFSET(tbl_Emp[[#This Row],[Helper 1]],-1,0)),1,OFFSET(tbl_Emp[[#This Row],[Helper 1]],-1,0)+1)","v":3},{"$f":"IF(rng_Emp_Filter=\"\",0,IF(ISNUMBER(SEARCH(rng_Emp_Filter,tbl_Emp[[#This Row],[Helper Key]])),tbl_Emp[[#This Row],[Helper 1]],\"\"))","v":0},{"$f":"IFERROR(SMALL(tbl_Emp[Helper 2],tbl_Emp[[#This Row],[Helper 1]]),\"\")","v":0},{"$f":"IF(OR(tbl_Emp[[#This Row],[Helper 2]]<>\"\",tbl_Emp[[#This Row],[Helper 3]]<>\"\"),1,0)","v":1},{"$f":"IF(rng_Emp_Filter=\"\",0,IF(tbl_Emp[[#This Row],[Helper 2]]<>\"\",1,0))","v":0},{"$f":"IF(rng_Emp_Filter=\"\",tbl_Emp[[#This Row],[Helper 1]],INDEX(tbl_Emp[Helper 3],tbl_Emp[[#This Row],[Helper 1]]))","v":3},{"$f":"IFERROR(INDEX(tbl_Emp[Turn OFF Controls],tbl_Emp[[#This Row],[Link]]),\"\")","v":"AUGUSTUS"},null,"rng_EmpSelDate >>>",{"$f":"INDEX(tbl_Emp[Date],MATCH(rng_EmpSel,tbl_Emp[Turn OFF Controls],0))","v":"14-37"}]
["LIVIA (Augustus)","27 BC-14",-27,14,1,400,{"$f":"tbl_Emp[[#This Row],[Turn OFF Controls]]","v":"LIVIA (Augustus)"},{"$f":"IF(ISTEXT(OFFSET(tbl_Emp[[#This Row],[Helper 1]],-1,0)),1,OFFSET(tbl_Emp[[#This Row],[Helper 1]],-1,0)+1)","v":4},{"$f":"IF(rng_Emp_Filter=\"\",0,IF(ISNUMBER(SEARCH(rng_Emp_Filter,tbl_Emp[[#This Row],[Helper Key]])),tbl_Emp[[#This Row],[Helper 1]],\"\"))","v":0},{"$f":"IFERROR(SMALL(tbl_Emp[Helper 2],tbl_Emp[[#This Row],[Helper 1]]),\"\")","v":0},{"$f":"IF(OR(tbl_Emp[[#This Row],[Helper 2]]<>\"\",tbl_Emp[[#This Row],[Helper 3]]<>\"\"),1,0)","v":1},{"$f":"IF(rng_Emp_Filter=\"\",0,IF(tbl_Emp[[#This Row],[Helper 2]]<>\"\",1,0))","v":0},{"$f":"IF(rng_Emp_Filter=\"\",tbl_Emp[[#This Row],[Helper 1]],INDEX(tbl_Emp[Helper 3],tbl_Emp[[#This Row],[Helper 1]]))","v":4},{"$f":"IFERROR(INDEX(tbl_Emp[Turn OFF Controls],tbl_Emp[[#This Row],[Link]]),\"\")","v":"LIVIA (Augustus)"},null,"rng_EmpSelDateFrom >>>",{"$f":"INDEX(tbl_Emp[Date from],MATCH(rng_EmpSel,tbl_Emp[Turn OFF Controls],0))","v":14}]
["AGRIPPA (Augustus)","27-12 BC",-27,-12,1,500,{"$f":"tbl_Emp[[#This Row],[Turn OFF Controls]]","v":"AGRIPPA (Augustus)"},{"$f":"IF(ISTEXT(OFFSET(tbl_Emp[[#This Row],[Helper 1]],-1,0)),1,OFFSET(tbl_Emp[[#This Row],[Helper 1]],-1,0)+1)","v":5},{"$f":"IF(rng_Emp_Filter=\"\",0,IF(ISNUMBER(SEARCH(rng_Emp_Filter,tbl_Emp[[#This Row],[Helper Key]])),tbl_Emp[[#This Row],[Helper 1]],\"\"))","v":0},{"$f":"IFERROR(SMALL(tbl_Emp[Helper 2],tbl_Emp[[#This Row],[Helper 1]]),\"\")","v":0},{"$f":"IF(OR(tbl_Emp[[#This Row],[Helper 2]]<>\"\",tbl_Emp[[#This Row],[Helper 3]]<>\"\"),1,0)","v":1},{"$f":"IF(rng_Emp_Filter=\"\",0,IF(tbl_Emp[[#This Row],[Helper 2]]<>\"\",1,0))","v":0},{"$f":"IF(rng_Emp_Filter=\"\",tbl_Emp[[#This Row],[Helper 1]],INDEX(tbl_Emp[Helper 3],tbl_Emp[[#This Row],[Helper 1]]))","v":5},{"$f":"IFERROR(INDEX(tbl_Emp[Turn OFF Controls],tbl_Emp[[#This Row],[Link]]),\"\")","v":"AGRIPPA (Augustus)"},null,"rng_EmpSelDateTo >>>",{"$f":"INDEX(tbl_Emp[Date to],MATCH(rng_EmpSel,tbl_Emp[Turn OFF Controls],0))","v":37}]
["TIBERIUS Caesar (Augustus)","4-14",4,14,1,600,{"$f":"tbl_Emp[[#This Row],[Turn OFF Controls]]","v":"TIBERIUS Caesar (Augustus)"},{"$f":"IF(ISTEXT(OFFSET(tbl_Emp[[#This Row],[Helper 1]],-1,0)),1,OFFSET(tbl_Emp[[#This Row],[Helper 1]],-1,0)+1)","v":6},{"$f":"IF(rng_Emp_Filter=\"\",0,IF(ISNUMBER(SEARCH(rng_Emp_Filter,tbl_Emp[[#This Row],[Helper Key]])),tbl_Emp[[#This Row],[Helper 1]],\"\"))","v":0},{"$f":"IFERROR(SMALL(tbl_Emp[Helper 2],tbl_Emp[[#This Row],[Helper 1]]),\"\")","v":0},{"$f":"IF(OR(tbl_Emp[[#This Row],[Helper 2]]<>\"\",tbl_Emp[[#This Row],[Helper 3]]<>\"\"),1,0)","v":1},{"$f":"IF(rng_Emp_Filter=\"\",0,IF(tbl_Emp[[#This Row],[Helper 2]]<>\"\",1,0))","v":0},{"$f":"IF(rng_Emp_Filter=\"\",tbl_Emp[[#This Row],[Helper 1]],INDEX(tbl_Emp[Helper 3],tbl_Emp[[#This Row],[Helper 1]]))","v":6},{"$f":"IFERROR(INDEX(tbl_Emp[Turn OFF Controls],tbl_Emp[[#This Row],[Link]]),\"\")","v":"TIBERIUS Caesar (Augustus)"},null,"rng_EmpSelIP >>>",{"$f":"INDEX(tbl_Emp[IP],MATCH(rng_EmpSel,tbl_Emp[Turn OFF Controls],0))","v":1}]
["TIBERIUS","14-37",14,37,1,700,{"$f":"tbl_Emp[[#This Row],[Turn OFF Controls]]","v":"TIBERIUS"},{"$f":"IF(ISTEXT(OFFSET(tbl_Emp[[#This Row],[Helper 1]],-1,0)),1,OFFSET(tbl_Emp[[#This Row],[Helper 1]],-1,0)+1)","v":7},{"$f":"IF(rng_Emp_Filter=\"\",0,IF(ISNUMBER(SEARCH(rng_Emp_Filter,tbl_Emp[[#This Row],[Helper Key]])),tbl_Emp[[#This Row],[Helper 1]],\"\"))","v":0},{"$f":"IFERROR(SMALL(tbl_Emp[Helper 2],tbl_Emp[[#This Row],[Helper 1]]),\"\")","v":0},{"$f":"IF(OR(tbl_Emp[[#This Row],[Helper 2]]<>\"\",tbl_Emp[[#This Row],[Helper 3]]<>\"\"),1,0)","v":1},{"$f":"IF(rng_Emp_Filter=\"\",0,IF(tbl_Emp[[#This Row],[Helper 2]]<>\"\",1,0))","v":0},{"$f":"IF(rng_Emp_Filter=\"\",tbl_Emp[[#This Row],[Helper 1]],INDEX(tbl_Emp[Helper 3],tbl_Emp[[#This Row],[Helper 1]]))","v":7},{"$f":"IFERROR(INDEX(tbl_Emp[Turn OFF Controls],tbl_Emp[[#This Row],[Link]]),\"\")","v":"TIBERIUS"}]
["DRUSUS Caesar (Tiberius)","19-23",19,23,1,800,{"$f":"tbl_Emp[[#This Row],[Turn OFF Controls]]","v":"DRUSUS Caesar (Tiberius)"},{"$f":"IF(ISTEXT(OFFSET(tbl_Emp[[#This Row],[Helper 1]],-1,0)),1,OFFSET(tbl_Emp[[#This Row],[Helper 1]],-1,0)+1)","v":8},{"$f":"IF(rng_Emp_Filter=\"\",0,IF(ISNUMBER(SEARCH(rng_Emp_Filter,tbl_Emp[[#This Row],[Helper Key]])),tbl_Emp[[#This Row],[Helper 1]],\"\"))","v":0},{"$f":"IFERROR(SMALL(tbl_Emp[Helper 2],tbl_Emp[[#This Row],[Helper 1]]),\"\")","v":0},{"$f":"IF(OR(tbl_Emp[[#This Row],[Helper 2]]<>\"\",tbl_Emp[[#This Row],[Helper 3]]<>\"\"),1,0)","v":1},{"$f":"IF(rng_Emp_Filter=\"\",0,IF(tbl_Emp[[#This Row],[Helper 2]]<>\"\",1,0))","v":0},{"$f":"IF(rng_Emp_Filter=\"\",tbl_Emp[[#This Row],[Helper 1]],INDEX(tbl_Emp[Helper 3],tbl_Emp[[#This Row],[Helper 1]]))","v":8},{"$f":"IFERROR(INDEX(tbl_Emp[Turn OFF Controls],tbl_Emp[[#This Row],[Link]]),\"\")","v":"DRUSUS Caesar (Tiberius)"}]
["CALIGULA","37-41",37,41,1,900,{"$f":"tbl_Emp[[#This Row],[Turn OFF Controls]]","v":"CALIGULA"},{"$f":"IF(ISTEXT(OFFSET(tbl_Emp[[#This Row],[Helper 1]],-1,0)),1,OFFSET(tbl_Emp[[#This Row],[Helper 1]],-1,0)+1)","v":9},{"$f":"IF(rng_Emp_Filter=\"\",0,IF(ISNUMBER(SEARCH(rng_Emp_Filter,tbl_Emp[[#This Row],[Helper Key]])),tbl_Emp[[#This Row],[Helper 1]],\"\"))","v":0},{"$f":"IFERROR(SMALL(tbl_Emp[Helper 2],tbl_Emp[[#This Row],[Helper 1]]),\"\")","v":0},{"$f":"IF(OR(tbl_Emp[[#This Row],[Helper 2]]<>\"\",tbl_Emp[[#This Row],[Helper 3]]<>\"\"),1,0)","v":1},{"$f":"IF(rng_Emp_Filter=\"\",0,IF(tbl_Emp[[#This Row],[Helper 2]]<>\"\",1,0))","v":0},{"$f":"IF(rng_Emp_Filter=\"\",tbl_Emp[[#This Row],[Helper 1]],INDEX(tbl_Emp[Helper 3],tbl_Emp[[#This Row],[Helper 1]]))","v":9},{"$f":"IFERROR(INDEX(tbl_Emp[Turn OFF Controls],tbl_Emp[[#This Row],[Link]]),\"\")","v":"CALIGULA"}]
["GERMANICUS (Caligula)","37-41",37,41,1,1000,{"$f":"tbl_Emp[[#This Row],[Turn OFF Controls]]","v":"GERMANICUS (Caligula)"},{"$f":"IF(ISTEXT(OFFSET(tbl_Emp[[#This Row],[Helper 1]],-1,0)),1,OFFSET(tbl_Emp[[#This Row],[Helper 1]],-1,0)+1)","v":10},{"$f":"IF(rng_Emp_Filter=\"\",0,IF(ISNUMBER(SEARCH(rng_Emp_Filter,tbl_Emp[[#This Row],[Helper Key]])),tbl_Emp[[#This Row],[Helper 1]],\"\"))","v":0},{"$f":"IFERROR(SMALL(tbl_Emp[Helper 2],tbl_Emp[[#This Row],[Helper 1]]),\"\")","v":0},{"$f":"IF(OR(tbl_Emp[[#This Row],[Helper 2]]<>\"\",tbl_Emp[[#This Row],[Helper 3]]<>\"\"),1,0)","v":1},{"$f":"IF(rng_Emp_Filter=\"\",0,IF(tbl_Emp[[#This Row],[Helper 2]]<>\"\",1,0))","v":0},{"$f":"IF(rng_Emp_Filter=\"\",tbl_Emp[[#This Row],[Helper 1]],INDEX(tbl_Emp[Helper 3],tbl_Emp[[#This Row],[Helper 1]]))","v":10},{"$f":"IFERROR(INDEX(tbl_Emp[Turn OFF Controls],tbl_Emp[[#This Row],[Link]]),\"\")","v":"GERMANICUS (Caligula)"}]
["AGRIPPA (Caligula)","37-41",37,41,1,1100,{"$f":"tbl_Emp[[#This Row],[Turn OFF Controls]]","v":"AGRIPPA (Caligula)"},{"$f":"IF(ISTEXT(OFFSET(tbl_Emp[[#This Row],[Helper 1]],-1,0)),1,OFFSET(tbl_Emp[[#This Row],[Helper 1]],-1,0)+1)","v":11},{"$f":"IF(rng_Emp_Filter=\"\",0,IF(ISNUMBER(SEARCH(rng_Emp_Filter,tbl_Emp[[#This Row],[Helper Key]])),tbl_Emp[[#This Row],[Helper 1]],\"\"))","v":0},{"$f":"IFERROR(SMALL(tbl_Emp[Helper 2],tbl_Emp[[#This Row],[Helper 1]]),\"\")","v":0},{"$f":"IF(OR(tbl_Emp[[#This Row],[Helper 2]]<>\"\",tbl_Emp[[#This Row],[Helper 3]]<>\"\"),1,0)","v":1},{"$f":"IF(rng_Emp_Filter=\"\",0,IF(tbl_Emp[[#This Row],[Helper 2]]<>\"\",1,0))","v":0},{"$f":"IF(rng_Emp_Filter=\"\",tbl_Emp[[#This Row],[Helper 1]],INDEX(tbl_Emp[Helper 3],tbl_Emp[[#This Row],[Helper 1]]))","v":11},{"$f":"IFERROR(INDEX(tbl_Emp[Turn OFF Controls],tbl_Emp[[#This Row],[Link]]),\"\")","v":"AGRIPPA (Caligula)"}]
["AGRIPPINA THE ELDER (Caligula)","37-41",37,41,1,1200,{"$f":"tbl_Emp[[#This Row],[Turn OFF Controls]]","v":"AGRIPPINA THE ELDER (Caligula)"},{"$f":"IF(ISTEXT(OFFSET(tbl_Emp[[#This Row],[Helper 1]],-1,0)),1,OFFSET(tbl_Emp[[#This Row],[Helper 1]],-1,0)+1)","v":12},{"$f":"IF(rng_Emp_Filter=\"\",0,IF(ISNUMBER(SEARCH(rng_Emp_Filter,tbl_Emp[[#This Row],[Helper Key]])),tbl_Emp[[#This Row],[Helper 1]],\"\"))","v":0},{"$f":"IFERROR(SMALL(tbl_Emp[Helper 2],tbl_Emp[[#This Row],[Helper 1]]),\"\")","v":0},{"$f":"IF(OR(tbl_Emp[[#This Row],[Helper 2]]<>\"\",tbl_Emp[[#This Row],[Helper 3]]<>\"\"),1,0)","v":1},{"$f":"IF(rng_Emp_Filter=\"\",0,IF(tbl_Emp[[#This Row],[Helper 2]]<>\"\",1,0))","v":0},{"$f":"IF(rng_Emp_Filter=\"\",tbl_Emp[[#This Row],[Helper 1]],INDEX(tbl_Emp[Helper 3],tbl_Emp[[#This Row],[Helper 1]]))","v":12},{"$f":"IFERROR(INDEX(tbl_Emp[Turn OFF Controls],tbl_Emp[[#This Row],[Link]]),\"\")","v":"AGRIPPINA THE ELDER (Caligula)"}]
["AGRIPPINA THE YOUNGER (Caligula)","37-41",37,41,1,1300,{"$f":"tbl_Emp[[#This Row],[Turn OFF Controls]]","v":"AGRIPPINA THE YOUNGER (Caligula)"},{"$f":"IF(ISTEXT(OFFSET(tbl_Emp[[#This Row],[Helper 1]],-1,0)),1,OFFSET(tbl_Emp[[#This Row],[Helper 1]],-1,0)+1)","v":13},{"$f":"IF(rng_Emp_Filter=\"\",0,IF(ISNUMBER(SEARCH(rng_Emp_Filter,tbl_Emp[[#This Row],[Helper Key]])),tbl_Emp[[#This Row],[Helper 1]],\"\"))","v":0},{"$f":"IFERROR(SMALL(tbl_Emp[Helper 2],tbl_Emp[[#This Row],[Helper 1]]),\"\")","v":0},{"$f":"IF(OR(tbl_Emp[[#This Row],[Helper 2]]<>\"\",tbl_Emp[[#This Row],[Helper 3]]<>\"\"),1,0)","v":1},{"$f":"IF(rng_Emp_Filter=\"\",0,IF(tbl_Emp[[#This Row],[Helper 2]]<>\"\",1,0))","v":0},{"$f":"IF(rng_Emp_Filter=\"\",tbl_Emp[[#This Row],[Helper 1]],INDEX(tbl_Emp[Helper 3],tbl_Emp[[#This Row],[Helper 1]]))","v":13},{"$f":"IFERROR(INDEX(tbl_Emp[Turn OFF Controls],tbl_Emp[[#This Row],[Link]]),\"\")","v":"AGRIPPINA THE YOUNGER (Caligula)"}]
["CLAUDIUS I","41-54",41,54,2,1400,{"$f":"tbl_Emp[[#This Row],[Turn OFF Controls]]","v":"CLAUDIUS I"},{"$f":"IF(ISTEXT(OFFSET(tbl_Emp[[#This Row],[Helper 1]],-1,0)),1,OFFSET(tbl_Emp[[#This Row],[Helper 1]],-1,0)+1)","v":14},{"$f":"IF(rng_Emp_Filter=\"\",0,IF(ISNUMBER(SEARCH(rng_Emp_Filter,tbl_Emp[[#This Row],[Helper Key]])),tbl_Emp[[#This Row],[Helper 1]],\"\"))","v":0},{"$f":"IFERROR(SMALL(tbl_Emp[Helper 2],tbl_Emp[[#This Row],[Helper 1]]),\"\")","v":0},{"$f":"IF(OR(tbl_Emp[[#This Row],[Helper 2]]<>\"\",tbl_Emp[[#This Row],[Helper 3]]<>\"\"),1,0)","v":1},{"$f":"IF(rng_Emp_Filter=\"\",0,IF(tbl_Emp[[#This Row],[Helper 2]]<>\"\",1,0))","v":0},{"$f":"IF(rng_Emp_Filter=\"\",tbl_Emp[[#This Row],[Helper 1]],INDEX(tbl_Emp[Helper 3],tbl_Emp[[#This Row],[Helper 1]]))","v":14},{"$f":"IFERROR(INDEX(tbl_Emp[Turn OFF Controls],tbl_Emp[[#This Row],[Link]]),\"\")","v":"CLAUDIUS I"}]
["DRUSUS (Claudius)","41-54",41,54,2,1500,{"$f":"tbl_Emp[[#This Row],[Turn OFF Controls]]","v":"DRUSUS (Claudius)"},{"$f":"IF(ISTEXT(OFFSET(tbl_Emp[[#This Row],[Helper 1]],-1,0)),1,OFFSET(tbl_Emp[[#This Row],[Helper 1]],-1,0)+1)","v":15},{"$f":"IF(rng_Emp_Filter=\"\",0,IF(ISNUMBER(SEARCH(rng_Emp_Filter,tbl_Emp[[#This Row],[Helper Key]])),tbl_Emp[[#This Row],[Helper 1]],\"\"))","v":0},{"$f":"IFERROR(SMALL(tbl_Emp[Helper 2],tbl_Emp[[#This Row],[Helper 1]]),\"\")","v":0},{"$f":"IF(OR(tbl_Emp[[#This Row],[Helper 2]]<>\"\",tbl_Emp[[#This Row],[Helper 3]]<>\"\"),1,0)","v":1},{"$f":"IF(rng_Emp_Filter=\"\",0,IF(tbl_Emp[[#This Row],[Helper 2]]<>\"\",1,0))","v":0},{"$f":"IF(rng_Emp_Filter=\"\",tbl_Emp[[#This Row],[Helper 1]],INDEX(tbl_Emp[Helper 3],tbl_Emp[[#This Row],[Helper 1]]))","v":15},{"$f":"IFERROR(INDEX(tbl_Emp[Turn OFF Controls],tbl_Emp[[#This Row],[Link]]),\"\")","v":"DRUSUS (Claudius)"}]
["ANTONIA MINOR (Claudius)","41-54",41,54,2,1600,{"$f":"tbl_Emp[[#This Row],[Turn OFF Controls]]","v":"ANTONIA MINOR (Claudius)"},{"$f":"IF(ISTEXT(OFFSET(tbl_Emp[[#This Row],[Helper 1]],-1,0)),1,OFFSET(tbl_Emp[[#This Row],[Helper 1]],-1,0)+1)","v":16},{"$f":"IF(rng_Emp_Filter=\"\",0,IF(ISNUMBER(SEARCH(rng_Emp_Filter,tbl_Emp[[#This Row],[Helper Key]])),tbl_Emp[[#This Row],[Helper 1]],\"\"))","v":0},{"$f":"IFERROR(SMALL(tbl_Emp[Helper 2],tbl_Emp[[#This Row],[Helper 1]]),\"\")","v":0},{"$f":"IF(OR(tbl_Emp[[#This Row],[Helper 2]]<>\"\",tbl_Emp[[#This Row],[Helper 3]]<>\"\"),1,0)","v":1},{"$f":"IF(rng_Emp_Filter=\"\",0,IF(tbl_Emp[[#This Row],[Helper 2]]<>\"\",1,0))","v":0},{"$f":"IF(rng_Emp_Filter=\"\",tbl_Emp[[#This Row],[Helper 1]],INDEX(tbl_Emp[Helper 3],tbl_Emp[[#This Row],[Helper 1]]))","v":16},{"$f":"IFERROR(INDEX(tbl_Emp[Turn OFF Controls],tbl_Emp[[#This Row],[Link]]),\"\")","v":"ANTONIA MINOR (Claudius)"}]
["AGRIPPINA THE ELDER (Claudius)","41-54",41,54,2,1700,{"$f":"tbl_Emp[[#This Row],[Turn OFF Controls]]","v":"AGRIPPINA THE ELDER (Claudius)"},{"$f":"IF(ISTEXT(OFFSET(tbl_Emp[[#This Row],[Helper 1]],-1,0)),1,OFFSET(tbl_Emp[[#This Row],[Helper 1]],-1,0)+1)","v":17},{"$f":"IF(rng_Emp_Filter=\"\",0,IF(ISNUMBER(SEARCH(rng_Emp_Filter,tbl_Emp[[#This Row],[Helper Key]])),tbl_Emp[[#This Row],[Helper 1]],\"\"))","v":0},{"$f":"IFERROR(SMALL(tbl_Emp[Helper 2],tbl_Emp[[#This Row],[Helper 1]]),\"\")","v":0},{"$f":"IF(OR(tbl_Emp[[#This Row],[Helper 2]]<>\"\",tbl_Emp[[#This Row],[Helper 3]]<>\"\"),1,0)","v":1},{"$f":"IF(rng_Emp_Filter=\"\",0,IF(tbl_Emp[[#This Row],[Helper 2]]<>\"\",1,0))","v":0},{"$f":"IF(rng_Emp_Filter=\"\",tbl_Emp[[#This Row],[Helper 1]],INDEX(tbl_Emp[Helper 3],tbl_Emp[[#This Row],[Helper 1]]))","v":17},{"$f":"IFERROR(INDEX(tbl_Emp[Turn OFF Controls],tbl_Emp[[#This Row],[Link]]),\"\")","v":"AGRIPPINA THE ELDER (Claudius)"}]
["AGRIPPINA THE YOUNGER (Claudius)","43-54",43,54,2,1800,{"$f":"tbl_Emp[[#This Row],[Turn OFF Controls]]","v":"AGRIPPINA THE YOUNGER (Claudius)"},{"$f":"IF(ISTEXT(OFFSET(tbl_Emp[[#This Row],[Helper 1]],-1,0)),1,OFFSET(tbl_Emp[[#This Row],[Helper 1]],-1,0)+1)","v":18},{"$f":"IF(rng_Emp_Filter=\"\",0,IF(ISNUMBER(SEARCH(rng_Emp_Filter,tbl_Emp[[#This Row],[Helper Key]])),tbl_Emp[[#This Row],[Helper 1]],\"\"))","v":0},{"$f":"IFERROR(SMALL(tbl_Emp[Helper 2],tbl_Emp[[#This Row],[Helper 1]]),\"\")","v":0},{"$f":"IF(OR(tbl_Emp[[#This Row],[Helper 2]]<>\"\",tbl_Emp[[#This Row],[Helper 3]]<>\"\"),1,0)","v":1},{"$f":"IF(rng_Emp_Filter=\"\",0,IF(tbl_Emp[[#This Row],[Helper 2]]<>\"\",1,0))","v":0},{"$f":"IF(rng_Emp_Filter=\"\",tbl_Emp[[#This Row],[Helper 1]],INDEX(tbl_Emp[Helper 3],tbl_Emp[[#This Row],[Helper 1]]))","v":18},{"$f":"IFERROR(INDEX(tbl_Emp[Turn OFF Controls],tbl_Emp[[#This Row],[Link]]),\"\")","v":"AGRIPPINA THE YOUNGER (Claudius)"}]
["BRITANNICUS (Claudius)","49-54",49,54,2,1900,{"$f":"tbl_Emp[[#This Row],[Turn OFF Controls]]","v":"BRITANNICUS (Claudius)"},{"$f":"IF(ISTEXT(OFFSET(tbl_Emp[[#This Row],[Helper 1]],-1,0)),1,OFFSET(tbl_Emp[[#This Row],[Helper 1]],-1,0)+1)","v":19},{"$f":"IF(rng_Emp_Filter=\"\",0,IF(ISNUMBER(SEARCH(rng_Emp_Filter,tbl_Emp[[#This Row],[Helper Key]])),tbl_Emp[[#This Row],[Helper 1]],\"\"))","v":0},{"$f":"IFERROR(SMALL(tbl_Emp[Helper 2],tbl_Emp[[#This Row],[Helper 1]]),\"\")","v":0},{"$f":"IF(OR(tbl_Emp[[#This Row],[Helper 2]]<>\"\",tbl_Emp[[#This Row],[Helper 3]]<>\"\"),1,0)","v":1},{"$f":"IF(rng_Emp_Filter=\"\",0,IF(tbl_Emp[[#This Row],[Helper 2]]<>\"\",1,0))","v":0},{"$f":"IF(rng_Emp_Filter=\"\",tbl_Emp[[#This Row],[Helper 1]],INDEX(tbl_Emp[Helper 3],tbl_Emp[[#This Row],[Helper 1]]))","v":19},{"$f":"IFERROR(INDEX(tbl_Emp[Turn OFF Controls],tbl_Emp[[#This Row],[Link]]),\"\")","v":"BRITANNICUS (Claudius)"}]
["NERO Caesar (Claudius)","50-54",50,54,2,2000,{"$f":"tbl_Emp[[#This Row],[Turn OFF Controls]]","v":"NERO Caesar (Claudius)"},{"$f":"IF(ISTEXT(OFFSET(tbl_Emp[[#This Row],[Helper 1]],-1,0)),1,OFFSET(tbl_Emp[[#This Row],[Helper 1]],-1,0)+1)","v":20},{"$f":"IF(rng_Emp_Filter=\"\",0,IF(ISNUMBER(SEARCH(rng_Emp_Filter,tbl_Emp[[#This Row],[Helper Key]])),tbl_Emp[[#This Row],[Helper 1]],\"\"))","v":0},{"$f":"IFERROR(SMALL(tbl_Emp[Helper 2],tbl_Emp[[#This Row],[Helper 1]]),\"\")","v":0},{"$f":"IF(OR(tbl_Emp[[#This Row],[Helper 2]]<>\"\",tbl_Emp[[#This Row],[Helper 3]]<>\"\"),1,0)","v":1},{"$f":"IF(rng_Emp_Filter=\"\",0,IF(tbl_Emp[[#This Row],[Helper 2]]<>\"\",1,0))","v":0},{"$f":"IF(rng_Emp_Filter=\"\",tbl_Emp[[#This Row],[Helper 1]],INDEX(tbl_Emp[Helper 3],tbl_Emp[[#This Row],[Helper 1]]))","v":20},{"$f":"IFERROR(INDEX(tbl_Emp[Turn OFF Controls],tbl_Emp[[#This Row],[Link]]),\"\")","v":"NERO Caesar (Claudius)"}]
["NERO","54-68",54,68,3,2100,{"$f":"tbl_Emp[[#This Row],[Turn OFF Controls]]","v":"NERO"},{"$f":"IF(ISTEXT(OFFSET(tbl_Emp[[#This Row],[Helper 1]],-1,0)),1,OFFSET(tbl_Emp[[#This Row],[Helper 1]],-1,0)+1)","v":21},{"$f":"IF(rng_Emp_Filter=\"\",0,IF(ISNUMBER(SEARCH(rng_Emp_Filter,tbl_Emp[[#This Row],[Helper Key]])),tbl_Emp[[#This Row],[Helper 1]],\"\"))","v":0},{"$f":"IFERROR(SMALL(tbl_Emp[Helper 2],tbl_Emp[[#This Row],[Helper 1]]),\"\")","v":0},{"$f":"IF(OR(tbl_Emp[[#This Row],[Helper 2]]<>\"\",tbl_Emp[[#This Row],[Helper 3]]<>\"\"),1,0)","v":1},{"$f":"IF(rng_Emp_Filter=\"\",0,IF(tbl_Emp[[#This Row],[Helper 2]]<>\"\",1,0))","v":0},{"$f":"IF(rng_Emp_Filter=\"\",tbl_Emp[[#This Row],[Helper 1]],INDEX(tbl_Emp[Helper 3],tbl_Emp[[#This Row],[Helper 1]]))","v":21},{"$f":"IFERROR(INDEX(tbl_Emp[Turn OFF Controls],tbl_Emp[[#This Row],[Link]]),\"\")","v":"NERO"}]
["CLODIUS MACER",68,68,68,3,2200,{"$f":"tbl_Emp[[#This Row],[Turn OFF Controls]]","v":"CLODIUS MACER"},{"$f":"IF(ISTEXT(OFFSET(tbl_Emp[[#This Row],[Helper 1]],-1,0)),1,OFFSET(tbl_Emp[[#This Row],[Helper 1]],-1,0)+1)","v":22},{"$f":"IF(rng_Emp_Filter=\"\",0,IF(ISNUMBER(SEARCH(rng_Emp_Filter,tbl_Emp[[#This Row],[Helper Key]])),tbl_Emp[[#This Row],[Helper 1]],\"\"))","v":0},{"$f":"IFERROR(SMALL(tbl_Emp[Helper 2],tbl_Emp[[#This Row],[Helper 1]]),\"\")","v":0},{"$f":"IF(OR(tbl_Emp[[#This Row],[Helper 2]]<>\"\",tbl_Emp[[#This Row],[Helper 3]]<>\"\"),1,0)","v":1},{"$f":"IF(rng_Emp_Filter=\"\",0,IF(tbl_Emp[[#This Row],[Helper 2]]<>\"\",1,0))","v":0},{"$f":"IF(rng_Emp_Filter=\"\",tbl_Emp[[#This Row],[Helper 1]],INDEX(tbl_Emp[Helper 3],tbl_Emp[[#This Row],[Helper 1]]))","v":22},{"$f":"IFERROR(INDEX(tbl_Emp[Turn OFF Controls],tbl_Emp[[#This Row],[Link]]),\"\")","v":"CLODIUS MACER"}]
["GALBA","68-69",68,69,3,2300,{"$f":"tbl_Emp[[#This Row],[Turn OFF Controls]]","v":"GALBA"},{"$f":"IF(ISTEXT(OFFSET(tbl_Emp[[#This Row],[Helper 1]],-1,0)),1,OFFSET(tbl_Emp[[#This Row],[Helper 1]],-1,0)+1)","v":23},{"$f":"IF(rng_Emp_Filter=\"\",0,IF(ISNUMBER(SEARCH(rng_Emp_Filter,tbl_Emp[[#This Row],[Helper Key]])),tbl_Emp[[#This Row],[Helper 1]],\"\"))","v":0},{"$f":"IFERROR(SMALL(tbl_Emp[Helper 2],tbl_Emp[[#This Row],[Helper 1]]),\"\")","v":0},{"$f":"IF(OR(tbl_Emp[[#This Row],[Helper 2]]<>\"\",tbl_Emp[[#This Row],[Helper 3]]<>\"\"),1,0)","v":1},{"$f":"IF(rng_Emp_Filter=\"\",0,IF(tbl_Emp[[#This Row],[Helper 2]]<>\"\",1,0))","v":0},{"$f":"IF(rng_Emp_Filter=\"\",tbl_Emp[[#This Row],[Helper 1]],INDEX(tbl_Emp[Helper 3],tbl_Emp[[#This Row],[Helper 1]]))","v":23},{"$f":"IFERROR(INDEX(tbl_Emp[Turn OFF Controls],tbl_Emp[[#This Row],[Link]]),\"\")","v":"GALBA"}]
["OTHO",69,69,69,3,2400,{"$f":"tbl_Emp[[#This Row],[Turn OFF Controls]]","v":"OTHO"},{"$f":"IF(ISTEXT(OFFSET(tbl_Emp[[#This Row],[Helper 1]],-1,0)),1,OFFSET(tbl_Emp[[#This Row],[Helper 1]],-1,0)+1)","v":24},{"$f":"IF(rng_Emp_Filter=\"\",0,IF(ISNUMBER(SEARCH(rng_Emp_Filter,tbl_Emp[[#This Row],[Helper Key]])),tbl_Emp[[#This Row],[Helper 1]],\"\"))","v":0},{"$f":"IFERROR(SMALL(tbl_Emp[Helper 2],tbl_Emp[[#This Row],[Helper 1]]),\"\")","v":0},{"$f":"IF(OR(tbl_Emp[[#This Row],[Helper 2]]<>\"\",tbl_Emp[[#This Row],[Helper 3]]<>\"\"),1,0)","v":1},{"$f":"IF(rng_Emp_Filter=\"\",0,IF(tbl_Emp[[#This Row],[Helper 2]]<>\"\",1,0))","v":0},{"$f":"IF(rng_Emp_Filter=\"\",tbl_Emp[[#This Row],[Helper 1]],INDEX(tbl_Emp[Helper 3],tbl_Emp[[#This Row],[Helper 1]]))","v":24},{"$f":"IFERROR(INDEX(tbl_Emp[Turn OFF Controls],tbl_Emp[[#This Row],[Link]]),\"\")","v":"OTHO"}]
["VITELLIUS",69,69,69,3,2500,{"$f":"tbl_Emp[[#This Row],[Turn OFF Controls]]","v":"VITELLIUS"},{"$f":"IF(ISTEXT(OFFSET(tbl_Emp[[#This Row],[Helper 1]],-1,0)),1,OFFSET(tbl_Emp[[#This Row],[Helper 1]],-1,0)+1)","v":25},{"$f":"IF(rng_Emp_Filter=\"\",0,IF(ISNUMBER(SEARCH(rng_Emp_Filter,tbl_Emp[[#This Row],[Helper Key]])),tbl_Emp[[#This Row],[Helper 1]],\"\"))","v":0},{"$f":"IFERROR(SMALL(tbl_Emp[Helper 2],tbl_Emp[[#This Row],[Helper 1]]),\"\")","v":0},{"$f":"IF(OR(tbl_Emp[[#This Row],[Helper 2]]<>\"\",tbl_Emp[[#This Row],[Helper 3]]<>\"\"),1,0)","v":1},{"$f":"IF(rng_Emp_Filter=\"\",0,IF(tbl_Emp[[#This Row],[Helper 2]]<>\"\",1,0))","v":0},{"$f":"IF(rng_Emp_Filter=\"\",tbl_Emp[[#This Row],[Helper 1]],INDEX(tbl_Emp[Helper 3],tbl_Emp[[#This Row],[Helper 1]]))","v":25},{"$f":"IFERROR(INDEX(tbl_Emp[Turn OFF Controls],tbl_Emp[[#This Row],[Link]]),\"\")","v":"VITELLIUS"}]
["Anonymous (Civil War)","68-69",68,69,3,2600,{"$f":"tbl_Emp[[#This Row],[Turn OFF Controls]]","v":"Anonymous (Civil War)"},{"$f":"IF(ISTEXT(OFFSET(tbl_Emp[[#This Row],[Helper 1]],-1,0)),1,OFFSET(tbl_Emp[[#This Row],[Helper 1]],-1,0)+1)","v":26},{"$f":"IF(rng_Emp_Filter=\"\",0,IF(ISNUMBER(SEARCH(rng_Emp_Filter,tbl_Emp[[#This Row],[Helper Key]])),tbl_Emp[[#This Row],[Helper 1]],\"\"))","v":0},{"$f":"IFERROR(SMALL(tbl_Emp[Helper 2],tbl_Emp[[#This Row],[Helper 1]]),\"\")","v":0},{"$f":"IF(OR(tbl_Emp[[#This Row],[Helper 2]]<>\"\",tbl_Emp[[#This Row],[Helper 3]]<>\"\"),1,0)","v":1},{"$f":"IF(rng_Emp_Filter=\"\",0,IF(tbl_Emp[[#This Row],[Helper 2]]<>\"\",1,0))","v":0},{"$f":"IF(rng_Emp_Filter=\"\",tbl_Emp[[#This Row],[Helper 1]],INDEX(tbl_Emp[Helper 3],tbl_Emp[[#This Row],[Helper 1]]))","v":26},{"$f":"IFERROR(INDEX(tbl_Emp[Turn OFF Controls],tbl_Emp[[#This Row],[Link]]),\"\")","v":"Anonymous (Civil War)"}]
["VESPASIAN","69-79",69,79,4,2700,{"$f":"tbl_Emp[[#This Row],[Turn OFF Controls]]","v":"VESPASIAN"},{"$f":"IF(ISTEXT(OFFSET(tbl_Emp[[#This Row],[Helper 1]],-1,0)),1,OFFSET(tbl_Emp[[#This Row],[Helper 1]],-1,0)+1)","v":27},{"$f":"IF(rng_Emp_Filter=\"\",0,IF(ISNUMBER(SEARCH(rng_Emp_Filter,tbl_Emp[[#This Row],[Helper Key]])),tbl_Emp[[#This Row],[Helper 1]],\"\"))","v":0},{"$f":"IFERROR(SMALL(tbl_Emp[Helper 2],tbl_Emp[[#This Row],[Helper 1]]),\"\")","v":0},{"$f":"IF(OR(tbl_Emp[[#This Row],[Helper 2]]<>\"\",tbl_Emp[[#This Row],[Helper 3]]<>\"\"),1,0)","v":1},{"$f":"IF(rng_Emp_Filter=\"\",0,IF(tbl_Emp[[#This Row],[Helper 2]]<>\"\",1,0))","v":0},{"$f":"IF(rng_Emp_Filter=\"\",tbl_Emp[[#This Row],[Helper 1]],INDEX(tbl_Emp[Helper 3],tbl_Emp[[#This Row],[Helper 1]]))","v":27},{"$f":"IFERROR(INDEX(tbl_Emp[Turn OFF Controls],tbl_Emp[[#This Row],[Link]]),\"\")","v":"VESPASIAN"}]
["TITUS Caesar (Vespasian)","69-79",69,79,4,2800,{"$f":"tbl_Emp[[#This Row],[Turn OFF Controls]]","v":"TITUS Caesar (Vespasian)"},{"$f":"IF(ISTEXT(OFFSET(tbl_Emp[[#This Row],[Helper 1]],-1,0)),1,OFFSET(tbl_Emp[[#This Row],[Helper 1]],-1,0)+1)","v":28},{"$f":"IF(rng_Emp_Filter=\"\",0,IF(ISNUMBER(SEARCH(rng_Emp_Filter,tbl_Emp[[#This Row],[Helper Key]])),tbl_Emp[[#This Row],[Helper 1]],\"\"))","v":0},{"$f":"IFERROR(SMALL(tbl_Emp[Helper 2],tbl_Emp[[#This Row],[Helper 1]]),\"\")","v":0},{"$f":"IF(OR(tbl_Emp[[#This Row],[Helper 2]]<>\"\",tbl_Emp[[#This Row],[Helper 3]]<>\"\"),1,0)","v":1},{"$f":"IF(rng_Emp_Filter=\"\",0,IF(tbl_Emp[[#This Row],[Helper 2]]<>\"\",1,0))","v":0},{"$f":"IF(rng_Emp_Filter=\"\",tbl_Emp[[#This Row],[Helper 1]],INDEX(tbl_Emp[Helper 3],tbl_Emp[[#This Row],[Helper 1]]))","v":28},{"$f":"IFERROR(INDEX(tbl_Emp[Turn OFF Controls],tbl_Emp[[#This Row],[Link]]),\"\")","v":"TITUS Caesar (Vespasian)"}]
["DOMITIAN Caesar (Vespasian)","69-79",69,79,4,2900,{"$f":"tbl_Emp[[#This Row],[Turn OFF Controls]]","v":"DOMITIAN Caesar (Vespasian)"},{"$f":"IF(ISTEXT(OFFSET(tbl_Emp[[#This Row],[Helper 1]],-1,0)),1,OFFSET(tbl_Emp[[#This Row],[Helper 1]],-1,0)+1)","v":29},{"$f":"IF(rng_Emp_Filter=\"\",0,IF(ISNUMBER(SEARCH(rng_Emp_Filter,tbl_Emp[[#This Row],[Helper Key]])),tbl_Emp[[#This Row],[Helper 1]],\"\"))","v":0},{"$f":"IFERROR(SMALL(tbl_Emp[Helper 2],tbl_Emp[[#This Row],[Helper 1]]),\"\")","v":0},{"$f":"IF(OR(tbl_Emp[[#This Row],[Helper 2]]<>\"\",tbl_Emp[[#This Row],[Helper 3]]<>\"\"),1,0)","v":1},{"$f":"IF(rng_Emp_Filter=\"\",0,IF(tbl_Emp[[#This Row],[Helper 2]]<>\"\",1,0))","v":0},{"$f":"IF(rng_Emp_Filter=\"\",tbl_Emp[[#This Row],[Helper 1]],INDEX(tbl_Emp[Helper 3],tbl_Emp[[#This Row],[Helper 1]]))","v":29},{"$f":"IFERROR(INDEX(tbl_Emp[Turn OFF Controls],tbl_Emp[[#This Row],[Link]]),\"\")","v":"DOMITIAN Caesar (Vespasian)"}]
["TITUS","79-81",79,81,4,3000,{"$f":"tbl_Emp[[#This Row],[Turn OFF Controls]]","v":"TITUS"},{"$f":"IF(ISTEXT(OFFSET(tbl_Emp[[#This Row],[Helper 1]],-1,0)),1,OFFSET(tbl_Emp[[#This Row],[Helper 1]],-1,0)+1)","v":30},{"$f":"IF(rng_Emp_Filter=\"\",0,IF(ISNUMBER(SEARCH(rng_Emp_Filter,tbl_Emp[[#This Row],[Helper Key]])),tbl_Emp[[#This Row],[Helper 1]],\"\"))","v":0},{"$f":"IFERROR(SMALL(tbl_Emp[Helper 2],tbl_Emp[[#This Row],[Helper 1]]),\"\")","v":0},{"$f":"IF(OR(tbl_Emp[[#This Row],[Helper 2]]<>\"\",tbl_Emp[[#This Row],[Helper 3]]<>\"\"),1,0)","v":1},{"$f":"IF(rng_Emp_Filter=\"\",0,IF(tbl_Emp[[#This Row],[Helper 2]]<>\"\",1,0))","v":0},{"$f":"IF(rng_Emp_Filter=\"\",tbl_Emp[[#This Row],[Helper 1]],INDEX(tbl_Emp[Helper 3],tbl_Emp[[#This Row],[Helper 1]]))","v":30},{"$f":"IFERROR(INDEX(tbl_Emp[Turn OFF Controls],tbl_Emp[[#This Row],[Link]]),\"\")","v":"TITUS"}]
["DIVUS VESPASIAN (Titus)","79-81",79,81,4,3100,{"$f":"tbl_Emp[[#This Row],[Turn OFF Controls]]","v":"DIVUS VESPASIAN (Titus)"},{"$f":"IF(ISTEXT(OFFSET(tbl_Emp[[#This Row],[Helper 1]],-1,0)),1,OFFSET(tbl_Emp[[#This Row],[Helper 1]],-1,0)+1)","v":31},{"$f":"IF(rng_Emp_Filter=\"\",0,IF(ISNUMBER(SEARCH(rng_Emp_Filter,tbl_Emp[[#This Row],[Helper Key]])),tbl_Emp[[#This Row],[Helper 1]],\"\"))","v":0},{"$f":"IFERROR(SMALL(tbl_Emp[Helper 2],tbl_Emp[[#This Row],[Helper 1]]),\"\")","v":0},{"$f":"IF(OR(tbl_Emp[[#This Row],[Helper 2]]<>\"\",tbl_Emp[[#This Row],[Helper 3]]<>\"\"),1,0)","v":1},{"$f":"IF(rng_Emp_Filter=\"\",0,IF(tbl_Emp[[#This Row],[Helper 2]]<>\"\",1,0))","v":0},{"$f":"IF(rng_Emp_Filter=\"\",tbl_Emp[[#This Row],[Helper 1]],INDEX(tbl_Emp[Helper 3],tbl_Emp[[#This Row],[Helper 1]]))","v":31},{"$f":"IFERROR(INDEX(tbl_Emp[Turn OFF Controls],tbl_Emp[[#This Row],[Link]]),\"\")","v":"DIVUS VESPASIAN (Titus)"}]
["JULIA FLAVIA (Titus)","79-81",79,81,4,3200,{"$f":"tbl_Emp[[#This Row],[Turn OFF Controls]]","v":"JULIA FLAVIA (Titus)"},{"$f":"IF(ISTEXT(OFFSET(tbl_Emp[[#This Row],[Helper 1]],-1,0)),1,OFFSET(tbl_Emp[[#This Row],[Helper 1]],-1,0)+1)","v":32},{"$f":"IF(rng_Emp_Filter=\"\",0,IF(ISNUMBER(SEARCH(rng_Emp_Filter,tbl_Emp[[#This Row],[Helper Key]])),tbl_Emp[[#This Row],[Helper 1]],\"\"))","v":0},{"$f":"IFERROR(SMALL(tbl_Emp[Helper 2],tbl_Emp[[#This Row],[Helper 1]]),\"\")","v":0},{"$f":"IF(OR(tbl_Emp[[#This Row],[Helper 2]]<>\"\",tbl_Emp[[#This Row],[Helper 3]]<>\"\"),1,0)","v":1},{"$f":"IF(rng_Emp_Filter=\"\",0,IF(tbl_Emp[[#This Row],[Helper 2]]<>\"\",1,0))","v":0},{"$f":"IF(rng_Emp_Filter=\"\",tbl_Emp[[#This Row],[Helper 1]],INDEX(tbl_Emp[Helper 3],tbl_Emp[[#This Row],[Helper 1]]))","v":32},{"$f":"IFERROR(INDEX(tbl_Emp[Turn OFF Controls],tbl_Emp[[#This Row],[Link]]),\"\")","v":"JULIA FLAVIA (Titus)"}]
["DOMITIAN Caesar (Titus)","79-81",79,81,4,3300,{"$f":"tbl_Emp[[#This Row],[Turn OFF Controls]]","v":"DOMITIAN Caesar (Titus)"},{"$f":"IF(ISTEXT(OFFSET(tbl_Emp[[#This Row],[Helper 1]],-1,0)),1,OFFSET(tbl_Emp[[#This Row],[Helper 1]],-1,0)+1)","v":33},{"$f":"IF(rng_Emp_Filter=\"\",0,IF(ISNUMBER(SEARCH(rng_Emp_Filter,tbl_Emp[[#This Row],[Helper Key]])),tbl_Emp[[#This Row],[Helper 1]],\"\"))","v":0},{"$f":"IFERROR(SMALL(tbl_Emp[Helper 2],tbl_Emp[[#This Row],[Helper 1]]),\"\")","v":0},{"$f":"IF(OR(tbl_Emp[[#This Row],[Helper 2]]<>\"\",tbl_Emp[[#This Row],[Helper 3]]<>\"\"),1,0)","v":1},{"$f":"IF(rng_Emp_Filter=\"\",0,IF(tbl_Emp[[#This Row],[Helper 2]]<>\"\",1,0))","v":0},{"$f":"IF(rng_Emp_Filter=\"\",tbl_Emp[[#This Row],[Helper 1]],INDEX(tbl_Emp[Helper 3],tbl_Emp[[#This Row],[Helper 1]]))","v":33},{"$f":"IFERROR(INDEX(tbl_Emp[Turn OFF Controls],tbl_Emp[[#This Row],[Link]]),\"\")","v":"DOMITIAN Caesar (Titus)"}]
["DIVA DOMITILLA (Titus)","80-81",80,81,4,3400,{"$f":"tbl_Emp[[#This Row],[Turn OFF Controls]]","v":"DIVA DOMITILLA (Titus)"},{"$f":"IF(ISTEXT(OFFSET(tbl_Emp[[#This Row],[Helper 1]],-1,0)),1,OFFSET(tbl_Emp[[#This Row],[Helper 1]],-1,0)+1)","v":34},{"$f":"IF(rng_Emp_Filter=\"\",0,IF(ISNUMBER(SEARCH(rng_Emp_Filter,tbl_Emp[[#This Row],[Helper Key]])),tbl_Emp[[#This Row],[Helper 1]],\"\"))","v":0},{"$f":"IFERROR(SMALL(tbl_Emp[Helper 2],tbl_Emp[[#This Row],[Helper 1]]),\"\")","v":0},{"$f":"IF(OR(tbl_Emp[[#This Row],[Helper 2]]<>\"\",tbl_Emp[[#This Row],[Helper 3]]<>\"\"),1,0)","v":1},{"$f":"IF(rng_Emp_Filter=\"\",0,IF(tbl_Emp[[#This Row],[Helper 2]]<>\"\",1,0))","v":0},{"$f":"IF(rng_Emp_Filter=\"\",tbl_Emp[[#This Row],[Helper 1]],INDEX(tbl_Emp[Helper 3],tbl_Emp[[#This Row],[Helper 1]]))","v":34},{"$f":"IFERROR(INDEX(tbl_Emp[Turn OFF Controls],tbl_Emp[[#This Row],[Link]]),\"\")","v":"DIVA DOMITILLA (Titus)"}]
["DOMITIAN","81-96",81,96,4,3500,{"$f":"tbl_Emp[[#This Row],[Turn OFF Controls]]","v":"DOMITIAN"},{"$f":"IF(ISTEXT(OFFSET(tbl_Emp[[#This Row],[Helper 1]],-1,0)),1,OFFSET(tbl_Emp[[#This Row],[Helper 1]],-1,0)+1)","v":35},{"$f":"IF(rng_Emp_Filter=\"\",0,IF(ISNUMBER(SEARCH(rng_Emp_Filter,tbl_Emp[[#This Row],[Helper Key]])),tbl_Emp[[#This Row],[Helper 1]],\"\"))","v":0},{"$f":"IFERROR(SMALL(tbl_Emp[Helper 2],tbl_Emp[[#This Row],[Helper 1]]),\"\")","v":0},{"$f":"IF(OR(tbl_Emp[[#This Row],[Helper 2]]<>\"\",tbl_Emp[[#This Row],[Helper 3]]<>\"\"),1,0)","v":1},{"$f":"IF(rng_Emp_Filter=\"\",0,IF(tbl_Emp[[#This Row],[Helper 2]]<>\"\",1,0))","v":0},{"$f":"IF(rng_Emp_Filter=\"\",tbl_Emp[[#This Row],[Helper 1]],INDEX(tbl_Emp[Helper 3],tbl_Emp[[#This Row],[Helper 1]]))","v":35},{"$f":"IFERROR(INDEX(tbl_Emp[Turn OFF Controls],tbl_Emp[[#This Row],[Link]]),\"\")","v":"DOMITIAN"}]
["JULIA FLAVIA (Domitian)","81-96",81,96,4,3600,{"$f":"tbl_Emp[[#This Row],[Turn OFF Controls]]","v":"JULIA FLAVIA (Domitian)"},{"$f":"IF(ISTEXT(OFFSET(tbl_Emp[[#This Row],[Helper 1]],-1,0)),1,OFFSET(tbl_Emp[[#This Row],[Helper 1]],-1,0)+1)","v":36},{"$f":"IF(rng_Emp_Filter=\"\",0,IF(ISNUMBER(SEARCH(rng_Emp_Filter,tbl_Emp[[#This Row],[Helper Key]])),tbl_Emp[[#This Row],[Helper 1]],\"\"))","v":0},{"$f":"IFERROR(SMALL(tbl_Emp[Helper 2],tbl_Emp[[#This Row],[Helper 1]]),\"\")","v":0},{"$f":"IF(OR(tbl_Emp[[#This Row],[Helper 2]]<>\"\",tbl_Emp[[#This Row],[Helper 3]]<>\"\"),1,0)","v":1},{"$f":"IF(rng_Emp_Filter=\"\",0,IF(tbl_Emp[[#This Row],[Helper 2]]<>\"\",1,0))","v":0},{"$f":"IF(rng_Emp_Filter=\"\",tbl_Emp[[#This Row],[Helper 1]],INDEX(tbl_Emp[Helper 3],tbl_Emp[[#This Row],[Helper 1]]))","v":36},{"$f":"IFERROR(INDEX(tbl_Emp[Turn OFF Controls],tbl_Emp[[#This Row],[Link]]),\"\")","v":"JULIA FLAVIA (Domitian)"}]
["DOMITIA LONGINA (Domitian)","82-96",82,96,4,3700,{"$f":"tbl_Emp[[#This Row],[Turn OFF Controls]]","v":"DOMITIA LONGINA (Domitian)"},{"$f":"IF(ISTEXT(OFFSET(tbl_Emp[[#This Row],[Helper 1]],-1,0)),1,OFFSET(tbl_Emp[[#This Row],[Helper 1]],-1,0)+1)","v":37},{"$f":"IF(rng_Emp_Filter=\"\",0,IF(ISNUMBER(SEARCH(rng_Emp_Filter,tbl_Emp[[#This Row],[Helper Key]])),tbl_Emp[[#This Row],[Helper 1]],\"\"))","v":0},{"$f":"IFERROR(SMALL(tbl_Emp[Helper 2],tbl_Emp[[#This Row],[Helper 1]]),\"\")","v":0},{"$f":"IF(OR(tbl_Emp[[#This Row],[Helper 2]]<>\"\",tbl_Emp[[#This Row],[Helper 3]]<>\"\"),1,0)","v":1},{"$f":"IF(rng_Emp_Filter=\"\",0,IF(tbl_Emp[[#This Row],[Helper 2]]<>\"\",1,0))","v":0},{"$f":"IF(rng_Emp_Filter=\"\",tbl_Emp[[#This Row],[Helper 1]],INDEX(tbl_Emp[Helper 3],tbl_Emp[[#This Row],[Helper 1]]))","v":37},{"$f":"IFERROR(INDEX(tbl_Emp[Turn OFF Controls],tbl_Emp[[#This Row],[Link]]),\"\")","v":"DOMITIA LONGINA (Domitian)"}]
["NERVA","96-98",96,98,5,3800,{"$f":"tbl_Emp[[#This Row],[Turn OFF Controls]]","v":"NERVA"},{"$f":"IF(ISTEXT(OFFSET(tbl_Emp[[#This Row],[Helper 1]],-1,0)),1,OFFSET(tbl_Emp[[#This Row],[Helper 1]],-1,0)+1)","v":38},{"$f":"IF(rng_Emp_Filter=\"\",0,IF(ISNUMBER(SEARCH(rng_Emp_Filter,tbl_Emp[[#This Row],[Helper Key]])),tbl_Emp[[#This Row],[Helper 1]],\"\"))","v":0},{"$f":"IFERROR(SMALL(tbl_Emp[Helper 2],tbl_Emp[[#This Row],[Helper 1]]),\"\")","v":0},{"$f":"IF(OR(tbl_Emp[[#This Row],[Helper 2]]<>\"\",tbl_Emp[[#This Row],[Helper 3]]<>\"\"),1,0)","v":1},{"$f":"IF(rng_Emp_Filter=\"\",0,IF(tbl_Emp[[#This Row],[Helper 2]]<>\"\",1,0))","v":0},{"$f":"IF(rng_Emp_Filter=\"\",tbl_Emp[[#This Row],[Helper 1]],INDEX(tbl_Emp[Helper 3],tbl_Emp[[#This Row],[Helper 1]]))","v":38},{"$f":"IFERROR(INDEX(tbl_Emp[Turn OFF Controls],tbl_Emp[[#This Row],[Link]]),\"\")","v":"NERVA"}]
["TRAJAN","98-117",98,117,5,3900,{"$f":"tbl_Emp[[#This Row],[Turn OFF Controls]]","v":"TRAJAN"},{"$f":"IF(ISTEXT(OFFSET(tbl_Emp[[#This Row],[Helper 1]],-1,0)),1,OFFSET(tbl_Emp[[#This Row],[Helper 1]],-1,0)+1)","v":39},{"$f":"IF(rng_Emp_Filter=\"\",0,IF(ISNUMBER(SEARCH(rng_Emp_Filter,tbl_Emp[[#This Row],[Helper Key]])),tbl_Emp[[#This Row],[Helper 1]],\"\"))","v":0},{"$f":"IFERROR(SMALL(tbl_Emp[Helper 2],tbl_Emp[[#This Row],[Helper 1]]),\"\")","v":0},{"$f":"IF(OR(tbl_Emp[[#This Row],[Helper 2]]<>\"\",tbl_Emp[[#This Row],[Helper 3]]<>\"\"),1,0)","v":1},{"$f":"IF(rng_Emp_Filter=\"\",0,IF(tbl_Emp[[#This Row],[Helper 2]]<>\"\",1,0))","v":0},{"$f":"IF(rng_Emp_Filter=\"\",tbl_Emp[[#This Row],[Helper 1]],INDEX(tbl_Emp[Helper 3],tbl_Emp[[#This Row],[Helper 1]]))","v":39},{"$f":"IFERROR(INDEX(tbl_Emp[Turn OFF Controls],tbl_Emp[[#This Row],[Link]]),\"\")","v":"TRAJAN"}]
["PLOTINA (Trajan)","98-117",98,117,5,4000,{"$f":"tbl_Emp[[#This Row],[Turn OFF Controls]]","v":"PLOTINA (Trajan)"},{"$f":"IF(ISTEXT(OFFSET(tbl_Emp[[#This Row],[Helper 1]],-1,0)),1,OFFSET(tbl_Emp[[#This Row],[Helper 1]],-1,0)+1)","v":40},{"$f":"IF(rng_Emp_Filter=\"\",0,IF(ISNUMBER(SEARCH(rng_Emp_Filter,tbl_Emp[[#This Row],[Helper Key]])),tbl_Emp[[#This Row],[Helper 1]],\"\"))","v":0},{"$f":"IFERROR(SMALL(tbl_Emp[Helper 2],tbl_Emp[[#This Row],[Helper 1]]),\"\")","v":0},{"$f":"IF(OR(tbl_Emp[[#This Row],[Helper 2]]<>\"\",tbl_Emp[[#This Row],[Helper 3]]<>\"\"),1,0)","v":1},{"$f":"IF(rng_Emp_Filter=\"\",0,IF(tbl_Emp[[#This Row],[Helper 2]]<>\"\",1,0))","v":0},{"$f":"IF(rng_Emp_Filter=\"\",tbl_Emp[[#This Row],[Helper 1]],INDEX(tbl_Emp[Helper 3],tbl_Emp[[#This Row],[Helper 1]]))","v":40},{"$f":"IFERROR(INDEX(tbl_Emp[Turn OFF Controls],tbl_Emp[[#This Row],[Link]]),\"\")","v":"PLOTINA (Trajan)"}]
["MARCIANA (Trajan)","98-114",98,114,5,4100,{"$f":"tbl_Emp[[#This Row],[Turn OFF Controls]]","v":"MARCIANA (Trajan)"},{"$f":"IF(ISTEXT(OFFSET(tbl_Emp[[#This Row],[Helper 1]],-1,0)),1,OFFSET(tbl_Emp[[#This Row],[Helper 1]],-1,0)+1)","v":41},{"$f":"IF(rng_Emp_Filter=\"\",0,IF(ISNUMBER(SEARCH(rng_Emp_Filter,tbl_Emp[[#This Row],[Helper Key]])),tbl_Emp[[#This Row],[Helper 1]],\"\"))","v":0},{"$f":"IFERROR(SMALL(tbl_Emp[Helper 2],tbl_Emp[[#This Row],[Helper 1]]),\"\")","v":0},{"$f":"IF(OR(tbl_Emp[[#This Row],[Helper 2]]<>\"\",tbl_Emp[[#This Row],[Helper 3]]<>\"\"),1,0)","v":1},{"$f":"IF(rng_Emp_Filter=\"\",0,IF(tbl_Emp[[#This Row],[Helper 2]]<>\"\",1,0))","v":0},{"$f":"IF(rng_Emp_Filter=\"\",tbl_Emp[[#This Row],[Helper 1]],INDEX(tbl_Emp[Helper 3],tbl_Emp[[#This Row],[Helper 1]]))","v":41},{"$f":"IFERROR(INDEX(tbl_Emp[Turn OFF Controls],tbl_Emp[[#This Row],[Link]]),\"\")","v":"MARCIANA (Trajan)"}]
["MATIDIA (Trajan)","113-117",113,117,5,4200,{"$f":"tbl_Emp[[#This Row],[Turn OFF Controls]]","v":"MATIDIA (Trajan)"},{"$f":"IF(ISTEXT(OFFSET(tbl_Emp[[#This Row],[Helper 1]],-1,0)),1,OFFSET(tbl_Emp[[#This Row],[Helper 1]],-1,0)+1)","v":42},{"$f":"IF(rng_Emp_Filter=\"\",0,IF(ISNUMBER(SEARCH(rng_Emp_Filter,tbl_Emp[[#This Row],[Helper Key]])),tbl_Emp[[#This Row],[Helper 1]],\"\"))","v":0},{"$f":"IFERROR(SMALL(tbl_Emp[Helper 2],tbl_Emp[[#This Row],[Helper 1]]),\"\")","v":0},{"$f":"IF(OR(tbl_Emp[[#This Row],[Helper 2]]<>\"\",tbl_Emp[[#This Row],[Helper 3]]<>\"\"),1,0)","v":1},{"$f":"IF(rng_Emp_Filter=\"\",0,IF(tbl_Emp[[#This Row],[Helper 2]]<>\"\",1,0))","v":0},{"$f":"IF(rng_Emp_Filter=\"\",tbl_Emp[[#This Row],[Helper 1]],INDEX(tbl_Emp[Helper 3],tbl_Emp[[#This Row],[Helper 1]]))","v":42},{"$f":"IFERROR(INDEX(tbl_Emp[Turn OFF Controls],tbl_Emp[[#This Row],[Link]]),\"\")","v":"MATIDIA (Trajan)"}]
["DIVA MARCIANA (Trajan)","114-117",114,117,5,4300,{"$f":"tbl_Emp[[#This Row],[Turn OFF Controls]]","v":"DIVA MARCIANA (Trajan)"},{"$f":"IF(ISTEXT(OFFSET(tbl_Emp[[#This Row],[Helper 1]],-1,0)),1,OFFSET(tbl_Emp[[#This Row],[Helper 1]],-1,0)+1)","v":43},{"$f":"IF(rng_Emp_Filter=\"\",0,IF(ISNUMBER(SEARCH(rng_Emp_Filter,tbl_Emp[[#This Row],[Helper Key]])),tbl_Emp[[#This Row],[Helper 1]],\"\"))","v":0},{"$f":"IFERROR(SMALL(tbl_Emp[Helper 2],tbl_Emp[[#This Row],[Helper 1]]),\"\")","v":0},{"$f":"IF(OR(tbl_Emp[[#This Row],[Helper 2]]<>\"\",tbl_Emp[[#This Row],[Helper 3]]<>\"\"),1,0)","v":1},{"$f":"IF(rng_Emp_Filter=\"\",0,IF(tbl_Emp[[#This Row],[Helper 2]]<>\"\",1,0))","v":0},{"$f":"IF(rng_Emp_Filter=\"\",tbl_Emp[[#This Row],[Helper 1]],INDEX(tbl_Emp[Helper 3],tbl_Emp[[#This Row],[Helper 1]]))","v":43},{"$f":"IFERROR(INDEX(tbl_Emp[Turn OFF Controls],tbl_Emp[[#This Row],[Link]]),\"\")","v":"DIVA MARCIANA (Trajan)"}]
["HADRIAN","117-138",117,138,6,4400,{"$f":"tbl_Emp[[#This Row],[Turn OFF Controls]]","v":"HADRIAN"},{"$f":"IF(ISTEXT(OFFSET(tbl_Emp[[#This Row],[Helper 1]],-1,0)),1,OFFSET(tbl_Emp[[#This Row],[Helper 1]],-1,0)+1)","v":44},{"$f":"IF(rng_Emp_Filter=\"\",0,IF(ISNUMBER(SEARCH(rng_Emp_Filter,tbl_Emp[[#This Row],[Helper Key]])),tbl_Emp[[#This Row],[Helper 1]],\"\"))","v":0},{"$f":"IFERROR(SMALL(tbl_Emp[Helper 2],tbl_Emp[[#This Row],[Helper 1]]),\"\")","v":0},{"$f":"IF(OR(tbl_Emp[[#This Row],[Helper 2]]<>\"\",tbl_Emp[[#This Row],[Helper 3]]<>\"\"),1,0)","v":1},{"$f":"IF(rng_Emp_Filter=\"\",0,IF(tbl_Emp[[#This Row],[Helper 2]]<>\"\",1,0))","v":0},{"$f":"IF(rng_Emp_Filter=\"\",tbl_Emp[[#This Row],[Helper 1]],INDEX(tbl_Emp[Helper 3],tbl_Emp[[#This Row],[Helper 1]]))","v":44},{"$f":"IFERROR(INDEX(tbl_Emp[Turn OFF Controls],tbl_Emp[[#This Row],[Link]]),\"\")","v":"HADRIAN"}]
["SABINA (Hadrian)","117-138",117,138,6,4500,{"$f":"tbl_Emp[[#This Row],[Turn OFF Controls]]","v":"SABINA (Hadrian)"},{"$f":"IF(ISTEXT(OFFSET(tbl_Emp[[#This Row],[Helper 1]],-1,0)),1,OFFSET(tbl_Emp[[#This Row],[Helper 1]],-1,0)+1)","v":45},{"$f":"IF(rng_Emp_Filter=\"\",0,IF(ISNUMBER(SEARCH(rng_Emp_Filter,tbl_Emp[[#This Row],[Helper Key]])),tbl_Emp[[#This Row],[Helper 1]],\"\"))","v":0},{"$f":"IFERROR(SMALL(tbl_Emp[Helper 2],tbl_Emp[[#This Row],[Helper 1]]),\"\")","v":0},{"$f":"IF(OR(tbl_Emp[[#This Row],[Helper 2]]<>\"\",tbl_Emp[[#This Row],[Helper 3]]<>\"\"),1,0)","v":1},{"$f":"IF(rng_Emp_Filter=\"\",0,IF(tbl_Emp[[#This Row],[Helper 2]]<>\"\",1,0))","v":0},{"$f":"IF(rng_Emp_Filter=\"\",tbl_Emp[[#This Row],[Helper 1]],INDEX(tbl_Emp[Helper 3],tbl_Emp[[#This Row],[Helper 1]]))","v":45},{"$f":"IFERROR(INDEX(tbl_Emp[Turn OFF Controls],tbl_Emp[[#This Row],[Link]]),\"\")","v":"SABINA (Hadrian)"}]
["LUCIUS AELIUS Caesar (Hadrian)","136-138",136,138,6,4600,{"$f":"tbl_Emp[[#This Row],[Turn OFF Controls]]","v":"LUCIUS AELIUS Caesar (Hadrian)"},{"$f":"IF(ISTEXT(OFFSET(tbl_Emp[[#This Row],[Helper 1]],-1,0)),1,OFFSET(tbl_Emp[[#This Row],[Helper 1]],-1,0)+1)","v":46},{"$f":"IF(rng_Emp_Filter=\"\",0,IF(ISNUMBER(SEARCH(rng_Emp_Filter,tbl_Emp[[#This Row],[Helper Key]])),tbl_Emp[[#This Row],[Helper 1]],\"\"))","v":0},{"$f":"IFERROR(SMALL(tbl_Emp[Helper 2],tbl_Emp[[#This Row],[Helper 1]]),\"\")","v":0},{"$f":"IF(OR(tbl_Emp[[#This Row],[Helper 2]]<>\"\",tbl_Emp[[#This Row],[Helper 3]]<>\"\"),1,0)","v":1},{"$f":"IF(rng_Emp_Filter=\"\",0,IF(tbl_Emp[[#This Row],[Helper 2]]<>\"\",1,0))","v":0},{"$f":"IF(rng_Emp_Filter=\"\",tbl_Emp[[#This Row],[Helper 1]],INDEX(tbl_Emp[Helper 3],tbl_Emp[[#This Row],[Helper 1]]))","v":46},{"$f":"IFERROR(INDEX(tbl_Emp[Turn OFF Controls],tbl_Emp[[#This Row],[Link]]),\"\")","v":"LUCIUS AELIUS Caesar (Hadrian)"}]
["ANTONINUS PIUS Caesar (Hadrian)",138,138,138,6,4700,{"$f":"tbl_Emp[[#This Row],[Turn OFF Controls]]","v":"ANTONINUS PIUS Caesar (Hadrian)"},{"$f":"IF(ISTEXT(OFFSET(tbl_Emp[[#This Row],[Helper 1]],-1,0)),1,OFFSET(tbl_Emp[[#This Row],[Helper 1]],-1,0)+1)","v":47},{"$f":"IF(rng_Emp_Filter=\"\",0,IF(ISNUMBER(SEARCH(rng_Emp_Filter,tbl_Emp[[#This Row],[Helper Key]])),tbl_Emp[[#This Row],[Helper 1]],\"\"))","v":0},{"$f":"IFERROR(SMALL(tbl_Emp[Helper 2],tbl_Emp[[#This Row],[Helper 1]]),\"\")","v":0},{"$f":"IF(OR(tbl_Emp[[#This Row],[Helper 2]]<>\"\",tbl_Emp[[#This Row],[Helper 3]]<>\"\"),1,0)","v":1},{"$f":"IF(rng_Emp_Filter=\"\",0,IF(tbl_Emp[[#This Row],[Helper 2]]<>\"\",1,0))","v":0},{"$f":"IF(rng_Emp_Filter=\"\",tbl_Emp[[#This Row],[Helper 1]],INDEX(tbl_Emp[Helper 3],tbl_Emp[[#This Row],[Helper 1]]))","v":47},{"$f":"IFERROR(INDEX(tbl_Emp[Turn OFF Controls],tbl_Emp[[#This Row],[Link]]),\"\")","v":"ANTONINUS PIUS Caesar (Hadrian)"}]
["ANTONINUS PIUS","138-161",138,161,7,4800,{"$f":"tbl_Emp[[#This Row],[Turn OFF Controls]]","v":"ANTONINUS PIUS"},{"$f":"IF(ISTEXT(OFFSET(tbl_Emp[[#This Row],[Helper 1]],-1,0)),1,OFFSET(tbl_Emp[[#This Row],[Helper 1]],-1,0)+1)","v":48},{"$f":"IF(rng_Emp_Filter=\"\",0,IF(ISNUMBER(SEARCH(rng_Emp_Filter,tbl_Emp[[#This Row],[Helper Key]])),tbl_Emp[[#This Row],[Helper 1]],\"\"))","v":0},{"$f":"IFERROR(SMALL(tbl_Emp[Helper 2],tbl_Emp[[#This Row],[Helper 1]]),\"\")","v":0},{"$f":"IF(OR(tbl_Emp[[#This Row],[Helper 2]]<>\"\",tbl_Emp[[#This Row],[Helper 3]]<>\"\"),1,0)","v":1},{"$f":"IF(rng_Emp_Filter=\"\",0,IF(tbl_Emp[[#This Row],[Helper 2]]<>\"\",1,0))","v":0},{"$f":"IF(rng_Emp_Filter=\"\",tbl_Emp[[#This Row],[Helper 1]],INDEX(tbl_Emp[Helper 3],tbl_Emp[[#This Row],[Helper 1]]))","v":48},{"$f":"IFERROR(INDEX(tbl_Emp[Turn OFF Controls],tbl_Emp[[#This Row],[Link]]),\"\")","v":"ANTONINUS PIUS"}]
["DIVUS HADRIAN (Antoninus Pius)","138-139",138,139,7,4900,{"$f":"tbl_Emp[[#This Row],[Turn OFF Controls]]","v":"DIVUS HADRIAN (Antoninus Pius)"},{"$f":"IF(ISTEXT(OFFSET(tbl_Emp[[#This Row],[Helper 1]],-1,0)),1,OFFSET(tbl_Emp[[#This Row],[Helper 1]],-1,0)+1)","v":49},{"$f":"IF(rng_Emp_Filter=\"\",0,IF(ISNUMBER(SEARCH(rng_Emp_Filter,tbl_Emp[[#This Row],[Helper Key]])),tbl_Emp[[#This Row],[Helper 1]],\"\"))","v":0},{"$f":"IFERROR(SMALL(tbl_Emp[Helper 2],tbl_Emp[[#This Row],[Helper 1]]),\"\")","v":0},{"$f":"IF(OR(tbl_Emp[[#This Row],[Helper 2]]<>\"\",tbl_Emp[[#This Row],[Helper 3]]<>\"\"),1,0)","v":1},{"$f":"IF(rng_Emp_Filter=\"\",0,IF(tbl_Emp[[#This Row],[Helper 2]]<>\"\",1,0))","v":0},{"$f":"IF(rng_Emp_Filter=\"\",tbl_Emp[[#This Row],[Helper 1]],INDEX(tbl_Emp[Helper 3],tbl_Emp[[#This Row],[Helper 1]]))","v":49},{"$f":"IFERROR(INDEX(tbl_Emp[Turn OFF Controls],tbl_Emp[[#This Row],[Link]]),\"\")","v":"DIVUS HADRIAN (Antoninus Pius)"}]
["FAUSTINA I (Antoninus Pius)","138-141",138,141,7,5000,{"$f":"tbl_Emp[[#This Row],[Turn OFF Controls]]","v":"FAUSTINA I (Antoninus Pius)"},{"$f":"IF(ISTEXT(OFFSET(tbl_Emp[[#This Row],[Helper 1]],-1,0)),1,OFFSET(tbl_Emp[[#This Row],[Helper 1]],-1,0)+1)","v":50},{"$f":"IF(rng_Emp_Filter=\"\",0,IF(ISNUMBER(SEARCH(rng_Emp_Filter,tbl_Emp[[#This Row],[Helper Key]])),tbl_Emp[[#This Row],[Helper 1]],\"\"))","v":0},{"$f":"IFERROR(SMALL(tbl_Emp[Helper 2],tbl_Emp[[#This Row],[Helper 1]]),\"\")","v":0},{"$f":"IF(OR(tbl_Emp[[#This Row],[Helper 2]]<>\"\",tbl_Emp[[#This Row],[Helper 3]]<>\"\"),1,0)","v":1},{"$f":"IF(rng_Emp_Filter=\"\",0,IF(tbl_Emp[[#This Row],[Helper 2]]<>\"\",1,0))","v":0},{"$f":"IF(rng_Emp_Filter=\"\",tbl_Emp[[#This Row],[Helper 1]],INDEX(tbl_Emp[Helper 3],tbl_Emp[[#This Row],[Helper 1]]))","v":50},{"$f":"IFERROR(INDEX(tbl_Emp[Turn OFF Controls],tbl_Emp[[#This Row],[Link]]),\"\")","v":"FAUSTINA I (Antoninus Pius)"}]
["DIVA FAUSTINA I (Antoninus Pius)","141-161",141,161,7,5100,{"$f":"tbl_Emp[[#This Row],[Turn OFF Controls]]","v":"DIVA FAUSTINA I (Antoninus Pius)"},{"$f":"IF(ISTEXT(OFFSET(tbl_Emp[[#This Row],[Helper 1]],-1,0)),1,OFFSET(tbl_Emp[[#This Row],[Helper 1]],-1,0)+1)","v":51},{"$f":"IF(rng_Emp_Filter=\"\",0,IF(ISNUMBER(SEARCH(rng_Emp_Filter,tbl_Emp[[#This Row],[Helper Key]])),tbl_Emp[[#This Row],[Helper 1]],\"\"))","v":0},{"$f":"IFERROR(SMALL(tbl_Emp[Helper 2],tbl_Emp[[#This Row],[Helper 1]]),\"\")","v":0},{"$f":"IF(OR(tbl_Emp[[#This Row],[Helper 2]]<>\"\",tbl_Emp[[#This Row],[Helper 3]]<>\"\"),1,0)","v":1},{"$f":"IF(rng_Emp_Filter=\"\",0,IF(tbl_Emp[[#This Row],[Helper 2]]<>\"\",1,0))","v":0},{"$f":"IF(rng_Emp_Filter=\"\",tbl_Emp[[#This Row],[Helper 1]],INDEX(tbl_Emp[Helper 3],tbl_Emp[[#This Row],[Helper 1]]))","v":51},{"$f":"IFERROR(INDEX(tbl_Emp[Turn OFF Controls],tbl_Emp[[#This Row],[Link]]),\"\")","v":"DIVA FAUSTINA I (Antoninus Pius)"}]
["MARCUS AURELIUS Caesar (Antoninus Pius)","139-161",139,161,7,5200,{"$f":"tbl_Emp[[#This Row],[Turn OFF Controls]]","v":"MARCUS AURELIUS Caesar (Antoninus Pius)"},{"$f":"IF(ISTEXT(OFFSET(tbl_Emp[[#This Row],[Helper 1]],-1,0)),1,OFFSET(tbl_Emp[[#This Row],[Helper 1]],-1,0)+1)","v":52},{"$f":"IF(rng_Emp_Filter=\"\",0,IF(ISNUMBER(SEARCH(rng_Emp_Filter,tbl_Emp[[#This Row],[Helper Key]])),tbl_Emp[[#This Row],[Helper 1]],\"\"))","v":0},{"$f":"IFERROR(SMALL(tbl_Emp[Helper 2],tbl_Emp[[#This Row],[Helper 1]]),\"\")","v":0},{"$f":"IF(OR(tbl_Emp[[#This Row],[Helper 2]]<>\"\",tbl_Emp[[#This Row],[Helper 3]]<>\"\"),1,0)","v":1},{"$f":"IF(rng_Emp_Filter=\"\",0,IF(tbl_Emp[[#This Row],[Helper 2]]<>\"\",1,0))","v":0},{"$f":"IF(rng_Emp_Filter=\"\",tbl_Emp[[#This Row],[Helper 1]],INDEX(tbl_Emp[Helper 3],tbl_Emp[[#This Row],[Helper 1]]))","v":52},{"$f":"IFERROR(INDEX(tbl_Emp[Turn OFF Controls],tbl_Emp[[#This Row],[Link]]),\"\")","v":"MARCUS AURELIUS Caesar (Antoninus Pius)"}]
["FAUSTINA II (Antoninus Pius)","146-161",146,161,7,5300,{"$f":"tbl_Emp[[#This Row],[Turn OFF Controls]]","v":"FAUSTINA II (Antoninus Pius)"},{"$f":"IF(ISTEXT(OFFSET(tbl_Emp[[#This Row],[Helper 1]],-1,0)),1,OFFSET(tbl_Emp[[#This Row],[Helper 1]],-1,0)+1)","v":53},{"$f":"IF(rng_Emp_Filter=\"\",0,IF(ISNUMBER(SEARCH(rng_Emp_Filter,tbl_Emp[[#This Row],[Helper Key]])),tbl_Emp[[#This Row],[Helper 1]],\"\"))","v":0},{"$f":"IFERROR(SMALL(tbl_Emp[Helper 2],tbl_Emp[[#This Row],[Helper 1]]),\"\")","v":0},{"$f":"IF(OR(tbl_Emp[[#This Row],[Helper 2]]<>\"\",tbl_Emp[[#This Row],[Helper 3]]<>\"\"),1,0)","v":1},{"$f":"IF(rng_Emp_Filter=\"\",0,IF(tbl_Emp[[#This Row],[Helper 2]]<>\"\",1,0))","v":0},{"$f":"IF(rng_Emp_Filter=\"\",tbl_Emp[[#This Row],[Helper 1]],INDEX(tbl_Emp[Helper 3],tbl_Emp[[#This Row],[Helper 1]]))","v":53},{"$f":"IFERROR(INDEX(tbl_Emp[Turn OFF Controls],tbl_Emp[[#This Row],[Link]]),\"\")","v":"FAUSTINA II (Antoninus Pius)"}]
["MARCUS AURELIUS","161-180",161,180,8,5400,{"$f":"tbl_Emp[[#This Row],[Turn OFF Controls]]","v":"MARCUS AURELIUS"},{"$f":"IF(ISTEXT(OFFSET(tbl_Emp[[#This Row],[Helper 1]],-1,0)),1,OFFSET(tbl_Emp[[#This Row],[Helper 1]],-1,0)+1)","v":54},{"$f":"IF(rng_Emp_Filter=\"\",0,IF(ISNUMBER(SEARCH(rng_Emp_Filter,tbl_Emp[[#This Row],[Helper Key]])),tbl_Emp[[#This Row],[Helper 1]],\"\"))","v":0},{"$f":"IFERROR(SMALL(tbl_Emp[Helper 2],tbl_Emp[[#This Row],[Helper 1]]),\"\")","v":0},{"$f":"IF(OR(tbl_Emp[[#This Row],[Helper 2]]<>\"\",tbl_Emp[[#This Row],[Helper 3]]<>\"\"),1,0)","v":1},{"$f":"IF(rng_Emp_Filter=\"\",0,IF(tbl_Emp[[#This Row],[Helper 2]]<>\"\",1,0))","v":0},{"$f":"IF(rng_Emp_Filter=\"\",tbl_Emp[[#This Row],[Helper 1]],INDEX(tbl_Emp[Helper 3],tbl_Emp[[#This Row],[Helper 1]]))","v":54},{"$f":"IFERROR(INDEX(tbl_Emp[Turn OFF Controls],tbl_Emp[[#This Row],[Link]]),\"\")","v":"MARCUS AURELIUS"}]
["DIVUS ANTONINUS PIUS (Marcus Aurelius)",161,161,161,8,5500,{"$f":"tbl_Emp[[#This Row],[Turn OFF Controls]]","v":"DIVUS ANTONINUS PIUS (Marcus Aurelius)"},{"$f":"IF(ISTEXT(OFFSET(tbl_Emp[[#This Row],[Helper 1]],-1,0)),1,OFFSET(tbl_Emp[[#This Row],[Helper 1]],-1,0)+1)","v":55},{"$f":"IF(rng_Emp_Filter=\"\",0,IF(ISNUMBER(SEARCH(rng_Emp_Filter,tbl_Emp[[#This Row],[Helper Key]])),tbl_Emp[[#This Row],[Helper 1]],\"\"))","v":0},{"$f":"IFERROR(SMALL(tbl_Emp[Helper 2],tbl_Emp[[#This Row],[Helper 1]]),\"\")","v":0},{"$f":"IF(OR(tbl_Emp[[#This Row],[Helper 2]]<>\"\",tbl_Emp[[#This Row],[Helper 3]]<>\"\"),1,0)","v":1},{"$f":"IF(rng_Emp_Filter=\"\",0,IF(tbl_Emp[[#This Row],[Helper 2]]<>\"\",1,0))","v":0},{"$f":"IF(rng_Emp_Filter=\"\",tbl_Emp[[#This Row],[Helper 1]],INDEX(tbl_Emp[Helper 3],tbl_Emp[[#This Row],[Helper 1]]))","v":55},{"$f":"IFERROR(INDEX(tbl_Emp[Turn OFF Controls],tbl_Emp[[#This Row],[Link]]),\"\")","v":"DIVUS ANTONINUS PIUS (Marcus Aurelius)"}]
["FAUSTINA II (Marcus Aurelius)","161-175",161,175,8,5600,{"$f":"tbl_Emp[[#This Row],[Turn OFF Controls]]","v":"FAUSTINA II (Marcus Aurelius)"},{"$f":"IF(ISTEXT(OFFSET(tbl_Emp[[#This Row],[Helper 1]],-1,0)),1,OFFSET(tbl_Emp[[#This Row],[Helper 1]],-1,0)+1)","v":56},{"$f":"IF(rng_Emp_Filter=\"\",0,IF(ISNUMBER(SEARCH(rng_Emp_Filter,tbl_Emp[[#This Row],[Helper Key]])),tbl_Emp[[#This Row],[Helper 1]],\"\"))","v":0},{"$f":"IFERROR(SMALL(tbl_Emp[Helper 2],tbl_Emp[[#This Row],[Helper 1]]),\"\")","v":0},{"$f":"IF(OR(tbl_Emp[[#This Row],[Helper 2]]<>\"\",tbl_Emp[[#This Row],[Helper 3]]<>\"\"),1,0)","v":1},{"$f":"IF(rng_Emp_Filter=\"\",0,IF(tbl_Emp[[#This Row],[Helper 2]]<>\"\",1,0))","v":0},{"$f":"IF(rng_Emp_Filter=\"\",tbl_Emp[[#This Row],[Helper 1]],INDEX(tbl_Emp[Helper 3],tbl_Emp[[#This Row],[Helper 1]]))","v":56},{"$f":"IFERROR(INDEX(tbl_Emp[Turn OFF Controls],tbl_Emp[[#This Row],[Link]]),\"\")","v":"FAUSTINA II (Marcus Aurelius)"}]
["DIVA FAUSTINA II (Marcus Aurelius)","175-180",175,180,8,5700,{"$f":"tbl_Emp[[#This Row],[Turn OFF Controls]]","v":"DIVA FAUSTINA II (Marcus Aurelius)"},{"$f":"IF(ISTEXT(OFFSET(tbl_Emp[[#This Row],[Helper 1]],-1,0)),1,OFFSET(tbl_Emp[[#This Row],[Helper 1]],-1,0)+1)","v":57},{"$f":"IF(rng_Emp_Filter=\"\",0,IF(ISNUMBER(SEARCH(rng_Emp_Filter,tbl_Emp[[#This Row],[Helper Key]])),tbl_Emp[[#This Row],[Helper 1]],\"\"))","v":0},{"$f":"IFERROR(SMALL(tbl_Emp[Helper 2],tbl_Emp[[#This Row],[Helper 1]]),\"\")","v":0},{"$f":"IF(OR(tbl_Emp[[#This Row],[Helper 2]]<>\"\",tbl_Emp[[#This Row],[Helper 3]]<>\"\"),1,0)","v":1},{"$f":"IF(rng_Emp_Filter=\"\",0,IF(tbl_Emp[[#This Row],[Helper 2]]<>\"\",1,0))","v":0},{"$f":"IF(rng_Emp_Filter=\"\",tbl_Emp[[#This Row],[Helper 1]],INDEX(tbl_Emp[Helper 3],tbl_Emp[[#This Row],[Helper 1]]))","v":57},{"$f":"IFERROR(INDEX(tbl_Emp[Turn OFF Controls],tbl_Emp[[#This Row],[Link]]),\"\")","v":"DIVA FAUSTINA II (Marcus Aurelius)"}]
["LUCIUS VERUS","161-169",161,169,8,5800,{"$f":"tbl_Emp[[#This Row],[Turn OFF Controls]]","v":"LUCIUS VERUS"},{"$f":"IF(ISTEXT(OFFSET(tbl_Emp[[#This Row],[Helper 1]],-1,0)),1,OFFSET(tbl_Emp[[#This Row],[Helper 1]],-1,0)+1)","v":58},{"$f":"IF(rng_Emp_Filter=\"\",0,IF(ISNUMBER(SEARCH(rng_Emp_Filter,tbl_Emp[[#This Row],[Helper Key]])),tbl_Emp[[#This Row],[Helper 1]],\"\"))","v":0},{"$f":"IFERROR(SMALL(tbl_Emp[Helper 2],tbl_Emp[[#This Row],[Helper 1]]),\"\")","v":0},{"$f":"IF(OR(tbl_Emp[[#This Row],[Helper 2]]<>\"\",tbl_Emp[[#This Row],[Helper 3]]<>\"\"),1,0)","v":1},{"$f":"IF(rng_Emp_Filter=\"\",0,IF(tbl_Emp[[#This Row],[Helper 2]]<>\"\",1,0))","v":0},{"$f":"IF(rng_Emp_Filter=\"\",tbl_Emp[[#This Row],[Helper 1]],INDEX(tbl_Emp[Helper 3],tbl_Emp[[#This Row],[Helper 1]]))","v":58},{"$f":"IFERROR(INDEX(tbl_Emp[Turn OFF Controls],tbl_Emp[[#This Row],[Link]]),\"\")","v":"LUCIUS VERUS"}]
["LUCILLA  (Verus)","164-169",164,169,8,5900,{"$f":"tbl_Emp[[#This Row],[Turn OFF Controls]]","v":"LUCILLA  (Verus)"},{"$f":"IF(ISTEXT(OFFSET(tbl_Emp[[#This Row],[Helper 1]],-1,0)),1,OFFSET(tbl_Emp[[#This Row],[Helper 1]],-1,0)+1)","v":59},{"$f":"IF(rng_Emp_Filter=\"\",0,IF(ISNUMBER(SEARCH(rng_Emp_Filter,tbl_Emp[[#This Row],[Helper Key]])),tbl_Emp[[#This Row],[Helper 1]],\"\"))","v":0},{"$f":"IFERROR(SMALL(tbl_Emp[Helper 2],tbl_Emp[[#This Row],[Helper 1]]),\"\")","v":0},{"$f":"IF(OR(tbl_Emp[[#This Row],[Helper 2]]<>\"\",tbl_Emp[[#This Row],[Helper 3]]<>\"\"),1,0)","v":1},{"$f":"IF(rng_Emp_Filter=\"\",0,IF(tbl_Emp[[#This Row],[Helper 2]]<>\"\",1,0))","v":0},{"$f":"IF(rng_Emp_Filter=\"\",tbl_Emp[[#This Row],[Helper 1]],INDEX(tbl_Emp[Helper 3],tbl_Emp[[#This Row],[Helper 1]]))","v":59},{"$f":"IFERROR(INDEX(tbl_Emp[Turn OFF Controls],tbl_Emp[[#This Row],[Link]]),\"\")","v":"LUCILLA  (Verus)"}]
["DIVUS VERUS (Marcus Aurelius)",169,169,169,8,6000,{"$f":"tbl_Emp[[#This Row],[Turn OFF Controls]]","v":"DIVUS VERUS (Marcus Aurelius)"},{"$f":"IF(ISTEXT(OFFSET(tbl_Emp[[#This Row],[Helper 1]],-1,0)),1,OFFSET(tbl_Emp[[#This Row],[Helper 1]],-1,0)+1)","v":60},{"$f":"IF(rng_Emp_Filter=\"\",0,IF(ISNUMBER(SEARCH(rng_Emp_Filter,tbl_Emp[[#This Row],[Helper Key]])),tbl_Emp[[#This Row],[Helper 1]],\"\"))","v":0},{"$f":"IFERROR(SMALL(tbl_Emp[Helper 2],tbl_Emp[[#This Row],[Helper 1]]),\"\")","v":0},{"$f":"IF(OR(tbl_Emp[[#This Row],[Helper 2]]<>\"\",tbl_Emp[[#This Row],[Helper 3]]<>\"\"),1,0)","v":1},{"$f":"IF(rng_Emp_Filter=\"\",0,IF(tbl_Emp[[#This Row],[Helper 2]]<>\"\",1,0))","v":0},{"$f":"IF(rng_Emp_Filter=\"\",tbl_Emp[[#This Row],[Helper 1]],INDEX(tbl_Emp[Helper 3],tbl_Emp[[#This Row],[Helper 1]]))","v":60},{"$f":"IFERROR(INDEX(tbl_Emp[Turn OFF Controls],tbl_Emp[[#This Row],[Link]]),\"\")","v":"DIVUS VERUS (Marcus Aurelius)"}]
["COMMODUS Caesar (Marcus Aurelius)","172-180",172,180,8,6100,{"$f":"tbl_Emp[[#This Row],[Turn OFF Controls]]","v":"COMMODUS Caesar (Marcus Aurelius)"},{"$f":"IF(ISTEXT(OFFSET(tbl_Emp[[#This Row],[Helper 1]],-1,0)),1,OFFSET(tbl_Emp[[#This Row],[Helper 1]],-1,0)+1)","v":61},{"$f":"IF(rng_Emp_Filter=\"\",0,IF(ISNUMBER(SEARCH(rng_Emp_Filter,tbl_Emp[[#This Row],[Helper Key]])),tbl_Emp[[#This Row],[Helper 1]],\"\"))","v":0},{"$f":"IFERROR(SMALL(tbl_Emp[Helper 2],tbl_Emp[[#This Row],[Helper 1]]),\"\")","v":0},{"$f":"IF(OR(tbl_Emp[[#This Row],[Helper 2]]<>\"\",tbl_Emp[[#This Row],[Helper 3]]<>\"\"),1,0)","v":1},{"$f":"IF(rng_Emp_Filter=\"\",0,IF(tbl_Emp[[#This Row],[Helper 2]]<>\"\",1,0))","v":0},{"$f":"IF(rng_Emp_Filter=\"\",tbl_Emp[[#This Row],[Helper 1]],INDEX(tbl_Emp[Helper 3],tbl_Emp[[#This Row],[Helper 1]]))","v":61},{"$f":"IFERROR(INDEX(tbl_Emp[Turn OFF Controls],tbl_Emp[[#This Row],[Link]]),\"\")","v":"COMMODUS Caesar (Marcus Aurelius)"}]
["FAUSTINA I/II","138-180",138,180,null,6200,{"$f":"tbl_Emp[[#This Row],[Turn OFF Controls]]","v":"FAUSTINA I/II"},{"$f":"IF(ISTEXT(OFFSET(tbl_Emp[[#This Row],[Helper 1]],-1,0)),1,OFFSET(tbl_Emp[[#This Row],[Helper 1]],-1,0)+1)","v":62},{"$f":"IF(rng_Emp_Filter=\"\",0,IF(ISNUMBER(SEARCH(rng_Emp_Filter,tbl_Emp[[#This Row],[Helper Key]])),tbl_Emp[[#This Row],[Helper 1]],\"\"))","v":0},{"$f":"IFERROR(SMALL(tbl_Emp[Helper 2],tbl_Emp[[#This Row],[Helper 1]]),\"\")","v":0},{"$f":"IF(OR(tbl_Emp[[#This Row],[Helper 2]]<>\"\",tbl_Emp[[#This Row],[Helper 3]]<>\"\"),1,0)","v":1},{"$f":"IF(rng_Emp_Filter=\"\",0,IF(tbl_Emp[[#This Row],[Helper 2]]<>\"\",1,0))","v":0},{"$f":"IF(rng_Emp_Filter=\"\",tbl_Emp[[#This Row],[Helper 1]],INDEX(tbl_Emp[Helper 3],tbl_Emp[[#This Row],[Helper 1]]))","v":62},{"$f":"IFERROR(INDEX(tbl_Emp[Turn OFF Controls],tbl_Emp[[#This Row],[Link]]),\"\")","v":"FAUSTINA I/II"}]
["COMMODUS","180-192",180,192,9,6300,{"$f":"tbl_Emp[[#This Row],[Turn OFF Controls]]","v":"COMMODUS"},{"$f":"IF(ISTEXT(OFFSET(tbl_Emp[[#This Row],[Helper 1]],-1,0)),1,OFFSET(tbl_Emp[[#This Row],[Helper 1]],-1,0)+1)","v":63},{"$f":"IF(rng_Emp_Filter=\"\",0,IF(ISNUMBER(SEARCH(rng_Emp_Filter,tbl_Emp[[#This Row],[Helper Key]])),tbl_Emp[[#This Row],[Helper 1]],\"\"))","v":0},{"$f":"IFERROR(SMALL(tbl_Emp[Helper 2],tbl_Emp[[#This Row],[Helper 1]]),\"\")","v":0},{"$f":"IF(OR(tbl_Emp[[#This Row],[Helper 2]]<>\"\",tbl_Emp[[#This Row],[Helper 3]]<>\"\"),1,0)","v":1},{"$f":"IF(rng_Emp_Filter=\"\",0,IF(tbl_Emp[[#This Row],[Helper 2]]<>\"\",1,0))","v":0},{"$f":"IF(rng_Emp_Filter=\"\",tbl_Emp[[#This Row],[Helper 1]],INDEX(tbl_Emp[Helper 3],tbl_Emp[[#This Row],[Helper 1]]))","v":63},{"$f":"IFERROR(INDEX(tbl_Emp[Turn OFF Controls],tbl_Emp[[#This Row],[Link]]),\"\")","v":"COMMODUS"}]
["CRISPINA (Commodus)","180-187",180,187,9,6400,{"$f":"tbl_Emp[[#This Row],[Turn OFF Controls]]","v":"CRISPINA (Commodus)"},{"$f":"IF(ISTEXT(OFFSET(tbl_Emp[[#This Row],[Helper 1]],-1,0)),1,OFFSET(tbl_Emp[[#This Row],[Helper 1]],-1,0)+1)","v":64},{"$f":"IF(rng_Emp_Filter=\"\",0,IF(ISNUMBER(SEARCH(rng_Emp_Filter,tbl_Emp[[#This Row],[Helper Key]])),tbl_Emp[[#This Row],[Helper 1]],\"\"))","v":0},{"$f":"IFERROR(SMALL(tbl_Emp[Helper 2],tbl_Emp[[#This Row],[Helper 1]]),\"\")","v":0},{"$f":"IF(OR(tbl_Emp[[#This Row],[Helper 2]]<>\"\",tbl_Emp[[#This Row],[Helper 3]]<>\"\"),1,0)","v":1},{"$f":"IF(rng_Emp_Filter=\"\",0,IF(tbl_Emp[[#This Row],[Helper 2]]<>\"\",1,0))","v":0},{"$f":"IF(rng_Emp_Filter=\"\",tbl_Emp[[#This Row],[Helper 1]],INDEX(tbl_Emp[Helper 3],tbl_Emp[[#This Row],[Helper 1]]))","v":64},{"$f":"IFERROR(INDEX(tbl_Emp[Turn OFF Controls],tbl_Emp[[#This Row],[Link]]),\"\")","v":"CRISPINA (Commodus)"}]
["DIVUS MARCUS AURELIUS (Commodus)",180,180,180,9,6500,{"$f":"tbl_Emp[[#This Row],[Turn OFF Controls]]","v":"DIVUS MARCUS AURELIUS (Commodus)"},{"$f":"IF(ISTEXT(OFFSET(tbl_Emp[[#This Row],[Helper 1]],-1,0)),1,OFFSET(tbl_Emp[[#This Row],[Helper 1]],-1,0)+1)","v":65},{"$f":"IF(rng_Emp_Filter=\"\",0,IF(ISNUMBER(SEARCH(rng_Emp_Filter,tbl_Emp[[#This Row],[Helper Key]])),tbl_Emp[[#This Row],[Helper 1]],\"\"))","v":0},{"$f":"IFERROR(SMALL(tbl_Emp[Helper 2],tbl_Emp[[#This Row],[Helper 1]]),\"\")","v":0},{"$f":"IF(OR(tbl_Emp[[#This Row],[Helper 2]]<>\"\",tbl_Emp[[#This Row],[Helper 3]]<>\"\"),1,0)","v":1},{"$f":"IF(rng_Emp_Filter=\"\",0,IF(tbl_Emp[[#This Row],[Helper 2]]<>\"\",1,0))","v":0},{"$f":"IF(rng_Emp_Filter=\"\",tbl_Emp[[#This Row],[Helper 1]],INDEX(tbl_Emp[Helper 3],tbl_Emp[[#This Row],[Helper 1]]))","v":65},{"$f":"IFERROR(INDEX(tbl_Emp[Turn OFF Controls],tbl_Emp[[#This Row],[Link]]),\"\")","v":"DIVUS MARCUS AURELIUS (Commodus)"}]
["PERTINAX",193,193,193,10,{"$f":"F66+100","v":6600},{"$f":"tbl_Emp[[#This Row],[Turn OFF Controls]]","v":"PERTINAX"},{"$f":"IF(ISTEXT(OFFSET(tbl_Emp[[#This Row],[Helper 1]],-1,0)),1,OFFSET(tbl_Emp[[#This Row],[Helper 1]],-1,0)+1)","v":66},{"$f":"IF(rng_Emp_Filter=\"\",0,IF(ISNUMBER(SEARCH(rng_Emp_Filter,tbl_Emp[[#This Row],[Helper Key]])),tbl_Emp[[#This Row],[Helper 1]],\"\"))","v":0},{"$f":"IFERROR(SMALL(tbl_Emp[Helper 2],tbl_Emp[[#This Row],[Helper 1]]),\"\")","v":0},{"$f":"IF(OR(tbl_Emp[[#This Row],[Helper 2]]<>\"\",tbl_Emp[[#This Row],[Helper 3]]<>\"\"),1,0)","v":1},{"$f":"IF(rng_Emp_Filter=\"\",0,IF(tbl_Emp[[#This Row],[Helper 2]]<>\"\",1,0))","v":0},{"$f":"IF(rng_Emp_Filter=\"\",tbl_Emp[[#This Row],[Helper 1]],INDEX(tbl_Emp[Helper 3],tbl_Emp[[#This Row],[Helper 1]]))","v":66},{"$f":"IFERROR(INDEX(tbl_Emp[Turn OFF Controls],tbl_Emp[[#This Row],[Link]]),\"\")","v":"PERTINAX"}]
["DIDIUS JULIANUS",193,193,193,10,6700,{"$f":"tbl_Emp[[#This Row],[Turn OFF Controls]]","v":"DIDIUS JULIANUS"},{"$f":"IF(ISTEXT(OFFSET(tbl_Emp[[#This Row],[Helper 1]],-1,0)),1,OFFSET(tbl_Emp[[#This Row],[Helper 1]],-1,0)+1)","v":67},{"$f":"IF(rng_Emp_Filter=\"\",0,IF(ISNUMBER(SEARCH(rng_Emp_Filter,tbl_Emp[[#This Row],[Helper Key]])),tbl_Emp[[#This Row],[Helper 1]],\"\"))","v":0},{"$f":"IFERROR(SMALL(tbl_Emp[Helper 2],tbl_Emp[[#This Row],[Helper 1]]),\"\")","v":0},{"$f":"IF(OR(tbl_Emp[[#This Row],[Helper 2]]<>\"\",tbl_Emp[[#This Row],[Helper 3]]<>\"\"),1,0)","v":1},{"$f":"IF(rng_Emp_Filter=\"\",0,IF(tbl_Emp[[#This Row],[Helper 2]]<>\"\",1,0))","v":0},{"$f":"IF(rng_Emp_Filter=\"\",tbl_Emp[[#This Row],[Helper 1]],INDEX(tbl_Emp[Helper 3],tbl_Emp[[#This Row],[Helper 1]]))","v":67},{"$f":"IFERROR(INDEX(tbl_Emp[Turn OFF Controls],tbl_Emp[[#This Row],[Link]]),\"\")","v":"DIDIUS JULIANUS"}]
["MANLIA SCANTILLA (Julianus)",193,193,193,10,6800,{"$f":"tbl_Emp[[#This Row],[Turn OFF Controls]]","v":"MANLIA SCANTILLA (Julianus)"},{"$f":"IF(ISTEXT(OFFSET(tbl_Emp[[#This Row],[Helper 1]],-1,0)),1,OFFSET(tbl_Emp[[#This Row],[Helper 1]],-1,0)+1)","v":68},{"$f":"IF(rng_Emp_Filter=\"\",0,IF(ISNUMBER(SEARCH(rng_Emp_Filter,tbl_Emp[[#This Row],[Helper Key]])),tbl_Emp[[#This Row],[Helper 1]],\"\"))","v":0},{"$f":"IFERROR(SMALL(tbl_Emp[Helper 2],tbl_Emp[[#This Row],[Helper 1]]),\"\")","v":0},{"$f":"IF(OR(tbl_Emp[[#This Row],[Helper 2]]<>\"\",tbl_Emp[[#This Row],[Helper 3]]<>\"\"),1,0)","v":1},{"$f":"IF(rng_Emp_Filter=\"\",0,IF(tbl_Emp[[#This Row],[Helper 2]]<>\"\",1,0))","v":0},{"$f":"IF(rng_Emp_Filter=\"\",tbl_Emp[[#This Row],[Helper 1]],INDEX(tbl_Emp[Helper 3],tbl_Emp[[#This Row],[Helper 1]]))","v":68},{"$f":"IFERROR(INDEX(tbl_Emp[Turn OFF Controls],tbl_Emp[[#This Row],[Link]]),\"\")","v":"MANLIA SCANTILLA (Julianus)"}]
["DIDIA CLARA (Julianus)",193,193,193,10,6900,{"$f":"tbl_Emp[[#This Row],[Turn OFF Controls]]","v":"DIDIA CLARA (Julianus)"},{"$f":"IF(ISTEXT(OFFSET(tbl_Emp[[#This Row],[Helper 1]],-1,0)),1,OFFSET(tbl_Emp[[#This Row],[Helper 1]],-1,0)+1)","v":69},{"$f":"IF(rng_Emp_Filter=\"\",0,IF(ISNUMBER(SEARCH(rng_Emp_Filter,tbl_Emp[[#This Row],[Helper Key]])),tbl_Emp[[#This Row],[Helper 1]],\"\"))","v":0},{"$f":"IFERROR(SMALL(tbl_Emp[Helper 2],tbl_Emp[[#This Row],[Helper 1]]),\"\")","v":0},{"$f":"IF(OR(tbl_Emp[[#This Row],[Helper 2]]<>\"\",tbl_Emp[[#This Row],[Helper 3]]<>\"\"),1,0)","v":1},{"$f":"IF(rng_Emp_Filter=\"\",0,IF(tbl_Emp[[#This Row],[Helper 2]]<>\"\",1,0))","v":0},{"$f":"IF(rng_Emp_Filter=\"\",tbl_Emp[[#This Row],[Helper 1]],INDEX(tbl_Emp[Helper 3],tbl_Emp[[#This Row],[Helper 1]]))","v":69},{"$f":"IFERROR(INDEX(tbl_Emp[Turn OFF Controls],tbl_Emp[[#This Row],[Link]]),\"\")","v":"DIDIA CLARA (Julianus)"}]
["PESCENNIUS NIGER","193-194",193,194,10,7000,{"$f":"tbl_Emp[[#This Row],[Turn OFF Controls]]","v":"PESCENNIUS NIGER"},{"$f":"IF(ISTEXT(OFFSET(tbl_Emp[[#This Row],[Helper 1]],-1,0)),1,OFFSET(tbl_Emp[[#This Row],[Helper 1]],-1,0)+1)","v":70},{"$f":"IF(rng_Emp_Filter=\"\",0,IF(ISNUMBER(SEARCH(rng_Emp_Filter,tbl_Emp[[#This Row],[Helper Key]])),tbl_Emp[[#This Row],[Helper 1]],\"\"))","v":0},{"$f":"IFERROR(SMALL(tbl_Emp[Helper 2],tbl_Emp[[#This Row],[Helper 1]]),\"\")","v":0},{"$f":"IF(OR(tbl_Emp[[#This Row],[Helper 2]]<>\"\",tbl_Emp[[#This Row],[Helper 3]]<>\"\"),1,0)","v":1},{"$f":"IF(rng_Emp_Filter=\"\",0,IF(tbl_Emp[[#This Row],[Helper 2]]<>\"\",1,0))","v":0},{"$f":"IF(rng_Emp_Filter=\"\",tbl_Emp[[#This Row],[Helper 1]],INDEX(tbl_Emp[Helper 3],tbl_Emp[[#This Row],[Helper 1]]))","v":70},{"$f":"IFERROR(INDEX(tbl_Emp[Turn OFF Controls],tbl_Emp[[#This Row],[Link]]),\"\")","v":"PESCENNIUS NIGER"}]
["CLODIUS ALBINUS","193-197",193,197,10,7100,{"$f":"tbl_Emp[[#This Row],[Turn OFF Controls]]","v":"CLODIUS ALBINUS"},{"$f":"IF(ISTEXT(OFFSET(tbl_Emp[[#This Row],[Helper 1]],-1,0)),1,OFFSET(tbl_Emp[[#This Row],[Helper 1]],-1,0)+1)","v":71},{"$f":"IF(rng_Emp_Filter=\"\",0,IF(ISNUMBER(SEARCH(rng_Emp_Filter,tbl_Emp[[#This Row],[Helper Key]])),tbl_Emp[[#This Row],[Helper 1]],\"\"))","v":0},{"$f":"IFERROR(SMALL(tbl_Emp[Helper 2],tbl_Emp[[#This Row],[Helper 1]]),\"\")","v":0},{"$f":"IF(OR(tbl_Emp[[#This Row],[Helper 2]]<>\"\",tbl_Emp[[#This Row],[Helper 3]]<>\"\"),1,0)","v":1},{"$f":"IF(rng_Emp_Filter=\"\",0,IF(tbl_Emp[[#This Row],[Helper 2]]<>\"\",1,0))","v":0},{"$f":"IF(rng_Emp_Filter=\"\",tbl_Emp[[#This Row],[Helper 1]],INDEX(tbl_Emp[Helper 3],tbl_Emp[[#This Row],[Helper 1]]))","v":71},{"$f":"IFERROR(INDEX(tbl_Emp[Turn OFF Controls],tbl_Emp[[#This Row],[Link]]),\"\")","v":"CLODIUS ALBINUS"}]
["SEPTIMIUS SEVERUS","193-211",193,211,10,7200,{"$f":"tbl_Emp[[#This Row],[Turn OFF Controls]]","v":"SEPTIMIUS SEVERUS"},{"$f":"IF(ISTEXT(OFFSET(tbl_Emp[[#This Row],[Helper 1]],-1,0)),1,OFFSET(tbl_Emp[[#This Row],[Helper 1]],-1,0)+1)","v":72},{"$f":"IF(rng_Emp_Filter=\"\",0,IF(ISNUMBER(SEARCH(rng_Emp_Filter,tbl_Emp[[#This Row],[Helper Key]])),tbl_Emp[[#This Row],[Helper 1]],\"\"))","v":0},{"$f":"IFERROR(SMALL(tbl_Emp[Helper 2],tbl_Emp[[#This Row],[Helper 1]]),\"\")","v":0},{"$f":"IF(OR(tbl_Emp[[#This Row],[Helper 2]]<>\"\",tbl_Emp[[#This Row],[Helper 3]]<>\"\"),1,0)","v":1},{"$f":"IF(rng_Emp_Filter=\"\",0,IF(tbl_Emp[[#This Row],[Helper 2]]<>\"\",1,0))","v":0},{"$f":"IF(rng_Emp_Filter=\"\",tbl_Emp[[#This Row],[Helper 1]],INDEX(tbl_Emp[Helper 3],tbl_Emp[[#This Row],[Helper 1]]))","v":72},{"$f":"IFERROR(INDEX(tbl_Emp[Turn OFF Controls],tbl_Emp[[#This Row],[Link]]),\"\")","v":"SEPTIMIUS SEVERUS"}]
["JULIA DOMNA (Septimius Severus)","193-211",193,211,10,7300,{"$f":"tbl_Emp[[#This Row],[Turn OFF Controls]]","v":"JULIA DOMNA (Septimius Severus)"},{"$f":"IF(ISTEXT(OFFSET(tbl_Emp[[#This Row],[Helper 1]],-1,0)),1,OFFSET(tbl_Emp[[#This Row],[Helper 1]],-1,0)+1)","v":73},{"$f":"IF(rng_Emp_Filter=\"\",0,IF(ISNUMBER(SEARCH(rng_Emp_Filter,tbl_Emp[[#This Row],[Helper Key]])),tbl_Emp[[#This Row],[Helper 1]],\"\"))","v":0},{"$f":"IFERROR(SMALL(tbl_Emp[Helper 2],tbl_Emp[[#This Row],[Helper 1]]),\"\")","v":0},{"$f":"IF(OR(tbl_Emp[[#This Row],[Helper 2]]<>\"\",tbl_Emp[[#This Row],[Helper 3]]<>\"\"),1,0)","v":1},{"$f":"IF(rng_Emp_Filter=\"\",0,IF(tbl_Emp[[#This Row],[Helper 2]]<>\"\",1,0))","v":0},{"$f":"IF(rng_Emp_Filter=\"\",tbl_Emp[[#This Row],[Helper 1]],INDEX(tbl_Emp[Helper 3],tbl_Emp[[#This Row],[Helper 1]]))","v":73},{"$f":"IFERROR(INDEX(tbl_Emp[Turn OFF Controls],tbl_Emp[[#This Row],[Link]]),\"\")","v":"JULIA DOMNA (Septimius Severus)"}]
["CARACALLA Caesar (Septimius Severus)","196-198",196,198,10,7400,{"$f":"tbl_Emp[[#This Row],[Turn OFF Controls]]","v":"CARACALLA Caesar (Septimius Severus)"},{"$f":"IF(ISTEXT(OFFSET(tbl_Emp[[#This Row],[Helper 1]],-1,0)),1,OFFSET(tbl_Emp[[#This Row],[Helper 1]],-1,0)+1)","v":74},{"$f":"IF(rng_Emp_Filter=\"\",0,IF(ISNUMBER(SEARCH(rng_Emp_Filter,tbl_Emp[[#This Row],[Helper Key]])),tbl_Emp[[#This Row],[Helper 1]],\"\"))","v":0},{"$f":"IFERROR(SMALL(tbl_Emp[Helper 2],tbl_Emp[[#This Row],[Helper 1]]),\"\")","v":0},{"$f":"IF(OR(tbl_Emp[[#This Row],[Helper 2]]<>\"\",tbl_Emp[[#This Row],[Helper 3]]<>\"\"),1,0)","v":1},{"$f":"IF(rng_Emp_Filter=\"\",0,IF(tbl_Emp[[#This Row],[Helper 2]]<>\"\",1,0))","v":0},{"$f":"IF(rng_Emp_Filter=\"\",tbl_Emp[[#This Row],[Helper 1]],INDEX(tbl_Emp[Helper 3],tbl_Emp[[#This Row],[Helper 1]]))","v":74},{"$f":"IFERROR(INDEX(tbl_Emp[Turn OFF Controls],tbl_Emp[[#This Row],[Link]]),\"\")","v":"CARACALLA Caesar (Septimius Severus)"}]
["GETA Caesar (Septimius Severus)","198-209",198,209,10,7500,{"$f":"tbl_Emp[[#This Row],[Turn OFF Controls]]","v":"GETA Caesar (Septimius Severus)"},{"$f":"IF(ISTEXT(OFFSET(tbl_Emp[[#This Row],[Helper 1]],-1,0)),1,OFFSET(tbl_Emp[[#This Row],[Helper 1]],-1,0)+1)","v":75},{"$f":"IF(rng_Emp_Filter=\"\",0,IF(ISNUMBER(SEARCH(rng_Emp_Filter,tbl_Emp[[#This Row],[Helper Key]])),tbl_Emp[[#This Row],[Helper 1]],\"\"))","v":0},{"$f":"IFERROR(SMALL(tbl_Emp[Helper 2],tbl_Emp[[#This Row],[Helper 1]]),\"\")","v":0},{"$f":"IF(OR(tbl_Emp[[#This Row],[Helper 2]]<>\"\",tbl_Emp[[#This Row],[Helper 3]]<>\"\"),1,0)","v":1},{"$f":"IF(rng_Emp_Filter=\"\",0,IF(tbl_Emp[[#This Row],[Helper 2]]<>\"\",1,0))","v":0},{"$f":"IF(rng_Emp_Filter=\"\",tbl_Emp[[#This Row],[Helper 1]],INDEX(tbl_Emp[Helper 3],tbl_Emp[[#This Row],[Helper 1]]))","v":75},{"$f":"IFERROR(INDEX(tbl_Emp[Turn OFF Controls],tbl_Emp[[#This Row],[Link]]),\"\")","v":"GETA Caesar (Septimius Severus)"}]
["PLAUTILLA (Septimius Severus)","202-205",202,205,10,7600,{"$f":"tbl_Emp[[#This Row],[Turn OFF Controls]]","v":"PLAUTILLA (Septimius Severus)"},{"$f":"IF(ISTEXT(OFFSET(tbl_Emp[[#This Row],[Helper 1]],-1,0)),1,OFFSET(tbl_Emp[[#This Row],[Helper 1]],-1,0)+1)","v":76},{"$f":"IF(rng_Emp_Filter=\"\",0,IF(ISNUMBER(SEARCH(rng_Emp_Filter,tbl_Emp[[#This Row],[Helper Key]])),tbl_Emp[[#This Row],[Helper 1]],\"\"))","v":0},{"$f":"IFERROR(SMALL(tbl_Emp[Helper 2],tbl_Emp[[#This Row],[Helper 1]]),\"\")","v":0},{"$f":"IF(OR(tbl_Emp[[#This Row],[Helper 2]]<>\"\",tbl_Emp[[#This Row],[Helper 3]]<>\"\"),1,0)","v":1},{"$f":"IF(rng_Emp_Filter=\"\",0,IF(tbl_Emp[[#This Row],[Helper 2]]<>\"\",1,0))","v":0},{"$f":"IF(rng_Emp_Filter=\"\",tbl_Emp[[#This Row],[Helper 1]],INDEX(tbl_Emp[Helper 3],tbl_Emp[[#This Row],[Helper 1]]))","v":76},{"$f":"IFERROR(INDEX(tbl_Emp[Turn OFF Controls],tbl_Emp[[#This Row],[Link]]),\"\")","v":"PLAUTILLA (Septimius Severus)"}]
["GETA","209-212",209,212,10,7700,{"$f":"tbl_Emp[[#This Row],[Turn OFF Controls]]","v":"GETA"},{"$f":"IF(ISTEXT(OFFSET(tbl_Emp[[#This Row],[Helper 1]],-1,0)),1,OFFSET(tbl_Emp[[#This Row],[Helper 1]],-1,0)+1)","v":77},{"$f":"IF(rng_Emp_Filter=\"\",0,IF(ISNUMBER(SEARCH(rng_Emp_Filter,tbl_Emp[[#This Row],[Helper Key]])),tbl_Emp[[#This Row],[Helper 1]],\"\"))","v":0},{"$f":"IFERROR(SMALL(tbl_Emp[Helper 2],tbl_Emp[[#This Row],[Helper 1]]),\"\")","v":0},{"$f":"IF(OR(tbl_Emp[[#This Row],[Helper 2]]<>\"\",tbl_Emp[[#This Row],[Helper 3]]<>\"\"),1,0)","v":1},{"$f":"IF(rng_Emp_Filter=\"\",0,IF(tbl_Emp[[#This Row],[Helper 2]]<>\"\",1,0))","v":0},{"$f":"IF(rng_Emp_Filter=\"\",tbl_Emp[[#This Row],[Helper 1]],INDEX(tbl_Emp[Helper 3],tbl_Emp[[#This Row],[Helper 1]]))","v":77},{"$f":"IFERROR(INDEX(tbl_Emp[Turn OFF Controls],tbl_Emp[[#This Row],[Link]]),\"\")","v":"GETA"}]
["CARACALLA","198-217",198,217,10,7800,{"$f":"tbl_Emp[[#This Row],[Turn OFF Controls]]","v":"CARACALLA"},{"$f":"IF(ISTEXT(OFFSET(tbl_Emp[[#This Row],[Helper 1]],-1,0)),1,OFFSET(tbl_Emp[[#This Row],[Helper 1]],-1,0)+1)","v":78},{"$f":"IF(rng_Emp_Filter=\"\",0,IF(ISNUMBER(SEARCH(rng_Emp_Filter,tbl_Emp[[#This Row],[Helper Key]])),tbl_Emp[[#This Row],[Helper 1]],\"\"))","v":0},{"$f":"IFERROR(SMALL(tbl_Emp[Helper 2],tbl_Emp[[#This Row],[Helper 1]]),\"\")","v":0},{"$f":"IF(OR(tbl_Emp[[#This Row],[Helper 2]]<>\"\",tbl_Emp[[#This Row],[Helper 3]]<>\"\"),1,0)","v":1},{"$f":"IF(rng_Emp_Filter=\"\",0,IF(tbl_Emp[[#This Row],[Helper 2]]<>\"\",1,0))","v":0},{"$f":"IF(rng_Emp_Filter=\"\",tbl_Emp[[#This Row],[Helper 1]],INDEX(tbl_Emp[Helper 3],tbl_Emp[[#This Row],[Helper 1]]))","v":78},{"$f":"IFERROR(INDEX(tbl_Emp[Turn OFF Controls],tbl_Emp[[#This Row],[Link]]),\"\")","v":"CARACALLA"}]
["JULIA DOMNA (Caracalla)","211-217",211,217,10,7900,{"$f":"tbl_Emp[[#This Row],[Turn OFF Controls]]","v":"JULIA DOMNA (Caracalla)"},{"$f":"IF(ISTEXT(OFFSET(tbl_Emp[[#This Row],[Helper 1]],-1,0)),1,OFFSET(tbl_Emp[[#This Row],[Helper 1]],-1,0)+1)","v":79},{"$f":"IF(rng_Emp_Filter=\"\",0,IF(ISNUMBER(SEARCH(rng_Emp_Filter,tbl_Emp[[#This Row],[Helper Key]])),tbl_Emp[[#This Row],[Helper 1]],\"\"))","v":0},{"$f":"IFERROR(SMALL(tbl_Emp[Helper 2],tbl_Emp[[#This Row],[Helper 1]]),\"\")","v":0},{"$f":"IF(OR(tbl_Emp[[#This Row],[Helper 2]]<>\"\",tbl_Emp[[#This Row],[Helper 3]]<>\"\"),1,0)","v":1},{"$f":"IF(rng_Emp_Filter=\"\",0,IF(tbl_Emp[[#This Row],[Helper 2]]<>\"\",1,0))","v":0},{"$f":"IF(rng_Emp_Filter=\"\",tbl_Emp[[#This Row],[Helper 1]],INDEX(tbl_Emp[Helper 3],tbl_Emp[[#This Row],[Helper 1]]))","v":79},{"$f":"IFERROR(INDEX(tbl_Emp[Turn OFF Controls],tbl_Emp[[#This Row],[Link]]),\"\")","v":"JULIA DOMNA (Caracalla)"}]
["MACRINUS","217-218",217,218,10,8000,{"$f":"tbl_Emp[[#This Row],[Turn OFF Controls]]","v":"MACRINUS"},{"$f":"IF(ISTEXT(OFFSET(tbl_Emp[[#This Row],[Helper 1]],-1,0)),1,OFFSET(tbl_Emp[[#This Row],[Helper 1]],-1,0)+1)","v":80},{"$f":"IF(rng_Emp_Filter=\"\",0,IF(ISNUMBER(SEARCH(rng_Emp_Filter,tbl_Emp[[#This Row],[Helper Key]])),tbl_Emp[[#This Row],[Helper 1]],\"\"))","v":0},{"$f":"IFERROR(SMALL(tbl_Emp[Helper 2],tbl_Emp[[#This Row],[Helper 1]]),\"\")","v":0},{"$f":"IF(OR(tbl_Emp[[#This Row],[Helper 2]]<>\"\",tbl_Emp[[#This Row],[Helper 3]]<>\"\"),1,0)","v":1},{"$f":"IF(rng_Emp_Filter=\"\",0,IF(tbl_Emp[[#This Row],[Helper 2]]<>\"\",1,0))","v":0},{"$f":"IF(rng_Emp_Filter=\"\",tbl_Emp[[#This Row],[Helper 1]],INDEX(tbl_Emp[Helper 3],tbl_Emp[[#This Row],[Helper 1]]))","v":80},{"$f":"IFERROR(INDEX(tbl_Emp[Turn OFF Controls],tbl_Emp[[#This Row],[Link]]),\"\")","v":"MACRINUS"}]
["DIADUMENIAN Caesar (Macrinus)","217-218",217,218,10,8100,{"$f":"tbl_Emp[[#This Row],[Turn OFF Controls]]","v":"DIADUMENIAN Caesar (Macrinus)"},{"$f":"IF(ISTEXT(OFFSET(tbl_Emp[[#This Row],[Helper 1]],-1,0)),1,OFFSET(tbl_Emp[[#This Row],[Helper 1]],-1,0)+1)","v":81},{"$f":"IF(rng_Emp_Filter=\"\",0,IF(ISNUMBER(SEARCH(rng_Emp_Filter,tbl_Emp[[#This Row],[Helper Key]])),tbl_Emp[[#This Row],[Helper 1]],\"\"))","v":0},{"$f":"IFERROR(SMALL(tbl_Emp[Helper 2],tbl_Emp[[#This Row],[Helper 1]]),\"\")","v":0},{"$f":"IF(OR(tbl_Emp[[#This Row],[Helper 2]]<>\"\",tbl_Emp[[#This Row],[Helper 3]]<>\"\"),1,0)","v":1},{"$f":"IF(rng_Emp_Filter=\"\",0,IF(tbl_Emp[[#This Row],[Helper 2]]<>\"\",1,0))","v":0},{"$f":"IF(rng_Emp_Filter=\"\",tbl_Emp[[#This Row],[Helper 1]],INDEX(tbl_Emp[Helper 3],tbl_Emp[[#This Row],[Helper 1]]))","v":81},{"$f":"IFERROR(INDEX(tbl_Emp[Turn OFF Controls],tbl_Emp[[#This Row],[Link]]),\"\")","v":"DIADUMENIAN Caesar (Macrinus)"}]
["DIADUMENIAN",218,218,218,10,8200,{"$f":"tbl_Emp[[#This Row],[Turn OFF Controls]]","v":"DIADUMENIAN"},{"$f":"IF(ISTEXT(OFFSET(tbl_Emp[[#This Row],[Helper 1]],-1,0)),1,OFFSET(tbl_Emp[[#This Row],[Helper 1]],-1,0)+1)","v":82},{"$f":"IF(rng_Emp_Filter=\"\",0,IF(ISNUMBER(SEARCH(rng_Emp_Filter,tbl_Emp[[#This Row],[Helper Key]])),tbl_Emp[[#This Row],[Helper 1]],\"\"))","v":0},{"$f":"IFERROR(SMALL(tbl_Emp[Helper 2],tbl_Emp[[#This Row],[Helper 1]]),\"\")","v":0},{"$f":"IF(OR(tbl_Emp[[#This Row],[Helper 2]]<>\"\",tbl_Emp[[#This Row],[Helper 3]]<>\"\"),1,0)","v":1},{"$f":"IF(rng_Emp_Filter=\"\",0,IF(tbl_Emp[[#This Row],[Helper 2]]<>\"\",1,0))","v":0},{"$f":"IF(rng_Emp_Filter=\"\",tbl_Emp[[#This Row],[Helper 1]],INDEX(tbl_Emp[Helper 3],tbl_Emp[[#This Row],[Helper 1]]))","v":82},{"$f":"IFERROR(INDEX(tbl_Emp[Turn OFF Controls],tbl_Emp[[#This Row],[Link]]),\"\")","v":"DIADUMENIAN"}]
["ELAGABALUS","218-222",218,222,10,8300,{"$f":"tbl_Emp[[#This Row],[Turn OFF Controls]]","v":"ELAGABALUS"},{"$f":"IF(ISTEXT(OFFSET(tbl_Emp[[#This Row],[Helper 1]],-1,0)),1,OFFSET(tbl_Emp[[#This Row],[Helper 1]],-1,0)+1)","v":83},{"$f":"IF(rng_Emp_Filter=\"\",0,IF(ISNUMBER(SEARCH(rng_Emp_Filter,tbl_Emp[[#This Row],[Helper Key]])),tbl_Emp[[#This Row],[Helper 1]],\"\"))","v":0},{"$f":"IFERROR(SMALL(tbl_Emp[Helper 2],tbl_Emp[[#This Row],[Helper 1]]),\"\")","v":0},{"$f":"IF(OR(tbl_Emp[[#This Row],[Helper 2]]<>\"\",tbl_Emp[[#This Row],[Helper 3]]<>\"\"),1,0)","v":1},{"$f":"IF(rng_Emp_Filter=\"\",0,IF(tbl_Emp[[#This Row],[Helper 2]]<>\"\",1,0))","v":0},{"$f":"IF(rng_Emp_Filter=\"\",tbl_Emp[[#This Row],[Helper 1]],INDEX(tbl_Emp[Helper 3],tbl_Emp[[#This Row],[Helper 1]]))","v":83},{"$f":"IFERROR(INDEX(tbl_Emp[Turn OFF Controls],tbl_Emp[[#This Row],[Link]]),\"\")","v":"ELAGABALUS"}]
["JULIA MAESA (Elagabalus)","218-222",218,222,10,8400,{"$f":"tbl_Emp[[#This Row],[Turn OFF Controls]]","v":"JULIA MAESA (Elagabalus)"},{"$f":"IF(ISTEXT(OFFSET(tbl_Emp[[#This Row],[Helper 1]],-1,0)),1,OFFSET(tbl_Emp[[#This Row],[Helper 1]],-1,0)+1)","v":84},{"$f":"IF(rng_Emp_Filter=\"\",0,IF(ISNUMBER(SEARCH(rng_Emp_Filter,tbl_Emp[[#This Row],[Helper Key]])),tbl_Emp[[#This Row],[Helper 1]],\"\"))","v":0},{"$f":"IFERROR(SMALL(tbl_Emp[Helper 2],tbl_Emp[[#This Row],[Helper 1]]),\"\")","v":0},{"$f":"IF(OR(tbl_Emp[[#This Row],[Helper 2]]<>\"\",tbl_Emp[[#This Row],[Helper 3]]<>\"\"),1,0)","v":1},{"$f":"IF(rng_Emp_Filter=\"\",0,IF(tbl_Emp[[#This Row],[Helper 2]]<>\"\",1,0))","v":0},{"$f":"IF(rng_Emp_Filter=\"\",tbl_Emp[[#This Row],[Helper 1]],INDEX(tbl_Emp[Helper 3],tbl_Emp[[#This Row],[Helper 1]]))","v":84},{"$f":"IFERROR(INDEX(tbl_Emp[Turn OFF Controls],tbl_Emp[[#This Row],[Link]]),\"\")","v":"JULIA MAESA (Elagabalus)"}]
["JULIA SOAEMIAS (Elagabalus)","218-222",218,222,10,8500,{"$f":"tbl_Emp[[#This Row],[Turn OFF Controls]]","v":"JULIA SOAEMIAS (Elagabalus)"},{"$f":"IF(ISTEXT(OFFSET(tbl_Emp[[#This Row],[Helper 1]],-1,0)),1,OFFSET(tbl_Emp[[#This Row],[Helper 1]],-1,0)+1)","v":85},{"$f":"IF(rng_Emp_Filter=\"\",0,IF(ISNUMBER(SEARCH(rng_Emp_Filter,tbl_Emp[[#This Row],[Helper Key]])),tbl_Emp[[#This Row],[Helper 1]],\"\"))","v":0},{"$f":"IFERROR(SMALL(tbl_Emp[Helper 2],tbl_Emp[[#This Row],[Helper 1]]),\"\")","v":0},{"$f":"IF(OR(tbl_Emp[[#This Row],[Helper 2]]<>\"\",tbl_Emp[[#This Row],[Helper 3]]<>\"\"),1,0)","v":1},{"$f":"IF(rng_Emp_Filter=\"\",0,IF(tbl_Emp[[#This Row],[Helper 2]]<>\"\",1,0))","v":0},{"$f":"IF(rng_Emp_Filter=\"\",tbl_Emp[[#This Row],[Helper 1]],INDEX(tbl_Emp[Helper 3],tbl_Emp[[#This Row],[Helper 1]]))","v":85},{"$f":"IFERROR(INDEX(tbl_Emp[Turn OFF Controls],tbl_Emp[[#This Row],[Link]]),\"\")","v":"JULIA SOAEMIAS (Elagabalus)"}]
["JULIA PAULA (Elagabalus)","219-220",219,220,10,8600,{"$f":"tbl_Emp[[#This Row],[Turn OFF Controls]]","v":"JULIA PAULA (Elagabalus)"},{"$f":"IF(ISTEXT(OFFSET(tbl_Emp[[#This Row],[Helper 1]],-1,0)),1,OFFSET(tbl_Emp[[#This Row],[Helper 1]],-1,0)+1)","v":86},{"$f":"IF(rng_Emp_Filter=\"\",0,IF(ISNUMBER(SEARCH(rng_Emp_Filter,tbl_Emp[[#This Row],[Helper Key]])),tbl_Emp[[#This Row],[Helper 1]],\"\"))","v":0},{"$f":"IFERROR(SMALL(tbl_Emp[Helper 2],tbl_Emp[[#This Row],[Helper 1]]),\"\")","v":0},{"$f":"IF(OR(tbl_Emp[[#This Row],[Helper 2]]<>\"\",tbl_Emp[[#This Row],[Helper 3]]<>\"\"),1,0)","v":1},{"$f":"IF(rng_Emp_Filter=\"\",0,IF(tbl_Emp[[#This Row],[Helper 2]]<>\"\",1,0))","v":0},{"$f":"IF(rng_Emp_Filter=\"\",tbl_Emp[[#This Row],[Helper 1]],INDEX(tbl_Emp[Helper 3],tbl_Emp[[#This Row],[Helper 1]]))","v":86},{"$f":"IFERROR(INDEX(tbl_Emp[Turn OFF Controls],tbl_Emp[[#This Row],[Link]]),\"\")","v":"JULIA PAULA (Elagabalus)"}]
["AQUILIA SEVERA (Elagabalus)","220-222",220,222,10,8700,{"$f":"tbl_Emp[[#This Row],[Turn OFF Controls]]","v":"AQUILIA SEVERA (Elagabalus)"},{"$f":"IF(ISTEXT(OFFSET(tbl_Emp[[#This Row],[Helper 1]],-1,0)),1,OFFSET(tbl_Emp[[#This Row],[Helper 1]],-1,0)+1)","v":87},{"$f":"IF(rng_Emp_Filter=\"\",0,IF(ISNUMBER(SEARCH(rng_Emp_Filter,tbl_Emp[[#This Row],[Helper Key]])),tbl_Emp[[#This Row],[Helper 1]],\"\"))","v":0},{"$f":"IFERROR(SMALL(tbl_Emp[Helper 2],tbl_Emp[[#This Row],[Helper 1]]),\"\")","v":0},{"$f":"IF(OR(tbl_Emp[[#This Row],[Helper 2]]<>\"\",tbl_Emp[[#This Row],[Helper 3]]<>\"\"),1,0)","v":1},{"$f":"IF(rng_Emp_Filter=\"\",0,IF(tbl_Emp[[#This Row],[Helper 2]]<>\"\",1,0))","v":0},{"$f":"IF(rng_Emp_Filter=\"\",tbl_Emp[[#This Row],[Helper 1]],INDEX(tbl_Emp[Helper 3],tbl_Emp[[#This Row],[Helper 1]]))","v":87},{"$f":"IFERROR(INDEX(tbl_Emp[Turn OFF Controls],tbl_Emp[[#This Row],[Link]]),\"\")","v":"AQUILIA SEVERA (Elagabalus)"}]
["ANNIA FAUSTINA (Elagabalus)","220-221",220,221,10,8800,{"$f":"tbl_Emp[[#This Row],[Turn OFF Controls]]","v":"ANNIA FAUSTINA (Elagabalus)"},{"$f":"IF(ISTEXT(OFFSET(tbl_Emp[[#This Row],[Helper 1]],-1,0)),1,OFFSET(tbl_Emp[[#This Row],[Helper 1]],-1,0)+1)","v":88},{"$f":"IF(rng_Emp_Filter=\"\",0,IF(ISNUMBER(SEARCH(rng_Emp_Filter,tbl_Emp[[#This Row],[Helper Key]])),tbl_Emp[[#This Row],[Helper 1]],\"\"))","v":0},{"$f":"IFERROR(SMALL(tbl_Emp[Helper 2],tbl_Emp[[#This Row],[Helper 1]]),\"\")","v":0},{"$f":"IF(OR(tbl_Emp[[#This Row],[Helper 2]]<>\"\",tbl_Emp[[#This Row],[Helper 3]]<>\"\"),1,0)","v":1},{"$f":"IF(rng_Emp_Filter=\"\",0,IF(tbl_Emp[[#This Row],[Helper 2]]<>\"\",1,0))","v":0},{"$f":"IF(rng_Emp_Filter=\"\",tbl_Emp[[#This Row],[Helper 1]],INDEX(tbl_Emp[Helper 3],tbl_Emp[[#This Row],[Helper 1]]))","v":88},{"$f":"IFERROR(INDEX(tbl_Emp[Turn OFF Controls],tbl_Emp[[#This Row],[Link]]),\"\")","v":"ANNIA FAUSTINA (Elagabalus)"}]
["SEVERUS ALEXANDER Caesar (Elagabalus)","221-222",221,222,10,8900,{"$f":"tbl_Emp[[#This Row],[Turn OFF Controls]]","v":"SEVERUS ALEXANDER Caesar (Elagabalus)"},{"$f":"IF(ISTEXT(OFFSET(tbl_Emp[[#This Row],[Helper 1]],-1,0)),1,OFFSET(tbl_Emp[[#This Row],[Helper 1]],-1,0)+1)","v":89},{"$f":"IF(rng_Emp_Filter=\"\",0,IF(ISNUMBER(SEARCH(rng_Emp_Filter,tbl_Emp[[#This Row],[Helper Key]])),tbl_Emp[[#This Row],[Helper 1]],\"\"))","v":0},{"$f":"IFERROR(SMALL(tbl_Emp[Helper 2],tbl_Emp[[#This Row],[Helper 1]]),\"\")","v":0},{"$f":"IF(OR(tbl_Emp[[#This Row],[Helper 2]]<>\"\",tbl_Emp[[#This Row],[Helper 3]]<>\"\"),1,0)","v":1},{"$f":"IF(rng_Emp_Filter=\"\",0,IF(tbl_Emp[[#This Row],[Helper 2]]<>\"\",1,0))","v":0},{"$f":"IF(rng_Emp_Filter=\"\",tbl_Emp[[#This Row],[Helper 1]],INDEX(tbl_Emp[Helper 3],tbl_Emp[[#This Row],[Helper 1]]))","v":89},{"$f":"IFERROR(INDEX(tbl_Emp[Turn OFF Controls],tbl_Emp[[#This Row],[Link]]),\"\")","v":"SEVERUS ALEXANDER Caesar (Elagabalus)"}]
["SEVERUS ALEXANDER","222-235",222,235,11,9000,{"$f":"tbl_Emp[[#This Row],[Turn OFF Controls]]","v":"SEVERUS ALEXANDER"},{"$f":"IF(ISTEXT(OFFSET(tbl_Emp[[#This Row],[Helper 1]],-1,0)),1,OFFSET(tbl_Emp[[#This Row],[Helper 1]],-1,0)+1)","v":90},{"$f":"IF(rng_Emp_Filter=\"\",0,IF(ISNUMBER(SEARCH(rng_Emp_Filter,tbl_Emp[[#This Row],[Helper Key]])),tbl_Emp[[#This Row],[Helper 1]],\"\"))","v":0},{"$f":"IFERROR(SMALL(tbl_Emp[Helper 2],tbl_Emp[[#This Row],[Helper 1]]),\"\")","v":0},{"$f":"IF(OR(tbl_Emp[[#This Row],[Helper 2]]<>\"\",tbl_Emp[[#This Row],[Helper 3]]<>\"\"),1,0)","v":1},{"$f":"IF(rng_Emp_Filter=\"\",0,IF(tbl_Emp[[#This Row],[Helper 2]]<>\"\",1,0))","v":0},{"$f":"IF(rng_Emp_Filter=\"\",tbl_Emp[[#This Row],[Helper 1]],INDEX(tbl_Emp[Helper 3],tbl_Emp[[#This Row],[Helper 1]]))","v":90},{"$f":"IFERROR(INDEX(tbl_Emp[Turn OFF Controls],tbl_Emp[[#This Row],[Link]]),\"\")","v":"SEVERUS ALEXANDER"}]
["JULIA MAMAEA (Severus Alexander)","222-235",222,235,11,9100,{"$f":"tbl_Emp[[#This Row],[Turn OFF Controls]]","v":"JULIA MAMAEA (Severus Alexander)"},{"$f":"IF(ISTEXT(OFFSET(tbl_Emp[[#This Row],[Helper 1]],-1,0)),1,OFFSET(tbl_Emp[[#This Row],[Helper 1]],-1,0)+1)","v":91},{"$f":"IF(rng_Emp_Filter=\"\",0,IF(ISNUMBER(SEARCH(rng_Emp_Filter,tbl_Emp[[#This Row],[Helper Key]])),tbl_Emp[[#This Row],[Helper 1]],\"\"))","v":0},{"$f":"IFERROR(SMALL(tbl_Emp[Helper 2],tbl_Emp[[#This Row],[Helper 1]]),\"\")","v":0},{"$f":"IF(OR(tbl_Emp[[#This Row],[Helper 2]]<>\"\",tbl_Emp[[#This Row],[Helper 3]]<>\"\"),1,0)","v":1},{"$f":"IF(rng_Emp_Filter=\"\",0,IF(tbl_Emp[[#This Row],[Helper 2]]<>\"\",1,0))","v":0},{"$f":"IF(rng_Emp_Filter=\"\",tbl_Emp[[#This Row],[Helper 1]],INDEX(tbl_Emp[Helper 3],tbl_Emp[[#This Row],[Helper 1]]))","v":91},{"$f":"IFERROR(INDEX(tbl_Emp[Turn OFF Controls],tbl_Emp[[#This Row],[Link]]),\"\")","v":"JULIA MAMAEA (Severus Alexander)"}]
["ORBIANA (Severus Alexander)","225-227",225,227,11,9200,{"$f":"tbl_Emp[[#This Row],[Turn OFF Controls]]","v":"ORBIANA (Severus Alexander)"},{"$f":"IF(ISTEXT(OFFSET(tbl_Emp[[#This Row],[Helper 1]],-1,0)),1,OFFSET(tbl_Emp[[#This Row],[Helper 1]],-1,0)+1)","v":92},{"$f":"IF(rng_Emp_Filter=\"\",0,IF(ISNUMBER(SEARCH(rng_Emp_Filter,tbl_Emp[[#This Row],[Helper Key]])),tbl_Emp[[#This Row],[Helper 1]],\"\"))","v":0},{"$f":"IFERROR(SMALL(tbl_Emp[Helper 2],tbl_Emp[[#This Row],[Helper 1]]),\"\")","v":0},{"$f":"IF(OR(tbl_Emp[[#This Row],[Helper 2]]<>\"\",tbl_Emp[[#This Row],[Helper 3]]<>\"\"),1,0)","v":1},{"$f":"IF(rng_Emp_Filter=\"\",0,IF(tbl_Emp[[#This Row],[Helper 2]]<>\"\",1,0))","v":0},{"$f":"IF(rng_Emp_Filter=\"\",tbl_Emp[[#This Row],[Helper 1]],INDEX(tbl_Emp[Helper 3],tbl_Emp[[#This Row],[Helper 1]]))","v":92},{"$f":"IFERROR(INDEX(tbl_Emp[Turn OFF Controls],tbl_Emp[[#This Row],[Link]]),\"\")","v":"ORBIANA (Severus Alexander)"}]
["MAXIMINUS I","235-238",235,238,11,9300,{"$f":"tbl_Emp[[#This Row],[Turn OFF Controls]]","v":"MAXIMINUS I"},{"$f":"IF(ISTEXT(OFFSET(tbl_Emp[[#This Row],[Helper 1]],-1,0)),1,OFFSET(tbl_Emp[[#This Row],[Helper 1]],-1,0)+1)","v":93},{"$f":"IF(rng_Emp_Filter=\"\",0,IF(ISNUMBER(SEARCH(rng_Emp_Filter,tbl_Emp[[#This Row],[Helper Key]])),tbl_Emp[[#This Row],[Helper 1]],\"\"))","v":0},{"$f":"IFERROR(SMALL(tbl_Emp[Helper 2],tbl_Emp[[#This Row],[Helper 1]]),\"\")","v":0},{"$f":"IF(OR(tbl_Emp[[#This Row],[Helper 2]]<>\"\",tbl_Emp[[#This Row],[Helper 3]]<>\"\"),1,0)","v":1},{"$f":"IF(rng_Emp_Filter=\"\",0,IF(tbl_Emp[[#This Row],[Helper 2]]<>\"\",1,0))","v":0},{"$f":"IF(rng_Emp_Filter=\"\",tbl_Emp[[#This Row],[Helper 1]],INDEX(tbl_Emp[Helper 3],tbl_Emp[[#This Row],[Helper 1]]))","v":93},{"$f":"IFERROR(INDEX(tbl_Emp[Turn OFF Controls],tbl_Emp[[#This Row],[Link]]),\"\")","v":"MAXIMINUS I"}]
["CAECILIA PAULINA (Maximinus)","235-238",235,238,11,9400,{"$f":"tbl_Emp[[#This Row],[Turn OFF Controls]]","v":"CAECILIA PAULINA (Maximinus)"},{"$f":"IF(ISTEXT(OFFSET(tbl_Emp[[#This Row],[Helper 1]],-1,0)),1,OFFSET(tbl_Emp[[#This Row],[Helper 1]],-1,0)+1)","v":94},{"$f":"IF(rng_Emp_Filter=\"\",0,IF(ISNUMBER(SEARCH(rng_Emp_Filter,tbl_Emp[[#This Row],[Helper Key]])),tbl_Emp[[#This Row],[Helper 1]],\"\"))","v":0},{"$f":"IFERROR(SMALL(tbl_Emp[Helper 2],tbl_Emp[[#This Row],[Helper 1]]),\"\")","v":0},{"$f":"IF(OR(tbl_Emp[[#This Row],[Helper 2]]<>\"\",tbl_Emp[[#This Row],[Helper 3]]<>\"\"),1,0)","v":1},{"$f":"IF(rng_Emp_Filter=\"\",0,IF(tbl_Emp[[#This Row],[Helper 2]]<>\"\",1,0))","v":0},{"$f":"IF(rng_Emp_Filter=\"\",tbl_Emp[[#This Row],[Helper 1]],INDEX(tbl_Emp[Helper 3],tbl_Emp[[#This Row],[Helper 1]]))","v":94},{"$f":"IFERROR(INDEX(tbl_Emp[Turn OFF Controls],tbl_Emp[[#This Row],[Link]]),\"\")","v":"CAECILIA PAULINA (Maximinus)"}]
["MAXIMUS Caesar (Maximinus)","235-238",235,238,11,9500,{"$f":"tbl_Emp[[#This Row],[Turn OFF Controls]]","v":"MAXIMUS Caesar (Maximinus)"},{"$f":"IF(ISTEXT(OFFSET(tbl_Emp[[#This Row],[Helper 1]],-1,0)),1,OFFSET(tbl_Emp[[#This Row],[Helper 1]],-1,0)+1)","v":95},{"$f":"IF(rng_Emp_Filter=\"\",0,IF(ISNUMBER(SEARCH(rng_Emp_Filter,tbl_Emp[[#This Row],[Helper Key]])),tbl_Emp[[#This Row],[Helper 1]],\"\"))","v":0},{"$f":"IFERROR(SMALL(tbl_Emp[Helper 2],tbl_Emp[[#This Row],[Helper 1]]),\"\")","v":0},{"$f":"IF(OR(tbl_Emp[[#This Row],[Helper 2]]<>\"\",tbl_Emp[[#This Row],[Helper 3]]<>\"\"),1,0)","v":1},{"$f":"IF(rng_Emp_Filter=\"\",0,IF(tbl_Emp[[#This Row],[Helper 2]]<>\"\",1,0))","v":0},{"$f":"IF(rng_Emp_Filter=\"\",tbl_Emp[[#This Row],[Helper 1]],INDEX(tbl_Emp[Helper 3],tbl_Emp[[#This Row],[Helper 1]]))","v":95},{"$f":"IFERROR(INDEX(tbl_Emp[Turn OFF Controls],tbl_Emp[[#This Row],[Link]]),\"\")","v":"MAXIMUS Caesar (Maximinus)"}]
["GORDIAN I",238,238,238,11,9600,{"$f":"tbl_Emp[[#This Row],[Turn OFF Controls]]","v":"GORDIAN I"},{"$f":"IF(ISTEXT(OFFSET(tbl_Emp[[#This Row],[Helper 1]],-1,0)),1,OFFSET(tbl_Emp[[#This Row],[Helper 1]],-1,0)+1)","v":96},{"$f":"IF(rng_Emp_Filter=\"\",0,IF(ISNUMBER(SEARCH(rng_Emp_Filter,tbl_Emp[[#This Row],[Helper Key]])),tbl_Emp[[#This Row],[Helper 1]],\"\"))","v":0},{"$f":"IFERROR(SMALL(tbl_Emp[Helper 2],tbl_Emp[[#This Row],[Helper 1]]),\"\")","v":0},{"$f":"IF(OR(tbl_Emp[[#This Row],[Helper 2]]<>\"\",tbl_Emp[[#This Row],[Helper 3]]<>\"\"),1,0)","v":1},{"$f":"IF(rng_Emp_Filter=\"\",0,IF(tbl_Emp[[#This Row],[Helper 2]]<>\"\",1,0))","v":0},{"$f":"IF(rng_Emp_Filter=\"\",tbl_Emp[[#This Row],[Helper 1]],INDEX(tbl_Emp[Helper 3],tbl_Emp[[#This Row],[Helper 1]]))","v":96},{"$f":"IFERROR(INDEX(tbl_Emp[Turn OFF Controls],tbl_Emp[[#This Row],[Link]]),\"\")","v":"GORDIAN I"}]
["GORDIAN II",238,238,238,11,9700,{"$f":"tbl_Emp[[#This Row],[Turn OFF Controls]]","v":"GORDIAN II"},{"$f":"IF(ISTEXT(OFFSET(tbl_Emp[[#This Row],[Helper 1]],-1,0)),1,OFFSET(tbl_Emp[[#This Row],[Helper 1]],-1,0)+1)","v":97},{"$f":"IF(rng_Emp_Filter=\"\",0,IF(ISNUMBER(SEARCH(rng_Emp_Filter,tbl_Emp[[#This Row],[Helper Key]])),tbl_Emp[[#This Row],[Helper 1]],\"\"))","v":0},{"$f":"IFERROR(SMALL(tbl_Emp[Helper 2],tbl_Emp[[#This Row],[Helper 1]]),\"\")","v":0},{"$f":"IF(OR(tbl_Emp[[#This Row],[Helper 2]]<>\"\",tbl_Emp[[#This Row],[Helper 3]]<>\"\"),1,0)","v":1},{"$f":"IF(rng_Emp_Filter=\"\",0,IF(tbl_Emp[[#This Row],[Helper 2]]<>\"\",1,0))","v":0},{"$f":"IF(rng_Emp_Filter=\"\",tbl_Emp[[#This Row],[Helper 1]],INDEX(tbl_Emp[Helper 3],tbl_Emp[[#This Row],[Helper 1]]))","v":97},{"$f":"IFERROR(INDEX(tbl_Emp[Turn OFF Controls],tbl_Emp[[#This Row],[Link]]),\"\")","v":"GORDIAN II"}]
["BALBINUS",238,238,238,11,9800,{"$f":"tbl_Emp[[#This Row],[Turn OFF Controls]]","v":"BALBINUS"},{"$f":"IF(ISTEXT(OFFSET(tbl_Emp[[#This Row],[Helper 1]],-1,0)),1,OFFSET(tbl_Emp[[#This Row],[Helper 1]],-1,0)+1)","v":98},{"$f":"IF(rng_Emp_Filter=\"\",0,IF(ISNUMBER(SEARCH(rng_Emp_Filter,tbl_Emp[[#This Row],[Helper Key]])),tbl_Emp[[#This Row],[Helper 1]],\"\"))","v":0},{"$f":"IFERROR(SMALL(tbl_Emp[Helper 2],tbl_Emp[[#This Row],[Helper 1]]),\"\")","v":0},{"$f":"IF(OR(tbl_Emp[[#This Row],[Helper 2]]<>\"\",tbl_Emp[[#This Row],[Helper 3]]<>\"\"),1,0)","v":1},{"$f":"IF(rng_Emp_Filter=\"\",0,IF(tbl_Emp[[#This Row],[Helper 2]]<>\"\",1,0))","v":0},{"$f":"IF(rng_Emp_Filter=\"\",tbl_Emp[[#This Row],[Helper 1]],INDEX(tbl_Emp[Helper 3],tbl_Emp[[#This Row],[Helper 1]]))","v":98},{"$f":"IFERROR(INDEX(tbl_Emp[Turn OFF Controls],tbl_Emp[[#This Row],[Link]]),\"\")","v":"BALBINUS"}]
["PUPIENUS",238,238,238,11,9900,{"$f":"tbl_Emp[[#This Row],[Turn OFF Controls]]","v":"PUPIENUS"},{"$f":"IF(ISTEXT(OFFSET(tbl_Emp[[#This Row],[Helper 1]],-1,0)),1,OFFSET(tbl_Emp[[#This Row],[Helper 1]],-1,0)+1)","v":99},{"$f":"IF(rng_Emp_Filter=\"\",0,IF(ISNUMBER(SEARCH(rng_Emp_Filter,tbl_Emp[[#This Row],[Helper Key]])),tbl_Emp[[#This Row],[Helper 1]],\"\"))","v":0},{"$f":"IFERROR(SMALL(tbl_Emp[Helper 2],tbl_Emp[[#This Row],[Helper 1]]),\"\")","v":0},{"$f":"IF(OR(tbl_Emp[[#This Row],[Helper 2]]<>\"\",tbl_Emp[[#This Row],[Helper 3]]<>\"\"),1,0)","v":1},{"$f":"IF(rng_Emp_Filter=\"\",0,IF(tbl_Emp[[#This Row],[Helper 2]]<>\"\",1,0))","v":0},{"$f":"IF(rng_Emp_Filter=\"\",tbl_Emp[[#This Row],[Helper 1]],INDEX(tbl_Emp[Helper 3],tbl_Emp[[#This Row],[Helper 1]]))","v":99},{"$f":"IFERROR(INDEX(tbl_Emp[Turn OFF Controls],tbl_Emp[[#This Row],[Link]]),\"\")","v":"PUPIENUS"}]
["GORDIAN III","238-244",238,244,12,10000,{"$f":"tbl_Emp[[#This Row],[Turn OFF Controls]]","v":"GORDIAN III"},{"$f":"IF(ISTEXT(OFFSET(tbl_Emp[[#This Row],[Helper 1]],-1,0)),1,OFFSET(tbl_Emp[[#This Row],[Helper 1]],-1,0)+1)","v":100},{"$f":"IF(rng_Emp_Filter=\"\",0,IF(ISNUMBER(SEARCH(rng_Emp_Filter,tbl_Emp[[#This Row],[Helper Key]])),tbl_Emp[[#This Row],[Helper 1]],\"\"))","v":0},{"$f":"IFERROR(SMALL(tbl_Emp[Helper 2],tbl_Emp[[#This Row],[Helper 1]]),\"\")","v":0},{"$f":"IF(OR(tbl_Emp[[#This Row],[Helper 2]]<>\"\",tbl_Emp[[#This Row],[Helper 3]]<>\"\"),1,0)","v":1},{"$f":"IF(rng_Emp_Filter=\"\",0,IF(tbl_Emp[[#This Row],[Helper 2]]<>\"\",1,0))","v":0},{"$f":"IF(rng_Emp_Filter=\"\",tbl_Emp[[#This Row],[Helper 1]],INDEX(tbl_Emp[Helper 3],tbl_Emp[[#This Row],[Helper 1]]))","v":100},{"$f":"IFERROR(INDEX(tbl_Emp[Turn OFF Controls],tbl_Emp[[#This Row],[Link]]),\"\")","v":"GORDIAN III"}]
["TRANQUILLINA (Gordian III)","241-244",241,244,12,10100,{"$f":"tbl_Emp[[#This Row],[Turn OFF Controls]]","v":"TRANQUILLINA (Gordian III)"},{"$f":"IF(ISTEXT(OFFSET(tbl_Emp[[#This Row],[Helper 1]],-1,0)),1,OFFSET(tbl_Emp[[#This Row],[Helper 1]],-1,0)+1)","v":101},{"$f":"IF(rng_Emp_Filter=\"\",0,IF(ISNUMBER(SEARCH(rng_Emp_Filter,tbl_Emp[[#This Row],[Helper Key]])),tbl_Emp[[#This Row],[Helper 1]],\"\"))","v":0},{"$f":"IFERROR(SMALL(tbl_Emp[Helper 2],tbl_Emp[[#This Row],[Helper 1]]),\"\")","v":0},{"$f":"IF(OR(tbl_Emp[[#This Row],[Helper 2]]<>\"\",tbl_Emp[[#This Row],[Helper 3]]<>\"\"),1,0)","v":1},{"$f":"IF(rng_Emp_Filter=\"\",0,IF(tbl_Emp[[#This Row],[Helper 2]]<>\"\",1,0))","v":0},{"$f":"IF(rng_Emp_Filter=\"\",tbl_Emp[[#This Row],[Helper 1]],INDEX(tbl_Emp[Helper 3],tbl_Emp[[#This Row],[Helper 1]]))","v":101},{"$f":"IFERROR(INDEX(tbl_Emp[Turn OFF Controls],tbl_Emp[[#This Row],[Link]]),\"\")","v":"TRANQUILLINA (Gordian III)"}]
["PHILIP I","244-249",244,249,12,10200,{"$f":"tbl_Emp[[#This Row],[Turn OFF Controls]]","v":"PHILIP I"},{"$f":"IF(ISTEXT(OFFSET(tbl_Emp[[#This Row],[Helper 1]],-1,0)),1,OFFSET(tbl_Emp[[#This Row],[Helper 1]],-1,0)+1)","v":102},{"$f":"IF(rng_Emp_Filter=\"\",0,IF(ISNUMBER(SEARCH(rng_Emp_Filter,tbl_Emp[[#This Row],[Helper Key]])),tbl_Emp[[#This Row],[Helper 1]],\"\"))","v":0},{"$f":"IFERROR(SMALL(tbl_Emp[Helper 2],tbl_Emp[[#This Row],[Helper 1]]),\"\")","v":0},{"$f":"IF(OR(tbl_Emp[[#This Row],[Helper 2]]<>\"\",tbl_Emp[[#This Row],[Helper 3]]<>\"\"),1,0)","v":1},{"$f":"IF(rng_Emp_Filter=\"\",0,IF(tbl_Emp[[#This Row],[Helper 2]]<>\"\",1,0))","v":0},{"$f":"IF(rng_Emp_Filter=\"\",tbl_Emp[[#This Row],[Helper 1]],INDEX(tbl_Emp[Helper 3],tbl_Emp[[#This Row],[Helper 1]]))","v":102},{"$f":"IFERROR(INDEX(tbl_Emp[Turn OFF Controls],tbl_Emp[[#This Row],[Link]]),\"\")","v":"PHILIP I"}]
["OTACILIA SEVERA (Philip I)","244-249",244,249,12,10300,{"$f":"tbl_Emp[[#This Row],[Turn OFF Controls]]","v":"OTACILIA SEVERA (Philip I)"},{"$f":"IF(ISTEXT(OFFSET(tbl_Emp[[#This Row],[Helper 1]],-1,0)),1,OFFSET(tbl_Emp[[#This Row],[Helper 1]],-1,0)+1)","v":103},{"$f":"IF(rng_Emp_Filter=\"\",0,IF(ISNUMBER(SEARCH(rng_Emp_Filter,tbl_Emp[[#This Row],[Helper Key]])),tbl_Emp[[#This Row],[Helper 1]],\"\"))","v":0},{"$f":"IFERROR(SMALL(tbl_Emp[Helper 2],tbl_Emp[[#This Row],[Helper 1]]),\"\")","v":0},{"$f":"IF(OR(tbl_Emp[[#This Row],[Helper 2]]<>\"\",tbl_Emp[[#This Row],[Helper 3]]<>\"\"),1,0)","v":1},{"$f":"IF(rng_Emp_Filter=\"\",0,IF(tbl_Emp[[#This Row],[Helper 2]]<>\"\",1,0))","v":0},{"$f":"IF(rng_Emp_Filter=\"\",tbl_Emp[[#This Row],[Helper 1]],INDEX(tbl_Emp[Helper 3],tbl_Emp[[#This Row],[Helper 1]]))","v":103},{"$f":"IFERROR(INDEX(tbl_Emp[Turn OFF Controls],tbl_Emp[[#This Row],[Link]]),\"\")","v":"OTACILIA SEVERA (Philip I)"}]
["PHILIP II Caesar (Philip I)","244-247",244,247,12,10400,{"$f":"tbl_Emp[[#This Row],[Turn OFF Controls]]","v":"PHILIP II Caesar (Philip I)"},{"$f":"IF(ISTEXT(OFFSET(tbl_Emp[[#This Row],[Helper 1]],-1,0)),1,OFFSET(tbl_Emp[[#This Row],[Helper 1]],-1,0)+1)","v":104},{"$f":"IF(rng_Emp_Filter=\"\",0,IF(ISNUMBER(SEARCH(rng_Emp_Filter,tbl_Emp[[#This Row],[Helper Key]])),tbl_Emp[[#This Row],[Helper 1]],\"\"))","v":0},{"$f":"IFERROR(SMALL(tbl_Emp[Helper 2],tbl_Emp[[#This Row],[Helper 1]]),\"\")","v":0},{"$f":"IF(OR(tbl_Emp[[#This Row],[Helper 2]]<>\"\",tbl_Emp[[#This Row],[Helper 3]]<>\"\"),1,0)","v":1},{"$f":"IF(rng_Emp_Filter=\"\",0,IF(tbl_Emp[[#This Row],[Helper 2]]<>\"\",1,0))","v":0},{"$f":"IF(rng_Emp_Filter=\"\",tbl_Emp[[#This Row],[Helper 1]],INDEX(tbl_Emp[Helper 3],tbl_Emp[[#This Row],[Helper 1]]))","v":104},{"$f":"IFERROR(INDEX(tbl_Emp[Turn OFF Controls],tbl_Emp[[#This Row],[Link]]),\"\")","v":"PHILIP II Caesar (Philip I)"}]
["PHILIP II","247-249",247,249,12,10500,{"$f":"tbl_Emp[[#This Row],[Turn OFF Controls]]","v":"PHILIP II"},{"$f":"IF(ISTEXT(OFFSET(tbl_Emp[[#This Row],[Helper 1]],-1,0)),1,OFFSET(tbl_Emp[[#This Row],[Helper 1]],-1,0)+1)","v":105},{"$f":"IF(rng_Emp_Filter=\"\",0,IF(ISNUMBER(SEARCH(rng_Emp_Filter,tbl_Emp[[#This Row],[Helper Key]])),tbl_Emp[[#This Row],[Helper 1]],\"\"))","v":0},{"$f":"IFERROR(SMALL(tbl_Emp[Helper 2],tbl_Emp[[#This Row],[Helper 1]]),\"\")","v":0},{"$f":"IF(OR(tbl_Emp[[#This Row],[Helper 2]]<>\"\",tbl_Emp[[#This Row],[Helper 3]]<>\"\"),1,0)","v":1},{"$f":"IF(rng_Emp_Filter=\"\",0,IF(tbl_Emp[[#This Row],[Helper 2]]<>\"\",1,0))","v":0},{"$f":"IF(rng_Emp_Filter=\"\",tbl_Emp[[#This Row],[Helper 1]],INDEX(tbl_Emp[Helper 3],tbl_Emp[[#This Row],[Helper 1]]))","v":105},{"$f":"IFERROR(INDEX(tbl_Emp[Turn OFF Controls],tbl_Emp[[#This Row],[Link]]),\"\")","v":"PHILIP II"}]
["PACATIAN","248-249",248,249,12,10600,{"$f":"tbl_Emp[[#This Row],[Turn OFF Controls]]","v":"PACATIAN"},{"$f":"IF(ISTEXT(OFFSET(tbl_Emp[[#This Row],[Helper 1]],-1,0)),1,OFFSET(tbl_Emp[[#This Row],[Helper 1]],-1,0)+1)","v":106},{"$f":"IF(rng_Emp_Filter=\"\",0,IF(ISNUMBER(SEARCH(rng_Emp_Filter,tbl_Emp[[#This Row],[Helper Key]])),tbl_Emp[[#This Row],[Helper 1]],\"\"))","v":0},{"$f":"IFERROR(SMALL(tbl_Emp[Helper 2],tbl_Emp[[#This Row],[Helper 1]]),\"\")","v":0},{"$f":"IF(OR(tbl_Emp[[#This Row],[Helper 2]]<>\"\",tbl_Emp[[#This Row],[Helper 3]]<>\"\"),1,0)","v":1},{"$f":"IF(rng_Emp_Filter=\"\",0,IF(tbl_Emp[[#This Row],[Helper 2]]<>\"\",1,0))","v":0},{"$f":"IF(rng_Emp_Filter=\"\",tbl_Emp[[#This Row],[Helper 1]],INDEX(tbl_Emp[Helper 3],tbl_Emp[[#This Row],[Helper 1]]))","v":106},{"$f":"IFERROR(INDEX(tbl_Emp[Turn OFF Controls],tbl_Emp[[#This Row],[Link]]),\"\")","v":"PACATIAN"}]
["JOTAPIAN","248-249",248,249,12,10700,{"$f":"tbl_Emp[[#This Row],[Turn OFF Controls]]","v":"JOTAPIAN"},{"$f":"IF(ISTEXT(OFFSET(tbl_Emp[[#This Row],[Helper 1]],-1,0)),1,OFFSET(tbl_Emp[[#This Row],[Helper 1]],-1,0)+1)","v":107},{"$f":"IF(rng_Emp_Filter=\"\",0,IF(ISNUMBER(SEARCH(rng_Emp_Filter,tbl_Emp[[#This Row],[Helper Key]])),tbl_Emp[[#This Row],[Helper 1]],\"\"))","v":0},{"$f":"IFERROR(SMALL(tbl_Emp[Helper 2],tbl_Emp[[#This Row],[Helper 1]]),\"\")","v":0},{"$f":"IF(OR(tbl_Emp[[#This Row],[Helper 2]]<>\"\",tbl_Emp[[#This Row],[Helper 3]]<>\"\"),1,0)","v":1},{"$f":"IF(rng_Emp_Filter=\"\",0,IF(tbl_Emp[[#This Row],[Helper 2]]<>\"\",1,0))","v":0},{"$f":"IF(rng_Emp_Filter=\"\",tbl_Emp[[#This Row],[Helper 1]],INDEX(tbl_Emp[Helper 3],tbl_Emp[[#This Row],[Helper 1]]))","v":107},{"$f":"IFERROR(INDEX(tbl_Emp[Turn OFF Controls],tbl_Emp[[#This Row],[Link]]),\"\")","v":"JOTAPIAN"}]
["TRAJAN DECIUS","249-251",249,251,12,10800,{"$f":"tbl_Emp[[#This Row],[Turn OFF Controls]]","v":"TRAJAN DECIUS"},{"$f":"IF(ISTEXT(OFFSET(tbl_Emp[[#This Row],[Helper 1]],-1,0)),1,OFFSET(tbl_Emp[[#This Row],[Helper 1]],-1,0)+1)","v":108},{"$f":"IF(rng_Emp_Filter=\"\",0,IF(ISNUMBER(SEARCH(rng_Emp_Filter,tbl_Emp[[#This Row],[Helper Key]])),tbl_Emp[[#This Row],[Helper 1]],\"\"))","v":0},{"$f":"IFERROR(SMALL(tbl_Emp[Helper 2],tbl_Emp[[#This Row],[Helper 1]]),\"\")","v":0},{"$f":"IF(OR(tbl_Emp[[#This Row],[Helper 2]]<>\"\",tbl_Emp[[#This Row],[Helper 3]]<>\"\"),1,0)","v":1},{"$f":"IF(rng_Emp_Filter=\"\",0,IF(tbl_Emp[[#This Row],[Helper 2]]<>\"\",1,0))","v":0},{"$f":"IF(rng_Emp_Filter=\"\",tbl_Emp[[#This Row],[Helper 1]],INDEX(tbl_Emp[Helper 3],tbl_Emp[[#This Row],[Helper 1]]))","v":108},{"$f":"IFERROR(INDEX(tbl_Emp[Turn OFF Controls],tbl_Emp[[#This Row],[Link]]),\"\")","v":"TRAJAN DECIUS"}]
["HERENNIA ETRUSCILLA (Trajan Decius)","249-251",249,251,12,10900,{"$f":"tbl_Emp[[#This Row],[Turn OFF Controls]]","v":"HERENNIA ETRUSCILLA (Trajan Decius)"},{"$f":"IF(ISTEXT(OFFSET(tbl_Emp[[#This Row],[Helper 1]],-1,0)),1,OFFSET(tbl_Emp[[#This Row],[Helper 1]],-1,0)+1)","v":109},{"$f":"IF(rng_Emp_Filter=\"\",0,IF(ISNUMBER(SEARCH(rng_Emp_Filter,tbl_Emp[[#This Row],[Helper Key]])),tbl_Emp[[#This Row],[Helper 1]],\"\"))","v":0},{"$f":"IFERROR(SMALL(tbl_Emp[Helper 2],tbl_Emp[[#This Row],[Helper 1]]),\"\")","v":0},{"$f":"IF(OR(tbl_Emp[[#This Row],[Helper 2]]<>\"\",tbl_Emp[[#This Row],[Helper 3]]<>\"\"),1,0)","v":1},{"$f":"IF(rng_Emp_Filter=\"\",0,IF(tbl_Emp[[#This Row],[Helper 2]]<>\"\",1,0))","v":0},{"$f":"IF(rng_Emp_Filter=\"\",tbl_Emp[[#This Row],[Helper 1]],INDEX(tbl_Emp[Helper 3],tbl_Emp[[#This Row],[Helper 1]]))","v":109},{"$f":"IFERROR(INDEX(tbl_Emp[Turn OFF Controls],tbl_Emp[[#This Row],[Link]]),\"\")","v":"HERENNIA ETRUSCILLA (Trajan Decius)"}]
["HERENNIUS ETRUSCUS Caesar (Trajan Decius)","250-251",250,251,12,11000,{"$f":"tbl_Emp[[#This Row],[Turn OFF Controls]]","v":"HERENNIUS ETRUSCUS Caesar (Trajan Decius)"},{"$f":"IF(ISTEXT(OFFSET(tbl_Emp[[#This Row],[Helper 1]],-1,0)),1,OFFSET(tbl_Emp[[#This Row],[Helper 1]],-1,0)+1)","v":110},{"$f":"IF(rng_Emp_Filter=\"\",0,IF(ISNUMBER(SEARCH(rng_Emp_Filter,tbl_Emp[[#This Row],[Helper Key]])),tbl_Emp[[#This Row],[Helper 1]],\"\"))","v":0},{"$f":"IFERROR(SMALL(tbl_Emp[Helper 2],tbl_Emp[[#This Row],[Helper 1]]),\"\")","v":0},{"$f":"IF(OR(tbl_Emp[[#This Row],[Helper 2]]<>\"\",tbl_Emp[[#This Row],[Helper 3]]<>\"\"),1,0)","v":1},{"$f":"IF(rng_Emp_Filter=\"\",0,IF(tbl_Emp[[#This Row],[Helper 2]]<>\"\",1,0))","v":0},{"$f":"IF(rng_Emp_Filter=\"\",tbl_Emp[[#This Row],[Helper 1]],INDEX(tbl_Emp[Helper 3],tbl_Emp[[#This Row],[Helper 1]]))","v":110},{"$f":"IFERROR(INDEX(tbl_Emp[Turn OFF Controls],tbl_Emp[[#This Row],[Link]]),\"\")","v":"HERENNIUS ETRUSCUS Caesar (Trajan Decius)"}]
["HOSTILIAN Caesar (Trajan Decius)",251,251,251,12,11100,{"$f":"tbl_Emp[[#This Row],[Turn OFF Controls]]","v":"HOSTILIAN Caesar (Trajan Decius)"},{"$f":"IF(ISTEXT(OFFSET(tbl_Emp[[#This Row],[Helper 1]],-1,0)),1,OFFSET(tbl_Emp[[#This Row],[Helper 1]],-1,0)+1)","v":111},{"$f":"IF(rng_Emp_Filter=\"\",0,IF(ISNUMBER(SEARCH(rng_Emp_Filter,tbl_Emp[[#This Row],[Helper Key]])),tbl_Emp[[#This Row],[Helper 1]],\"\"))","v":0},{"$f":"IFERROR(SMALL(tbl_Emp[Helper 2],tbl_Emp[[#This Row],[Helper 1]]),\"\")","v":0},{"$f":"IF(OR(tbl_Emp[[#This Row],[Helper 2]]<>\"\",tbl_Emp[[#This Row],[Helper 3]]<>\"\"),1,0)","v":1},{"$f":"IF(rng_Emp_Filter=\"\",0,IF(tbl_Emp[[#This Row],[Helper 2]]<>\"\",1,0))","v":0},{"$f":"IF(rng_Emp_Filter=\"\",tbl_Emp[[#This Row],[Helper 1]],INDEX(tbl_Emp[Helper 3],tbl_Emp[[#This Row],[Helper 1]]))","v":111},{"$f":"IFERROR(INDEX(tbl_Emp[Turn OFF Controls],tbl_Emp[[#This Row],[Link]]),\"\")","v":"HOSTILIAN Caesar (Trajan Decius)"}]
["TREBONIANUS GALLUS","251-253",251,253,12,11200,{"$f":"tbl_Emp[[#This Row],[Turn OFF Controls]]","v":"TREBONIANUS GALLUS"},{"$f":"IF(ISTEXT(OFFSET(tbl_Emp[[#This Row],[Helper 1]],-1,0)),1,OFFSET(tbl_Emp[[#This Row],[Helper 1]],-1,0)+1)","v":112},{"$f":"IF(rng_Emp_Filter=\"\",0,IF(ISNUMBER(SEARCH(rng_Emp_Filter,tbl_Emp[[#This Row],[Helper Key]])),tbl_Emp[[#This Row],[Helper 1]],\"\"))","v":0},{"$f":"IFERROR(SMALL(tbl_Emp[Helper 2],tbl_Emp[[#This Row],[Helper 1]]),\"\")","v":0},{"$f":"IF(OR(tbl_Emp[[#This Row],[Helper 2]]<>\"\",tbl_Emp[[#This Row],[Helper 3]]<>\"\"),1,0)","v":1},{"$f":"IF(rng_Emp_Filter=\"\",0,IF(tbl_Emp[[#This Row],[Helper 2]]<>\"\",1,0))","v":0},{"$f":"IF(rng_Emp_Filter=\"\",tbl_Emp[[#This Row],[Helper 1]],INDEX(tbl_Emp[Helper 3],tbl_Emp[[#This Row],[Helper 1]]))","v":112},{"$f":"IFERROR(INDEX(tbl_Emp[Turn OFF Controls],tbl_Emp[[#This Row],[Link]]),\"\")","v":"TREBONIANUS GALLUS"}]
["HERENNIUS ETRUSCUS",251,251,251,12,11300,{"$f":"tbl_Emp[[#This Row],[Turn OFF Controls]]","v":"HERENNIUS ETRUSCUS"},{"$f":"IF(ISTEXT(OFFSET(tbl_Emp[[#This Row],[Helper 1]],-1,0)),1,OFFSET(tbl_Emp[[#This Row],[Helper 1]],-1,0)+1)","v":113},{"$f":"IF(rng_Emp_Filter=\"\",0,IF(ISNUMBER(SEARCH(rng_Emp_Filter,tbl_Emp[[#This Row],[Helper Key]])),tbl_Emp[[#This Row],[Helper 1]],\"\"))","v":0},{"$f":"IFERROR(SMALL(tbl_Emp[Helper 2],tbl_Emp[[#This Row],[Helper 1]]),\"\")","v":0},{"$f":"IF(OR(tbl_Emp[[#This Row],[Helper 2]]<>\"\",tbl_Emp[[#This Row],[Helper 3]]<>\"\"),1,0)","v":1},{"$f":"IF(rng_Emp_Filter=\"\",0,IF(tbl_Emp[[#This Row],[Helper 2]]<>\"\",1,0))","v":0},{"$f":"IF(rng_Emp_Filter=\"\",tbl_Emp[[#This Row],[Helper 1]],INDEX(tbl_Emp[Helper 3],tbl_Emp[[#This Row],[Helper 1]]))","v":113},{"$f":"IFERROR(INDEX(tbl_Emp[Turn OFF Controls],tbl_Emp[[#This Row],[Link]]),\"\")","v":"HERENNIUS ETRUSCUS"}]
["HOSTILIAN",251,251,251,12,11400,{"$f":"tbl_Emp[[#This Row],[Turn OFF Controls]]","v":"HOSTILIAN"},{"$f":"IF(ISTEXT(OFFSET(tbl_Emp[[#This Row],[Helper 1]],-1,0)),1,OFFSET(tbl_Emp[[#This Row],[Helper 1]],-1,0)+1)","v":114},{"$f":"IF(rng_Emp_Filter=\"\",0,IF(ISNUMBER(SEARCH(rng_Emp_Filter,tbl_Emp[[#This Row],[Helper Key]])),tbl_Emp[[#This Row],[Helper 1]],\"\"))","v":0},{"$f":"IFERROR(SMALL(tbl_Emp[Helper 2],tbl_Emp[[#This Row],[Helper 1]]),\"\")","v":0},{"$f":"IF(OR(tbl_Emp[[#This Row],[Helper 2]]<>\"\",tbl_Emp[[#This Row],[Helper 3]]<>\"\"),1,0)","v":1},{"$f":"IF(rng_Emp_Filter=\"\",0,IF(tbl_Emp[[#This Row],[Helper 2]]<>\"\",1,0))","v":0},{"$f":"IF(rng_Emp_Filter=\"\",tbl_Emp[[#This Row],[Helper 1]],INDEX(tbl_Emp[Helper 3],tbl_Emp[[#This Row],[Helper 1]]))","v":114},{"$f":"IFERROR(INDEX(tbl_Emp[Turn OFF Controls],tbl_Emp[[#This Row],[Link]]),\"\")","v":"HOSTILIAN"}]
["VOLUSIAN Caesar (Treb. Gallus)",251,251,251,12,11500,{"$f":"tbl_Emp[[#This Row],[Turn OFF Controls]]","v":"VOLUSIAN Caesar (Treb. Gallus)"},{"$f":"IF(ISTEXT(OFFSET(tbl_Emp[[#This Row],[Helper 1]],-1,0)),1,OFFSET(tbl_Emp[[#This Row],[Helper 1]],-1,0)+1)","v":115},{"$f":"IF(rng_Emp_Filter=\"\",0,IF(ISNUMBER(SEARCH(rng_Emp_Filter,tbl_Emp[[#This Row],[Helper Key]])),tbl_Emp[[#This Row],[Helper 1]],\"\"))","v":0},{"$f":"IFERROR(SMALL(tbl_Emp[Helper 2],tbl_Emp[[#This Row],[Helper 1]]),\"\")","v":0},{"$f":"IF(OR(tbl_Emp[[#This Row],[Helper 2]]<>\"\",tbl_Emp[[#This Row],[Helper 3]]<>\"\"),1,0)","v":1},{"$f":"IF(rng_Emp_Filter=\"\",0,IF(tbl_Emp[[#This Row],[Helper 2]]<>\"\",1,0))","v":0},{"$f":"IF(rng_Emp_Filter=\"\",tbl_Emp[[#This Row],[Helper 1]],INDEX(tbl_Emp[Helper 3],tbl_Emp[[#This Row],[Helper 1]]))","v":115},{"$f":"IFERROR(INDEX(tbl_Emp[Turn OFF Controls],tbl_Emp[[#This Row],[Link]]),\"\")","v":"VOLUSIAN Caesar (Treb. Gallus)"}]
["VOLUSIAN","251-253",251,253,12,11600,{"$f":"tbl_Emp[[#This Row],[Turn OFF Controls]]","v":"VOLUSIAN"},{"$f":"IF(ISTEXT(OFFSET(tbl_Emp[[#This Row],[Helper 1]],-1,0)),1,OFFSET(tbl_Emp[[#This Row],[Helper 1]],-1,0)+1)","v":116},{"$f":"IF(rng_Emp_Filter=\"\",0,IF(ISNUMBER(SEARCH(rng_Emp_Filter,tbl_Emp[[#This Row],[Helper Key]])),tbl_Emp[[#This Row],[Helper 1]],\"\"))","v":0},{"$f":"IFERROR(SMALL(tbl_Emp[Helper 2],tbl_Emp[[#This Row],[Helper 1]]),\"\")","v":0},{"$f":"IF(OR(tbl_Emp[[#This Row],[Helper 2]]<>\"\",tbl_Emp[[#This Row],[Helper 3]]<>\"\"),1,0)","v":1},{"$f":"IF(rng_Emp_Filter=\"\",0,IF(tbl_Emp[[#This Row],[Helper 2]]<>\"\",1,0))","v":0},{"$f":"IF(rng_Emp_Filter=\"\",tbl_Emp[[#This Row],[Helper 1]],INDEX(tbl_Emp[Helper 3],tbl_Emp[[#This Row],[Helper 1]]))","v":116},{"$f":"IFERROR(INDEX(tbl_Emp[Turn OFF Controls],tbl_Emp[[#This Row],[Link]]),\"\")","v":"VOLUSIAN"}]
["AEMILIAN",253,253,253,12,11700,{"$f":"tbl_Emp[[#This Row],[Turn OFF Controls]]","v":"AEMILIAN"},{"$f":"IF(ISTEXT(OFFSET(tbl_Emp[[#This Row],[Helper 1]],-1,0)),1,OFFSET(tbl_Emp[[#This Row],[Helper 1]],-1,0)+1)","v":117},{"$f":"IF(rng_Emp_Filter=\"\",0,IF(ISNUMBER(SEARCH(rng_Emp_Filter,tbl_Emp[[#This Row],[Helper Key]])),tbl_Emp[[#This Row],[Helper 1]],\"\"))","v":0},{"$f":"IFERROR(SMALL(tbl_Emp[Helper 2],tbl_Emp[[#This Row],[Helper 1]]),\"\")","v":0},{"$f":"IF(OR(tbl_Emp[[#This Row],[Helper 2]]<>\"\",tbl_Emp[[#This Row],[Helper 3]]<>\"\"),1,0)","v":1},{"$f":"IF(rng_Emp_Filter=\"\",0,IF(tbl_Emp[[#This Row],[Helper 2]]<>\"\",1,0))","v":0},{"$f":"IF(rng_Emp_Filter=\"\",tbl_Emp[[#This Row],[Helper 1]],INDEX(tbl_Emp[Helper 3],tbl_Emp[[#This Row],[Helper 1]]))","v":117},{"$f":"IFERROR(INDEX(tbl_Emp[Turn OFF Controls],tbl_Emp[[#This Row],[Link]]),\"\")","v":"AEMILIAN"}]
["CORNELIA SUPERA (Aemilian)",253,253,253,12,11800,{"$f":"tbl_Emp[[#This Row],[Turn OFF Controls]]","v":"CORNELIA SUPERA (Aemilian)"},{"$f":"IF(ISTEXT(OFFSET(tbl_Emp[[#This Row],[Helper 1]],-1,0)),1,OFFSET(tbl_Emp[[#This Row],[Helper 1]],-1,0)+1)","v":118},{"$f":"IF(rng_Emp_Filter=\"\",0,IF(ISNUMBER(SEARCH(rng_Emp_Filter,tbl_Emp[[#This Row],[Helper Key]])),tbl_Emp[[#This Row],[Helper 1]],\"\"))","v":0},{"$f":"IFERROR(SMALL(tbl_Emp[Helper 2],tbl_Emp[[#This Row],[Helper 1]]),\"\")","v":0},{"$f":"IF(OR(tbl_Emp[[#This Row],[Helper 2]]<>\"\",tbl_Emp[[#This Row],[Helper 3]]<>\"\"),1,0)","v":1},{"$f":"IF(rng_Emp_Filter=\"\",0,IF(tbl_Emp[[#This Row],[Helper 2]]<>\"\",1,0))","v":0},{"$f":"IF(rng_Emp_Filter=\"\",tbl_Emp[[#This Row],[Helper 1]],INDEX(tbl_Emp[Helper 3],tbl_Emp[[#This Row],[Helper 1]]))","v":118},{"$f":"IFERROR(INDEX(tbl_Emp[Turn OFF Controls],tbl_Emp[[#This Row],[Link]]),\"\")","v":"CORNELIA SUPERA (Aemilian)"}]
["VALERIAN I","253-260",253,260,12,11900,{"$f":"tbl_Emp[[#This Row],[Turn OFF Controls]]","v":"VALERIAN I"},{"$f":"IF(ISTEXT(OFFSET(tbl_Emp[[#This Row],[Helper 1]],-1,0)),1,OFFSET(tbl_Emp[[#This Row],[Helper 1]],-1,0)+1)","v":119},{"$f":"IF(rng_Emp_Filter=\"\",0,IF(ISNUMBER(SEARCH(rng_Emp_Filter,tbl_Emp[[#This Row],[Helper Key]])),tbl_Emp[[#This Row],[Helper 1]],\"\"))","v":0},{"$f":"IFERROR(SMALL(tbl_Emp[Helper 2],tbl_Emp[[#This Row],[Helper 1]]),\"\")","v":0},{"$f":"IF(OR(tbl_Emp[[#This Row],[Helper 2]]<>\"\",tbl_Emp[[#This Row],[Helper 3]]<>\"\"),1,0)","v":1},{"$f":"IF(rng_Emp_Filter=\"\",0,IF(tbl_Emp[[#This Row],[Helper 2]]<>\"\",1,0))","v":0},{"$f":"IF(rng_Emp_Filter=\"\",tbl_Emp[[#This Row],[Helper 1]],INDEX(tbl_Emp[Helper 3],tbl_Emp[[#This Row],[Helper 1]]))","v":119},{"$f":"IFERROR(INDEX(tbl_Emp[Turn OFF Controls],tbl_Emp[[#This Row],[Link]]),\"\")","v":"VALERIAN I"}]
["MARINIANA (Valerian)","253-260",253,260,12,12000,{"$f":"tbl_Emp[[#This Row],[Turn OFF Controls]]","v":"MARINIANA (Valerian)"},{"$f":"IF(ISTEXT(OFFSET(tbl_Emp[[#This Row],[Helper 1]],-1,0)),1,OFFSET(tbl_Emp[[#This Row],[Helper 1]],-1,0)+1)","v":120},{"$f":"IF(rng_Emp_Filter=\"\",0,IF(ISNUMBER(SEARCH(rng_Emp_Filter,tbl_Emp[[#This Row],[Helper Key]])),tbl_Emp[[#This Row],[Helper 1]],\"\"))","v":0},{"$f":"IFERROR(SMALL(tbl_Emp[Helper 2],tbl_Emp[[#This Row],[Helper 1]]),\"\")","v":0},{"$f":"IF(OR(tbl_Emp[[#This Row],[Helper 2]]<>\"\",tbl_Emp[[#This Row],[Helper 3]]<>\"\"),1,0)","v":1},{"$f":"IF(rng_Emp_Filter=\"\",0,IF(tbl_Emp[[#This Row],[Helper 2]]<>\"\",1,0))","v":0},{"$f":"IF(rng_Emp_Filter=\"\",tbl_Emp[[#This Row],[Helper 1]],INDEX(tbl_Emp[Helper 3],tbl_Emp[[#This Row],[Helper 1]]))","v":120},{"$f":"IFERROR(INDEX(tbl_Emp[Turn OFF Controls],tbl_Emp[[#This Row],[Link]]),\"\")","v":"MARINIANA (Valerian)"}]
["GALLIENUS (joint reign with Valerian)","253-260",253,260,12,12100,{"$f":"tbl_Emp[[#This Row],[Turn OFF Controls]]","v":"GALLIENUS (joint reign with Valerian)"},{"$f":"IF(ISTEXT(OFFSET(tbl_Emp[[#This Row],[Helper 1]],-1,0)),1,OFFSET(tbl_Emp[[#This Row],[Helper 1]],-1,0)+1)","v":121},{"$f":"IF(rng_Emp_Filter=\"\",0,IF(ISNUMBER(SEARCH(rng_Emp_Filter,tbl_Emp[[#This Row],[Helper Key]])),tbl_Emp[[#This Row],[Helper 1]],\"\"))","v":0},{"$f":"IFERROR(SMALL(tbl_Emp[Helper 2],tbl_Emp[[#This Row],[Helper 1]]),\"\")","v":0},{"$f":"IF(OR(tbl_Emp[[#This Row],[Helper 2]]<>\"\",tbl_Emp[[#This Row],[Helper 3]]<>\"\"),1,0)","v":1},{"$f":"IF(rng_Emp_Filter=\"\",0,IF(tbl_Emp[[#This Row],[Helper 2]]<>\"\",1,0))","v":0},{"$f":"IF(rng_Emp_Filter=\"\",tbl_Emp[[#This Row],[Helper 1]],INDEX(tbl_Emp[Helper 3],tbl_Emp[[#This Row],[Helper 1]]))","v":121},{"$f":"IFERROR(INDEX(tbl_Emp[Turn OFF Controls],tbl_Emp[[#This Row],[Link]]),\"\")","v":"GALLIENUS (joint reign with Valerian)"}]
["SALONINA (joint reign with Valerian)","253-260",253,260,12,12200,{"$f":"tbl_Emp[[#This Row],[Turn OFF Controls]]","v":"SALONINA (joint reign with Valerian)"},{"$f":"IF(ISTEXT(OFFSET(tbl_Emp[[#This Row],[Helper 1]],-1,0)),1,OFFSET(tbl_Emp[[#This Row],[Helper 1]],-1,0)+1)","v":122},{"$f":"IF(rng_Emp_Filter=\"\",0,IF(ISNUMBER(SEARCH(rng_Emp_Filter,tbl_Emp[[#This Row],[Helper Key]])),tbl_Emp[[#This Row],[Helper 1]],\"\"))","v":0},{"$f":"IFERROR(SMALL(tbl_Emp[Helper 2],tbl_Emp[[#This Row],[Helper 1]]),\"\")","v":0},{"$f":"IF(OR(tbl_Emp[[#This Row],[Helper 2]]<>\"\",tbl_Emp[[#This Row],[Helper 3]]<>\"\"),1,0)","v":1},{"$f":"IF(rng_Emp_Filter=\"\",0,IF(tbl_Emp[[#This Row],[Helper 2]]<>\"\",1,0))","v":0},{"$f":"IF(rng_Emp_Filter=\"\",tbl_Emp[[#This Row],[Helper 1]],INDEX(tbl_Emp[Helper 3],tbl_Emp[[#This Row],[Helper 1]]))","v":122},{"$f":"IFERROR(INDEX(tbl_Emp[Turn OFF Controls],tbl_Emp[[#This Row],[Link]]),\"\")","v":"SALONINA (joint reign with Valerian)"}]
["VALERIAN II (Valerian)","253-255",253,255,12,12300,{"$f":"tbl_Emp[[#This Row],[Turn OFF Controls]]","v":"VALERIAN II (Valerian)"},{"$f":"IF(ISTEXT(OFFSET(tbl_Emp[[#This Row],[Helper 1]],-1,0)),1,OFFSET(tbl_Emp[[#This Row],[Helper 1]],-1,0)+1)","v":123},{"$f":"IF(rng_Emp_Filter=\"\",0,IF(ISNUMBER(SEARCH(rng_Emp_Filter,tbl_Emp[[#This Row],[Helper Key]])),tbl_Emp[[#This Row],[Helper 1]],\"\"))","v":0},{"$f":"IFERROR(SMALL(tbl_Emp[Helper 2],tbl_Emp[[#This Row],[Helper 1]]),\"\")","v":0},{"$f":"IF(OR(tbl_Emp[[#This Row],[Helper 2]]<>\"\",tbl_Emp[[#This Row],[Helper 3]]<>\"\"),1,0)","v":1},{"$f":"IF(rng_Emp_Filter=\"\",0,IF(tbl_Emp[[#This Row],[Helper 2]]<>\"\",1,0))","v":0},{"$f":"IF(rng_Emp_Filter=\"\",tbl_Emp[[#This Row],[Helper 1]],INDEX(tbl_Emp[Helper 3],tbl_Emp[[#This Row],[Helper 1]]))","v":123},{"$f":"IFERROR(INDEX(tbl_Emp[Turn OFF Controls],tbl_Emp[[#This Row],[Link]]),\"\")","v":"VALERIAN II (Valerian)"}]
["DIVUS VALERIAN II (Valerian)",255,255,255,12,12400,{"$f":"tbl_Emp[[#This Row],[Turn OFF Controls]]","v":"DIVUS VALERIAN II (Valerian)"},{"$f":"IF(ISTEXT(OFFSET(tbl_Emp[[#This Row],[Helper 1]],-1,0)),1,OFFSET(tbl_Emp[[#This Row],[Helper 1]],-1,0)+1)","v":124},{"$f":"IF(rng_Emp_Filter=\"\",0,IF(ISNUMBER(SEARCH(rng_Emp_Filter,tbl_Emp[[#This Row],[Helper Key]])),tbl_Emp[[#This Row],[Helper 1]],\"\"))","v":0},{"$f":"IFERROR(SMALL(tbl_Emp[Helper 2],tbl_Emp[[#This Row],[Helper 1]]),\"\")","v":0},{"$f":"IF(OR(tbl_Emp[[#This Row],[Helper 2]]<>\"\",tbl_Emp[[#This Row],[Helper 3]]<>\"\"),1,0)","v":1},{"$f":"IF(rng_Emp_Filter=\"\",0,IF(tbl_Emp[[#This Row],[Helper 2]]<>\"\",1,0))","v":0},{"$f":"IF(rng_Emp_Filter=\"\",tbl_Emp[[#This Row],[Helper 1]],INDEX(tbl_Emp[Helper 3],tbl_Emp[[#This Row],[Helper 1]]))","v":124},{"$f":"IFERROR(INDEX(tbl_Emp[Turn OFF Controls],tbl_Emp[[#This Row],[Link]]),\"\")","v":"DIVUS VALERIAN II (Valerian)"}]
["SALONINUS Caesar (Valerian)","255-259",255,259,12,12500,{"$f":"tbl_Emp[[#This Row],[Turn OFF Controls]]","v":"SALONINUS Caesar (Valerian)"},{"$f":"IF(ISTEXT(OFFSET(tbl_Emp[[#This Row],[Helper 1]],-1,0)),1,OFFSET(tbl_Emp[[#This Row],[Helper 1]],-1,0)+1)","v":125},{"$f":"IF(rng_Emp_Filter=\"\",0,IF(ISNUMBER(SEARCH(rng_Emp_Filter,tbl_Emp[[#This Row],[Helper Key]])),tbl_Emp[[#This Row],[Helper 1]],\"\"))","v":0},{"$f":"IFERROR(SMALL(tbl_Emp[Helper 2],tbl_Emp[[#This Row],[Helper 1]]),\"\")","v":0},{"$f":"IF(OR(tbl_Emp[[#This Row],[Helper 2]]<>\"\",tbl_Emp[[#This Row],[Helper 3]]<>\"\"),1,0)","v":1},{"$f":"IF(rng_Emp_Filter=\"\",0,IF(tbl_Emp[[#This Row],[Helper 2]]<>\"\",1,0))","v":0},{"$f":"IF(rng_Emp_Filter=\"\",tbl_Emp[[#This Row],[Helper 1]],INDEX(tbl_Emp[Helper 3],tbl_Emp[[#This Row],[Helper 1]]))","v":125},{"$f":"IFERROR(INDEX(tbl_Emp[Turn OFF Controls],tbl_Emp[[#This Row],[Link]]),\"\")","v":"SALONINUS Caesar (Valerian)"}]
["SALONINUS",259,259,259,12,12600,{"$f":"tbl_Emp[[#This Row],[Turn OFF Controls]]","v":"SALONINUS"},{"$f":"IF(ISTEXT(OFFSET(tbl_Emp[[#This Row],[Helper 1]],-1,0)),1,OFFSET(tbl_Emp[[#This Row],[Helper 1]],-1,0)+1)","v":126},{"$f":"IF(rng_Emp_Filter=\"\",0,IF(ISNUMBER(SEARCH(rng_Emp_Filter,tbl_Emp[[#This Row],[Helper Key]])),tbl_Emp[[#This Row],[Helper 1]],\"\"))","v":0},{"$f":"IFERROR(SMALL(tbl_Emp[Helper 2],tbl_Emp[[#This Row],[Helper 1]]),\"\")","v":0},{"$f":"IF(OR(tbl_Emp[[#This Row],[Helper 2]]<>\"\",tbl_Emp[[#This Row],[Helper 3]]<>\"\"),1,0)","v":1},{"$f":"IF(rng_Emp_Filter=\"\",0,IF(tbl_Emp[[#This Row],[Helper 2]]<>\"\",1,0))","v":0},{"$f":"IF(rng_Emp_Filter=\"\",tbl_Emp[[#This Row],[Helper 1]],INDEX(tbl_Emp[Helper 3],tbl_Emp[[#This Row],[Helper 1]]))","v":126},{"$f":"IFERROR(INDEX(tbl_Emp[Turn OFF Controls],tbl_Emp[[#This Row],[Link]]),\"\")","v":"SALONINUS"}]
["URANIUS ANTONINUS","253-254",253,254,12,12700,{"$f":"tbl_Emp[[#This Row],[Turn OFF Controls]]","v":"URANIUS ANTONINUS"},{"$f":"IF(ISTEXT(OFFSET(tbl_Emp[[#This Row],[Helper 1]],-1,0)),1,OFFSET(tbl_Emp[[#This Row],[Helper 1]],-1,0)+1)","v":127},{"$f":"IF(rng_Emp_Filter=\"\",0,IF(ISNUMBER(SEARCH(rng_Emp_Filter,tbl_Emp[[#This Row],[Helper Key]])),tbl_Emp[[#This Row],[Helper 1]],\"\"))","v":0},{"$f":"IFERROR(SMALL(tbl_Emp[Helper 2],tbl_Emp[[#This Row],[Helper 1]]),\"\")","v":0},{"$f":"IF(OR(tbl_Emp[[#This Row],[Helper 2]]<>\"\",tbl_Emp[[#This Row],[Helper 3]]<>\"\"),1,0)","v":1},{"$f":"IF(rng_Emp_Filter=\"\",0,IF(tbl_Emp[[#This Row],[Helper 2]]<>\"\",1,0))","v":0},{"$f":"IF(rng_Emp_Filter=\"\",tbl_Emp[[#This Row],[Helper 1]],INDEX(tbl_Emp[Helper 3],tbl_Emp[[#This Row],[Helper 1]]))","v":127},{"$f":"IFERROR(INDEX(tbl_Emp[Turn OFF Controls],tbl_Emp[[#This Row],[Link]]),\"\")","v":"URANIUS ANTONINUS"}]
["GALLIENUS (sole reign)","260-268",260,268,13,12800,{"$f":"tbl_Emp[[#This Row],[Turn OFF Controls]]","v":"GALLIENUS (sole reign)"},{"$f":"IF(ISTEXT(OFFSET(tbl_Emp[[#This Row],[Helper 1]],-1,0)),1,OFFSET(tbl_Emp[[#This Row],[Helper 1]],-1,0)+1)","v":128},{"$f":"IF(rng_Emp_Filter=\"\",0,IF(ISNUMBER(SEARCH(rng_Emp_Filter,tbl_Emp[[#This Row],[Helper Key]])),tbl_Emp[[#This Row],[Helper 1]],\"\"))","v":0},{"$f":"IFERROR(SMALL(tbl_Emp[Helper 2],tbl_Emp[[#This Row],[Helper 1]]),\"\")","v":0},{"$f":"IF(OR(tbl_Emp[[#This Row],[Helper 2]]<>\"\",tbl_Emp[[#This Row],[Helper 3]]<>\"\"),1,0)","v":1},{"$f":"IF(rng_Emp_Filter=\"\",0,IF(tbl_Emp[[#This Row],[Helper 2]]<>\"\",1,0))","v":0},{"$f":"IF(rng_Emp_Filter=\"\",tbl_Emp[[#This Row],[Helper 1]],INDEX(tbl_Emp[Helper 3],tbl_Emp[[#This Row],[Helper 1]]))","v":128},{"$f":"IFERROR(INDEX(tbl_Emp[Turn OFF Controls],tbl_Emp[[#This Row],[Link]]),\"\")","v":"GALLIENUS (sole reign)"}]
["SALONINA (sole reign)","260-268",260,268,13,12900,{"$f":"tbl_Emp[[#This Row],[Turn OFF Controls]]","v":"SALONINA (sole reign)"},{"$f":"IF(ISTEXT(OFFSET(tbl_Emp[[#This Row],[Helper 1]],-1,0)),1,OFFSET(tbl_Emp[[#This Row],[Helper 1]],-1,0)+1)","v":129},{"$f":"IF(rng_Emp_Filter=\"\",0,IF(ISNUMBER(SEARCH(rng_Emp_Filter,tbl_Emp[[#This Row],[Helper Key]])),tbl_Emp[[#This Row],[Helper 1]],\"\"))","v":0},{"$f":"IFERROR(SMALL(tbl_Emp[Helper 2],tbl_Emp[[#This Row],[Helper 1]]),\"\")","v":0},{"$f":"IF(OR(tbl_Emp[[#This Row],[Helper 2]]<>\"\",tbl_Emp[[#This Row],[Helper 3]]<>\"\"),1,0)","v":1},{"$f":"IF(rng_Emp_Filter=\"\",0,IF(tbl_Emp[[#This Row],[Helper 2]]<>\"\",1,0))","v":0},{"$f":"IF(rng_Emp_Filter=\"\",tbl_Emp[[#This Row],[Helper 1]],INDEX(tbl_Emp[Helper 3],tbl_Emp[[#This Row],[Helper 1]]))","v":129},{"$f":"IFERROR(INDEX(tbl_Emp[Turn OFF Controls],tbl_Emp[[#This Row],[Link]]),\"\")","v":"SALONINA (sole reign)"}]
["REGALIANUS",260,260,260,13,{"$f":"F130+100","v":13000},{"$f":"tbl_Emp[[#This Row],[Turn OFF Controls]]","v":"REGALIANUS"},{"$f":"IF(ISTEXT(OFFSET(tbl_Emp[[#This Row],[Helper 1]],-1,0)),1,OFFSET(tbl_Emp[[#This Row],[Helper 1]],-1,0)+1)","v":130},{"$f":"IF(rng_Emp_Filter=\"\",0,IF(ISNUMBER(SEARCH(rng_Emp_Filter,tbl_Emp[[#This Row],[Helper Key]])),tbl_Emp[[#This Row],[Helper 1]],\"\"))","v":0},{"$f":"IFERROR(SMALL(tbl_Emp[Helper 2],tbl_Emp[[#This Row],[Helper 1]]),\"\")","v":0},{"$f":"IF(OR(tbl_Emp[[#This Row],[Helper 2]]<>\"\",tbl_Emp[[#This Row],[Helper 3]]<>\"\"),1,0)","v":1},{"$f":"IF(rng_Emp_Filter=\"\",0,IF(tbl_Emp[[#This Row],[Helper 2]]<>\"\",1,0))","v":0},{"$f":"IF(rng_Emp_Filter=\"\",tbl_Emp[[#This Row],[Helper 1]],INDEX(tbl_Emp[Helper 3],tbl_Emp[[#This Row],[Helper 1]]))","v":130},{"$f":"IFERROR(INDEX(tbl_Emp[Turn OFF Controls],tbl_Emp[[#This Row],[Link]]),\"\")","v":"REGALIANUS"}]
["DRYANTILLA (Regalianus)",260,260,260,13,13100,{"$f":"tbl_Emp[[#This Row],[Turn OFF Controls]]","v":"DRYANTILLA (Regalianus)"},{"$f":"IF(ISTEXT(OFFSET(tbl_Emp[[#This Row],[Helper 1]],-1,0)),1,OFFSET(tbl_Emp[[#This Row],[Helper 1]],-1,0)+1)","v":131},{"$f":"IF(rng_Emp_Filter=\"\",0,IF(ISNUMBER(SEARCH(rng_Emp_Filter,tbl_Emp[[#This Row],[Helper Key]])),tbl_Emp[[#This Row],[Helper 1]],\"\"))","v":0},{"$f":"IFERROR(SMALL(tbl_Emp[Helper 2],tbl_Emp[[#This Row],[Helper 1]]),\"\")","v":0},{"$f":"IF(OR(tbl_Emp[[#This Row],[Helper 2]]<>\"\",tbl_Emp[[#This Row],[Helper 3]]<>\"\"),1,0)","v":1},{"$f":"IF(rng_Emp_Filter=\"\",0,IF(tbl_Emp[[#This Row],[Helper 2]]<>\"\",1,0))","v":0},{"$f":"IF(rng_Emp_Filter=\"\",tbl_Emp[[#This Row],[Helper 1]],INDEX(tbl_Emp[Helper 3],tbl_Emp[[#This Row],[Helper 1]]))","v":131},{"$f":"IFERROR(INDEX(tbl_Emp[Turn OFF Controls],tbl_Emp[[#This Row],[Link]]),\"\")","v":"DRYANTILLA (Regalianus)"}]
["MACRIANUS","260-261",260,261,13,13200,{"$f":"tbl_Emp[[#This Row],[Turn OFF Controls]]","v":"MACRIANUS"},{"$f":"IF(ISTEXT(OFFSET(tbl_Emp[[#This Row],[Helper 1]],-1,0)),1,OFFSET(tbl_Emp[[#This Row],[Helper 1]],-1,0)+1)","v":132},{"$f":"IF(rng_Emp_Filter=\"\",0,IF(ISNUMBER(SEARCH(rng_Emp_Filter,tbl_Emp[[#This Row],[Helper Key]])),tbl_Emp[[#This Row],[Helper 1]],\"\"))","v":0},{"$f":"IFERROR(SMALL(tbl_Emp[Helper 2],tbl_Emp[[#This Row],[Helper 1]]),\"\")","v":0},{"$f":"IF(OR(tbl_Emp[[#This Row],[Helper 2]]<>\"\",tbl_Emp[[#This Row],[Helper 3]]<>\"\"),1,0)","v":1},{"$f":"IF(rng_Emp_Filter=\"\",0,IF(tbl_Emp[[#This Row],[Helper 2]]<>\"\",1,0))","v":0},{"$f":"IF(rng_Emp_Filter=\"\",tbl_Emp[[#This Row],[Helper 1]],INDEX(tbl_Emp[Helper 3],tbl_Emp[[#This Row],[Helper 1]]))","v":132},{"$f":"IFERROR(INDEX(tbl_Emp[Turn OFF Controls],tbl_Emp[[#This Row],[Link]]),\"\")","v":"MACRIANUS"}]
["QUIETUS (Macrianus)","260-261",260,261,13,13300,{"$f":"tbl_Emp[[#This Row],[Turn OFF Controls]]","v":"QUIETUS (Macrianus)"},{"$f":"IF(ISTEXT(OFFSET(tbl_Emp[[#This Row],[Helper 1]],-1,0)),1,OFFSET(tbl_Emp[[#This Row],[Helper 1]],-1,0)+1)","v":133},{"$f":"IF(rng_Emp_Filter=\"\",0,IF(ISNUMBER(SEARCH(rng_Emp_Filter,tbl_Emp[[#This Row],[Helper Key]])),tbl_Emp[[#This Row],[Helper 1]],\"\"))","v":0},{"$f":"IFERROR(SMALL(tbl_Emp[Helper 2],tbl_Emp[[#This Row],[Helper 1]]),\"\")","v":0},{"$f":"IF(OR(tbl_Emp[[#This Row],[Helper 2]]<>\"\",tbl_Emp[[#This Row],[Helper 3]]<>\"\"),1,0)","v":1},{"$f":"IF(rng_Emp_Filter=\"\",0,IF(tbl_Emp[[#This Row],[Helper 2]]<>\"\",1,0))","v":0},{"$f":"IF(rng_Emp_Filter=\"\",tbl_Emp[[#This Row],[Helper 1]],INDEX(tbl_Emp[Helper 3],tbl_Emp[[#This Row],[Helper 1]]))","v":133},{"$f":"IFERROR(INDEX(tbl_Emp[Turn OFF Controls],tbl_Emp[[#This Row],[Link]]),\"\")","v":"QUIETUS (Macrianus)"}]
["CLAUDIUS II","268-270",268,270,13,13400,{"$f":"tbl_Emp[[#This Row],[Turn OFF Controls]]","v":"CLAUDIUS II"},{"$f":"IF(ISTEXT(OFFSET(tbl_Emp[[#This Row],[Helper 1]],-1,0)),1,OFFSET(tbl_Emp[[#This Row],[Helper 1]],-1,0)+1)","v":134},{"$f":"IF(rng_Emp_Filter=\"\",0,IF(ISNUMBER(SEARCH(rng_Emp_Filter,tbl_Emp[[#This Row],[Helper Key]])),tbl_Emp[[#This Row],[Helper 1]],\"\"))","v":0},{"$f":"IFERROR(SMALL(tbl_Emp[Helper 2],tbl_Emp[[#This Row],[Helper 1]]),\"\")","v":0},{"$f":"IF(OR(tbl_Emp[[#This Row],[Helper 2]]<>\"\",tbl_Emp[[#This Row],[Helper 3]]<>\"\"),1,0)","v":1},{"$f":"IF(rng_Emp_Filter=\"\",0,IF(tbl_Emp[[#This Row],[Helper 2]]<>\"\",1,0))","v":0},{"$f":"IF(rng_Emp_Filter=\"\",tbl_Emp[[#This Row],[Helper 1]],INDEX(tbl_Emp[Helper 3],tbl_Emp[[#This Row],[Helper 1]]))","v":134},{"$f":"IFERROR(INDEX(tbl_Emp[Turn OFF Controls],tbl_Emp[[#This Row],[Link]]),\"\")","v":"CLAUDIUS II"}]
["DIVUS CLAUDIUS II",270,270,270,13,13500,{"$f":"tbl_Emp[[#This Row],[Turn OFF Controls]]","v":"DIVUS CLAUDIUS II"},{"$f":"IF(ISTEXT(OFFSET(tbl_Emp[[#This Row],[Helper 1]],-1,0)),1,OFFSET(tbl_Emp[[#This Row],[Helper 1]],-1,0)+1)","v":135},{"$f":"IF(rng_Emp_Filter=\"\",0,IF(ISNUMBER(SEARCH(rng_Emp_Filter,tbl_Emp[[#This Row],[Helper Key]])),tbl_Emp[[#This Row],[Helper 1]],\"\"))","v":0},{"$f":"IFERROR(SMALL(tbl_Emp[Helper 2],tbl_Emp[[#This Row],[Helper 1]]),\"\")","v":0},{"$f":"IF(OR(tbl_Emp[[#This Row],[Helper 2]]<>\"\",tbl_Emp[[#This Row],[Helper 3]]<>\"\"),1,0)","v":1},{"$f":"IF(rng_Emp_Filter=\"\",0,IF(tbl_Emp[[#This Row],[Helper 2]]<>\"\",1,0))","v":0},{"$f":"IF(rng_Emp_Filter=\"\",tbl_Emp[[#This Row],[Helper 1]],INDEX(tbl_Emp[Helper 3],tbl_Emp[[#This Row],[Helper 1]]))","v":135},{"$f":"IFERROR(INDEX(tbl_Emp[Turn OFF Controls],tbl_Emp[[#This Row],[Link]]),\"\")","v":"DIVUS CLAUDIUS II"}]
["QUINTILLUS",270,270,270,13,13600,{"$f":"tbl_Emp[[#This Row],[Turn OFF Controls]]","v":"QUINTILLUS"},{"$f":"IF(ISTEXT(OFFSET(tbl_Emp[[#This Row],[Helper 1]],-1,0)),1,OFFSET(tbl_Emp[[#This Row],[Helper 1]],-1,0)+1)","v":136},{"$f":"IF(rng_Emp_Filter=\"\",0,IF(ISNUMBER(SEARCH(rng_Emp_Filter,tbl_Emp[[#This Row],[Helper Key]])),tbl_Emp[[#This Row],[Helper 1]],\"\"))","v":0},{"$f":"IFERROR(SMALL(tbl_Emp[Helper 2],tbl_Emp[[#This Row],[Helper 1]]),\"\")","v":0},{"$f":"IF(OR(tbl_Emp[[#This Row],[Helper 2]]<>\"\",tbl_Emp[[#This Row],[Helper 3]]<>\"\"),1,0)","v":1},{"$f":"IF(rng_Emp_Filter=\"\",0,IF(tbl_Emp[[#This Row],[Helper 2]]<>\"\",1,0))","v":0},{"$f":"IF(rng_Emp_Filter=\"\",tbl_Emp[[#This Row],[Helper 1]],INDEX(tbl_Emp[Helper 3],tbl_Emp[[#This Row],[Helper 1]]))","v":136},{"$f":"IFERROR(INDEX(tbl_Emp[Turn OFF Controls],tbl_Emp[[#This Row],[Link]]),\"\")","v":"QUINTILLUS"}]
["AURELIAN","270-275",270,275,13,13700,{"$f":"tbl_Emp[[#This Row],[Turn OFF Controls]]","v":"AURELIAN"},{"$f":"IF(ISTEXT(OFFSET(tbl_Emp[[#This Row],[Helper 1]],-1,0)),1,OFFSET(tbl_Emp[[#This Row],[Helper 1]],-1,0)+1)","v":137},{"$f":"IF(rng_Emp_Filter=\"\",0,IF(ISNUMBER(SEARCH(rng_Emp_Filter,tbl_Emp[[#This Row],[Helper Key]])),tbl_Emp[[#This Row],[Helper 1]],\"\"))","v":0},{"$f":"IFERROR(SMALL(tbl_Emp[Helper 2],tbl_Emp[[#This Row],[Helper 1]]),\"\")","v":0},{"$f":"IF(OR(tbl_Emp[[#This Row],[Helper 2]]<>\"\",tbl_Emp[[#This Row],[Helper 3]]<>\"\"),1,0)","v":1},{"$f":"IF(rng_Emp_Filter=\"\",0,IF(tbl_Emp[[#This Row],[Helper 2]]<>\"\",1,0))","v":0},{"$f":"IF(rng_Emp_Filter=\"\",tbl_Emp[[#This Row],[Helper 1]],INDEX(tbl_Emp[Helper 3],tbl_Emp[[#This Row],[Helper 1]]))","v":137},{"$f":"IFERROR(INDEX(tbl_Emp[Turn OFF Controls],tbl_Emp[[#This Row],[Link]]),\"\")","v":"AURELIAN"}]
["SEVERINA","270-275",270,275,13,13800,{"$f":"tbl_Emp[[#This Row],[Turn OFF Controls]]","v":"SEVERINA"},{"$f":"IF(ISTEXT(OFFSET(tbl_Emp[[#This Row],[Helper 1]],-1,0)),1,OFFSET(tbl_Emp[[#This Row],[Helper 1]],-1,0)+1)","v":138},{"$f":"IF(rng_Emp_Filter=\"\",0,IF(ISNUMBER(SEARCH(rng_Emp_Filter,tbl_Emp[[#This Row],[Helper Key]])),tbl_Emp[[#This Row],[Helper 1]],\"\"))","v":0},{"$f":"IFERROR(SMALL(tbl_Emp[Helper 2],tbl_Emp[[#This Row],[Helper 1]]),\"\")","v":0},{"$f":"IF(OR(tbl_Emp[[#This Row],[Helper 2]]<>\"\",tbl_Emp[[#This Row],[Helper 3]]<>\"\"),1,0)","v":1},{"$f":"IF(rng_Emp_Filter=\"\",0,IF(tbl_Emp[[#This Row],[Helper 2]]<>\"\",1,0))","v":0},{"$f":"IF(rng_Emp_Filter=\"\",tbl_Emp[[#This Row],[Helper 1]],INDEX(tbl_Emp[Helper 3],tbl_Emp[[#This Row],[Helper 1]]))","v":138},{"$f":"IFERROR(INDEX(tbl_Emp[Turn OFF Controls],tbl_Emp[[#This Row],[Link]]),\"\")","v":"SEVERINA"}]
["VABALATHUS","270-271",270,271,13,13900,{"$f":"tbl_Emp[[#This Row],[Turn OFF Controls]]","v":"VABALATHUS"},{"$f":"IF(ISTEXT(OFFSET(tbl_Emp[[#This Row],[Helper 1]],-1,0)),1,OFFSET(tbl_Emp[[#This Row],[Helper 1]],-1,0)+1)","v":139},{"$f":"IF(rng_Emp_Filter=\"\",0,IF(ISNUMBER(SEARCH(rng_Emp_Filter,tbl_Emp[[#This Row],[Helper Key]])),tbl_Emp[[#This Row],[Helper 1]],\"\"))","v":0},{"$f":"IFERROR(SMALL(tbl_Emp[Helper 2],tbl_Emp[[#This Row],[Helper 1]]),\"\")","v":0},{"$f":"IF(OR(tbl_Emp[[#This Row],[Helper 2]]<>\"\",tbl_Emp[[#This Row],[Helper 3]]<>\"\"),1,0)","v":1},{"$f":"IF(rng_Emp_Filter=\"\",0,IF(tbl_Emp[[#This Row],[Helper 2]]<>\"\",1,0))","v":0},{"$f":"IF(rng_Emp_Filter=\"\",tbl_Emp[[#This Row],[Helper 1]],INDEX(tbl_Emp[Helper 3],tbl_Emp[[#This Row],[Helper 1]]))","v":139},{"$f":"IFERROR(INDEX(tbl_Emp[Turn OFF Controls],tbl_Emp[[#This Row],[Link]]),\"\")","v":"VABALATHUS"}]
["ZENOBIA","270-271",270,271,13,14000,{"$f":"tbl_Emp[[#This Row],[Turn OFF Controls]]","v":"ZENOBIA"},{"$f":"IF(ISTEXT(OFFSET(tbl_Emp[[#This Row],[Helper 1]],-1,0)),1,OFFSET(tbl_Emp[[#This Row],[Helper 1]],-1,0)+1)","v":140},{"$f":"IF(rng_Emp_Filter=\"\",0,IF(ISNUMBER(SEARCH(rng_Emp_Filter,tbl_Emp[[#This Row],[Helper Key]])),tbl_Emp[[#This Row],[Helper 1]],\"\"))","v":0},{"$f":"IFERROR(SMALL(tbl_Emp[Helper 2],tbl_Emp[[#This Row],[Helper 1]]),\"\")","v":0},{"$f":"IF(OR(tbl_Emp[[#This Row],[Helper 2]]<>\"\",tbl_Emp[[#This Row],[Helper 3]]<>\"\"),1,0)","v":1},{"$f":"IF(rng_Emp_Filter=\"\",0,IF(tbl_Emp[[#This Row],[Helper 2]]<>\"\",1,0))","v":0},{"$f":"IF(rng_Emp_Filter=\"\",tbl_Emp[[#This Row],[Helper 1]],INDEX(tbl_Emp[Helper 3],tbl_Emp[[#This Row],[Helper 1]]))","v":140},{"$f":"IFERROR(INDEX(tbl_Emp[Turn OFF Controls],tbl_Emp[[#This Row],[Link]]),\"\")","v":"ZENOBIA"}]
["POSTUMUS","260-269",260,269,13,14100,{"$f":"tbl_Emp[[#This Row],[Turn OFF Controls]]","v":"POSTUMUS"},{"$f":"IF(ISTEXT(OFFSET(tbl_Emp[[#This Row],[Helper 1]],-1,0)),1,OFFSET(tbl_Emp[[#This Row],[Helper 1]],-1,0)+1)","v":141},{"$f":"IF(rng_Emp_Filter=\"\",0,IF(ISNUMBER(SEARCH(rng_Emp_Filter,tbl_Emp[[#This Row],[Helper Key]])),tbl_Emp[[#This Row],[Helper 1]],\"\"))","v":0},{"$f":"IFERROR(SMALL(tbl_Emp[Helper 2],tbl_Emp[[#This Row],[Helper 1]]),\"\")","v":0},{"$f":"IF(OR(tbl_Emp[[#This Row],[Helper 2]]<>\"\",tbl_Emp[[#This Row],[Helper 3]]<>\"\"),1,0)","v":1},{"$f":"IF(rng_Emp_Filter=\"\",0,IF(tbl_Emp[[#This Row],[Helper 2]]<>\"\",1,0))","v":0},{"$f":"IF(rng_Emp_Filter=\"\",tbl_Emp[[#This Row],[Helper 1]],INDEX(tbl_Emp[Helper 3],tbl_Emp[[#This Row],[Helper 1]]))","v":141},{"$f":"IFERROR(INDEX(tbl_Emp[Turn OFF Controls],tbl_Emp[[#This Row],[Link]]),\"\")","v":"POSTUMUS"}]
["LAELIANUS",269,269,269,13,14200,{"$f":"tbl_Emp[[#This Row],[Turn OFF Controls]]","v":"LAELIANUS"},{"$f":"IF(ISTEXT(OFFSET(tbl_Emp[[#This Row],[Helper 1]],-1,0)),1,OFFSET(tbl_Emp[[#This Row],[Helper 1]],-1,0)+1)","v":142},{"$f":"IF(rng_Emp_Filter=\"\",0,IF(ISNUMBER(SEARCH(rng_Emp_Filter,tbl_Emp[[#This Row],[Helper Key]])),tbl_Emp[[#This Row],[Helper 1]],\"\"))","v":0},{"$f":"IFERROR(SMALL(tbl_Emp[Helper 2],tbl_Emp[[#This Row],[Helper 1]]),\"\")","v":0},{"$f":"IF(OR(tbl_Emp[[#This Row],[Helper 2]]<>\"\",tbl_Emp[[#This Row],[Helper 3]]<>\"\"),1,0)","v":1},{"$f":"IF(rng_Emp_Filter=\"\",0,IF(tbl_Emp[[#This Row],[Helper 2]]<>\"\",1,0))","v":0},{"$f":"IF(rng_Emp_Filter=\"\",tbl_Emp[[#This Row],[Helper 1]],INDEX(tbl_Emp[Helper 3],tbl_Emp[[#This Row],[Helper 1]]))","v":142},{"$f":"IFERROR(INDEX(tbl_Emp[Turn OFF Controls],tbl_Emp[[#This Row],[Link]]),\"\")","v":"LAELIANUS"}]
["MARIUS",269,269,269,13,14300,{"$f":"tbl_Emp[[#This Row],[Turn OFF Controls]]","v":"MARIUS"},{"$f":"IF(ISTEXT(OFFSET(tbl_Emp[[#This Row],[Helper 1]],-1,0)),1,OFFSET(tbl_Emp[[#This Row],[Helper 1]],-1,0)+1)","v":143},{"$f":"IF(rng_Emp_Filter=\"\",0,IF(ISNUMBER(SEARCH(rng_Emp_Filter,tbl_Emp[[#This Row],[Helper Key]])),tbl_Emp[[#This Row],[Helper 1]],\"\"))","v":0},{"$f":"IFERROR(SMALL(tbl_Emp[Helper 2],tbl_Emp[[#This Row],[Helper 1]]),\"\")","v":0},{"$f":"IF(OR(tbl_Emp[[#This Row],[Helper 2]]<>\"\",tbl_Emp[[#This Row],[Helper 3]]<>\"\"),1,0)","v":1},{"$f":"IF(rng_Emp_Filter=\"\",0,IF(tbl_Emp[[#This Row],[Helper 2]]<>\"\",1,0))","v":0},{"$f":"IF(rng_Emp_Filter=\"\",tbl_Emp[[#This Row],[Helper 1]],INDEX(tbl_Emp[Helper 3],tbl_Emp[[#This Row],[Helper 1]]))","v":143},{"$f":"IFERROR(INDEX(tbl_Emp[Turn OFF Controls],tbl_Emp[[#This Row],[Link]]),\"\")","v":"MARIUS"}]
["VICTORINUS","269-271",269,271,13,14400,{"$f":"tbl_Emp[[#This Row],[Turn OFF Controls]]","v":"VICTORINUS"},{"$f":"IF(ISTEXT(OFFSET(tbl_Emp[[#This Row],[Helper 1]],-1,0)),1,OFFSET(tbl_Emp[[#This Row],[Helper 1]],-1,0)+1)","v":144},{"$f":"IF(rng_Emp_Filter=\"\",0,IF(ISNUMBER(SEARCH(rng_Emp_Filter,tbl_Emp[[#This Row],[Helper Key]])),tbl_Emp[[#This Row],[Helper 1]],\"\"))","v":0},{"$f":"IFERROR(SMALL(tbl_Emp[Helper 2],tbl_Emp[[#This Row],[Helper 1]]),\"\")","v":0},{"$f":"IF(OR(tbl_Emp[[#This Row],[Helper 2]]<>\"\",tbl_Emp[[#This Row],[Helper 3]]<>\"\"),1,0)","v":1},{"$f":"IF(rng_Emp_Filter=\"\",0,IF(tbl_Emp[[#This Row],[Helper 2]]<>\"\",1,0))","v":0},{"$f":"IF(rng_Emp_Filter=\"\",tbl_Emp[[#This Row],[Helper 1]],INDEX(tbl_Emp[Helper 3],tbl_Emp[[#This Row],[Helper 1]]))","v":144},{"$f":"IFERROR(INDEX(tbl_Emp[Turn OFF Controls],tbl_Emp[[#This Row],[Link]]),\"\")","v":"VICTORINUS"}]
["DIVUS VICTORINUS",271,271,271,13,14500,{"$f":"tbl_Emp[[#This Row],[Turn OFF Controls]]","v":"DIVUS VICTORINUS"},{"$f":"IF(ISTEXT(OFFSET(tbl_Emp[[#This Row],[Helper 1]],-1,0)),1,OFFSET(tbl_Emp[[#This Row],[Helper 1]],-1,0)+1)","v":145},{"$f":"IF(rng_Emp_Filter=\"\",0,IF(ISNUMBER(SEARCH(rng_Emp_Filter,tbl_Emp[[#This Row],[Helper Key]])),tbl_Emp[[#This Row],[Helper 1]],\"\"))","v":0},{"$f":"IFERROR(SMALL(tbl_Emp[Helper 2],tbl_Emp[[#This Row],[Helper 1]]),\"\")","v":0},{"$f":"IF(OR(tbl_Emp[[#This Row],[Helper 2]]<>\"\",tbl_Emp[[#This Row],[Helper 3]]<>\"\"),1,0)","v":1},{"$f":"IF(rng_Emp_Filter=\"\",0,IF(tbl_Emp[[#This Row],[Helper 2]]<>\"\",1,0))","v":0},{"$f":"IF(rng_Emp_Filter=\"\",tbl_Emp[[#This Row],[Helper 1]],INDEX(tbl_Emp[Helper 3],tbl_Emp[[#This Row],[Helper 1]]))","v":145},{"$f":"IFERROR(INDEX(tbl_Emp[Turn OFF Controls],tbl_Emp[[#This Row],[Link]]),\"\")","v":"DIVUS VICTORINUS"}]
["TETRICUS I","271-274",271,274,13,14600,{"$f":"tbl_Emp[[#This Row],[Turn OFF Controls]]","v":"TETRICUS I"},{"$f":"IF(ISTEXT(OFFSET(tbl_Emp[[#This Row],[Helper 1]],-1,0)),1,OFFSET(tbl_Emp[[#This Row],[Helper 1]],-1,0)+1)","v":146},{"$f":"IF(rng_Emp_Filter=\"\",0,IF(ISNUMBER(SEARCH(rng_Emp_Filter,tbl_Emp[[#This Row],[Helper Key]])),tbl_Emp[[#This Row],[Helper 1]],\"\"))","v":0},{"$f":"IFERROR(SMALL(tbl_Emp[Helper 2],tbl_Emp[[#This Row],[Helper 1]]),\"\")","v":0},{"$f":"IF(OR(tbl_Emp[[#This Row],[Helper 2]]<>\"\",tbl_Emp[[#This Row],[Helper 3]]<>\"\"),1,0)","v":1},{"$f":"IF(rng_Emp_Filter=\"\",0,IF(tbl_Emp[[#This Row],[Helper 2]]<>\"\",1,0))","v":0},{"$f":"IF(rng_Emp_Filter=\"\",tbl_Emp[[#This Row],[Helper 1]],INDEX(tbl_Emp[Helper 3],tbl_Emp[[#This Row],[Helper 1]]))","v":146},{"$f":"IFERROR(INDEX(tbl_Emp[Turn OFF Controls],tbl_Emp[[#This Row],[Link]]),\"\")","v":"TETRICUS I"}]
["TETRICUS II","273-274",273,274,13,14700,{"$f":"tbl_Emp[[#This Row],[Turn OFF Controls]]","v":"TETRICUS II"},{"$f":"IF(ISTEXT(OFFSET(tbl_Emp[[#This Row],[Helper 1]],-1,0)),1,OFFSET(tbl_Emp[[#This Row],[Helper 1]],-1,0)+1)","v":147},{"$f":"IF(rng_Emp_Filter=\"\",0,IF(ISNUMBER(SEARCH(rng_Emp_Filter,tbl_Emp[[#This Row],[Helper Key]])),tbl_Emp[[#This Row],[Helper 1]],\"\"))","v":0},{"$f":"IFERROR(SMALL(tbl_Emp[Helper 2],tbl_Emp[[#This Row],[Helper 1]]),\"\")","v":0},{"$f":"IF(OR(tbl_Emp[[#This Row],[Helper 2]]<>\"\",tbl_Emp[[#This Row],[Helper 3]]<>\"\"),1,0)","v":1},{"$f":"IF(rng_Emp_Filter=\"\",0,IF(tbl_Emp[[#This Row],[Helper 2]]<>\"\",1,0))","v":0},{"$f":"IF(rng_Emp_Filter=\"\",tbl_Emp[[#This Row],[Helper 1]],INDEX(tbl_Emp[Helper 3],tbl_Emp[[#This Row],[Helper 1]]))","v":147},{"$f":"IFERROR(INDEX(tbl_Emp[Turn OFF Controls],tbl_Emp[[#This Row],[Link]]),\"\")","v":"TETRICUS II"}]
["TETRICUS I/II","271-274",271,274,13,14800,{"$f":"tbl_Emp[[#This Row],[Turn OFF Controls]]","v":"TETRICUS I/II"},{"$f":"IF(ISTEXT(OFFSET(tbl_Emp[[#This Row],[Helper 1]],-1,0)),1,OFFSET(tbl_Emp[[#This Row],[Helper 1]],-1,0)+1)","v":148},{"$f":"IF(rng_Emp_Filter=\"\",0,IF(ISNUMBER(SEARCH(rng_Emp_Filter,tbl_Emp[[#This Row],[Helper Key]])),tbl_Emp[[#This Row],[Helper 1]],\"\"))","v":0},{"$f":"IFERROR(SMALL(tbl_Emp[Helper 2],tbl_Emp[[#This Row],[Helper 1]]),\"\")","v":0},{"$f":"IF(OR(tbl_Emp[[#This Row],[Helper 2]]<>\"\",tbl_Emp[[#This Row],[Helper 3]]<>\"\"),1,0)","v":1},{"$f":"IF(rng_Emp_Filter=\"\",0,IF(tbl_Emp[[#This Row],[Helper 2]]<>\"\",1,0))","v":0},{"$f":"IF(rng_Emp_Filter=\"\",tbl_Emp[[#This Row],[Helper 1]],INDEX(tbl_Emp[Helper 3],tbl_Emp[[#This Row],[Helper 1]]))","v":148},{"$f":"IFERROR(INDEX(tbl_Emp[Turn OFF Controls],tbl_Emp[[#This Row],[Link]]),\"\")","v":"TETRICUS I/II"}]
["TACITUS","275-276",275,276,14,14900,{"$f":"tbl_Emp[[#This Row],[Turn OFF Controls]]","v":"TACITUS"},{"$f":"IF(ISTEXT(OFFSET(tbl_Emp[[#This Row],[Helper 1]],-1,0)),1,OFFSET(tbl_Emp[[#This Row],[Helper 1]],-1,0)+1)","v":149},{"$f":"IF(rng_Emp_Filter=\"\",0,IF(ISNUMBER(SEARCH(rng_Emp_Filter,tbl_Emp[[#This Row],[Helper Key]])),tbl_Emp[[#This Row],[Helper 1]],\"\"))","v":0},{"$f":"IFERROR(SMALL(tbl_Emp[Helper 2],tbl_Emp[[#This Row],[Helper 1]]),\"\")","v":0},{"$f":"IF(OR(tbl_Emp[[#This Row],[Helper 2]]<>\"\",tbl_Emp[[#This Row],[Helper 3]]<>\"\"),1,0)","v":1},{"$f":"IF(rng_Emp_Filter=\"\",0,IF(tbl_Emp[[#This Row],[Helper 2]]<>\"\",1,0))","v":0},{"$f":"IF(rng_Emp_Filter=\"\",tbl_Emp[[#This Row],[Helper 1]],INDEX(tbl_Emp[Helper 3],tbl_Emp[[#This Row],[Helper 1]]))","v":149},{"$f":"IFERROR(INDEX(tbl_Emp[Turn OFF Controls],tbl_Emp[[#This Row],[Link]]),\"\")","v":"TACITUS"}]
["FLORIAN",276,276,276,14,15000,{"$f":"tbl_Emp[[#This Row],[Turn OFF Controls]]","v":"FLORIAN"},{"$f":"IF(ISTEXT(OFFSET(tbl_Emp[[#This Row],[Helper 1]],-1,0)),1,OFFSET(tbl_Emp[[#This Row],[Helper 1]],-1,0)+1)","v":150},{"$f":"IF(rng_Emp_Filter=\"\",0,IF(ISNUMBER(SEARCH(rng_Emp_Filter,tbl_Emp[[#This Row],[Helper Key]])),tbl_Emp[[#This Row],[Helper 1]],\"\"))","v":0},{"$f":"IFERROR(SMALL(tbl_Emp[Helper 2],tbl_Emp[[#This Row],[Helper 1]]),\"\")","v":0},{"$f":"IF(OR(tbl_Emp[[#This Row],[Helper 2]]<>\"\",tbl_Emp[[#This Row],[Helper 3]]<>\"\"),1,0)","v":1},{"$f":"IF(rng_Emp_Filter=\"\",0,IF(tbl_Emp[[#This Row],[Helper 2]]<>\"\",1,0))","v":0},{"$f":"IF(rng_Emp_Filter=\"\",tbl_Emp[[#This Row],[Helper 1]],INDEX(tbl_Emp[Helper 3],tbl_Emp[[#This Row],[Helper 1]]))","v":150},{"$f":"IFERROR(INDEX(tbl_Emp[Turn OFF Controls],tbl_Emp[[#This Row],[Link]]),\"\")","v":"FLORIAN"}]
["PROBUS","276-282",276,282,14,15100,{"$f":"tbl_Emp[[#This Row],[Turn OFF Controls]]","v":"PROBUS"},{"$f":"IF(ISTEXT(OFFSET(tbl_Emp[[#This Row],[Helper 1]],-1,0)),1,OFFSET(tbl_Emp[[#This Row],[Helper 1]],-1,0)+1)","v":151},{"$f":"IF(rng_Emp_Filter=\"\",0,IF(ISNUMBER(SEARCH(rng_Emp_Filter,tbl_Emp[[#This Row],[Helper Key]])),tbl_Emp[[#This Row],[Helper 1]],\"\"))","v":0},{"$f":"IFERROR(SMALL(tbl_Emp[Helper 2],tbl_Emp[[#This Row],[Helper 1]]),\"\")","v":0},{"$f":"IF(OR(tbl_Emp[[#This Row],[Helper 2]]<>\"\",tbl_Emp[[#This Row],[Helper 3]]<>\"\"),1,0)","v":1},{"$f":"IF(rng_Emp_Filter=\"\",0,IF(tbl_Emp[[#This Row],[Helper 2]]<>\"\",1,0))","v":0},{"$f":"IF(rng_Emp_Filter=\"\",tbl_Emp[[#This Row],[Helper 1]],INDEX(tbl_Emp[Helper 3],tbl_Emp[[#This Row],[Helper 1]]))","v":151},{"$f":"IFERROR(INDEX(tbl_Emp[Turn OFF Controls],tbl_Emp[[#This Row],[Link]]),\"\")","v":"PROBUS"}]
["SATURNINUS",280,280,280,14,15200,{"$f":"tbl_Emp[[#This Row],[Turn OFF Controls]]","v":"SATURNINUS"},{"$f":"IF(ISTEXT(OFFSET(tbl_Emp[[#This Row],[Helper 1]],-1,0)),1,OFFSET(tbl_Emp[[#This Row],[Helper 1]],-1,0)+1)","v":152},{"$f":"IF(rng_Emp_Filter=\"\",0,IF(ISNUMBER(SEARCH(rng_Emp_Filter,tbl_Emp[[#This Row],[Helper Key]])),tbl_Emp[[#This Row],[Helper 1]],\"\"))","v":0},{"$f":"IFERROR(SMALL(tbl_Emp[Helper 2],tbl_Emp[[#This Row],[Helper 1]]),\"\")","v":0},{"$f":"IF(OR(tbl_Emp[[#This Row],[Helper 2]]<>\"\",tbl_Emp[[#This Row],[Helper 3]]<>\"\"),1,0)","v":1},{"$f":"IF(rng_Emp_Filter=\"\",0,IF(tbl_Emp[[#This Row],[Helper 2]]<>\"\",1,0))","v":0},{"$f":"IF(rng_Emp_Filter=\"\",tbl_Emp[[#This Row],[Helper 1]],INDEX(tbl_Emp[Helper 3],tbl_Emp[[#This Row],[Helper 1]]))","v":152},{"$f":"IFERROR(INDEX(tbl_Emp[Turn OFF Controls],tbl_Emp[[#This Row],[Link]]),\"\")","v":"SATURNINUS"}]
["CARUS","282-283",282,283,14,15300,{"$f":"tbl_Emp[[#This Row],[Turn OFF Controls]]","v":"CARUS"},{"$f":"IF(ISTEXT(OFFSET(tbl_Emp[[#This Row],[Helper 1]],-1,0)),1,OFFSET(tbl_Emp[[#This Row],[Helper 1]],-1,0)+1)","v":153},{"$f":"IF(rng_Emp_Filter=\"\",0,IF(ISNUMBER(SEARCH(rng_Emp_Filter,tbl_Emp[[#This Row],[Helper Key]])),tbl_Emp[[#This Row],[Helper 1]],\"\"))","v":0},{"$f":"IFERROR(SMALL(tbl_Emp[Helper 2],tbl_Emp[[#This Row],[Helper 1]]),\"\")","v":0},{"$f":"IF(OR(tbl_Emp[[#This Row],[Helper 2]]<>\"\",tbl_Emp[[#This Row],[Helper 3]]<>\"\"),1,0)","v":1},{"$f":"IF(rng_Emp_Filter=\"\",0,IF(tbl_Emp[[#This Row],[Helper 2]]<>\"\",1,0))","v":0},{"$f":"IF(rng_Emp_Filter=\"\",tbl_Emp[[#This Row],[Helper 1]],INDEX(tbl_Emp[Helper 3],tbl_Emp[[#This Row],[Helper 1]]))","v":153},{"$f":"IFERROR(INDEX(tbl_Emp[Turn OFF Controls],tbl_Emp[[#This Row],[Link]]),\"\")","v":"CARUS"}]
["NUMERIAN Caesar (Carus)","282-283",282,283,14,15400,{"$f":"tbl_Emp[[#This Row],[Turn OFF Controls]]","v":"NUMERIAN Caesar (Carus)"},{"$f":"IF(ISTEXT(OFFSET(tbl_Emp[[#This Row],[Helper 1]],-1,0)),1,OFFSET(tbl_Emp[[#This Row],[Helper 1]],-1,0)+1)","v":154},{"$f":"IF(rng_Emp_Filter=\"\",0,IF(ISNUMBER(SEARCH(rng_Emp_Filter,tbl_Emp[[#This Row],[Helper Key]])),tbl_Emp[[#This Row],[Helper 1]],\"\"))","v":0},{"$f":"IFERROR(SMALL(tbl_Emp[Helper 2],tbl_Emp[[#This Row],[Helper 1]]),\"\")","v":0},{"$f":"IF(OR(tbl_Emp[[#This Row],[Helper 2]]<>\"\",tbl_Emp[[#This Row],[Helper 3]]<>\"\"),1,0)","v":1},{"$f":"IF(rng_Emp_Filter=\"\",0,IF(tbl_Emp[[#This Row],[Helper 2]]<>\"\",1,0))","v":0},{"$f":"IF(rng_Emp_Filter=\"\",tbl_Emp[[#This Row],[Helper 1]],INDEX(tbl_Emp[Helper 3],tbl_Emp[[#This Row],[Helper 1]]))","v":154},{"$f":"IFERROR(INDEX(tbl_Emp[Turn OFF Controls],tbl_Emp[[#This Row],[Link]]),\"\")","v":"NUMERIAN Caesar (Carus)"}]
["CARINUS Caesar (Carus)","282-283",282,283,14,15500,{"$f":"tbl_Emp[[#This Row],[Turn OFF Controls]]","v":"CARINUS Caesar (Carus)"},{"$f":"IF(ISTEXT(OFFSET(tbl_Emp[[#This Row],[Helper 1]],-1,0)),1,OFFSET(tbl_Emp[[#This Row],[Helper 1]],-1,0)+1)","v":155},{"$f":"IF(rng_Emp_Filter=\"\",0,IF(ISNUMBER(SEARCH(rng_Emp_Filter,tbl_Emp[[#This Row],[Helper Key]])),tbl_Emp[[#This Row],[Helper 1]],\"\"))","v":0},{"$f":"IFERROR(SMALL(tbl_Emp[Helper 2],tbl_Emp[[#This Row],[Helper 1]]),\"\")","v":0},{"$f":"IF(OR(tbl_Emp[[#This Row],[Helper 2]]<>\"\",tbl_Emp[[#This Row],[Helper 3]]<>\"\"),1,0)","v":1},{"$f":"IF(rng_Emp_Filter=\"\",0,IF(tbl_Emp[[#This Row],[Helper 2]]<>\"\",1,0))","v":0},{"$f":"IF(rng_Emp_Filter=\"\",tbl_Emp[[#This Row],[Helper 1]],INDEX(tbl_Emp[Helper 3],tbl_Emp[[#This Row],[Helper 1]]))","v":155},{"$f":"IFERROR(INDEX(tbl_Emp[Turn OFF Controls],tbl_Emp[[#This Row],[Link]]),\"\")","v":"CARINUS Caesar (Carus)"}]
["NUMERIAN","283-284",283,284,14,15600,{"$f":"tbl_Emp[[#This Row],[Turn OFF Controls]]","v":"NUMERIAN"},{"$f":"IF(ISTEXT(OFFSET(tbl_Emp[[#This Row],[Helper 1]],-1,0)),1,OFFSET(tbl_Emp[[#This Row],[Helper 1]],-1,0)+1)","v":156},{"$f":"IF(rng_Emp_Filter=\"\",0,IF(ISNUMBER(SEARCH(rng_Emp_Filter,tbl_Emp[[#This Row],[Helper Key]])),tbl_Emp[[#This Row],[Helper 1]],\"\"))","v":0},{"$f":"IFERROR(SMALL(tbl_Emp[Helper 2],tbl_Emp[[#This Row],[Helper 1]]),\"\")","v":0},{"$f":"IF(OR(tbl_Emp[[#This Row],[Helper 2]]<>\"\",tbl_Emp[[#This Row],[Helper 3]]<>\"\"),1,0)","v":1},{"$f":"IF(rng_Emp_Filter=\"\",0,IF(tbl_Emp[[#This Row],[Helper 2]]<>\"\",1,0))","v":0},{"$f":"IF(rng_Emp_Filter=\"\",tbl_Emp[[#This Row],[Helper 1]],INDEX(tbl_Emp[Helper 3],tbl_Emp[[#This Row],[Helper 1]]))","v":156},{"$f":"IFERROR(INDEX(tbl_Emp[Turn OFF Controls],tbl_Emp[[#This Row],[Link]]),\"\")","v":"NUMERIAN"}]
["CARINUS","283-285",283,285,14,15700,{"$f":"tbl_Emp[[#This Row],[Turn OFF Controls]]","v":"CARINUS"},{"$f":"IF(ISTEXT(OFFSET(tbl_Emp[[#This Row],[Helper 1]],-1,0)),1,OFFSET(tbl_Emp[[#This Row],[Helper 1]],-1,0)+1)","v":157},{"$f":"IF(rng_Emp_Filter=\"\",0,IF(ISNUMBER(SEARCH(rng_Emp_Filter,tbl_Emp[[#This Row],[Helper Key]])),tbl_Emp[[#This Row],[Helper 1]],\"\"))","v":0},{"$f":"IFERROR(SMALL(tbl_Emp[Helper 2],tbl_Emp[[#This Row],[Helper 1]]),\"\")","v":0},{"$f":"IF(OR(tbl_Emp[[#This Row],[Helper 2]]<>\"\",tbl_Emp[[#This Row],[Helper 3]]<>\"\"),1,0)","v":1},{"$f":"IF(rng_Emp_Filter=\"\",0,IF(tbl_Emp[[#This Row],[Helper 2]]<>\"\",1,0))","v":0},{"$f":"IF(rng_Emp_Filter=\"\",tbl_Emp[[#This Row],[Helper 1]],INDEX(tbl_Emp[Helper 3],tbl_Emp[[#This Row],[Helper 1]]))","v":157},{"$f":"IFERROR(INDEX(tbl_Emp[Turn OFF Controls],tbl_Emp[[#This Row],[Link]]),\"\")","v":"CARINUS"}]
["MAGNIA URBICA (Carinus)","283-285",283,285,14,15800,{"$f":"tbl_Emp[[#This Row],[Turn OFF Controls]]","v":"MAGNIA URBICA (Carinus)"},{"$f":"IF(ISTEXT(OFFSET(tbl_Emp[[#This Row],[Helper 1]],-1,0)),1,OFFSET(tbl_Emp[[#This Row],[Helper 1]],-1,0)+1)","v":158},{"$f":"IF(rng_Emp_Filter=\"\",0,IF(ISNUMBER(SEARCH(rng_Emp_Filter,tbl_Emp[[#This Row],[Helper Key]])),tbl_Emp[[#This Row],[Helper 1]],\"\"))","v":0},{"$f":"IFERROR(SMALL(tbl_Emp[Helper 2],tbl_Emp[[#This Row],[Helper 1]]),\"\")","v":0},{"$f":"IF(OR(tbl_Emp[[#This Row],[Helper 2]]<>\"\",tbl_Emp[[#This Row],[Helper 3]]<>\"\"),1,0)","v":1},{"$f":"IF(rng_Emp_Filter=\"\",0,IF(tbl_Emp[[#This Row],[Helper 2]]<>\"\",1,0))","v":0},{"$f":"IF(rng_Emp_Filter=\"\",tbl_Emp[[#This Row],[Helper 1]],INDEX(tbl_Emp[Helper 3],tbl_Emp[[#This Row],[Helper 1]]))","v":158},{"$f":"IFERROR(INDEX(tbl_Emp[Turn OFF Controls],tbl_Emp[[#This Row],[Link]]),\"\")","v":"MAGNIA URBICA (Carinus)"}]
["DIVUS NIGRINIAN","284-285",284,285,14,15900,{"$f":"tbl_Emp[[#This Row],[Turn OFF Controls]]","v":"DIVUS NIGRINIAN"},{"$f":"IF(ISTEXT(OFFSET(tbl_Emp[[#This Row],[Helper 1]],-1,0)),1,OFFSET(tbl_Emp[[#This Row],[Helper 1]],-1,0)+1)","v":159},{"$f":"IF(rng_Emp_Filter=\"\",0,IF(ISNUMBER(SEARCH(rng_Emp_Filter,tbl_Emp[[#This Row],[Helper Key]])),tbl_Emp[[#This Row],[Helper 1]],\"\"))","v":0},{"$f":"IFERROR(SMALL(tbl_Emp[Helper 2],tbl_Emp[[#This Row],[Helper 1]]),\"\")","v":0},{"$f":"IF(OR(tbl_Emp[[#This Row],[Helper 2]]<>\"\",tbl_Emp[[#This Row],[Helper 3]]<>\"\"),1,0)","v":1},{"$f":"IF(rng_Emp_Filter=\"\",0,IF(tbl_Emp[[#This Row],[Helper 2]]<>\"\",1,0))","v":0},{"$f":"IF(rng_Emp_Filter=\"\",tbl_Emp[[#This Row],[Helper 1]],INDEX(tbl_Emp[Helper 3],tbl_Emp[[#This Row],[Helper 1]]))","v":159},{"$f":"IFERROR(INDEX(tbl_Emp[Turn OFF Controls],tbl_Emp[[#This Row],[Link]]),\"\")","v":"DIVUS NIGRINIAN"}]
["JULIANUS","284-285",284,285,14,16000,{"$f":"tbl_Emp[[#This Row],[Turn OFF Controls]]","v":"JULIANUS"},{"$f":"IF(ISTEXT(OFFSET(tbl_Emp[[#This Row],[Helper 1]],-1,0)),1,OFFSET(tbl_Emp[[#This Row],[Helper 1]],-1,0)+1)","v":160},{"$f":"IF(rng_Emp_Filter=\"\",0,IF(ISNUMBER(SEARCH(rng_Emp_Filter,tbl_Emp[[#This Row],[Helper Key]])),tbl_Emp[[#This Row],[Helper 1]],\"\"))","v":0},{"$f":"IFERROR(SMALL(tbl_Emp[Helper 2],tbl_Emp[[#This Row],[Helper 1]]),\"\")","v":0},{"$f":"IF(OR(tbl_Emp[[#This Row],[Helper 2]]<>\"\",tbl_Emp[[#This Row],[Helper 3]]<>\"\"),1,0)","v":1},{"$f":"IF(rng_Emp_Filter=\"\",0,IF(tbl_Emp[[#This Row],[Helper 2]]<>\"\",1,0))","v":0},{"$f":"IF(rng_Emp_Filter=\"\",tbl_Emp[[#This Row],[Helper 1]],INDEX(tbl_Emp[Helper 3],tbl_Emp[[#This Row],[Helper 1]]))","v":160},{"$f":"IFERROR(INDEX(tbl_Emp[Turn OFF Controls],tbl_Emp[[#This Row],[Link]]),\"\")","v":"JULIANUS"}]
["CARAUSIUS","286-293",286,293,14,16100,{"$f":"tbl_Emp[[#This Row],[Turn OFF Controls]]","v":"CARAUSIUS"},{"$f":"IF(ISTEXT(OFFSET(tbl_Emp[[#This Row],[Helper 1]],-1,0)),1,OFFSET(tbl_Emp[[#This Row],[Helper 1]],-1,0)+1)","v":161},{"$f":"IF(rng_Emp_Filter=\"\",0,IF(ISNUMBER(SEARCH(rng_Emp_Filter,tbl_Emp[[#This Row],[Helper Key]])),tbl_Emp[[#This Row],[Helper 1]],\"\"))","v":0},{"$f":"IFERROR(SMALL(tbl_Emp[Helper 2],tbl_Emp[[#This Row],[Helper 1]]),\"\")","v":0},{"$f":"IF(OR(tbl_Emp[[#This Row],[Helper 2]]<>\"\",tbl_Emp[[#This Row],[Helper 3]]<>\"\"),1,0)","v":1},{"$f":"IF(rng_Emp_Filter=\"\",0,IF(tbl_Emp[[#This Row],[Helper 2]]<>\"\",1,0))","v":0},{"$f":"IF(rng_Emp_Filter=\"\",tbl_Emp[[#This Row],[Helper 1]],INDEX(tbl_Emp[Helper 3],tbl_Emp[[#This Row],[Helper 1]]))","v":161},{"$f":"IFERROR(INDEX(tbl_Emp[Turn OFF Controls],tbl_Emp[[#This Row],[Link]]),\"\")","v":"CARAUSIUS"}]
["ALLECTUS","293-296",293,296,14,16200,{"$f":"tbl_Emp[[#This Row],[Turn OFF Controls]]","v":"ALLECTUS"},{"$f":"IF(ISTEXT(OFFSET(tbl_Emp[[#This Row],[Helper 1]],-1,0)),1,OFFSET(tbl_Emp[[#This Row],[Helper 1]],-1,0)+1)","v":162},{"$f":"IF(rng_Emp_Filter=\"\",0,IF(ISNUMBER(SEARCH(rng_Emp_Filter,tbl_Emp[[#This Row],[Helper Key]])),tbl_Emp[[#This Row],[Helper 1]],\"\"))","v":0},{"$f":"IFERROR(SMALL(tbl_Emp[Helper 2],tbl_Emp[[#This Row],[Helper 1]]),\"\")","v":0},{"$f":"IF(OR(tbl_Emp[[#This Row],[Helper 2]]<>\"\",tbl_Emp[[#This Row],[Helper 3]]<>\"\"),1,0)","v":1},{"$f":"IF(rng_Emp_Filter=\"\",0,IF(tbl_Emp[[#This Row],[Helper 2]]<>\"\",1,0))","v":0},{"$f":"IF(rng_Emp_Filter=\"\",tbl_Emp[[#This Row],[Helper 1]],INDEX(tbl_Emp[Helper 3],tbl_Emp[[#This Row],[Helper 1]]))","v":162},{"$f":"IFERROR(INDEX(tbl_Emp[Turn OFF Controls],tbl_Emp[[#This Row],[Link]]),\"\")","v":"ALLECTUS"}]
["DOMITIUS DOMITIANUS","295-296",295,296,14,16300,{"$f":"tbl_Emp[[#This Row],[Turn OFF Controls]]","v":"DOMITIUS DOMITIANUS"},{"$f":"IF(ISTEXT(OFFSET(tbl_Emp[[#This Row],[Helper 1]],-1,0)),1,OFFSET(tbl_Emp[[#This Row],[Helper 1]],-1,0)+1)","v":163},{"$f":"IF(rng_Emp_Filter=\"\",0,IF(ISNUMBER(SEARCH(rng_Emp_Filter,tbl_Emp[[#This Row],[Helper Key]])),tbl_Emp[[#This Row],[Helper 1]],\"\"))","v":0},{"$f":"IFERROR(SMALL(tbl_Emp[Helper 2],tbl_Emp[[#This Row],[Helper 1]]),\"\")","v":0},{"$f":"IF(OR(tbl_Emp[[#This Row],[Helper 2]]<>\"\",tbl_Emp[[#This Row],[Helper 3]]<>\"\"),1,0)","v":1},{"$f":"IF(rng_Emp_Filter=\"\",0,IF(tbl_Emp[[#This Row],[Helper 2]]<>\"\",1,0))","v":0},{"$f":"IF(rng_Emp_Filter=\"\",tbl_Emp[[#This Row],[Helper 1]],INDEX(tbl_Emp[Helper 3],tbl_Emp[[#This Row],[Helper 1]]))","v":163},{"$f":"IFERROR(INDEX(tbl_Emp[Turn OFF Controls],tbl_Emp[[#This Row],[Link]]),\"\")","v":"DOMITIUS DOMITIANUS"}]
["DIOCLETIAN","284-305",284,305,"14 or 15",16400,{"$f":"tbl_Emp[[#This Row],[Turn OFF Controls]]","v":"DIOCLETIAN"},{"$f":"IF(ISTEXT(OFFSET(tbl_Emp[[#This Row],[Helper 1]],-1,0)),1,OFFSET(tbl_Emp[[#This Row],[Helper 1]],-1,0)+1)","v":164},{"$f":"IF(rng_Emp_Filter=\"\",0,IF(ISNUMBER(SEARCH(rng_Emp_Filter,tbl_Emp[[#This Row],[Helper Key]])),tbl_Emp[[#This Row],[Helper 1]],\"\"))","v":0},{"$f":"IFERROR(SMALL(tbl_Emp[Helper 2],tbl_Emp[[#This Row],[Helper 1]]),\"\")","v":0},{"$f":"IF(OR(tbl_Emp[[#This Row],[Helper 2]]<>\"\",tbl_Emp[[#This Row],[Helper 3]]<>\"\"),1,0)","v":1},{"$f":"IF(rng_Emp_Filter=\"\",0,IF(tbl_Emp[[#This Row],[Helper 2]]<>\"\",1,0))","v":0},{"$f":"IF(rng_Emp_Filter=\"\",tbl_Emp[[#This Row],[Helper 1]],INDEX(tbl_Emp[Helper 3],tbl_Emp[[#This Row],[Helper 1]]))","v":164},{"$f":"IFERROR(INDEX(tbl_Emp[Turn OFF Controls],tbl_Emp[[#This Row],[Link]]),\"\")","v":"DIOCLETIAN"}]
["MAXIMIAN","286-310",286,310,"14 or 15",16500,{"$f":"tbl_Emp[[#This Row],[Turn OFF Controls]]","v":"MAXIMIAN"},{"$f":"IF(ISTEXT(OFFSET(tbl_Emp[[#This Row],[Helper 1]],-1,0)),1,OFFSET(tbl_Emp[[#This Row],[Helper 1]],-1,0)+1)","v":165},{"$f":"IF(rng_Emp_Filter=\"\",0,IF(ISNUMBER(SEARCH(rng_Emp_Filter,tbl_Emp[[#This Row],[Helper Key]])),tbl_Emp[[#This Row],[Helper 1]],\"\"))","v":0},{"$f":"IFERROR(SMALL(tbl_Emp[Helper 2],tbl_Emp[[#This Row],[Helper 1]]),\"\")","v":0},{"$f":"IF(OR(tbl_Emp[[#This Row],[Helper 2]]<>\"\",tbl_Emp[[#This Row],[Helper 3]]<>\"\"),1,0)","v":1},{"$f":"IF(rng_Emp_Filter=\"\",0,IF(tbl_Emp[[#This Row],[Helper 2]]<>\"\",1,0))","v":0},{"$f":"IF(rng_Emp_Filter=\"\",tbl_Emp[[#This Row],[Helper 1]],INDEX(tbl_Emp[Helper 3],tbl_Emp[[#This Row],[Helper 1]]))","v":165},{"$f":"IFERROR(INDEX(tbl_Emp[Turn OFF Controls],tbl_Emp[[#This Row],[Link]]),\"\")","v":"MAXIMIAN"}]
["GALERIUS Caesar","293-305",293,305,15,16600,{"$f":"tbl_Emp[[#This Row],[Turn OFF Controls]]","v":"GALERIUS Caesar"},{"$f":"IF(ISTEXT(OFFSET(tbl_Emp[[#This Row],[Helper 1]],-1,0)),1,OFFSET(tbl_Emp[[#This Row],[Helper 1]],-1,0)+1)","v":166},{"$f":"IF(rng_Emp_Filter=\"\",0,IF(ISNUMBER(SEARCH(rng_Emp_Filter,tbl_Emp[[#This Row],[Helper Key]])),tbl_Emp[[#This Row],[Helper 1]],\"\"))","v":0},{"$f":"IFERROR(SMALL(tbl_Emp[Helper 2],tbl_Emp[[#This Row],[Helper 1]]),\"\")","v":0},{"$f":"IF(OR(tbl_Emp[[#This Row],[Helper 2]]<>\"\",tbl_Emp[[#This Row],[Helper 3]]<>\"\"),1,0)","v":1},{"$f":"IF(rng_Emp_Filter=\"\",0,IF(tbl_Emp[[#This Row],[Helper 2]]<>\"\",1,0))","v":0},{"$f":"IF(rng_Emp_Filter=\"\",tbl_Emp[[#This Row],[Helper 1]],INDEX(tbl_Emp[Helper 3],tbl_Emp[[#This Row],[Helper 1]]))","v":166},{"$f":"IFERROR(INDEX(tbl_Emp[Turn OFF Controls],tbl_Emp[[#This Row],[Link]]),\"\")","v":"GALERIUS Caesar"}]
["CONSTANTIUS I Caesar","293-305",293,305,15,16700,{"$f":"tbl_Emp[[#This Row],[Turn OFF Controls]]","v":"CONSTANTIUS I Caesar"},{"$f":"IF(ISTEXT(OFFSET(tbl_Emp[[#This Row],[Helper 1]],-1,0)),1,OFFSET(tbl_Emp[[#This Row],[Helper 1]],-1,0)+1)","v":167},{"$f":"IF(rng_Emp_Filter=\"\",0,IF(ISNUMBER(SEARCH(rng_Emp_Filter,tbl_Emp[[#This Row],[Helper Key]])),tbl_Emp[[#This Row],[Helper 1]],\"\"))","v":0},{"$f":"IFERROR(SMALL(tbl_Emp[Helper 2],tbl_Emp[[#This Row],[Helper 1]]),\"\")","v":0},{"$f":"IF(OR(tbl_Emp[[#This Row],[Helper 2]]<>\"\",tbl_Emp[[#This Row],[Helper 3]]<>\"\"),1,0)","v":1},{"$f":"IF(rng_Emp_Filter=\"\",0,IF(tbl_Emp[[#This Row],[Helper 2]]<>\"\",1,0))","v":0},{"$f":"IF(rng_Emp_Filter=\"\",tbl_Emp[[#This Row],[Helper 1]],INDEX(tbl_Emp[Helper 3],tbl_Emp[[#This Row],[Helper 1]]))","v":167},{"$f":"IFERROR(INDEX(tbl_Emp[Turn OFF Controls],tbl_Emp[[#This Row],[Link]]),\"\")","v":"CONSTANTIUS I Caesar"}]
["CONSTANTIUS I","305-306",305,306,15,16800,{"$f":"tbl_Emp[[#This Row],[Turn OFF Controls]]","v":"CONSTANTIUS I"},{"$f":"IF(ISTEXT(OFFSET(tbl_Emp[[#This Row],[Helper 1]],-1,0)),1,OFFSET(tbl_Emp[[#This Row],[Helper 1]],-1,0)+1)","v":168},{"$f":"IF(rng_Emp_Filter=\"\",0,IF(ISNUMBER(SEARCH(rng_Emp_Filter,tbl_Emp[[#This Row],[Helper Key]])),tbl_Emp[[#This Row],[Helper 1]],\"\"))","v":0},{"$f":"IFERROR(SMALL(tbl_Emp[Helper 2],tbl_Emp[[#This Row],[Helper 1]]),\"\")","v":0},{"$f":"IF(OR(tbl_Emp[[#This Row],[Helper 2]]<>\"\",tbl_Emp[[#This Row],[Helper 3]]<>\"\"),1,0)","v":1},{"$f":"IF(rng_Emp_Filter=\"\",0,IF(tbl_Emp[[#This Row],[Helper 2]]<>\"\",1,0))","v":0},{"$f":"IF(rng_Emp_Filter=\"\",tbl_Emp[[#This Row],[Helper 1]],INDEX(tbl_Emp[Helper 3],tbl_Emp[[#This Row],[Helper 1]]))","v":168},{"$f":"IFERROR(INDEX(tbl_Emp[Turn OFF Controls],tbl_Emp[[#This Row],[Link]]),\"\")","v":"CONSTANTIUS I"}]
["DIVUS CONSTANTIUS I","307-308",307,308,15,16900,{"$f":"tbl_Emp[[#This Row],[Turn OFF Controls]]","v":"DIVUS CONSTANTIUS I"},{"$f":"IF(ISTEXT(OFFSET(tbl_Emp[[#This Row],[Helper 1]],-1,0)),1,OFFSET(tbl_Emp[[#This Row],[Helper 1]],-1,0)+1)","v":169},{"$f":"IF(rng_Emp_Filter=\"\",0,IF(ISNUMBER(SEARCH(rng_Emp_Filter,tbl_Emp[[#This Row],[Helper Key]])),tbl_Emp[[#This Row],[Helper 1]],\"\"))","v":0},{"$f":"IFERROR(SMALL(tbl_Emp[Helper 2],tbl_Emp[[#This Row],[Helper 1]]),\"\")","v":0},{"$f":"IF(OR(tbl_Emp[[#This Row],[Helper 2]]<>\"\",tbl_Emp[[#This Row],[Helper 3]]<>\"\"),1,0)","v":1},{"$f":"IF(rng_Emp_Filter=\"\",0,IF(tbl_Emp[[#This Row],[Helper 2]]<>\"\",1,0))","v":0},{"$f":"IF(rng_Emp_Filter=\"\",tbl_Emp[[#This Row],[Helper 1]],INDEX(tbl_Emp[Helper 3],tbl_Emp[[#This Row],[Helper 1]]))","v":169},{"$f":"IFERROR(INDEX(tbl_Emp[Turn OFF Controls],tbl_Emp[[#This Row],[Link]]),\"\")","v":"DIVUS CONSTANTIUS I"}]
["SEVERUS II Caesar","305-306",305,306,15,17000,{"$f":"tbl_Emp[[#This Row],[Turn OFF Controls]]","v":"SEVERUS II Caesar"},{"$f":"IF(ISTEXT(OFFSET(tbl_Emp[[#This Row],[Helper 1]],-1,0)),1,OFFSET(tbl_Emp[[#This Row],[Helper 1]],-1,0)+1)","v":170},{"$f":"IF(rng_Emp_Filter=\"\",0,IF(ISNUMBER(SEARCH(rng_Emp_Filter,tbl_Emp[[#This Row],[Helper Key]])),tbl_Emp[[#This Row],[Helper 1]],\"\"))","v":0},{"$f":"IFERROR(SMALL(tbl_Emp[Helper 2],tbl_Emp[[#This Row],[Helper 1]]),\"\")","v":0},{"$f":"IF(OR(tbl_Emp[[#This Row],[Helper 2]]<>\"\",tbl_Emp[[#This Row],[Helper 3]]<>\"\"),1,0)","v":1},{"$f":"IF(rng_Emp_Filter=\"\",0,IF(tbl_Emp[[#This Row],[Helper 2]]<>\"\",1,0))","v":0},{"$f":"IF(rng_Emp_Filter=\"\",tbl_Emp[[#This Row],[Helper 1]],INDEX(tbl_Emp[Helper 3],tbl_Emp[[#This Row],[Helper 1]]))","v":170},{"$f":"IFERROR(INDEX(tbl_Emp[Turn OFF Controls],tbl_Emp[[#This Row],[Link]]),\"\")","v":"SEVERUS II Caesar"}]
["CONSTANTINE I Caesar","306-307",306,307,15,17100,{"$f":"tbl_Emp[[#This Row],[Turn OFF Controls]]","v":"CONSTANTINE I Caesar"},{"$f":"IF(ISTEXT(OFFSET(tbl_Emp[[#This Row],[Helper 1]],-1,0)),1,OFFSET(tbl_Emp[[#This Row],[Helper 1]],-1,0)+1)","v":171},{"$f":"IF(rng_Emp_Filter=\"\",0,IF(ISNUMBER(SEARCH(rng_Emp_Filter,tbl_Emp[[#This Row],[Helper Key]])),tbl_Emp[[#This Row],[Helper 1]],\"\"))","v":0},{"$f":"IFERROR(SMALL(tbl_Emp[Helper 2],tbl_Emp[[#This Row],[Helper 1]]),\"\")","v":0},{"$f":"IF(OR(tbl_Emp[[#This Row],[Helper 2]]<>\"\",tbl_Emp[[#This Row],[Helper 3]]<>\"\"),1,0)","v":1},{"$f":"IF(rng_Emp_Filter=\"\",0,IF(tbl_Emp[[#This Row],[Helper 2]]<>\"\",1,0))","v":0},{"$f":"IF(rng_Emp_Filter=\"\",tbl_Emp[[#This Row],[Helper 1]],INDEX(tbl_Emp[Helper 3],tbl_Emp[[#This Row],[Helper 1]]))","v":171},{"$f":"IFERROR(INDEX(tbl_Emp[Turn OFF Controls],tbl_Emp[[#This Row],[Link]]),\"\")","v":"CONSTANTINE I Caesar"}]
["GALERIUS","305-311",305,311,15,17200,{"$f":"tbl_Emp[[#This Row],[Turn OFF Controls]]","v":"GALERIUS"},{"$f":"IF(ISTEXT(OFFSET(tbl_Emp[[#This Row],[Helper 1]],-1,0)),1,OFFSET(tbl_Emp[[#This Row],[Helper 1]],-1,0)+1)","v":172},{"$f":"IF(rng_Emp_Filter=\"\",0,IF(ISNUMBER(SEARCH(rng_Emp_Filter,tbl_Emp[[#This Row],[Helper Key]])),tbl_Emp[[#This Row],[Helper 1]],\"\"))","v":0},{"$f":"IFERROR(SMALL(tbl_Emp[Helper 2],tbl_Emp[[#This Row],[Helper 1]]),\"\")","v":0},{"$f":"IF(OR(tbl_Emp[[#This Row],[Helper 2]]<>\"\",tbl_Emp[[#This Row],[Helper 3]]<>\"\"),1,0)","v":1},{"$f":"IF(rng_Emp_Filter=\"\",0,IF(tbl_Emp[[#This Row],[Helper 2]]<>\"\",1,0))","v":0},{"$f":"IF(rng_Emp_Filter=\"\",tbl_Emp[[#This Row],[Helper 1]],INDEX(tbl_Emp[Helper 3],tbl_Emp[[#This Row],[Helper 1]]))","v":172},{"$f":"IFERROR(INDEX(tbl_Emp[Turn OFF Controls],tbl_Emp[[#This Row],[Link]]),\"\")","v":"GALERIUS"}]
["GALERIA VALERIA","305-311",305,311,15,17300,{"$f":"tbl_Emp[[#This Row],[Turn OFF Controls]]","v":"GALERIA VALERIA"},{"$f":"IF(ISTEXT(OFFSET(tbl_Emp[[#This Row],[Helper 1]],-1,0)),1,OFFSET(tbl_Emp[[#This Row],[Helper 1]],-1,0)+1)","v":173},{"$f":"IF(rng_Emp_Filter=\"\",0,IF(ISNUMBER(SEARCH(rng_Emp_Filter,tbl_Emp[[#This Row],[Helper Key]])),tbl_Emp[[#This Row],[Helper 1]],\"\"))","v":0},{"$f":"IFERROR(SMALL(tbl_Emp[Helper 2],tbl_Emp[[#This Row],[Helper 1]]),\"\")","v":0},{"$f":"IF(OR(tbl_Emp[[#This Row],[Helper 2]]<>\"\",tbl_Emp[[#This Row],[Helper 3]]<>\"\"),1,0)","v":1},{"$f":"IF(rng_Emp_Filter=\"\",0,IF(tbl_Emp[[#This Row],[Helper 2]]<>\"\",1,0))","v":0},{"$f":"IF(rng_Emp_Filter=\"\",tbl_Emp[[#This Row],[Helper 1]],INDEX(tbl_Emp[Helper 3],tbl_Emp[[#This Row],[Helper 1]]))","v":173},{"$f":"IFERROR(INDEX(tbl_Emp[Turn OFF Controls],tbl_Emp[[#This Row],[Link]]),\"\")","v":"GALERIA VALERIA"}]
["MAXIMINUS II Caesar","305-310",305,310,15,17400,{"$f":"tbl_Emp[[#This Row],[Turn OFF Controls]]","v":"MAXIMINUS II Caesar"},{"$f":"IF(ISTEXT(OFFSET(tbl_Emp[[#This Row],[Helper 1]],-1,0)),1,OFFSET(tbl_Emp[[#This Row],[Helper 1]],-1,0)+1)","v":174},{"$f":"IF(rng_Emp_Filter=\"\",0,IF(ISNUMBER(SEARCH(rng_Emp_Filter,tbl_Emp[[#This Row],[Helper Key]])),tbl_Emp[[#This Row],[Helper 1]],\"\"))","v":0},{"$f":"IFERROR(SMALL(tbl_Emp[Helper 2],tbl_Emp[[#This Row],[Helper 1]]),\"\")","v":0},{"$f":"IF(OR(tbl_Emp[[#This Row],[Helper 2]]<>\"\",tbl_Emp[[#This Row],[Helper 3]]<>\"\"),1,0)","v":1},{"$f":"IF(rng_Emp_Filter=\"\",0,IF(tbl_Emp[[#This Row],[Helper 2]]<>\"\",1,0))","v":0},{"$f":"IF(rng_Emp_Filter=\"\",tbl_Emp[[#This Row],[Helper 1]],INDEX(tbl_Emp[Helper 3],tbl_Emp[[#This Row],[Helper 1]]))","v":174},{"$f":"IFERROR(INDEX(tbl_Emp[Turn OFF Controls],tbl_Emp[[#This Row],[Link]]),\"\")","v":"MAXIMINUS II Caesar"}]
["SEVERUS II","306-307",306,307,15,17500,{"$f":"tbl_Emp[[#This Row],[Turn OFF Controls]]","v":"SEVERUS II"},{"$f":"IF(ISTEXT(OFFSET(tbl_Emp[[#This Row],[Helper 1]],-1,0)),1,OFFSET(tbl_Emp[[#This Row],[Helper 1]],-1,0)+1)","v":175},{"$f":"IF(rng_Emp_Filter=\"\",0,IF(ISNUMBER(SEARCH(rng_Emp_Filter,tbl_Emp[[#This Row],[Helper Key]])),tbl_Emp[[#This Row],[Helper 1]],\"\"))","v":0},{"$f":"IFERROR(SMALL(tbl_Emp[Helper 2],tbl_Emp[[#This Row],[Helper 1]]),\"\")","v":0},{"$f":"IF(OR(tbl_Emp[[#This Row],[Helper 2]]<>\"\",tbl_Emp[[#This Row],[Helper 3]]<>\"\"),1,0)","v":1},{"$f":"IF(rng_Emp_Filter=\"\",0,IF(tbl_Emp[[#This Row],[Helper 2]]<>\"\",1,0))","v":0},{"$f":"IF(rng_Emp_Filter=\"\",tbl_Emp[[#This Row],[Helper 1]],INDEX(tbl_Emp[Helper 3],tbl_Emp[[#This Row],[Helper 1]]))","v":175},{"$f":"IFERROR(INDEX(tbl_Emp[Turn OFF Controls],tbl_Emp[[#This Row],[Link]]),\"\")","v":"SEVERUS II"}]
["MAXENTIUS","306-312",306,312,15,17600,{"$f":"tbl_Emp[[#This Row],[Turn OFF Controls]]","v":"MAXENTIUS"},{"$f":"IF(ISTEXT(OFFSET(tbl_Emp[[#This Row],[Helper 1]],-1,0)),1,OFFSET(tbl_Emp[[#This Row],[Helper 1]],-1,0)+1)","v":176},{"$f":"IF(rng_Emp_Filter=\"\",0,IF(ISNUMBER(SEARCH(rng_Emp_Filter,tbl_Emp[[#This Row],[Helper Key]])),tbl_Emp[[#This Row],[Helper 1]],\"\"))","v":0},{"$f":"IFERROR(SMALL(tbl_Emp[Helper 2],tbl_Emp[[#This Row],[Helper 1]]),\"\")","v":0},{"$f":"IF(OR(tbl_Emp[[#This Row],[Helper 2]]<>\"\",tbl_Emp[[#This Row],[Helper 3]]<>\"\"),1,0)","v":1},{"$f":"IF(rng_Emp_Filter=\"\",0,IF(tbl_Emp[[#This Row],[Helper 2]]<>\"\",1,0))","v":0},{"$f":"IF(rng_Emp_Filter=\"\",tbl_Emp[[#This Row],[Helper 1]],INDEX(tbl_Emp[Helper 3],tbl_Emp[[#This Row],[Helper 1]]))","v":176},{"$f":"IFERROR(INDEX(tbl_Emp[Turn OFF Controls],tbl_Emp[[#This Row],[Link]]),\"\")","v":"MAXENTIUS"}]
["MAXIMINUS II","310-313",310,313,15,17700,{"$f":"tbl_Emp[[#This Row],[Turn OFF Controls]]","v":"MAXIMINUS II"},{"$f":"IF(ISTEXT(OFFSET(tbl_Emp[[#This Row],[Helper 1]],-1,0)),1,OFFSET(tbl_Emp[[#This Row],[Helper 1]],-1,0)+1)","v":177},{"$f":"IF(rng_Emp_Filter=\"\",0,IF(ISNUMBER(SEARCH(rng_Emp_Filter,tbl_Emp[[#This Row],[Helper Key]])),tbl_Emp[[#This Row],[Helper 1]],\"\"))","v":0},{"$f":"IFERROR(SMALL(tbl_Emp[Helper 2],tbl_Emp[[#This Row],[Helper 1]]),\"\")","v":0},{"$f":"IF(OR(tbl_Emp[[#This Row],[Helper 2]]<>\"\",tbl_Emp[[#This Row],[Helper 3]]<>\"\"),1,0)","v":1},{"$f":"IF(rng_Emp_Filter=\"\",0,IF(tbl_Emp[[#This Row],[Helper 2]]<>\"\",1,0))","v":0},{"$f":"IF(rng_Emp_Filter=\"\",tbl_Emp[[#This Row],[Helper 1]],INDEX(tbl_Emp[Helper 3],tbl_Emp[[#This Row],[Helper 1]]))","v":177},{"$f":"IFERROR(INDEX(tbl_Emp[Turn OFF Controls],tbl_Emp[[#This Row],[Link]]),\"\")","v":"MAXIMINUS II"}]
["CONSTANTINE I","307-337",307,337,null,17800,{"$f":"tbl_Emp[[#This Row],[Turn OFF Controls]]","v":"CONSTANTINE I"},{"$f":"IF(ISTEXT(OFFSET(tbl_Emp[[#This Row],[Helper 1]],-1,0)),1,OFFSET(tbl_Emp[[#This Row],[Helper 1]],-1,0)+1)","v":178},{"$f":"IF(rng_Emp_Filter=\"\",0,IF(ISNUMBER(SEARCH(rng_Emp_Filter,tbl_Emp[[#This Row],[Helper Key]])),tbl_Emp[[#This Row],[Helper 1]],\"\"))","v":0},{"$f":"IFERROR(SMALL(tbl_Emp[Helper 2],tbl_Emp[[#This Row],[Helper 1]]),\"\")","v":0},{"$f":"IF(OR(tbl_Emp[[#This Row],[Helper 2]]<>\"\",tbl_Emp[[#This Row],[Helper 3]]<>\"\"),1,0)","v":1},{"$f":"IF(rng_Emp_Filter=\"\",0,IF(tbl_Emp[[#This Row],[Helper 2]]<>\"\",1,0))","v":0},{"$f":"IF(rng_Emp_Filter=\"\",tbl_Emp[[#This Row],[Helper 1]],INDEX(tbl_Emp[Helper 3],tbl_Emp[[#This Row],[Helper 1]]))","v":178},{"$f":"IFERROR(INDEX(tbl_Emp[Turn OFF Controls],tbl_Emp[[#This Row],[Link]]),\"\")","v":"CONSTANTINE I"}]
["LICINIUS I","308-324",308,324,null,17900,{"$f":"tbl_Emp[[#This Row],[Turn OFF Controls]]","v":"LICINIUS I"},{"$f":"IF(ISTEXT(OFFSET(tbl_Emp[[#This Row],[Helper 1]],-1,0)),1,OFFSET(tbl_Emp[[#This Row],[Helper 1]],-1,0)+1)","v":179},{"$f":"IF(rng_Emp_Filter=\"\",0,IF(ISNUMBER(SEARCH(rng_Emp_Filter,tbl_Emp[[#This Row],[Helper Key]])),tbl_Emp[[#This Row],[Helper 1]],\"\"))","v":0},{"$f":"IFERROR(SMALL(tbl_Emp[Helper 2],tbl_Emp[[#This Row],[Helper 1]]),\"\")","v":0},{"$f":"IF(OR(tbl_Emp[[#This Row],[Helper 2]]<>\"\",tbl_Emp[[#This Row],[Helper 3]]<>\"\"),1,0)","v":1},{"$f":"IF(rng_Emp_Filter=\"\",0,IF(tbl_Emp[[#This Row],[Helper 2]]<>\"\",1,0))","v":0},{"$f":"IF(rng_Emp_Filter=\"\",tbl_Emp[[#This Row],[Helper 1]],INDEX(tbl_Emp[Helper 3],tbl_Emp[[#This Row],[Helper 1]]))","v":179},{"$f":"IFERROR(INDEX(tbl_Emp[Turn OFF Controls],tbl_Emp[[#This Row],[Link]]),\"\")","v":"LICINIUS I"}]
["CONSTANTIA","313-324",313,324,null,18000,{"$f":"tbl_Emp[[#This Row],[Turn OFF Controls]]","v":"CONSTANTIA"},{"$f":"IF(ISTEXT(OFFSET(tbl_Emp[[#This Row],[Helper 1]],-1,0)),1,OFFSET(tbl_Emp[[#This Row],[Helper 1]],-1,0)+1)","v":180},{"$f":"IF(rng_Emp_Filter=\"\",0,IF(ISNUMBER(SEARCH(rng_Emp_Filter,tbl_Emp[[#This Row],[Helper Key]])),tbl_Emp[[#This Row],[Helper 1]],\"\"))","v":0},{"$f":"IFERROR(SMALL(tbl_Emp[Helper 2],tbl_Emp[[#This Row],[Helper 1]]),\"\")","v":0},{"$f":"IF(OR(tbl_Emp[[#This Row],[Helper 2]]<>\"\",tbl_Emp[[#This Row],[Helper 3]]<>\"\"),1,0)","v":1},{"$f":"IF(rng_Emp_Filter=\"\",0,IF(tbl_Emp[[#This Row],[Helper 2]]<>\"\",1,0))","v":0},{"$f":"IF(rng_Emp_Filter=\"\",tbl_Emp[[#This Row],[Helper 1]],INDEX(tbl_Emp[Helper 3],tbl_Emp[[#This Row],[Helper 1]]))","v":180},{"$f":"IFERROR(INDEX(tbl_Emp[Turn OFF Controls],tbl_Emp[[#This Row],[Link]]),\"\")","v":"CONSTANTIA"}]
["LICINIUS II Caesar","317-324",317,324,16,18100,{"$f":"tbl_Emp[[#This Row],[Turn OFF Controls]]","v":"LICINIUS II Caesar"},{"$f":"IF(ISTEXT(OFFSET(tbl_Emp[[#This Row],[Helper 1]],-1,0)),1,OFFSET(tbl_Emp[[#This Row],[Helper 1]],-1,0)+1)","v":181},{"$f":"IF(rng_Emp_Filter=\"\",0,IF(ISNUMBER(SEARCH(rng_Emp_Filter,tbl_Emp[[#This Row],[Helper Key]])),tbl_Emp[[#This Row],[Helper 1]],\"\"))","v":0},{"$f":"IFERROR(SMALL(tbl_Emp[Helper 2],tbl_Emp[[#This Row],[Helper 1]]),\"\")","v":0},{"$f":"IF(OR(tbl_Emp[[#This Row],[Helper 2]]<>\"\",tbl_Emp[[#This Row],[Helper 3]]<>\"\"),1,0)","v":1},{"$f":"IF(rng_Emp_Filter=\"\",0,IF(tbl_Emp[[#This Row],[Helper 2]]<>\"\",1,0))","v":0},{"$f":"IF(rng_Emp_Filter=\"\",tbl_Emp[[#This Row],[Helper 1]],INDEX(tbl_Emp[Helper 3],tbl_Emp[[#This Row],[Helper 1]]))","v":181},{"$f":"IFERROR(INDEX(tbl_Emp[Turn OFF Controls],tbl_Emp[[#This Row],[Link]]),\"\")","v":"LICINIUS II Caesar"}]
["CRISPUS Caesar","317-326",317,326,16,18200,{"$f":"tbl_Emp[[#This Row],[Turn OFF Controls]]","v":"CRISPUS Caesar"},{"$f":"IF(ISTEXT(OFFSET(tbl_Emp[[#This Row],[Helper 1]],-1,0)),1,OFFSET(tbl_Emp[[#This Row],[Helper 1]],-1,0)+1)","v":182},{"$f":"IF(rng_Emp_Filter=\"\",0,IF(ISNUMBER(SEARCH(rng_Emp_Filter,tbl_Emp[[#This Row],[Helper Key]])),tbl_Emp[[#This Row],[Helper 1]],\"\"))","v":0},{"$f":"IFERROR(SMALL(tbl_Emp[Helper 2],tbl_Emp[[#This Row],[Helper 1]]),\"\")","v":0},{"$f":"IF(OR(tbl_Emp[[#This Row],[Helper 2]]<>\"\",tbl_Emp[[#This Row],[Helper 3]]<>\"\"),1,0)","v":1},{"$f":"IF(rng_Emp_Filter=\"\",0,IF(tbl_Emp[[#This Row],[Helper 2]]<>\"\",1,0))","v":0},{"$f":"IF(rng_Emp_Filter=\"\",tbl_Emp[[#This Row],[Helper 1]],INDEX(tbl_Emp[Helper 3],tbl_Emp[[#This Row],[Helper 1]]))","v":182},{"$f":"IFERROR(INDEX(tbl_Emp[Turn OFF Controls],tbl_Emp[[#This Row],[Link]]),\"\")","v":"CRISPUS Caesar"}]
["CONSTANTINE II Caesar","317-337",317,337,null,18300,{"$f":"tbl_Emp[[#This Row],[Turn OFF Controls]]","v":"CONSTANTINE II Caesar"},{"$f":"IF(ISTEXT(OFFSET(tbl_Emp[[#This Row],[Helper 1]],-1,0)),1,OFFSET(tbl_Emp[[#This Row],[Helper 1]],-1,0)+1)","v":183},{"$f":"IF(rng_Emp_Filter=\"\",0,IF(ISNUMBER(SEARCH(rng_Emp_Filter,tbl_Emp[[#This Row],[Helper Key]])),tbl_Emp[[#This Row],[Helper 1]],\"\"))","v":0},{"$f":"IFERROR(SMALL(tbl_Emp[Helper 2],tbl_Emp[[#This Row],[Helper 1]]),\"\")","v":0},{"$f":"IF(OR(tbl_Emp[[#This Row],[Helper 2]]<>\"\",tbl_Emp[[#This Row],[Helper 3]]<>\"\"),1,0)","v":1},{"$f":"IF(rng_Emp_Filter=\"\",0,IF(tbl_Emp[[#This Row],[Helper 2]]<>\"\",1,0))","v":0},{"$f":"IF(rng_Emp_Filter=\"\",tbl_Emp[[#This Row],[Helper 1]],INDEX(tbl_Emp[Helper 3],tbl_Emp[[#This Row],[Helper 1]]))","v":183},{"$f":"IFERROR(INDEX(tbl_Emp[Turn OFF Controls],tbl_Emp[[#This Row],[Link]]),\"\")","v":"CONSTANTINE II Caesar"}]
["CONSTANTIUS II Caesar","323-337",323,337,null,18400,{"$f":"tbl_Emp[[#This Row],[Turn OFF Controls]]","v":"CONSTANTIUS II Caesar"},{"$f":"IF(ISTEXT(OFFSET(tbl_Emp[[#This Row],[Helper 1]],-1,0)),1,OFFSET(tbl_Emp[[#This Row],[Helper 1]],-1,0)+1)","v":184},{"$f":"IF(rng_Emp_Filter=\"\",0,IF(ISNUMBER(SEARCH(rng_Emp_Filter,tbl_Emp[[#This Row],[Helper Key]])),tbl_Emp[[#This Row],[Helper 1]],\"\"))","v":0},{"$f":"IFERROR(SMALL(tbl_Emp[Helper 2],tbl_Emp[[#This Row],[Helper 1]]),\"\")","v":0},{"$f":"IF(OR(tbl_Emp[[#This Row],[Helper 2]]<>\"\",tbl_Emp[[#This Row],[Helper 3]]<>\"\"),1,0)","v":1},{"$f":"IF(rng_Emp_Filter=\"\",0,IF(tbl_Emp[[#This Row],[Helper 2]]<>\"\",1,0))","v":0},{"$f":"IF(rng_Emp_Filter=\"\",tbl_Emp[[#This Row],[Helper 1]],INDEX(tbl_Emp[Helper 3],tbl_Emp[[#This Row],[Helper 1]]))","v":184},{"$f":"IFERROR(INDEX(tbl_Emp[Turn OFF Controls],tbl_Emp[[#This Row],[Link]]),\"\")","v":"CONSTANTIUS II Caesar"}]
["MARTINIAN",324,324,324,16,18500,{"$f":"tbl_Emp[[#This Row],[Turn OFF Controls]]","v":"MARTINIAN"},{"$f":"IF(ISTEXT(OFFSET(tbl_Emp[[#This Row],[Helper 1]],-1,0)),1,OFFSET(tbl_Emp[[#This Row],[Helper 1]],-1,0)+1)","v":185},{"$f":"IF(rng_Emp_Filter=\"\",0,IF(ISNUMBER(SEARCH(rng_Emp_Filter,tbl_Emp[[#This Row],[Helper Key]])),tbl_Emp[[#This Row],[Helper 1]],\"\"))","v":0},{"$f":"IFERROR(SMALL(tbl_Emp[Helper 2],tbl_Emp[[#This Row],[Helper 1]]),\"\")","v":0},{"$f":"IF(OR(tbl_Emp[[#This Row],[Helper 2]]<>\"\",tbl_Emp[[#This Row],[Helper 3]]<>\"\"),1,0)","v":1},{"$f":"IF(rng_Emp_Filter=\"\",0,IF(tbl_Emp[[#This Row],[Helper 2]]<>\"\",1,0))","v":0},{"$f":"IF(rng_Emp_Filter=\"\",tbl_Emp[[#This Row],[Helper 1]],INDEX(tbl_Emp[Helper 3],tbl_Emp[[#This Row],[Helper 1]]))","v":185},{"$f":"IFERROR(INDEX(tbl_Emp[Turn OFF Controls],tbl_Emp[[#This Row],[Link]]),\"\")","v":"MARTINIAN"}]
["FAUSTA","324-326",324,326,16,18600,{"$f":"tbl_Emp[[#This Row],[Turn OFF Controls]]","v":"FAUSTA"},{"$f":"IF(ISTEXT(OFFSET(tbl_Emp[[#This Row],[Helper 1]],-1,0)),1,OFFSET(tbl_Emp[[#This Row],[Helper 1]],-1,0)+1)","v":186},{"$f":"IF(rng_Emp_Filter=\"\",0,IF(ISNUMBER(SEARCH(rng_Emp_Filter,tbl_Emp[[#This Row],[Helper Key]])),tbl_Emp[[#This Row],[Helper 1]],\"\"))","v":0},{"$f":"IFERROR(SMALL(tbl_Emp[Helper 2],tbl_Emp[[#This Row],[Helper 1]]),\"\")","v":0},{"$f":"IF(OR(tbl_Emp[[#This Row],[Helper 2]]<>\"\",tbl_Emp[[#This Row],[Helper 3]]<>\"\"),1,0)","v":1},{"$f":"IF(rng_Emp_Filter=\"\",0,IF(tbl_Emp[[#This Row],[Helper 2]]<>\"\",1,0))","v":0},{"$f":"IF(rng_Emp_Filter=\"\",tbl_Emp[[#This Row],[Helper 1]],INDEX(tbl_Emp[Helper 3],tbl_Emp[[#This Row],[Helper 1]]))","v":186},{"$f":"IFERROR(INDEX(tbl_Emp[Turn OFF Controls],tbl_Emp[[#This Row],[Link]]),\"\")","v":"FAUSTA"}]
["HELENA","324-341",324,341,null,18700,{"$f":"tbl_Emp[[#This Row],[Turn OFF Controls]]","v":"HELENA"},{"$f":"IF(ISTEXT(OFFSET(tbl_Emp[[#This Row],[Helper 1]],-1,0)),1,OFFSET(tbl_Emp[[#This Row],[Helper 1]],-1,0)+1)","v":187},{"$f":"IF(rng_Emp_Filter=\"\",0,IF(ISNUMBER(SEARCH(rng_Emp_Filter,tbl_Emp[[#This Row],[Helper Key]])),tbl_Emp[[#This Row],[Helper 1]],\"\"))","v":0},{"$f":"IFERROR(SMALL(tbl_Emp[Helper 2],tbl_Emp[[#This Row],[Helper 1]]),\"\")","v":0},{"$f":"IF(OR(tbl_Emp[[#This Row],[Helper 2]]<>\"\",tbl_Emp[[#This Row],[Helper 3]]<>\"\"),1,0)","v":1},{"$f":"IF(rng_Emp_Filter=\"\",0,IF(tbl_Emp[[#This Row],[Helper 2]]<>\"\",1,0))","v":0},{"$f":"IF(rng_Emp_Filter=\"\",tbl_Emp[[#This Row],[Helper 1]],INDEX(tbl_Emp[Helper 3],tbl_Emp[[#This Row],[Helper 1]]))","v":187},{"$f":"IFERROR(INDEX(tbl_Emp[Turn OFF Controls],tbl_Emp[[#This Row],[Link]]),\"\")","v":"HELENA"}]
["VRBS ROMA","330-335",330,335,17,18800,{"$f":"tbl_Emp[[#This Row],[Turn OFF Controls]]","v":"VRBS ROMA"},{"$f":"IF(ISTEXT(OFFSET(tbl_Emp[[#This Row],[Helper 1]],-1,0)),1,OFFSET(tbl_Emp[[#This Row],[Helper 1]],-1,0)+1)","v":188},{"$f":"IF(rng_Emp_Filter=\"\",0,IF(ISNUMBER(SEARCH(rng_Emp_Filter,tbl_Emp[[#This Row],[Helper Key]])),tbl_Emp[[#This Row],[Helper 1]],\"\"))","v":0},{"$f":"IFERROR(SMALL(tbl_Emp[Helper 2],tbl_Emp[[#This Row],[Helper 1]]),\"\")","v":0},{"$f":"IF(OR(tbl_Emp[[#This Row],[Helper 2]]<>\"\",tbl_Emp[[#This Row],[Helper 3]]<>\"\"),1,0)","v":1},{"$f":"IF(rng_Emp_Filter=\"\",0,IF(tbl_Emp[[#This Row],[Helper 2]]<>\"\",1,0))","v":0},{"$f":"IF(rng_Emp_Filter=\"\",tbl_Emp[[#This Row],[Helper 1]],INDEX(tbl_Emp[Helper 3],tbl_Emp[[#This Row],[Helper 1]]))","v":188},{"$f":"IFERROR(INDEX(tbl_Emp[Turn OFF Controls],tbl_Emp[[#This Row],[Link]]),\"\")","v":"VRBS ROMA"}]
["CONSTANTINOPOLIS","330-335",330,335,17,18900,{"$f":"tbl_Emp[[#This Row],[Turn OFF Controls]]","v":"CONSTANTINOPOLIS"},{"$f":"IF(ISTEXT(OFFSET(tbl_Emp[[#This Row],[Helper 1]],-1,0)),1,OFFSET(tbl_Emp[[#This Row],[Helper 1]],-1,0)+1)","v":189},{"$f":"IF(rng_Emp_Filter=\"\",0,IF(ISNUMBER(SEARCH(rng_Emp_Filter,tbl_Emp[[#This Row],[Helper Key]])),tbl_Emp[[#This Row],[Helper 1]],\"\"))","v":0},{"$f":"IFERROR(SMALL(tbl_Emp[Helper 2],tbl_Emp[[#This Row],[Helper 1]]),\"\")","v":0},{"$f":"IF(OR(tbl_Emp[[#This Row],[Helper 2]]<>\"\",tbl_Emp[[#This Row],[Helper 3]]<>\"\"),1,0)","v":1},{"$f":"IF(rng_Emp_Filter=\"\",0,IF(tbl_Emp[[#This Row],[Helper 2]]<>\"\",1,0))","v":0},{"$f":"IF(rng_Emp_Filter=\"\",tbl_Emp[[#This Row],[Helper 1]],INDEX(tbl_Emp[Helper 3],tbl_Emp[[#This Row],[Helper 1]]))","v":189},{"$f":"IFERROR(INDEX(tbl_Emp[Turn OFF Controls],tbl_Emp[[#This Row],[Link]]),\"\")","v":"CONSTANTINOPOLIS"}]
["CONSTANS Caesar","333-337",333,337,17,19000,{"$f":"tbl_Emp[[#This Row],[Turn OFF Controls]]","v":"CONSTANS Caesar"},{"$f":"IF(ISTEXT(OFFSET(tbl_Emp[[#This Row],[Helper 1]],-1,0)),1,OFFSET(tbl_Emp[[#This Row],[Helper 1]],-1,0)+1)","v":190},{"$f":"IF(rng_Emp_Filter=\"\",0,IF(ISNUMBER(SEARCH(rng_Emp_Filter,tbl_Emp[[#This Row],[Helper Key]])),tbl_Emp[[#This Row],[Helper 1]],\"\"))","v":0},{"$f":"IFERROR(SMALL(tbl_Emp[Helper 2],tbl_Emp[[#This Row],[Helper 1]]),\"\")","v":0},{"$f":"IF(OR(tbl_Emp[[#This Row],[Helper 2]]<>\"\",tbl_Emp[[#This Row],[Helper 3]]<>\"\"),1,0)","v":1},{"$f":"IF(rng_Emp_Filter=\"\",0,IF(tbl_Emp[[#This Row],[Helper 2]]<>\"\",1,0))","v":0},{"$f":"IF(rng_Emp_Filter=\"\",tbl_Emp[[#This Row],[Helper 1]],INDEX(tbl_Emp[Helper 3],tbl_Emp[[#This Row],[Helper 1]]))","v":190},{"$f":"IFERROR(INDEX(tbl_Emp[Turn OFF Controls],tbl_Emp[[#This Row],[Link]]),\"\")","v":"CONSTANS Caesar"}]
["DELMATIUS Caesar","335-337",335,337,17,19100,{"$f":"tbl_Emp[[#This Row],[Turn OFF Controls]]","v":"DELMATIUS Caesar"},{"$f":"IF(ISTEXT(OFFSET(tbl_Emp[[#This Row],[Helper 1]],-1,0)),1,OFFSET(tbl_Emp[[#This Row],[Helper 1]],-1,0)+1)","v":191},{"$f":"IF(rng_Emp_Filter=\"\",0,IF(ISNUMBER(SEARCH(rng_Emp_Filter,tbl_Emp[[#This Row],[Helper Key]])),tbl_Emp[[#This Row],[Helper 1]],\"\"))","v":0},{"$f":"IFERROR(SMALL(tbl_Emp[Helper 2],tbl_Emp[[#This Row],[Helper 1]]),\"\")","v":0},{"$f":"IF(OR(tbl_Emp[[#This Row],[Helper 2]]<>\"\",tbl_Emp[[#This Row],[Helper 3]]<>\"\"),1,0)","v":1},{"$f":"IF(rng_Emp_Filter=\"\",0,IF(tbl_Emp[[#This Row],[Helper 2]]<>\"\",1,0))","v":0},{"$f":"IF(rng_Emp_Filter=\"\",tbl_Emp[[#This Row],[Helper 1]],INDEX(tbl_Emp[Helper 3],tbl_Emp[[#This Row],[Helper 1]]))","v":191},{"$f":"IFERROR(INDEX(tbl_Emp[Turn OFF Controls],tbl_Emp[[#This Row],[Link]]),\"\")","v":"DELMATIUS Caesar"}]
["HANNIBALLIAN REX","335-338",335,338,17,19200,{"$f":"tbl_Emp[[#This Row],[Turn OFF Controls]]","v":"HANNIBALLIAN REX"},{"$f":"IF(ISTEXT(OFFSET(tbl_Emp[[#This Row],[Helper 1]],-1,0)),1,OFFSET(tbl_Emp[[#This Row],[Helper 1]],-1,0)+1)","v":192},{"$f":"IF(rng_Emp_Filter=\"\",0,IF(ISNUMBER(SEARCH(rng_Emp_Filter,tbl_Emp[[#This Row],[Helper Key]])),tbl_Emp[[#This Row],[Helper 1]],\"\"))","v":0},{"$f":"IFERROR(SMALL(tbl_Emp[Helper 2],tbl_Emp[[#This Row],[Helper 1]]),\"\")","v":0},{"$f":"IF(OR(tbl_Emp[[#This Row],[Helper 2]]<>\"\",tbl_Emp[[#This Row],[Helper 3]]<>\"\"),1,0)","v":1},{"$f":"IF(rng_Emp_Filter=\"\",0,IF(tbl_Emp[[#This Row],[Helper 2]]<>\"\",1,0))","v":0},{"$f":"IF(rng_Emp_Filter=\"\",tbl_Emp[[#This Row],[Helper 1]],INDEX(tbl_Emp[Helper 3],tbl_Emp[[#This Row],[Helper 1]]))","v":192},{"$f":"IFERROR(INDEX(tbl_Emp[Turn OFF Controls],tbl_Emp[[#This Row],[Link]]),\"\")","v":"HANNIBALLIAN REX"}]
["DIVUS CONSTANTINE I","337-341",337,341,17,19300,{"$f":"tbl_Emp[[#This Row],[Turn OFF Controls]]","v":"DIVUS CONSTANTINE I"},{"$f":"IF(ISTEXT(OFFSET(tbl_Emp[[#This Row],[Helper 1]],-1,0)),1,OFFSET(tbl_Emp[[#This Row],[Helper 1]],-1,0)+1)","v":193},{"$f":"IF(rng_Emp_Filter=\"\",0,IF(ISNUMBER(SEARCH(rng_Emp_Filter,tbl_Emp[[#This Row],[Helper Key]])),tbl_Emp[[#This Row],[Helper 1]],\"\"))","v":0},{"$f":"IFERROR(SMALL(tbl_Emp[Helper 2],tbl_Emp[[#This Row],[Helper 1]]),\"\")","v":0},{"$f":"IF(OR(tbl_Emp[[#This Row],[Helper 2]]<>\"\",tbl_Emp[[#This Row],[Helper 3]]<>\"\"),1,0)","v":1},{"$f":"IF(rng_Emp_Filter=\"\",0,IF(tbl_Emp[[#This Row],[Helper 2]]<>\"\",1,0))","v":0},{"$f":"IF(rng_Emp_Filter=\"\",tbl_Emp[[#This Row],[Helper 1]],INDEX(tbl_Emp[Helper 3],tbl_Emp[[#This Row],[Helper 1]]))","v":193},{"$f":"IFERROR(INDEX(tbl_Emp[Turn OFF Controls],tbl_Emp[[#This Row],[Link]]),\"\")","v":"DIVUS CONSTANTINE I"}]
["CONSTANTINE II","337-340",337,340,17,{"$f":"F194+100","v":19400},{"$f":"tbl_Emp[[#This Row],[Turn OFF Controls]]","v":"CONSTANTINE II"},{"$f":"IF(ISTEXT(OFFSET(tbl_Emp[[#This Row],[Helper 1]],-1,0)),1,OFFSET(tbl_Emp[[#This Row],[Helper 1]],-1,0)+1)","v":194},{"$f":"IF(rng_Emp_Filter=\"\",0,IF(ISNUMBER(SEARCH(rng_Emp_Filter,tbl_Emp[[#This Row],[Helper Key]])),tbl_Emp[[#This Row],[Helper 1]],\"\"))","v":0},{"$f":"IFERROR(SMALL(tbl_Emp[Helper 2],tbl_Emp[[#This Row],[Helper 1]]),\"\")","v":0},{"$f":"IF(OR(tbl_Emp[[#This Row],[Helper 2]]<>\"\",tbl_Emp[[#This Row],[Helper 3]]<>\"\"),1,0)","v":1},{"$f":"IF(rng_Emp_Filter=\"\",0,IF(tbl_Emp[[#This Row],[Helper 2]]<>\"\",1,0))","v":0},{"$f":"IF(rng_Emp_Filter=\"\",tbl_Emp[[#This Row],[Helper 1]],INDEX(tbl_Emp[Helper 3],tbl_Emp[[#This Row],[Helper 1]]))","v":194},{"$f":"IFERROR(INDEX(tbl_Emp[Turn OFF Controls],tbl_Emp[[#This Row],[Link]]),\"\")","v":"CONSTANTINE II"}]
["THEODORA","337-341",337,341,17,19500,{"$f":"tbl_Emp[[#This Row],[Turn OFF Controls]]","v":"THEODORA"},{"$f":"IF(ISTEXT(OFFSET(tbl_Emp[[#This Row],[Helper 1]],-1,0)),1,OFFSET(tbl_Emp[[#This Row],[Helper 1]],-1,0)+1)","v":195},{"$f":"IF(rng_Emp_Filter=\"\",0,IF(ISNUMBER(SEARCH(rng_Emp_Filter,tbl_Emp[[#This Row],[Helper Key]])),tbl_Emp[[#This Row],[Helper 1]],\"\"))","v":0},{"$f":"IFERROR(SMALL(tbl_Emp[Helper 2],tbl_Emp[[#This Row],[Helper 1]]),\"\")","v":0},{"$f":"IF(OR(tbl_Emp[[#This Row],[Helper 2]]<>\"\",tbl_Emp[[#This Row],[Helper 3]]<>\"\"),1,0)","v":1},{"$f":"IF(rng_Emp_Filter=\"\",0,IF(tbl_Emp[[#This Row],[Helper 2]]<>\"\",1,0))","v":0},{"$f":"IF(rng_Emp_Filter=\"\",tbl_Emp[[#This Row],[Helper 1]],INDEX(tbl_Emp[Helper 3],tbl_Emp[[#This Row],[Helper 1]]))","v":195},{"$f":"IFERROR(INDEX(tbl_Emp[Turn OFF Controls],tbl_Emp[[#This Row],[Link]]),\"\")","v":"THEODORA"}]
["CONSTANS","337-350",337,350,null,19600,{"$f":"tbl_Emp[[#This Row],[Turn OFF Controls]]","v":"CONSTANS"},{"$f":"IF(ISTEXT(OFFSET(tbl_Emp[[#This Row],[Helper 1]],-1,0)),1,OFFSET(tbl_Emp[[#This Row],[Helper 1]],-1,0)+1)","v":196},{"$f":"IF(rng_Emp_Filter=\"\",0,IF(ISNUMBER(SEARCH(rng_Emp_Filter,tbl_Emp[[#This Row],[Helper Key]])),tbl_Emp[[#This Row],[Helper 1]],\"\"))","v":0},{"$f":"IFERROR(SMALL(tbl_Emp[Helper 2],tbl_Emp[[#This Row],[Helper 1]]),\"\")","v":0},{"$f":"IF(OR(tbl_Emp[[#This Row],[Helper 2]]<>\"\",tbl_Emp[[#This Row],[Helper 3]]<>\"\"),1,0)","v":1},{"$f":"IF(rng_Emp_Filter=\"\",0,IF(tbl_Emp[[#This Row],[Helper 2]]<>\"\",1,0))","v":0},{"$f":"IF(rng_Emp_Filter=\"\",tbl_Emp[[#This Row],[Helper 1]],INDEX(tbl_Emp[Helper 3],tbl_Emp[[#This Row],[Helper 1]]))","v":196},{"$f":"IFERROR(INDEX(tbl_Emp[Turn OFF Controls],tbl_Emp[[#This Row],[Link]]),\"\")","v":"CONSTANS"}]
["CONSTANTIUS II","337-361",337,361,null,19700,{"$f":"tbl_Emp[[#This Row],[Turn OFF Controls]]","v":"CONSTANTIUS II"},{"$f":"IF(ISTEXT(OFFSET(tbl_Emp[[#This Row],[Helper 1]],-1,0)),1,OFFSET(tbl_Emp[[#This Row],[Helper 1]],-1,0)+1)","v":197},{"$f":"IF(rng_Emp_Filter=\"\",0,IF(ISNUMBER(SEARCH(rng_Emp_Filter,tbl_Emp[[#This Row],[Helper Key]])),tbl_Emp[[#This Row],[Helper 1]],\"\"))","v":0},{"$f":"IFERROR(SMALL(tbl_Emp[Helper 2],tbl_Emp[[#This Row],[Helper 1]]),\"\")","v":0},{"$f":"IF(OR(tbl_Emp[[#This Row],[Helper 2]]<>\"\",tbl_Emp[[#This Row],[Helper 3]]<>\"\"),1,0)","v":1},{"$f":"IF(rng_Emp_Filter=\"\",0,IF(tbl_Emp[[#This Row],[Helper 2]]<>\"\",1,0))","v":0},{"$f":"IF(rng_Emp_Filter=\"\",tbl_Emp[[#This Row],[Helper 1]],INDEX(tbl_Emp[Helper 3],tbl_Emp[[#This Row],[Helper 1]]))","v":197},{"$f":"IFERROR(INDEX(tbl_Emp[Turn OFF Controls],tbl_Emp[[#This Row],[Link]]),\"\")","v":"CONSTANTIUS II"}]
["POP ROMANUS","346-348",346,348,17,19800,{"$f":"tbl_Emp[[#This Row],[Turn OFF Controls]]","v":"POP ROMANUS"},{"$f":"IF(ISTEXT(OFFSET(tbl_Emp[[#This Row],[Helper 1]],-1,0)),1,OFFSET(tbl_Emp[[#This Row],[Helper 1]],-1,0)+1)","v":198},{"$f":"IF(rng_Emp_Filter=\"\",0,IF(ISNUMBER(SEARCH(rng_Emp_Filter,tbl_Emp[[#This Row],[Helper Key]])),tbl_Emp[[#This Row],[Helper 1]],\"\"))","v":0},{"$f":"IFERROR(SMALL(tbl_Emp[Helper 2],tbl_Emp[[#This Row],[Helper 1]]),\"\")","v":0},{"$f":"IF(OR(tbl_Emp[[#This Row],[Helper 2]]<>\"\",tbl_Emp[[#This Row],[Helper 3]]<>\"\"),1,0)","v":1},{"$f":"IF(rng_Emp_Filter=\"\",0,IF(tbl_Emp[[#This Row],[Helper 2]]<>\"\",1,0))","v":0},{"$f":"IF(rng_Emp_Filter=\"\",tbl_Emp[[#This Row],[Helper 1]],INDEX(tbl_Emp[Helper 3],tbl_Emp[[#This Row],[Helper 1]]))","v":198},{"$f":"IFERROR(INDEX(tbl_Emp[Turn OFF Controls],tbl_Emp[[#This Row],[Link]]),\"\")","v":"POP ROMANUS"}]
["NEPOTIAN",350,350,350,18,19900,{"$f":"tbl_Emp[[#This Row],[Turn OFF Controls]]","v":"NEPOTIAN"},{"$f":"IF(ISTEXT(OFFSET(tbl_Emp[[#This Row],[Helper 1]],-1,0)),1,OFFSET(tbl_Emp[[#This Row],[Helper 1]],-1,0)+1)","v":199},{"$f":"IF(rng_Emp_Filter=\"\",0,IF(ISNUMBER(SEARCH(rng_Emp_Filter,tbl_Emp[[#This Row],[Helper Key]])),tbl_Emp[[#This Row],[Helper 1]],\"\"))","v":0},{"$f":"IFERROR(SMALL(tbl_Emp[Helper 2],tbl_Emp[[#This Row],[Helper 1]]),\"\")","v":0},{"$f":"IF(OR(tbl_Emp[[#This Row],[Helper 2]]<>\"\",tbl_Emp[[#This Row],[Helper 3]]<>\"\"),1,0)","v":1},{"$f":"IF(rng_Emp_Filter=\"\",0,IF(tbl_Emp[[#This Row],[Helper 2]]<>\"\",1,0))","v":0},{"$f":"IF(rng_Emp_Filter=\"\",tbl_Emp[[#This Row],[Helper 1]],INDEX(tbl_Emp[Helper 3],tbl_Emp[[#This Row],[Helper 1]]))","v":199},{"$f":"IFERROR(INDEX(tbl_Emp[Turn OFF Controls],tbl_Emp[[#This Row],[Link]]),\"\")","v":"NEPOTIAN"}]
["VETRANIO",350,350,350,18,20000,{"$f":"tbl_Emp[[#This Row],[Turn OFF Controls]]","v":"VETRANIO"},{"$f":"IF(ISTEXT(OFFSET(tbl_Emp[[#This Row],[Helper 1]],-1,0)),1,OFFSET(tbl_Emp[[#This Row],[Helper 1]],-1,0)+1)","v":200},{"$f":"IF(rng_Emp_Filter=\"\",0,IF(ISNUMBER(SEARCH(rng_Emp_Filter,tbl_Emp[[#This Row],[Helper Key]])),tbl_Emp[[#This Row],[Helper 1]],\"\"))","v":0},{"$f":"IFERROR(SMALL(tbl_Emp[Helper 2],tbl_Emp[[#This Row],[Helper 1]]),\"\")","v":0},{"$f":"IF(OR(tbl_Emp[[#This Row],[Helper 2]]<>\"\",tbl_Emp[[#This Row],[Helper 3]]<>\"\"),1,0)","v":1},{"$f":"IF(rng_Emp_Filter=\"\",0,IF(tbl_Emp[[#This Row],[Helper 2]]<>\"\",1,0))","v":0},{"$f":"IF(rng_Emp_Filter=\"\",tbl_Emp[[#This Row],[Helper 1]],INDEX(tbl_Emp[Helper 3],tbl_Emp[[#This Row],[Helper 1]]))","v":200},{"$f":"IFERROR(INDEX(tbl_Emp[Turn OFF Controls],tbl_Emp[[#This Row],[Link]]),\"\")","v":"VETRANIO"}]
["MAGNENTIUS","350-353",350,353,18,20100,{"$f":"tbl_Emp[[#This Row],[Turn OFF Controls]]","v":"MAGNENTIUS"},{"$f":"IF(ISTEXT(OFFSET(tbl_Emp[[#This Row],[Helper 1]],-1,0)),1,OFFSET(tbl_Emp[[#This Row],[Helper 1]],-1,0)+1)","v":201},{"$f":"IF(rng_Emp_Filter=\"\",0,IF(ISNUMBER(SEARCH(rng_Emp_Filter,tbl_Emp[[#This Row],[Helper Key]])),tbl_Emp[[#This Row],[Helper 1]],\"\"))","v":0},{"$f":"IFERROR(SMALL(tbl_Emp[Helper 2],tbl_Emp[[#This Row],[Helper 1]]),\"\")","v":0},{"$f":"IF(OR(tbl_Emp[[#This Row],[Helper 2]]<>\"\",tbl_Emp[[#This Row],[Helper 3]]<>\"\"),1,0)","v":1},{"$f":"IF(rng_Emp_Filter=\"\",0,IF(tbl_Emp[[#This Row],[Helper 2]]<>\"\",1,0))","v":0},{"$f":"IF(rng_Emp_Filter=\"\",tbl_Emp[[#This Row],[Helper 1]],INDEX(tbl_Emp[Helper 3],tbl_Emp[[#This Row],[Helper 1]]))","v":201},{"$f":"IFERROR(INDEX(tbl_Emp[Turn OFF Controls],tbl_Emp[[#This Row],[Link]]),\"\")","v":"MAGNENTIUS"}]
["DECENTIUS Caesar","351-353",351,353,18,20200,{"$f":"tbl_Emp[[#This Row],[Turn OFF Controls]]","v":"DECENTIUS Caesar"},{"$f":"IF(ISTEXT(OFFSET(tbl_Emp[[#This Row],[Helper 1]],-1,0)),1,OFFSET(tbl_Emp[[#This Row],[Helper 1]],-1,0)+1)","v":202},{"$f":"IF(rng_Emp_Filter=\"\",0,IF(ISNUMBER(SEARCH(rng_Emp_Filter,tbl_Emp[[#This Row],[Helper Key]])),tbl_Emp[[#This Row],[Helper 1]],\"\"))","v":0},{"$f":"IFERROR(SMALL(tbl_Emp[Helper 2],tbl_Emp[[#This Row],[Helper 1]]),\"\")","v":0},{"$f":"IF(OR(tbl_Emp[[#This Row],[Helper 2]]<>\"\",tbl_Emp[[#This Row],[Helper 3]]<>\"\"),1,0)","v":1},{"$f":"IF(rng_Emp_Filter=\"\",0,IF(tbl_Emp[[#This Row],[Helper 2]]<>\"\",1,0))","v":0},{"$f":"IF(rng_Emp_Filter=\"\",tbl_Emp[[#This Row],[Helper 1]],INDEX(tbl_Emp[Helper 3],tbl_Emp[[#This Row],[Helper 1]]))","v":202},{"$f":"IFERROR(INDEX(tbl_Emp[Turn OFF Controls],tbl_Emp[[#This Row],[Link]]),\"\")","v":"DECENTIUS Caesar"}]
["GALLUS Caesar","351-354",351,354,18,20300,{"$f":"tbl_Emp[[#This Row],[Turn OFF Controls]]","v":"GALLUS Caesar"},{"$f":"IF(ISTEXT(OFFSET(tbl_Emp[[#This Row],[Helper 1]],-1,0)),1,OFFSET(tbl_Emp[[#This Row],[Helper 1]],-1,0)+1)","v":203},{"$f":"IF(rng_Emp_Filter=\"\",0,IF(ISNUMBER(SEARCH(rng_Emp_Filter,tbl_Emp[[#This Row],[Helper Key]])),tbl_Emp[[#This Row],[Helper 1]],\"\"))","v":0},{"$f":"IFERROR(SMALL(tbl_Emp[Helper 2],tbl_Emp[[#This Row],[Helper 1]]),\"\")","v":0},{"$f":"IF(OR(tbl_Emp[[#This Row],[Helper 2]]<>\"\",tbl_Emp[[#This Row],[Helper 3]]<>\"\"),1,0)","v":1},{"$f":"IF(rng_Emp_Filter=\"\",0,IF(tbl_Emp[[#This Row],[Helper 2]]<>\"\",1,0))","v":0},{"$f":"IF(rng_Emp_Filter=\"\",tbl_Emp[[#This Row],[Helper 1]],INDEX(tbl_Emp[Helper 3],tbl_Emp[[#This Row],[Helper 1]]))","v":203},{"$f":"IFERROR(INDEX(tbl_Emp[Turn OFF Controls],tbl_Emp[[#This Row],[Link]]),\"\")","v":"GALLUS Caesar"}]
["JULIAN Caesar","355-360",355,360,18,20400,{"$f":"tbl_Emp[[#This Row],[Turn OFF Controls]]","v":"JULIAN Caesar"},{"$f":"IF(ISTEXT(OFFSET(tbl_Emp[[#This Row],[Helper 1]],-1,0)),1,OFFSET(tbl_Emp[[#This Row],[Helper 1]],-1,0)+1)","v":204},{"$f":"IF(rng_Emp_Filter=\"\",0,IF(ISNUMBER(SEARCH(rng_Emp_Filter,tbl_Emp[[#This Row],[Helper Key]])),tbl_Emp[[#This Row],[Helper 1]],\"\"))","v":0},{"$f":"IFERROR(SMALL(tbl_Emp[Helper 2],tbl_Emp[[#This Row],[Helper 1]]),\"\")","v":0},{"$f":"IF(OR(tbl_Emp[[#This Row],[Helper 2]]<>\"\",tbl_Emp[[#This Row],[Helper 3]]<>\"\"),1,0)","v":1},{"$f":"IF(rng_Emp_Filter=\"\",0,IF(tbl_Emp[[#This Row],[Helper 2]]<>\"\",1,0))","v":0},{"$f":"IF(rng_Emp_Filter=\"\",tbl_Emp[[#This Row],[Helper 1]],INDEX(tbl_Emp[Helper 3],tbl_Emp[[#This Row],[Helper 1]]))","v":204},{"$f":"IFERROR(INDEX(tbl_Emp[Turn OFF Controls],tbl_Emp[[#This Row],[Link]]),\"\")","v":"JULIAN Caesar"}]
["JULIAN","360-363",360,363,18,20500,{"$f":"tbl_Emp[[#This Row],[Turn OFF Controls]]","v":"JULIAN"},{"$f":"IF(ISTEXT(OFFSET(tbl_Emp[[#This Row],[Helper 1]],-1,0)),1,OFFSET(tbl_Emp[[#This Row],[Helper 1]],-1,0)+1)","v":205},{"$f":"IF(rng_Emp_Filter=\"\",0,IF(ISNUMBER(SEARCH(rng_Emp_Filter,tbl_Emp[[#This Row],[Helper Key]])),tbl_Emp[[#This Row],[Helper 1]],\"\"))","v":0},{"$f":"IFERROR(SMALL(tbl_Emp[Helper 2],tbl_Emp[[#This Row],[Helper 1]]),\"\")","v":0},{"$f":"IF(OR(tbl_Emp[[#This Row],[Helper 2]]<>\"\",tbl_Emp[[#This Row],[Helper 3]]<>\"\"),1,0)","v":1},{"$f":"IF(rng_Emp_Filter=\"\",0,IF(tbl_Emp[[#This Row],[Helper 2]]<>\"\",1,0))","v":0},{"$f":"IF(rng_Emp_Filter=\"\",tbl_Emp[[#This Row],[Helper 1]],INDEX(tbl_Emp[Helper 3],tbl_Emp[[#This Row],[Helper 1]]))","v":205},{"$f":"IFERROR(INDEX(tbl_Emp[Turn OFF Controls],tbl_Emp[[#This Row],[Link]]),\"\")","v":"JULIAN"}]
["House of Constantine","317-363",317,363,null,20600,{"$f":"tbl_Emp[[#This Row],[Turn OFF Controls]]","v":"House of Constantine"},{"$f":"IF(ISTEXT(OFFSET(tbl_Emp[[#This Row],[Helper 1]],-1,0)),1,OFFSET(tbl_Emp[[#This Row],[Helper 1]],-1,0)+1)","v":206},{"$f":"IF(rng_Emp_Filter=\"\",0,IF(ISNUMBER(SEARCH(rng_Emp_Filter,tbl_Emp[[#This Row],[Helper Key]])),tbl_Emp[[#This Row],[Helper 1]],\"\"))","v":0},{"$f":"IFERROR(SMALL(tbl_Emp[Helper 2],tbl_Emp[[#This Row],[Helper 1]]),\"\")","v":0},{"$f":"IF(OR(tbl_Emp[[#This Row],[Helper 2]]<>\"\",tbl_Emp[[#This Row],[Helper 3]]<>\"\"),1,0)","v":1},{"$f":"IF(rng_Emp_Filter=\"\",0,IF(tbl_Emp[[#This Row],[Helper 2]]<>\"\",1,0))","v":0},{"$f":"IF(rng_Emp_Filter=\"\",tbl_Emp[[#This Row],[Helper 1]],INDEX(tbl_Emp[Helper 3],tbl_Emp[[#This Row],[Helper 1]]))","v":206},{"$f":"IFERROR(INDEX(tbl_Emp[Turn OFF Controls],tbl_Emp[[#This Row],[Link]]),\"\")","v":"House of Constantine"}]
["JOVIAN","363-364",363,364,18,20700,{"$f":"tbl_Emp[[#This Row],[Turn OFF Controls]]","v":"JOVIAN"},{"$f":"IF(ISTEXT(OFFSET(tbl_Emp[[#This Row],[Helper 1]],-1,0)),1,OFFSET(tbl_Emp[[#This Row],[Helper 1]],-1,0)+1)","v":207},{"$f":"IF(rng_Emp_Filter=\"\",0,IF(ISNUMBER(SEARCH(rng_Emp_Filter,tbl_Emp[[#This Row],[Helper Key]])),tbl_Emp[[#This Row],[Helper 1]],\"\"))","v":0},{"$f":"IFERROR(SMALL(tbl_Emp[Helper 2],tbl_Emp[[#This Row],[Helper 1]]),\"\")","v":0},{"$f":"IF(OR(tbl_Emp[[#This Row],[Helper 2]]<>\"\",tbl_Emp[[#This Row],[Helper 3]]<>\"\"),1,0)","v":1},{"$f":"IF(rng_Emp_Filter=\"\",0,IF(tbl_Emp[[#This Row],[Helper 2]]<>\"\",1,0))","v":0},{"$f":"IF(rng_Emp_Filter=\"\",tbl_Emp[[#This Row],[Helper 1]],INDEX(tbl_Emp[Helper 3],tbl_Emp[[#This Row],[Helper 1]]))","v":207},{"$f":"IFERROR(INDEX(tbl_Emp[Turn OFF Controls],tbl_Emp[[#This Row],[Link]]),\"\")","v":"JOVIAN"}]
["VALENTINIAN I","364-375",364,375,19,20800,{"$f":"tbl_Emp[[#This Row],[Turn OFF Controls]]","v":"VALENTINIAN I"},{"$f":"IF(ISTEXT(OFFSET(tbl_Emp[[#This Row],[Helper 1]],-1,0)),1,OFFSET(tbl_Emp[[#This Row],[Helper 1]],-1,0)+1)","v":208},{"$f":"IF(rng_Emp_Filter=\"\",0,IF(ISNUMBER(SEARCH(rng_Emp_Filter,tbl_Emp[[#This Row],[Helper Key]])),tbl_Emp[[#This Row],[Helper 1]],\"\"))","v":0},{"$f":"IFERROR(SMALL(tbl_Emp[Helper 2],tbl_Emp[[#This Row],[Helper 1]]),\"\")","v":0},{"$f":"IF(OR(tbl_Emp[[#This Row],[Helper 2]]<>\"\",tbl_Emp[[#This Row],[Helper 3]]<>\"\"),1,0)","v":1},{"$f":"IF(rng_Emp_Filter=\"\",0,IF(tbl_Emp[[#This Row],[Helper 2]]<>\"\",1,0))","v":0},{"$f":"IF(rng_Emp_Filter=\"\",tbl_Emp[[#This Row],[Helper 1]],INDEX(tbl_Emp[Helper 3],tbl_Emp[[#This Row],[Helper 1]]))","v":208},{"$f":"IFERROR(INDEX(tbl_Emp[Turn OFF Controls],tbl_Emp[[#This Row],[Link]]),\"\")","v":"VALENTINIAN I"}]
["VALENS","364-378",364,378,19,20900,{"$f":"tbl_Emp[[#This Row],[Turn OFF Controls]]","v":"VALENS"},{"$f":"IF(ISTEXT(OFFSET(tbl_Emp[[#This Row],[Helper 1]],-1,0)),1,OFFSET(tbl_Emp[[#This Row],[Helper 1]],-1,0)+1)","v":209},{"$f":"IF(rng_Emp_Filter=\"\",0,IF(ISNUMBER(SEARCH(rng_Emp_Filter,tbl_Emp[[#This Row],[Helper Key]])),tbl_Emp[[#This Row],[Helper 1]],\"\"))","v":0},{"$f":"IFERROR(SMALL(tbl_Emp[Helper 2],tbl_Emp[[#This Row],[Helper 1]]),\"\")","v":0},{"$f":"IF(OR(tbl_Emp[[#This Row],[Helper 2]]<>\"\",tbl_Emp[[#This Row],[Helper 3]]<>\"\"),1,0)","v":1},{"$f":"IF(rng_Emp_Filter=\"\",0,IF(tbl_Emp[[#This Row],[Helper 2]]<>\"\",1,0))","v":0},{"$f":"IF(rng_Emp_Filter=\"\",tbl_Emp[[#This Row],[Helper 1]],INDEX(tbl_Emp[Helper 3],tbl_Emp[[#This Row],[Helper 1]]))","v":209},{"$f":"IFERROR(INDEX(tbl_Emp[Turn OFF Controls],tbl_Emp[[#This Row],[Link]]),\"\")","v":"VALENS"}]
["House of Valentinian","364-392",364,392,null,21000,{"$f":"tbl_Emp[[#This Row],[Turn OFF Controls]]","v":"House of Valentinian"},{"$f":"IF(ISTEXT(OFFSET(tbl_Emp[[#This Row],[Helper 1]],-1,0)),1,OFFSET(tbl_Emp[[#This Row],[Helper 1]],-1,0)+1)","v":210},{"$f":"IF(rng_Emp_Filter=\"\",0,IF(ISNUMBER(SEARCH(rng_Emp_Filter,tbl_Emp[[#This Row],[Helper Key]])),tbl_Emp[[#This Row],[Helper 1]],\"\"))","v":0},{"$f":"IFERROR(SMALL(tbl_Emp[Helper 2],tbl_Emp[[#This Row],[Helper 1]]),\"\")","v":0},{"$f":"IF(OR(tbl_Emp[[#This Row],[Helper 2]]<>\"\",tbl_Emp[[#This Row],[Helper 3]]<>\"\"),1,0)","v":1},{"$f":"IF(rng_Emp_Filter=\"\",0,IF(tbl_Emp[[#This Row],[Helper 2]]<>\"\",1,0))","v":0},{"$f":"IF(rng_Emp_Filter=\"\",tbl_Emp[[#This Row],[Helper 1]],INDEX(tbl_Emp[Helper 3],tbl_Emp[[#This Row],[Helper 1]]))","v":210},{"$f":"IFERROR(INDEX(tbl_Emp[Turn OFF Controls],tbl_Emp[[#This Row],[Link]]),\"\")","v":"House of Valentinian"}]
["PROCOPIUS","365-366",365,366,19,21100,{"$f":"tbl_Emp[[#This Row],[Turn OFF Controls]]","v":"PROCOPIUS"},{"$f":"IF(ISTEXT(OFFSET(tbl_Emp[[#This Row],[Helper 1]],-1,0)),1,OFFSET(tbl_Emp[[#This Row],[Helper 1]],-1,0)+1)","v":211},{"$f":"IF(rng_Emp_Filter=\"\",0,IF(ISNUMBER(SEARCH(rng_Emp_Filter,tbl_Emp[[#This Row],[Helper Key]])),tbl_Emp[[#This Row],[Helper 1]],\"\"))","v":0},{"$f":"IFERROR(SMALL(tbl_Emp[Helper 2],tbl_Emp[[#This Row],[Helper 1]]),\"\")","v":0},{"$f":"IF(OR(tbl_Emp[[#This Row],[Helper 2]]<>\"\",tbl_Emp[[#This Row],[Helper 3]]<>\"\"),1,0)","v":1},{"$f":"IF(rng_Emp_Filter=\"\",0,IF(tbl_Emp[[#This Row],[Helper 2]]<>\"\",1,0))","v":0},{"$f":"IF(rng_Emp_Filter=\"\",tbl_Emp[[#This Row],[Helper 1]],INDEX(tbl_Emp[Helper 3],tbl_Emp[[#This Row],[Helper 1]]))","v":211},{"$f":"IFERROR(INDEX(tbl_Emp[Turn OFF Controls],tbl_Emp[[#This Row],[Link]]),\"\")","v":"PROCOPIUS"}]
["GRATIAN","367-383",367,383,null,21200,{"$f":"tbl_Emp[[#This Row],[Turn OFF Controls]]","v":"GRATIAN"},{"$f":"IF(ISTEXT(OFFSET(tbl_Emp[[#This Row],[Helper 1]],-1,0)),1,OFFSET(tbl_Emp[[#This Row],[Helper 1]],-1,0)+1)","v":212},{"$f":"IF(rng_Emp_Filter=\"\",0,IF(ISNUMBER(SEARCH(rng_Emp_Filter,tbl_Emp[[#This Row],[Helper Key]])),tbl_Emp[[#This Row],[Helper 1]],\"\"))","v":0},{"$f":"IFERROR(SMALL(tbl_Emp[Helper 2],tbl_Emp[[#This Row],[Helper 1]]),\"\")","v":0},{"$f":"IF(OR(tbl_Emp[[#This Row],[Helper 2]]<>\"\",tbl_Emp[[#This Row],[Helper 3]]<>\"\"),1,0)","v":1},{"$f":"IF(rng_Emp_Filter=\"\",0,IF(tbl_Emp[[#This Row],[Helper 2]]<>\"\",1,0))","v":0},{"$f":"IF(rng_Emp_Filter=\"\",tbl_Emp[[#This Row],[Helper 1]],INDEX(tbl_Emp[Helper 3],tbl_Emp[[#This Row],[Helper 1]]))","v":212},{"$f":"IFERROR(INDEX(tbl_Emp[Turn OFF Controls],tbl_Emp[[#This Row],[Link]]),\"\")","v":"GRATIAN"}]
["MAGNUS MAXIMUS","383-388",383,388,20,21300,{"$f":"tbl_Emp[[#This Row],[Turn OFF Controls]]","v":"MAGNUS MAXIMUS"},{"$f":"IF(ISTEXT(OFFSET(tbl_Emp[[#This Row],[Helper 1]],-1,0)),1,OFFSET(tbl_Emp[[#This Row],[Helper 1]],-1,0)+1)","v":213},{"$f":"IF(rng_Emp_Filter=\"\",0,IF(ISNUMBER(SEARCH(rng_Emp_Filter,tbl_Emp[[#This Row],[Helper Key]])),tbl_Emp[[#This Row],[Helper 1]],\"\"))","v":0},{"$f":"IFERROR(SMALL(tbl_Emp[Helper 2],tbl_Emp[[#This Row],[Helper 1]]),\"\")","v":0},{"$f":"IF(OR(tbl_Emp[[#This Row],[Helper 2]]<>\"\",tbl_Emp[[#This Row],[Helper 3]]<>\"\"),1,0)","v":1},{"$f":"IF(rng_Emp_Filter=\"\",0,IF(tbl_Emp[[#This Row],[Helper 2]]<>\"\",1,0))","v":0},{"$f":"IF(rng_Emp_Filter=\"\",tbl_Emp[[#This Row],[Helper 1]],INDEX(tbl_Emp[Helper 3],tbl_Emp[[#This Row],[Helper 1]]))","v":213},{"$f":"IFERROR(INDEX(tbl_Emp[Turn OFF Controls],tbl_Emp[[#This Row],[Link]]),\"\")","v":"MAGNUS MAXIMUS"}]
["FLAVIUS VICTOR","387-388",387,388,20,21400,{"$f":"tbl_Emp[[#This Row],[Turn OFF Controls]]","v":"FLAVIUS VICTOR"},{"$f":"IF(ISTEXT(OFFSET(tbl_Emp[[#This Row],[Helper 1]],-1,0)),1,OFFSET(tbl_Emp[[#This Row],[Helper 1]],-1,0)+1)","v":214},{"$f":"IF(rng_Emp_Filter=\"\",0,IF(ISNUMBER(SEARCH(rng_Emp_Filter,tbl_Emp[[#This Row],[Helper Key]])),tbl_Emp[[#This Row],[Helper 1]],\"\"))","v":0},{"$f":"IFERROR(SMALL(tbl_Emp[Helper 2],tbl_Emp[[#This Row],[Helper 1]]),\"\")","v":0},{"$f":"IF(OR(tbl_Emp[[#This Row],[Helper 2]]<>\"\",tbl_Emp[[#This Row],[Helper 3]]<>\"\"),1,0)","v":1},{"$f":"IF(rng_Emp_Filter=\"\",0,IF(tbl_Emp[[#This Row],[Helper 2]]<>\"\",1,0))","v":0},{"$f":"IF(rng_Emp_Filter=\"\",tbl_Emp[[#This Row],[Helper 1]],INDEX(tbl_Emp[Helper 3],tbl_Emp[[#This Row],[Helper 1]]))","v":214},{"$f":"IFERROR(INDEX(tbl_Emp[Turn OFF Controls],tbl_Emp[[#This Row],[Link]]),\"\")","v":"FLAVIUS VICTOR"}]
["VALENTINIAN II","375-392",375,392,null,21500,{"$f":"tbl_Emp[[#This Row],[Turn OFF Controls]]","v":"VALENTINIAN II"},{"$f":"IF(ISTEXT(OFFSET(tbl_Emp[[#This Row],[Helper 1]],-1,0)),1,OFFSET(tbl_Emp[[#This Row],[Helper 1]],-1,0)+1)","v":215},{"$f":"IF(rng_Emp_Filter=\"\",0,IF(ISNUMBER(SEARCH(rng_Emp_Filter,tbl_Emp[[#This Row],[Helper Key]])),tbl_Emp[[#This Row],[Helper 1]],\"\"))","v":0},{"$f":"IFERROR(SMALL(tbl_Emp[Helper 2],tbl_Emp[[#This Row],[Helper 1]]),\"\")","v":0},{"$f":"IF(OR(tbl_Emp[[#This Row],[Helper 2]]<>\"\",tbl_Emp[[#This Row],[Helper 3]]<>\"\"),1,0)","v":1},{"$f":"IF(rng_Emp_Filter=\"\",0,IF(tbl_Emp[[#This Row],[Helper 2]]<>\"\",1,0))","v":0},{"$f":"IF(rng_Emp_Filter=\"\",tbl_Emp[[#This Row],[Helper 1]],INDEX(tbl_Emp[Helper 3],tbl_Emp[[#This Row],[Helper 1]]))","v":215},{"$f":"IFERROR(INDEX(tbl_Emp[Turn OFF Controls],tbl_Emp[[#This Row],[Link]]),\"\")","v":"VALENTINIAN II"}]
["THEODOSIUS I","379-395",379,395,null,21600,{"$f":"tbl_Emp[[#This Row],[Turn OFF Controls]]","v":"THEODOSIUS I"},{"$f":"IF(ISTEXT(OFFSET(tbl_Emp[[#This Row],[Helper 1]],-1,0)),1,OFFSET(tbl_Emp[[#This Row],[Helper 1]],-1,0)+1)","v":216},{"$f":"IF(rng_Emp_Filter=\"\",0,IF(ISNUMBER(SEARCH(rng_Emp_Filter,tbl_Emp[[#This Row],[Helper Key]])),tbl_Emp[[#This Row],[Helper 1]],\"\"))","v":0},{"$f":"IFERROR(SMALL(tbl_Emp[Helper 2],tbl_Emp[[#This Row],[Helper 1]]),\"\")","v":0},{"$f":"IF(OR(tbl_Emp[[#This Row],[Helper 2]]<>\"\",tbl_Emp[[#This Row],[Helper 3]]<>\"\"),1,0)","v":1},{"$f":"IF(rng_Emp_Filter=\"\",0,IF(tbl_Emp[[#This Row],[Helper 2]]<>\"\",1,0))","v":0},{"$f":"IF(rng_Emp_Filter=\"\",tbl_Emp[[#This Row],[Helper 1]],INDEX(tbl_Emp[Helper 3],tbl_Emp[[#This Row],[Helper 1]]))","v":216},{"$f":"IFERROR(INDEX(tbl_Emp[Turn OFF Controls],tbl_Emp[[#This Row],[Link]]),\"\")","v":"THEODOSIUS I"}]
["FLACILLA","379-386",379,386,20,21700,{"$f":"tbl_Emp[[#This Row],[Turn OFF Controls]]","v":"FLACILLA"},{"$f":"IF(ISTEXT(OFFSET(tbl_Emp[[#This Row],[Helper 1]],-1,0)),1,OFFSET(tbl_Emp[[#This Row],[Helper 1]],-1,0)+1)","v":217},{"$f":"IF(rng_Emp_Filter=\"\",0,IF(ISNUMBER(SEARCH(rng_Emp_Filter,tbl_Emp[[#This Row],[Helper Key]])),tbl_Emp[[#This Row],[Helper 1]],\"\"))","v":0},{"$f":"IFERROR(SMALL(tbl_Emp[Helper 2],tbl_Emp[[#This Row],[Helper 1]]),\"\")","v":0},{"$f":"IF(OR(tbl_Emp[[#This Row],[Helper 2]]<>\"\",tbl_Emp[[#This Row],[Helper 3]]<>\"\"),1,0)","v":1},{"$f":"IF(rng_Emp_Filter=\"\",0,IF(tbl_Emp[[#This Row],[Helper 2]]<>\"\",1,0))","v":0},{"$f":"IF(rng_Emp_Filter=\"\",tbl_Emp[[#This Row],[Helper 1]],INDEX(tbl_Emp[Helper 3],tbl_Emp[[#This Row],[Helper 1]]))","v":217},{"$f":"IFERROR(INDEX(tbl_Emp[Turn OFF Controls],tbl_Emp[[#This Row],[Link]]),\"\")","v":"FLACILLA"}]
["ARCADIUS","383-408",383,408,null,21800,{"$f":"tbl_Emp[[#This Row],[Turn OFF Controls]]","v":"ARCADIUS"},{"$f":"IF(ISTEXT(OFFSET(tbl_Emp[[#This Row],[Helper 1]],-1,0)),1,OFFSET(tbl_Emp[[#This Row],[Helper 1]],-1,0)+1)","v":218},{"$f":"IF(rng_Emp_Filter=\"\",0,IF(ISNUMBER(SEARCH(rng_Emp_Filter,tbl_Emp[[#This Row],[Helper Key]])),tbl_Emp[[#This Row],[Helper 1]],\"\"))","v":0},{"$f":"IFERROR(SMALL(tbl_Emp[Helper 2],tbl_Emp[[#This Row],[Helper 1]]),\"\")","v":0},{"$f":"IF(OR(tbl_Emp[[#This Row],[Helper 2]]<>\"\",tbl_Emp[[#This Row],[Helper 3]]<>\"\"),1,0)","v":1},{"$f":"IF(rng_Emp_Filter=\"\",0,IF(tbl_Emp[[#This Row],[Helper 2]]<>\"\",1,0))","v":0},{"$f":"IF(rng_Emp_Filter=\"\",tbl_Emp[[#This Row],[Helper 1]],INDEX(tbl_Emp[Helper 3],tbl_Emp[[#This Row],[Helper 1]]))","v":218},{"$f":"IFERROR(INDEX(tbl_Emp[Turn OFF Controls],tbl_Emp[[#This Row],[Link]]),\"\")","v":"ARCADIUS"}]
["EUGENIUS","392-394",392,394,21,21900,{"$f":"tbl_Emp[[#This Row],[Turn OFF Controls]]","v":"EUGENIUS"},{"$f":"IF(ISTEXT(OFFSET(tbl_Emp[[#This Row],[Helper 1]],-1,0)),1,OFFSET(tbl_Emp[[#This Row],[Helper 1]],-1,0)+1)","v":219},{"$f":"IF(rng_Emp_Filter=\"\",0,IF(ISNUMBER(SEARCH(rng_Emp_Filter,tbl_Emp[[#This Row],[Helper Key]])),tbl_Emp[[#This Row],[Helper 1]],\"\"))","v":0},{"$f":"IFERROR(SMALL(tbl_Emp[Helper 2],tbl_Emp[[#This Row],[Helper 1]]),\"\")","v":0},{"$f":"IF(OR(tbl_Emp[[#This Row],[Helper 2]]<>\"\",tbl_Emp[[#This Row],[Helper 3]]<>\"\"),1,0)","v":1},{"$f":"IF(rng_Emp_Filter=\"\",0,IF(tbl_Emp[[#This Row],[Helper 2]]<>\"\",1,0))","v":0},{"$f":"IF(rng_Emp_Filter=\"\",tbl_Emp[[#This Row],[Helper 1]],INDEX(tbl_Emp[Helper 3],tbl_Emp[[#This Row],[Helper 1]]))","v":219},{"$f":"IFERROR(INDEX(tbl_Emp[Turn OFF Controls],tbl_Emp[[#This Row],[Link]]),\"\")","v":"EUGENIUS"}]
["HONORIUS","393-423",393,423,null,22000,{"$f":"tbl_Emp[[#This Row],[Turn OFF Controls]]","v":"HONORIUS"},{"$f":"IF(ISTEXT(OFFSET(tbl_Emp[[#This Row],[Helper 1]],-1,0)),1,OFFSET(tbl_Emp[[#This Row],[Helper 1]],-1,0)+1)","v":220},{"$f":"IF(rng_Emp_Filter=\"\",0,IF(ISNUMBER(SEARCH(rng_Emp_Filter,tbl_Emp[[#This Row],[Helper Key]])),tbl_Emp[[#This Row],[Helper 1]],\"\"))","v":0},{"$f":"IFERROR(SMALL(tbl_Emp[Helper 2],tbl_Emp[[#This Row],[Helper 1]]),\"\")","v":0},{"$f":"IF(OR(tbl_Emp[[#This Row],[Helper 2]]<>\"\",tbl_Emp[[#This Row],[Helper 3]]<>\"\"),1,0)","v":1},{"$f":"IF(rng_Emp_Filter=\"\",0,IF(tbl_Emp[[#This Row],[Helper 2]]<>\"\",1,0))","v":0},{"$f":"IF(rng_Emp_Filter=\"\",tbl_Emp[[#This Row],[Helper 1]],INDEX(tbl_Emp[Helper 3],tbl_Emp[[#This Row],[Helper 1]]))","v":220},{"$f":"IFERROR(INDEX(tbl_Emp[Turn OFF Controls],tbl_Emp[[#This Row],[Link]]),\"\")","v":"HONORIUS"}]
["House of Theodosius","379-402",379,402,null,22100,{"$f":"tbl_Emp[[#This Row],[Turn OFF Controls]]","v":"House of Theodosius"},{"$f":"IF(ISTEXT(OFFSET(tbl_Emp[[#This Row],[Helper 1]],-1,0)),1,OFFSET(tbl_Emp[[#This Row],[Helper 1]],-1,0)+1)","v":221},{"$f":"IF(rng_Emp_Filter=\"\",0,IF(ISNUMBER(SEARCH(rng_Emp_Filter,tbl_Emp[[#This Row],[Helper Key]])),tbl_Emp[[#This Row],[Helper 1]],\"\"))","v":0},{"$f":"IFERROR(SMALL(tbl_Emp[Helper 2],tbl_Emp[[#This Row],[Helper 1]]),\"\")","v":0},{"$f":"IF(OR(tbl_Emp[[#This Row],[Helper 2]]<>\"\",tbl_Emp[[#This Row],[Helper 3]]<>\"\"),1,0)","v":1},{"$f":"IF(rng_Emp_Filter=\"\",0,IF(tbl_Emp[[#This Row],[Helper 2]]<>\"\",1,0))","v":0},{"$f":"IF(rng_Emp_Filter=\"\",tbl_Emp[[#This Row],[Helper 1]],INDEX(tbl_Emp[Helper 3],tbl_Emp[[#This Row],[Helper 1]]))","v":221},{"$f":"IFERROR(INDEX(tbl_Emp[Turn OFF Controls],tbl_Emp[[#This Row],[Link]]),\"\")","v":"House of Theodosius"}]
["CONSTANTINE III","407-411",407,411,22,22200,{"$f":"tbl_Emp[[#This Row],[Turn OFF Controls]]","v":"CONSTANTINE III"},{"$f":"IF(ISTEXT(OFFSET(tbl_Emp[[#This Row],[Helper 1]],-1,0)),1,OFFSET(tbl_Emp[[#This Row],[Helper 1]],-1,0)+1)","v":222},{"$f":"IF(rng_Emp_Filter=\"\",0,IF(ISNUMBER(SEARCH(rng_Emp_Filter,tbl_Emp[[#This Row],[Helper Key]])),tbl_Emp[[#This Row],[Helper 1]],\"\"))","v":0},{"$f":"IFERROR(SMALL(tbl_Emp[Helper 2],tbl_Emp[[#This Row],[Helper 1]]),\"\")","v":0},{"$f":"IF(OR(tbl_Emp[[#This Row],[Helper 2]]<>\"\",tbl_Emp[[#This Row],[Helper 3]]<>\"\"),1,0)","v":1},{"$f":"IF(rng_Emp_Filter=\"\",0,IF(tbl_Emp[[#This Row],[Helper 2]]<>\"\",1,0))","v":0},{"$f":"IF(rng_Emp_Filter=\"\",tbl_Emp[[#This Row],[Helper 1]],INDEX(tbl_Emp[Helper 3],tbl_Emp[[#This Row],[Helper 1]]))","v":222},{"$f":"IFERROR(INDEX(tbl_Emp[Turn OFF Controls],tbl_Emp[[#This Row],[Link]]),\"\")","v":"CONSTANTINE III"}]
["CONSTANS II","408-411",408,411,22,22300,{"$f":"tbl_Emp[[#This Row],[Turn OFF Controls]]","v":"CONSTANS II"},{"$f":"IF(ISTEXT(OFFSET(tbl_Emp[[#This Row],[Helper 1]],-1,0)),1,OFFSET(tbl_Emp[[#This Row],[Helper 1]],-1,0)+1)","v":223},{"$f":"IF(rng_Emp_Filter=\"\",0,IF(ISNUMBER(SEARCH(rng_Emp_Filter,tbl_Emp[[#This Row],[Helper Key]])),tbl_Emp[[#This Row],[Helper 1]],\"\"))","v":0},{"$f":"IFERROR(SMALL(tbl_Emp[Helper 2],tbl_Emp[[#This Row],[Helper 1]]),\"\")","v":0},{"$f":"IF(OR(tbl_Emp[[#This Row],[Helper 2]]<>\"\",tbl_Emp[[#This Row],[Helper 3]]<>\"\"),1,0)","v":1},{"$f":"IF(rng_Emp_Filter=\"\",0,IF(tbl_Emp[[#This Row],[Helper 2]]<>\"\",1,0))","v":0},{"$f":"IF(rng_Emp_Filter=\"\",tbl_Emp[[#This Row],[Helper 1]],INDEX(tbl_Emp[Helper 3],tbl_Emp[[#This Row],[Helper 1]]))","v":223},{"$f":"IFERROR(INDEX(tbl_Emp[Turn OFF Controls],tbl_Emp[[#This Row],[Link]]),\"\")","v":"CONSTANS II"}]
["THEODOSIUS II","402-450",402,450,22,22400,{"$f":"tbl_Emp[[#This Row],[Turn OFF Controls]]","v":"THEODOSIUS II"},{"$f":"IF(ISTEXT(OFFSET(tbl_Emp[[#This Row],[Helper 1]],-1,0)),1,OFFSET(tbl_Emp[[#This Row],[Helper 1]],-1,0)+1)","v":224},{"$f":"IF(rng_Emp_Filter=\"\",0,IF(ISNUMBER(SEARCH(rng_Emp_Filter,tbl_Emp[[#This Row],[Helper Key]])),tbl_Emp[[#This Row],[Helper 1]],\"\"))","v":0},{"$f":"IFERROR(SMALL(tbl_Emp[Helper 2],tbl_Emp[[#This Row],[Helper 1]]),\"\")","v":0},{"$f":"IF(OR(tbl_Emp[[#This Row],[Helper 2]]<>\"\",tbl_Emp[[#This Row],[Helper 3]]<>\"\"),1,0)","v":1},{"$f":"IF(rng_Emp_Filter=\"\",0,IF(tbl_Emp[[#This Row],[Helper 2]]<>\"\",1,0))","v":0},{"$f":"IF(rng_Emp_Filter=\"\",tbl_Emp[[#This Row],[Helper 1]],INDEX(tbl_Emp[Helper 3],tbl_Emp[[#This Row],[Helper 1]]))","v":224},{"$f":"IFERROR(INDEX(tbl_Emp[Turn OFF Controls],tbl_Emp[[#This Row],[Link]]),\"\")","v":"THEODOSIUS II"}]
["Uncertain (Julio-Claudian)","27 BC-68",-27,68,3,22500,{"$f":"tbl_Emp[[#This Row],[Turn OFF Controls]]","v":"Uncertain (Julio-Claudian)"},{"$f":"IF(ISTEXT(OFFSET(tbl_Emp[[#This Row],[Helper 1]],-1,0)),1,OFFSET(tbl_Emp[[#This Row],[Helper 1]],-1,0)+1)","v":225},{"$f":"IF(rng_Emp_Filter=\"\",0,IF(ISNUMBER(SEARCH(rng_Emp_Filter,tbl_Emp[[#This Row],[Helper Key]])),tbl_Emp[[#This Row],[Helper 1]],\"\"))","v":0},{"$f":"IFERROR(SMALL(tbl_Emp[Helper 2],tbl_Emp[[#This Row],[Helper 1]]),\"\")","v":0},{"$f":"IF(OR(tbl_Emp[[#This Row],[Helper 2]]<>\"\",tbl_Emp[[#This Row],[Helper 3]]<>\"\"),1,0)","v":1},{"$f":"IF(rng_Emp_Filter=\"\",0,IF(tbl_Emp[[#This Row],[Helper 2]]<>\"\",1,0))","v":0},{"$f":"IF(rng_Emp_Filter=\"\",tbl_Emp[[#This Row],[Helper 1]],INDEX(tbl_Emp[Helper 3],tbl_Emp[[#This Row],[Helper 1]]))","v":225},{"$f":"IFERROR(INDEX(tbl_Emp[Turn OFF Controls],tbl_Emp[[#This Row],[Link]]),\"\")","v":"Uncertain (Julio-Claudian)"}]
["Uncertain (Flavian)","69-96",69,96,4,22600,{"$f":"tbl_Emp[[#This Row],[Turn OFF Controls]]","v":"Uncertain (Flavian)"},{"$f":"IF(ISTEXT(OFFSET(tbl_Emp[[#This Row],[Helper 1]],-1,0)),1,OFFSET(tbl_Emp[[#This Row],[Helper 1]],-1,0)+1)","v":226},{"$f":"IF(rng_Emp_Filter=\"\",0,IF(ISNUMBER(SEARCH(rng_Emp_Filter,tbl_Emp[[#This Row],[Helper Key]])),tbl_Emp[[#This Row],[Helper 1]],\"\"))","v":0},{"$f":"IFERROR(SMALL(tbl_Emp[Helper 2],tbl_Emp[[#This Row],[Helper 1]]),\"\")","v":0},{"$f":"IF(OR(tbl_Emp[[#This Row],[Helper 2]]<>\"\",tbl_Emp[[#This Row],[Helper 3]]<>\"\"),1,0)","v":1},{"$f":"IF(rng_Emp_Filter=\"\",0,IF(tbl_Emp[[#This Row],[Helper 2]]<>\"\",1,0))","v":0},{"$f":"IF(rng_Emp_Filter=\"\",tbl_Emp[[#This Row],[Helper 1]],INDEX(tbl_Emp[Helper 3],tbl_Emp[[#This Row],[Helper 1]]))","v":226},{"$f":"IFERROR(INDEX(tbl_Emp[Turn OFF Controls],tbl_Emp[[#This Row],[Link]]),\"\")","v":"Uncertain (Flavian)"}]
["Uncertain (1st century)","27 BC-AD 98",-27,98,null,22700,{"$f":"tbl_Emp[[#This Row],[Turn OFF Controls]]","v":"Uncertain (1st century)"},{"$f":"IF(ISTEXT(OFFSET(tbl_Emp[[#This Row],[Helper 1]],-1,0)),1,OFFSET(tbl_Emp[[#This Row],[Helper 1]],-1,0)+1)","v":227},{"$f":"IF(rng_Emp_Filter=\"\",0,IF(ISNUMBER(SEARCH(rng_Emp_Filter,tbl_Emp[[#This Row],[Helper Key]])),tbl_Emp[[#This Row],[Helper 1]],\"\"))","v":0},{"$f":"IFERROR(SMALL(tbl_Emp[Helper 2],tbl_Emp[[#This Row],[Helper 1]]),\"\")","v":0},{"$f":"IF(OR(tbl_Emp[[#This Row],[Helper 2]]<>\"\",tbl_Emp[[#This Row],[Helper 3]]<>\"\"),1,0)","v":1},{"$f":"IF(rng_Emp_Filter=\"\",0,IF(tbl_Emp[[#This Row],[Helper 2]]<>\"\",1,0))","v":0},{"$f":"IF(rng_Emp_Filter=\"\",tbl_Emp[[#This Row],[Helper 1]],INDEX(tbl_Emp[Helper 3],tbl_Emp[[#This Row],[Helper 1]]))","v":227},{"$f":"IFERROR(INDEX(tbl_Emp[Turn OFF Controls],tbl_Emp[[#This Row],[Link]]),\"\")","v":"Uncertain (1st century)"}]
["Uncertain (Antonine)","138-180",138,180,null,22800,{"$f":"tbl_Emp[[#This Row],[Turn OFF Controls]]","v":"Uncertain (Antonine)"},{"$f":"IF(ISTEXT(OFFSET(tbl_Emp[[#This Row],[Helper 1]],-1,0)),1,OFFSET(tbl_Emp[[#This Row],[Helper 1]],-1,0)+1)","v":228},{"$f":"IF(rng_Emp_Filter=\"\",0,IF(ISNUMBER(SEARCH(rng_Emp_Filter,tbl_Emp[[#This Row],[Helper Key]])),tbl_Emp[[#This Row],[Helper 1]],\"\"))","v":0},{"$f":"IFERROR(SMALL(tbl_Emp[Helper 2],tbl_Emp[[#This Row],[Helper 1]]),\"\")","v":0},{"$f":"IF(OR(tbl_Emp[[#This Row],[Helper 2]]<>\"\",tbl_Emp[[#This Row],[Helper 3]]<>\"\"),1,0)","v":1},{"$f":"IF(rng_Emp_Filter=\"\",0,IF(tbl_Emp[[#This Row],[Helper 2]]<>\"\",1,0))","v":0},{"$f":"IF(rng_Emp_Filter=\"\",tbl_Emp[[#This Row],[Helper 1]],INDEX(tbl_Emp[Helper 3],tbl_Emp[[#This Row],[Helper 1]]))","v":228},{"$f":"IFERROR(INDEX(tbl_Emp[Turn OFF Controls],tbl_Emp[[#This Row],[Link]]),\"\")","v":"Uncertain (Antonine)"}]
["Uncertain (2nd century)","98-193",98,193,null,22900,{"$f":"tbl_Emp[[#This Row],[Turn OFF Controls]]","v":"Uncertain (2nd century)"},{"$f":"IF(ISTEXT(OFFSET(tbl_Emp[[#This Row],[Helper 1]],-1,0)),1,OFFSET(tbl_Emp[[#This Row],[Helper 1]],-1,0)+1)","v":229},{"$f":"IF(rng_Emp_Filter=\"\",0,IF(ISNUMBER(SEARCH(rng_Emp_Filter,tbl_Emp[[#This Row],[Helper Key]])),tbl_Emp[[#This Row],[Helper 1]],\"\"))","v":0},{"$f":"IFERROR(SMALL(tbl_Emp[Helper 2],tbl_Emp[[#This Row],[Helper 1]]),\"\")","v":0},{"$f":"IF(OR(tbl_Emp[[#This Row],[Helper 2]]<>\"\",tbl_Emp[[#This Row],[Helper 3]]<>\"\"),1,0)","v":1},{"$f":"IF(rng_Emp_Filter=\"\",0,IF(tbl_Emp[[#This Row],[Helper 2]]<>\"\",1,0))","v":0},{"$f":"IF(rng_Emp_Filter=\"\",tbl_Emp[[#This Row],[Helper 1]],INDEX(tbl_Emp[Helper 3],tbl_Emp[[#This Row],[Helper 1]]))","v":229},{"$f":"IFERROR(INDEX(tbl_Emp[Turn OFF Controls],tbl_Emp[[#This Row],[Link]]),\"\")","v":"Uncertain (2nd century)"}]
["Uncertain (1st/2nd century)","27 BC-193",-27,193,null,23000,{"$f":"tbl_Emp[[#This Row],[Turn OFF Controls]]","v":"Uncertain (1st/2nd century)"},{"$f":"IF(ISTEXT(OFFSET(tbl_Emp[[#This Row],[Helper 1]],-1,0)),1,OFFSET(tbl_Emp[[#This Row],[Helper 1]],-1,0)+1)","v":230},{"$f":"IF(rng_Emp_Filter=\"\",0,IF(ISNUMBER(SEARCH(rng_Emp_Filter,tbl_Emp[[#This Row],[Helper Key]])),tbl_Emp[[#This Row],[Helper 1]],\"\"))","v":0},{"$f":"IFERROR(SMALL(tbl_Emp[Helper 2],tbl_Emp[[#This Row],[Helper 1]]),\"\")","v":0},{"$f":"IF(OR(tbl_Emp[[#This Row],[Helper 2]]<>\"\",tbl_Emp[[#This Row],[Helper 3]]<>\"\"),1,0)","v":1},{"$f":"IF(rng_Emp_Filter=\"\",0,IF(tbl_Emp[[#This Row],[Helper 2]]<>\"\",1,0))","v":0},{"$f":"IF(rng_Emp_Filter=\"\",tbl_Emp[[#This Row],[Helper 1]],INDEX(tbl_Emp[Helper 3],tbl_Emp[[#This Row],[Helper 1]]))","v":230},{"$f":"IFERROR(INDEX(tbl_Emp[Turn OFF Controls],tbl_Emp[[#This Row],[Link]]),\"\")","v":"Uncertain (1st/2nd century)"}]
["Uncertain (Severan Emperor)","193-235",193,235,11,23100,{"$f":"tbl_Emp[[#This Row],[Turn OFF Controls]]","v":"Uncertain (Severan Emperor)"},{"$f":"IF(ISTEXT(OFFSET(tbl_Emp[[#This Row],[Helper 1]],-1,0)),1,OFFSET(tbl_Emp[[#This Row],[Helper 1]],-1,0)+1)","v":231},{"$f":"IF(rng_Emp_Filter=\"\",0,IF(ISNUMBER(SEARCH(rng_Emp_Filter,tbl_Emp[[#This Row],[Helper Key]])),tbl_Emp[[#This Row],[Helper 1]],\"\"))","v":0},{"$f":"IFERROR(SMALL(tbl_Emp[Helper 2],tbl_Emp[[#This Row],[Helper 1]]),\"\")","v":0},{"$f":"IF(OR(tbl_Emp[[#This Row],[Helper 2]]<>\"\",tbl_Emp[[#This Row],[Helper 3]]<>\"\"),1,0)","v":1},{"$f":"IF(rng_Emp_Filter=\"\",0,IF(tbl_Emp[[#This Row],[Helper 2]]<>\"\",1,0))","v":0},{"$f":"IF(rng_Emp_Filter=\"\",tbl_Emp[[#This Row],[Helper 1]],INDEX(tbl_Emp[Helper 3],tbl_Emp[[#This Row],[Helper 1]]))","v":231},{"$f":"IFERROR(INDEX(tbl_Emp[Turn OFF Controls],tbl_Emp[[#This Row],[Link]]),\"\")","v":"Uncertain (Severan Emperor)"}]
["Uncertain (Severan Empress)","193-235",193,235,11,23200,{"$f":"tbl_Emp[[#This Row],[Turn OFF Controls]]","v":"Uncertain (Severan Empress)"},{"$f":"IF(ISTEXT(OFFSET(tbl_Emp[[#This Row],[Helper 1]],-1,0)),1,OFFSET(tbl_Emp[[#This Row],[Helper 1]],-1,0)+1)","v":232},{"$f":"IF(rng_Emp_Filter=\"\",0,IF(ISNUMBER(SEARCH(rng_Emp_Filter,tbl_Emp[[#This Row],[Helper Key]])),tbl_Emp[[#This Row],[Helper 1]],\"\"))","v":0},{"$f":"IFERROR(SMALL(tbl_Emp[Helper 2],tbl_Emp[[#This Row],[Helper 1]]),\"\")","v":0},{"$f":"IF(OR(tbl_Emp[[#This Row],[Helper 2]]<>\"\",tbl_Emp[[#This Row],[Helper 3]]<>\"\"),1,0)","v":1},{"$f":"IF(rng_Emp_Filter=\"\",0,IF(tbl_Emp[[#This Row],[Helper 2]]<>\"\",1,0))","v":0},{"$f":"IF(rng_Emp_Filter=\"\",tbl_Emp[[#This Row],[Helper 1]],INDEX(tbl_Emp[Helper 3],tbl_Emp[[#This Row],[Helper 1]]))","v":232},{"$f":"IFERROR(INDEX(tbl_Emp[Turn OFF Controls],tbl_Emp[[#This Row],[Link]]),\"\")","v":"Uncertain (Severan Empress)"}]
["Uncertain (Radiate)","260-296",260,296,null,23300,{"$f":"tbl_Emp[[#This Row],[Turn OFF Controls]]","v":"Uncertain (Radiate)"},{"$f":"IF(ISTEXT(OFFSET(tbl_Emp[[#This Row],[Helper 1]],-1,0)),1,OFFSET(tbl_Emp[[#This Row],[Helper 1]],-1,0)+1)","v":233},{"$f":"IF(rng_Emp_Filter=\"\",0,IF(ISNUMBER(SEARCH(rng_Emp_Filter,tbl_Emp[[#This Row],[Helper Key]])),tbl_Emp[[#This Row],[Helper 1]],\"\"))","v":0},{"$f":"IFERROR(SMALL(tbl_Emp[Helper 2],tbl_Emp[[#This Row],[Helper 1]]),\"\")","v":0},{"$f":"IF(OR(tbl_Emp[[#This Row],[Helper 2]]<>\"\",tbl_Emp[[#This Row],[Helper 3]]<>\"\"),1,0)","v":1},{"$f":"IF(rng_Emp_Filter=\"\",0,IF(tbl_Emp[[#This Row],[Helper 2]]<>\"\",1,0))","v":0},{"$f":"IF(rng_Emp_Filter=\"\",tbl_Emp[[#This Row],[Helper 1]],INDEX(tbl_Emp[Helper 3],tbl_Emp[[#This Row],[Helper 1]]))","v":233},{"$f":"IFERROR(INDEX(tbl_Emp[Turn OFF Controls],tbl_Emp[[#This Row],[Link]]),\"\")","v":"Uncertain (Radiate)"}]
["Uncertain (4th century)","296-402",296,402,null,23400,{"$f":"tbl_Emp[[#This Row],[Turn OFF Controls]]","v":"Uncertain (4th century)"},{"$f":"IF(ISTEXT(OFFSET(tbl_Emp[[#This Row],[Helper 1]],-1,0)),1,OFFSET(tbl_Emp[[#This Row],[Helper 1]],-1,0)+1)","v":234},{"$f":"IF(rng_Emp_Filter=\"\",0,IF(ISNUMBER(SEARCH(rng_Emp_Filter,tbl_Emp[[#This Row],[Helper Key]])),tbl_Emp[[#This Row],[Helper 1]],\"\"))","v":0},{"$f":"IFERROR(SMALL(tbl_Emp[Helper 2],tbl_Emp[[#This Row],[Helper 1]]),\"\")","v":0},{"$f":"IF(OR(tbl_Emp[[#This Row],[Helper 2]]<>\"\",tbl_Emp[[#This Row],[Helper 3]]<>\"\"),1,0)","v":1},{"$f":"IF(rng_Emp_Filter=\"\",0,IF(tbl_Emp[[#This Row],[Helper 2]]<>\"\",1,0))","v":0},{"$f":"IF(rng_Emp_Filter=\"\",tbl_Emp[[#This Row],[Helper 1]],INDEX(tbl_Emp[Helper 3],tbl_Emp[[#This Row],[Helper 1]]))","v":234},{"$f":"IFERROR(INDEX(tbl_Emp[Turn OFF Controls],tbl_Emp[[#This Row],[Link]]),\"\")","v":"Uncertain (4th century)"}]
["Uncertain (late 3rd/4th century)","260-402",260,402,null,23500,{"$f":"tbl_Emp[[#This Row],[Turn OFF Controls]]","v":"Uncertain (late 3rd/4th century)"},{"$f":"IF(ISTEXT(OFFSET(tbl_Emp[[#This Row],[Helper 1]],-1,0)),1,OFFSET(tbl_Emp[[#This Row],[Helper 1]],-1,0)+1)","v":235},{"$f":"IF(rng_Emp_Filter=\"\",0,IF(ISNUMBER(SEARCH(rng_Emp_Filter,tbl_Emp[[#This Row],[Helper Key]])),tbl_Emp[[#This Row],[Helper 1]],\"\"))","v":0},{"$f":"IFERROR(SMALL(tbl_Emp[Helper 2],tbl_Emp[[#This Row],[Helper 1]]),\"\")","v":0},{"$f":"IF(OR(tbl_Emp[[#This Row],[Helper 2]]<>\"\",tbl_Emp[[#This Row],[Helper 3]]<>\"\"),1,0)","v":1},{"$f":"IF(rng_Emp_Filter=\"\",0,IF(tbl_Emp[[#This Row],[Helper 2]]<>\"\",1,0))","v":0},{"$f":"IF(rng_Emp_Filter=\"\",tbl_Emp[[#This Row],[Helper 1]],INDEX(tbl_Emp[Helper 3],tbl_Emp[[#This Row],[Helper 1]]))","v":235},{"$f":"IFERROR(INDEX(tbl_Emp[Turn OFF Controls],tbl_Emp[[#This Row],[Link]]),\"\")","v":"Uncertain (late 3rd/4th century)"}]
["Uncertain (5th century)","402-491",402,491,null,23600,{"$f":"tbl_Emp[[#This Row],[Turn OFF Controls]]","v":"Uncertain (5th century)"},{"$f":"IF(ISTEXT(OFFSET(tbl_Emp[[#This Row],[Helper 1]],-1,0)),1,OFFSET(tbl_Emp[[#This Row],[Helper 1]],-1,0)+1)","v":236},{"$f":"IF(rng_Emp_Filter=\"\",0,IF(ISNUMBER(SEARCH(rng_Emp_Filter,tbl_Emp[[#This Row],[Helper Key]])),tbl_Emp[[#This Row],[Helper 1]],\"\"))","v":0},{"$f":"IFERROR(SMALL(tbl_Emp[Helper 2],tbl_Emp[[#This Row],[Helper 1]]),\"\")","v":0},{"$f":"IF(OR(tbl_Emp[[#This Row],[Helper 2]]<>\"\",tbl_Emp[[#This Row],[Helper 3]]<>\"\"),1,0)","v":1},{"$f":"IF(rng_Emp_Filter=\"\",0,IF(tbl_Emp[[#This Row],[Helper 2]]<>\"\",1,0))","v":0},{"$f":"IF(rng_Emp_Filter=\"\",tbl_Emp[[#This Row],[Helper 1]],INDEX(tbl_Emp[Helper 3],tbl_Emp[[#This Row],[Helper 1]]))","v":236},{"$f":"IFERROR(INDEX(tbl_Emp[Turn OFF Controls],tbl_Emp[[#This Row],[Link]]),\"\")","v":"Uncertain (5th century)"}]
["Uncertain (Roman)","41-402",41,402,null,23700,{"$f":"tbl_Emp[[#This Row],[Turn OFF Controls]]","v":"Uncertain (Roman)"},{"$f":"IF(ISTEXT(OFFSET(tbl_Emp[[#This Row],[Helper 1]],-1,0)),1,OFFSET(tbl_Emp[[#This Row],[Helper 1]],-1,0)+1)","v":237},{"$f":"IF(rng_Emp_Filter=\"\",0,IF(ISNUMBER(SEARCH(rng_Emp_Filter,tbl_Emp[[#This Row],[Helper Key]])),tbl_Emp[[#This Row],[Helper 1]],\"\"))","v":0},{"$f":"IFERROR(SMALL(tbl_Emp[Helper 2],tbl_Emp[[#This Row],[Helper 1]]),\"\")","v":0},{"$f":"IF(OR(tbl_Emp[[#This Row],[Helper 2]]<>\"\",tbl_Emp[[#This Row],[Helper 3]]<>\"\"),1,0)","v":1},{"$f":"IF(rng_Emp_Filter=\"\",0,IF(tbl_Emp[[#This Row],[Helper 2]]<>\"\",1,0))","v":0},{"$f":"IF(rng_Emp_Filter=\"\",tbl_Emp[[#This Row],[Helper 1]],INDEX(tbl_Emp[Helper 3],tbl_Emp[[#This Row],[Helper 1]]))","v":237},{"$f":"IFERROR(INDEX(tbl_Emp[Turn OFF Controls],tbl_Emp[[#This Row],[Link]]),\"\")","v":"Uncertain (Roman)"}]

{"sheet":"Denominations tbl","index":3,"n_rows":31,"n_cols":16,"rows_kept":31,"cut":false,"hidden":false,"merged":[]}
["Denomination","Metal","heirarchy","Helper Key","Helper 1","Helper 2","Helper 3","Helper 4","Helper 5","Link","FilterDen",null,"rng_Den_Filter >>>",null,null,"<<< Hidden Technical Area"]
["Aureus","Gold",100,{"$f":"tbl_Den[[#This Row],[Denomination]]","v":"Aureus"},{"$f":"IF(ISTEXT(OFFSET(tbl_Den[[#This Row],[Helper 1]],-1,0)),1,OFFSET(tbl_Den[[#This Row],[Helper 1]],-1,0)+1)","v":1},{"$f":"IF(rng_Den_Filter=\"\",0,IF(ISNUMBER(SEARCH(rng_Den_Filter,tbl_Den[[#This Row],[Helper Key]])),tbl_Den[[#This Row],[Helper 1]],\"\"))","v":0},{"$f":"IFERROR(SMALL(tbl_Den[Helper 2],tbl_Den[[#This Row],[Helper 1]]),\"\")","v":0},{"$f":"IF(OR(tbl_Den[[#This Row],[Helper 2]]<>\"\",tbl_Den[[#This Row],[Helper 3]]<>\"\"),1,0)","v":1},{"$f":"IF(rng_Den_Filter=\"\",0,IF(tbl_Den[[#This Row],[Helper 2]]<>\"\",1,0))","v":0},{"$f":"IF(rng_Den_Filter=\"\",tbl_Den[[#This Row],[Helper 1]],INDEX(tbl_Den[Helper 3],tbl_Den[[#This Row],[Helper 1]]))","v":1},{"$f":"IFERROR(INDEX(tbl_Den[Denomination],tbl_Den[[#This Row],[Link]]),\"\")","v":"Aureus"},null,"rng_DenCount >>>",{"$f":"COUNTA(tbl_Den[Helper 1])-COUNTIF(tbl_Den[Link],\"\")","v":30}]
["Solidus","Gold",{"$f":"C2+100","v":200},{"$f":"tbl_Den[[#This Row],[Denomination]]","v":"Solidus"},{"$f":"IF(ISTEXT(OFFSET(tbl_Den[[#This Row],[Helper 1]],-1,0)),1,OFFSET(tbl_Den[[#This Row],[Helper 1]],-1,0)+1)","v":2},{"$f":"IF(rng_Den_Filter=\"\",0,IF(ISNUMBER(SEARCH(rng_Den_Filter,tbl_Den[[#This Row],[Helper Key]])),tbl_Den[[#This Row],[Helper 1]],\"\"))","v":0},{"$f":"IFERROR(SMALL(tbl_Den[Helper 2],tbl_Den[[#This Row],[Helper 1]]),\"\")","v":0},{"$f":"IF(OR(tbl_Den[[#This Row],[Helper 2]]<>\"\",tbl_Den[[#This Row],[Helper 3]]<>\"\"),1,0)","v":1},{"$f":"IF(rng_Den_Filter=\"\",0,IF(tbl_Den[[#This Row],[Helper 2]]<>\"\",1,0))","v":0},{"$f":"IF(rng_Den_Filter=\"\",tbl_Den[[#This Row],[Helper 1]],INDEX(tbl_Den[Helper 3],tbl_Den[[#This Row],[Helper 1]]))","v":2},{"$f":"IFERROR(INDEX(tbl_Den[Denomination],tbl_Den[[#This Row],[Link]]),\"\")","v":"Solidus"},null,"rng_DenSel >>>","Aureus"]
["Solidus (fraction)","Gold",300,{"$f":"tbl_Den[[#This Row],[Denomination]]","v":"Solidus (fraction)"},{"$f":"IF(ISTEXT(OFFSET(tbl_Den[[#This Row],[Helper 1]],-1,0)),1,OFFSET(tbl_Den[[#This Row],[Helper 1]],-1,0)+1)","v":3},{"$f":"IF(rng_Den_Filter=\"\",0,IF(ISNUMBER(SEARCH(rng_Den_Filter,tbl_Den[[#This Row],[Helper Key]])),tbl_Den[[#This Row],[Helper 1]],\"\"))","v":0},{"$f":"IFERROR(SMALL(tbl_Den[Helper 2],tbl_Den[[#This Row],[Helper 1]]),\"\")","v":0},{"$f":"IF(OR(tbl_Den[[#This Row],[Helper 2]]<>\"\",tbl_Den[[#This Row],[Helper 3]]<>\"\"),1,0)","v":1},{"$f":"IF(rng_Den_Filter=\"\",0,IF(tbl_Den[[#This Row],[Helper 2]]<>\"\",1,0))","v":0},{"$f":"IF(rng_Den_Filter=\"\",tbl_Den[[#This Row],[Helper 1]],INDEX(tbl_Den[Helper 3],tbl_Den[[#This Row],[Helper 1]]))","v":3},{"$f":"IFERROR(INDEX(tbl_Den[Denomination],tbl_Den[[#This Row],[Link]]),\"\")","v":"Solidus (fraction)"}]
["Solidus (multiple)","Gold",400,{"$f":"tbl_Den[[#This Row],[Denomination]]","v":"Solidus (multiple)"},{"$f":"IF(ISTEXT(OFFSET(tbl_Den[[#This Row],[Helper 1]],-1,0)),1,OFFSET(tbl_Den[[#This Row],[Helper 1]],-1,0)+1)","v":4},{"$f":"IF(rng_Den_Filter=\"\",0,IF(ISNUMBER(SEARCH(rng_Den_Filter,tbl_Den[[#This Row],[Helper Key]])),tbl_Den[[#This Row],[Helper 1]],\"\"))","v":0},{"$f":"IFERROR(SMALL(tbl_Den[Helper 2],tbl_Den[[#This Row],[Helper 1]]),\"\")","v":0},{"$f":"IF(OR(tbl_Den[[#This Row],[Helper 2]]<>\"\",tbl_Den[[#This Row],[Helper 3]]<>\"\"),1,0)","v":1},{"$f":"IF(rng_Den_Filter=\"\",0,IF(tbl_Den[[#This Row],[Helper 2]]<>\"\",1,0))","v":0},{"$f":"IF(rng_Den_Filter=\"\",tbl_Den[[#This Row],[Helper 1]],INDEX(tbl_Den[Helper 3],tbl_Den[[#This Row],[Helper 1]]))","v":4},{"$f":"IFERROR(INDEX(tbl_Den[Denomination],tbl_Den[[#This Row],[Link]]),\"\")","v":"Solidus (multiple)"}]
["Uncertain Gold","Gold",500,{"$f":"tbl_Den[[#This Row],[Denomination]]","v":"Uncertain Gold"},{"$f":"IF(ISTEXT(OFFSET(tbl_Den[[#This Row],[Helper 1]],-1,0)),1,OFFSET(tbl_Den[[#This Row],[Helper 1]],-1,0)+1)","v":5},{"$f":"IF(rng_Den_Filter=\"\",0,IF(ISNUMBER(SEARCH(rng_Den_Filter,tbl_Den[[#This Row],[Helper Key]])),tbl_Den[[#This Row],[Helper 1]],\"\"))","v":0},{"$f":"IFERROR(SMALL(tbl_Den[Helper 2],tbl_Den[[#This Row],[Helper 1]]),\"\")","v":0},{"$f":"IF(OR(tbl_Den[[#This Row],[Helper 2]]<>\"\",tbl_Den[[#This Row],[Helper 3]]<>\"\"),1,0)","v":1},{"$f":"IF(rng_Den_Filter=\"\",0,IF(tbl_Den[[#This Row],[Helper 2]]<>\"\",1,0))","v":0},{"$f":"IF(rng_Den_Filter=\"\",tbl_Den[[#This Row],[Helper 1]],INDEX(tbl_Den[Helper 3],tbl_Den[[#This Row],[Helper 1]]))","v":5},{"$f":"IFERROR(INDEX(tbl_Den[Denomination],tbl_Den[[#This Row],[Link]]),\"\")","v":"Uncertain Gold"}]
["Denarius","Silver",600,{"$f":"tbl_Den[[#This Row],[Denomination]]","v":"Denarius"},{"$f":"IF(ISTEXT(OFFSET(tbl_Den[[#This Row],[Helper 1]],-1,0)),1,OFFSET(tbl_Den[[#This Row],[Helper 1]],-1,0)+1)","v":6},{"$f":"IF(rng_Den_Filter=\"\",0,IF(ISNUMBER(SEARCH(rng_Den_Filter,tbl_Den[[#This Row],[Helper Key]])),tbl_Den[[#This Row],[Helper 1]],\"\"))","v":0},{"$f":"IFERROR(SMALL(tbl_Den[Helper 2],tbl_Den[[#This Row],[Helper 1]]),\"\")","v":0},{"$f":"IF(OR(tbl_Den[[#This Row],[Helper 2]]<>\"\",tbl_Den[[#This Row],[Helper 3]]<>\"\"),1,0)","v":1},{"$f":"IF(rng_Den_Filter=\"\",0,IF(tbl_Den[[#This Row],[Helper 2]]<>\"\",1,0))","v":0},{"$f":"IF(rng_Den_Filter=\"\",tbl_Den[[#This Row],[Helper 1]],INDEX(tbl_Den[Helper 3],tbl_Den[[#This Row],[Helper 1]]))","v":6},{"$f":"IFERROR(INDEX(tbl_Den[Denomination],tbl_Den[[#This Row],[Link]]),\"\")","v":"Denarius"}]
["Quinarius","Silver",700,{"$f":"tbl_Den[[#This Row],[Denomination]]","v":"Quinarius"},{"$f":"IF(ISTEXT(OFFSET(tbl_Den[[#This Row],[Helper 1]],-1,0)),1,OFFSET(tbl_Den[[#This Row],[Helper 1]],-1,0)+1)","v":7},{"$f":"IF(rng_Den_Filter=\"\",0,IF(ISNUMBER(SEARCH(rng_Den_Filter,tbl_Den[[#This Row],[Helper Key]])),tbl_Den[[#This Row],[Helper 1]],\"\"))","v":0},{"$f":"IFERROR(SMALL(tbl_Den[Helper 2],tbl_Den[[#This Row],[Helper 1]]),\"\")","v":0},{"$f":"IF(OR(tbl_Den[[#This Row],[Helper 2]]<>\"\",tbl_Den[[#This Row],[Helper 3]]<>\"\"),1,0)","v":1},{"$f":"IF(rng_Den_Filter=\"\",0,IF(tbl_Den[[#This Row],[Helper 2]]<>\"\",1,0))","v":0},{"$f":"IF(rng_Den_Filter=\"\",tbl_Den[[#This Row],[Helper 1]],INDEX(tbl_Den[Helper 3],tbl_Den[[#This Row],[Helper 1]]))","v":7},{"$f":"IFERROR(INDEX(tbl_Den[Denomination],tbl_Den[[#This Row],[Link]]),\"\")","v":"Quinarius"}]
["Argenteus","Silver",800,{"$f":"tbl_Den[[#This Row],[Denomination]]","v":"Argenteus"},{"$f":"IF(ISTEXT(OFFSET(tbl_Den[[#This Row],[Helper 1]],-1,0)),1,OFFSET(tbl_Den[[#This Row],[Helper 1]],-1,0)+1)","v":8},{"$f":"IF(rng_Den_Filter=\"\",0,IF(ISNUMBER(SEARCH(rng_Den_Filter,tbl_Den[[#This Row],[Helper Key]])),tbl_Den[[#This Row],[Helper 1]],\"\"))","v":0},{"$f":"IFERROR(SMALL(tbl_Den[Helper 2],tbl_Den[[#This Row],[Helper 1]]),\"\")","v":0},{"$f":"IF(OR(tbl_Den[[#This Row],[Helper 2]]<>\"\",tbl_Den[[#This Row],[Helper 3]]<>\"\"),1,0)","v":1},{"$f":"IF(rng_Den_Filter=\"\",0,IF(tbl_Den[[#This Row],[Helper 2]]<>\"\",1,0))","v":0},{"$f":"IF(rng_Den_Filter=\"\",tbl_Den[[#This Row],[Helper 1]],INDEX(tbl_Den[Helper 3],tbl_Den[[#This Row],[Helper 1]]))","v":8},{"$f":"IFERROR(INDEX(tbl_Den[Denomination],tbl_Den[[#This Row],[Link]]),\"\")","v":"Argenteus"}]
["Miliarensis","Silver",900,{"$f":"tbl_Den[[#This Row],[Denomination]]","v":"Miliarensis"},{"$f":"IF(ISTEXT(OFFSET(tbl_Den[[#This Row],[Helper 1]],-1,0)),1,OFFSET(tbl_Den[[#This Row],[Helper 1]],-1,0)+1)","v":9},{"$f":"IF(rng_Den_Filter=\"\",0,IF(ISNUMBER(SEARCH(rng_Den_Filter,tbl_Den[[#This Row],[Helper Key]])),tbl_Den[[#This Row],[Helper 1]],\"\"))","v":0},{"$f":"IFERROR(SMALL(tbl_Den[Helper 2],tbl_Den[[#This Row],[Helper 1]]),\"\")","v":0},{"$f":"IF(OR(tbl_Den[[#This Row],[Helper 2]]<>\"\",tbl_Den[[#This Row],[Helper 3]]<>\"\"),1,0)","v":1},{"$f":"IF(rng_Den_Filter=\"\",0,IF(tbl_Den[[#This Row],[Helper 2]]<>\"\",1,0))","v":0},{"$f":"IF(rng_Den_Filter=\"\",tbl_Den[[#This Row],[Helper 1]],INDEX(tbl_Den[Helper 3],tbl_Den[[#This Row],[Helper 1]]))","v":9},{"$f":"IFERROR(INDEX(tbl_Den[Denomination],tbl_Den[[#This Row],[Link]]),\"\")","v":"Miliarensis"}]
["Siliqua","Silver",1000,{"$f":"tbl_Den[[#This Row],[Denomination]]","v":"Siliqua"},{"$f":"IF(ISTEXT(OFFSET(tbl_Den[[#This Row],[Helper 1]],-1,0)),1,OFFSET(tbl_Den[[#This Row],[Helper 1]],-1,0)+1)","v":10},{"$f":"IF(rng_Den_Filter=\"\",0,IF(ISNUMBER(SEARCH(rng_Den_Filter,tbl_Den[[#This Row],[Helper Key]])),tbl_Den[[#This Row],[Helper 1]],\"\"))","v":0},{"$f":"IFERROR(SMALL(tbl_Den[Helper 2],tbl_Den[[#This Row],[Helper 1]]),\"\")","v":0},{"$f":"IF(OR(tbl_Den[[#This Row],[Helper 2]]<>\"\",tbl_Den[[#This Row],[Helper 3]]<>\"\"),1,0)","v":1},{"$f":"IF(rng_Den_Filter=\"\",0,IF(tbl_Den[[#This Row],[Helper 2]]<>\"\",1,0))","v":0},{"$f":"IF(rng_Den_Filter=\"\",tbl_Den[[#This Row],[Helper 1]],INDEX(tbl_Den[Helper 3],tbl_Den[[#This Row],[Helper 1]]))","v":10},{"$f":"IFERROR(INDEX(tbl_Den[Denomination],tbl_Den[[#This Row],[Link]]),\"\")","v":"Siliqua"}]
["Half-siliqua","Silver",1100,{"$f":"tbl_Den[[#This Row],[Denomination]]","v":"Half-siliqua"},{"$f":"IF(ISTEXT(OFFSET(tbl_Den[[#This Row],[Helper 1]],-1,0)),1,OFFSET(tbl_Den[[#This Row],[Helper 1]],-1,0)+1)","v":11},{"$f":"IF(rng_Den_Filter=\"\",0,IF(ISNUMBER(SEARCH(rng_Den_Filter,tbl_Den[[#This Row],[Helper Key]])),tbl_Den[[#This Row],[Helper 1]],\"\"))","v":0},{"$f":"IFERROR(SMALL(tbl_Den[Helper 2],tbl_Den[[#This Row],[Helper 1]]),\"\")","v":0},{"$f":"IF(OR(tbl_Den[[#This Row],[Helper 2]]<>\"\",tbl_Den[[#This Row],[Helper 3]]<>\"\"),1,0)","v":1},{"$f":"IF(rng_Den_Filter=\"\",0,IF(tbl_Den[[#This Row],[Helper 2]]<>\"\",1,0))","v":0},{"$f":"IF(rng_Den_Filter=\"\",tbl_Den[[#This Row],[Helper 1]],INDEX(tbl_Den[Helper 3],tbl_Den[[#This Row],[Helper 1]]))","v":11},{"$f":"IFERROR(INDEX(tbl_Den[Denomination],tbl_Den[[#This Row],[Link]]),\"\")","v":"Half-siliqua"}]
["Uncertain Silver","Silver",1200,{"$f":"tbl_Den[[#This Row],[Denomination]]","v":"Uncertain Silver"},{"$f":"IF(ISTEXT(OFFSET(tbl_Den[[#This Row],[Helper 1]],-1,0)),1,OFFSET(tbl_Den[[#This Row],[Helper 1]],-1,0)+1)","v":12},{"$f":"IF(rng_Den_Filter=\"\",0,IF(ISNUMBER(SEARCH(rng_Den_Filter,tbl_Den[[#This Row],[Helper Key]])),tbl_Den[[#This Row],[Helper 1]],\"\"))","v":0},{"$f":"IFERROR(SMALL(tbl_Den[Helper 2],tbl_Den[[#This Row],[Helper 1]]),\"\")","v":0},{"$f":"IF(OR(tbl_Den[[#This Row],[Helper 2]]<>\"\",tbl_Den[[#This Row],[Helper 3]]<>\"\"),1,0)","v":1},{"$f":"IF(rng_Den_Filter=\"\",0,IF(tbl_Den[[#This Row],[Helper 2]]<>\"\",1,0))","v":0},{"$f":"IF(rng_Den_Filter=\"\",tbl_Den[[#This Row],[Helper 1]],INDEX(tbl_Den[Helper 3],tbl_Den[[#This Row],[Helper 1]]))","v":12},{"$f":"IFERROR(INDEX(tbl_Den[Denomination],tbl_Den[[#This Row],[Link]]),\"\")","v":"Uncertain Silver"}]
["Radiate","Billon",1300,{"$f":"tbl_Den[[#This Row],[Denomination]]","v":"Radiate"},{"$f":"IF(ISTEXT(OFFSET(tbl_Den[[#This Row],[Helper 1]],-1,0)),1,OFFSET(tbl_Den[[#This Row],[Helper 1]],-1,0)+1)","v":13},{"$f":"IF(rng_Den_Filter=\"\",0,IF(ISNUMBER(SEARCH(rng_Den_Filter,tbl_Den[[#This Row],[Helper Key]])),tbl_Den[[#This Row],[Helper 1]],\"\"))","v":0},{"$f":"IFERROR(SMALL(tbl_Den[Helper 2],tbl_Den[[#This Row],[Helper 1]]),\"\")","v":0},{"$f":"IF(OR(tbl_Den[[#This Row],[Helper 2]]<>\"\",tbl_Den[[#This Row],[Helper 3]]<>\"\"),1,0)","v":1},{"$f":"IF(rng_Den_Filter=\"\",0,IF(tbl_Den[[#This Row],[Helper 2]]<>\"\",1,0))","v":0},{"$f":"IF(rng_Den_Filter=\"\",tbl_Den[[#This Row],[Helper 1]],INDEX(tbl_Den[Helper 3],tbl_Den[[#This Row],[Helper 1]]))","v":13},{"$f":"IFERROR(INDEX(tbl_Den[Denomination],tbl_Den[[#This Row],[Link]]),\"\")","v":"Radiate"}]
["Double sestertius","Copper alloy",1400,{"$f":"tbl_Den[[#This Row],[Denomination]]","v":"Double sestertius"},{"$f":"IF(ISTEXT(OFFSET(tbl_Den[[#This Row],[Helper 1]],-1,0)),1,OFFSET(tbl_Den[[#This Row],[Helper 1]],-1,0)+1)","v":14},{"$f":"IF(rng_Den_Filter=\"\",0,IF(ISNUMBER(SEARCH(rng_Den_Filter,tbl_Den[[#This Row],[Helper Key]])),tbl_Den[[#This Row],[Helper 1]],\"\"))","v":0},{"$f":"IFERROR(SMALL(tbl_Den[Helper 2],tbl_Den[[#This Row],[Helper 1]]),\"\")","v":0},{"$f":"IF(OR(tbl_Den[[#This Row],[Helper 2]]<>\"\",tbl_Den[[#This Row],[Helper 3]]<>\"\"),1,0)","v":1},{"$f":"IF(rng_Den_Filter=\"\",0,IF(tbl_Den[[#This Row],[Helper 2]]<>\"\",1,0))","v":0},{"$f":"IF(rng_Den_Filter=\"\",tbl_Den[[#This Row],[Helper 1]],INDEX(tbl_Den[Helper 3],tbl_Den[[#This Row],[Helper 1]]))","v":14},{"$f":"IFERROR(INDEX(tbl_Den[Denomination],tbl_Den[[#This Row],[Link]]),\"\")","v":"Double sestertius"}]
["Sestertius","Copper alloy",1500,{"$f":"tbl_Den[[#This Row],[Denomination]]","v":"Sestertius"},{"$f":"IF(ISTEXT(OFFSET(tbl_Den[[#This Row],[Helper 1]],-1,0)),1,OFFSET(tbl_Den[[#This Row],[Helper 1]],-1,0)+1)","v":15},{"$f":"IF(rng_Den_Filter=\"\",0,IF(ISNUMBER(SEARCH(rng_Den_Filter,tbl_Den[[#This Row],[Helper Key]])),tbl_Den[[#This Row],[Helper 1]],\"\"))","v":0},{"$f":"IFERROR(SMALL(tbl_Den[Helper 2],tbl_Den[[#This Row],[Helper 1]]),\"\")","v":0},{"$f":"IF(OR(tbl_Den[[#This Row],[Helper 2]]<>\"\",tbl_Den[[#This Row],[Helper 3]]<>\"\"),1,0)","v":1},{"$f":"IF(rng_Den_Filter=\"\",0,IF(tbl_Den[[#This Row],[Helper 2]]<>\"\",1,0))","v":0},{"$f":"IF(rng_Den_Filter=\"\",tbl_Den[[#This Row],[Helper 1]],INDEX(tbl_Den[Helper 3],tbl_Den[[#This Row],[Helper 1]]))","v":15},{"$f":"IFERROR(INDEX(tbl_Den[Denomination],tbl_Den[[#This Row],[Link]]),\"\")","v":"Sestertius"}]
["Dupondius","Copper alloy",1600,{"$f":"tbl_Den[[#This Row],[Denomination]]","v":"Dupondius"},{"$f":"IF(ISTEXT(OFFSET(tbl_Den[[#This Row],[Helper 1]],-1,0)),1,OFFSET(tbl_Den[[#This Row],[Helper 1]],-1,0)+1)","v":16},{"$f":"IF(rng_Den_Filter=\"\",0,IF(ISNUMBER(SEARCH(rng_Den_Filter,tbl_Den[[#This Row],[Helper Key]])),tbl_Den[[#This Row],[Helper 1]],\"\"))","v":0},{"$f":"IFERROR(SMALL(tbl_Den[Helper 2],tbl_Den[[#This Row],[Helper 1]]),\"\")","v":0},{"$f":"IF(OR(tbl_Den[[#This Row],[Helper 2]]<>\"\",tbl_Den[[#This Row],[Helper 3]]<>\"\"),1,0)","v":1},{"$f":"IF(rng_Den_Filter=\"\",0,IF(tbl_Den[[#This Row],[Helper 2]]<>\"\",1,0))","v":0},{"$f":"IF(rng_Den_Filter=\"\",tbl_Den[[#This Row],[Helper 1]],INDEX(tbl_Den[Helper 3],tbl_Den[[#This Row],[Helper 1]]))","v":16},{"$f":"IFERROR(INDEX(tbl_Den[Denomination],tbl_Den[[#This Row],[Link]]),\"\")","v":"Dupondius"}]
["As","Copper alloy",1700,{"$f":"tbl_Den[[#This Row],[Denomination]]","v":"As"},{"$f":"IF(ISTEXT(OFFSET(tbl_Den[[#This Row],[Helper 1]],-1,0)),1,OFFSET(tbl_Den[[#This Row],[Helper 1]],-1,0)+1)","v":17},{"$f":"IF(rng_Den_Filter=\"\",0,IF(ISNUMBER(SEARCH(rng_Den_Filter,tbl_Den[[#This Row],[Helper Key]])),tbl_Den[[#This Row],[Helper 1]],\"\"))","v":0},{"$f":"IFERROR(SMALL(tbl_Den[Helper 2],tbl_Den[[#This Row],[Helper 1]]),\"\")","v":0},{"$f":"IF(OR(tbl_Den[[#This Row],[Helper 2]]<>\"\",tbl_Den[[#This Row],[Helper 3]]<>\"\"),1,0)","v":1},{"$f":"IF(rng_Den_Filter=\"\",0,IF(tbl_Den[[#This Row],[Helper 2]]<>\"\",1,0))","v":0},{"$f":"IF(rng_Den_Filter=\"\",tbl_Den[[#This Row],[Helper 1]],INDEX(tbl_Den[Helper 3],tbl_Den[[#This Row],[Helper 1]]))","v":17},{"$f":"IFERROR(INDEX(tbl_Den[Denomination],tbl_Den[[#This Row],[Link]]),\"\")","v":"As"}]
["Dupondius/As","Copper alloy",1800,{"$f":"tbl_Den[[#This Row],[Denomination]]","v":"Dupondius/As"},{"$f":"IF(ISTEXT(OFFSET(tbl_Den[[#This Row],[Helper 1]],-1,0)),1,OFFSET(tbl_Den[[#This Row],[Helper 1]],-1,0)+1)","v":18},{"$f":"IF(rng_Den_Filter=\"\",0,IF(ISNUMBER(SEARCH(rng_Den_Filter,tbl_Den[[#This Row],[Helper Key]])),tbl_Den[[#This Row],[Helper 1]],\"\"))","v":0},{"$f":"IFERROR(SMALL(tbl_Den[Helper 2],tbl_Den[[#This Row],[Helper 1]]),\"\")","v":0},{"$f":"IF(OR(tbl_Den[[#This Row],[Helper 2]]<>\"\",tbl_Den[[#This Row],[Helper 3]]<>\"\"),1,0)","v":1},{"$f":"IF(rng_Den_Filter=\"\",0,IF(tbl_Den[[#This Row],[Helper 2]]<>\"\",1,0))","v":0},{"$f":"IF(rng_Den_Filter=\"\",tbl_Den[[#This Row],[Helper 1]],INDEX(tbl_Den[Helper 3],tbl_Den[[#This Row],[Helper 1]]))","v":18},{"$f":"IFERROR(INDEX(tbl_Den[Denomination],tbl_Den[[#This Row],[Link]]),\"\")","v":"Dupondius/As"}]
["Quadrans","Copper alloy",1900,{"$f":"tbl_Den[[#This Row],[Denomination]]","v":"Quadrans"},{"$f":"IF(ISTEXT(OFFSET(tbl_Den[[#This Row],[Helper 1]],-1,0)),1,OFFSET(tbl_Den[[#This Row],[Helper 1]],-1,0)+1)","v":19},{"$f":"IF(rng_Den_Filter=\"\",0,IF(ISNUMBER(SEARCH(rng_Den_Filter,tbl_Den[[#This Row],[Helper Key]])),tbl_Den[[#This Row],[Helper 1]],\"\"))","v":0},{"$f":"IFERROR(SMALL(tbl_Den[Helper 2],tbl_Den[[#This Row],[Helper 1]]),\"\")","v":0},{"$f":"IF(OR(tbl_Den[[#This Row],[Helper 2]]<>\"\",tbl_Den[[#This Row],[Helper 3]]<>\"\"),1,0)","v":1},{"$f":"IF(rng_Den_Filter=\"\",0,IF(tbl_Den[[#This Row],[Helper 2]]<>\"\",1,0))","v":0},{"$f":"IF(rng_Den_Filter=\"\",tbl_Den[[#This Row],[Helper 1]],INDEX(tbl_Den[Helper 3],tbl_Den[[#This Row],[Helper 1]]))","v":19},{"$f":"IFERROR(INDEX(tbl_Den[Denomination],tbl_Den[[#This Row],[Link]]),\"\")","v":"Quadrans"}]
["Semis","Copper alloy",2000,{"$f":"tbl_Den[[#This Row],[Denomination]]","v":"Semis"},{"$f":"IF(ISTEXT(OFFSET(tbl_Den[[#This Row],[Helper 1]],-1,0)),1,OFFSET(tbl_Den[[#This Row],[Helper 1]],-1,0)+1)","v":20},{"$f":"IF(rng_Den_Filter=\"\",0,IF(ISNUMBER(SEARCH(rng_Den_Filter,tbl_Den[[#This Row],[Helper Key]])),tbl_Den[[#This Row],[Helper 1]],\"\"))","v":0},{"$f":"IFERROR(SMALL(tbl_Den[Helper 2],tbl_Den[[#This Row],[Helper 1]]),\"\")","v":0},{"$f":"IF(OR(tbl_Den[[#This Row],[Helper 2]]<>\"\",tbl_Den[[#This Row],[Helper 3]]<>\"\"),1,0)","v":1},{"$f":"IF(rng_Den_Filter=\"\",0,IF(tbl_Den[[#This Row],[Helper 2]]<>\"\",1,0))","v":0},{"$f":"IF(rng_Den_Filter=\"\",tbl_Den[[#This Row],[Helper 1]],INDEX(tbl_Den[Helper 3],tbl_Den[[#This Row],[Helper 1]]))","v":20},{"$f":"IFERROR(INDEX(tbl_Den[Denomination],tbl_Den[[#This Row],[Link]]),\"\")","v":"Semis"}]
["Semis/Quadrans","Copper alloy",2100,{"$f":"tbl_Den[[#This Row],[Denomination]]","v":"Semis/Quadrans"},{"$f":"IF(ISTEXT(OFFSET(tbl_Den[[#This Row],[Helper 1]],-1,0)),1,OFFSET(tbl_Den[[#This Row],[Helper 1]],-1,0)+1)","v":21},{"$f":"IF(rng_Den_Filter=\"\",0,IF(ISNUMBER(SEARCH(rng_Den_Filter,tbl_Den[[#This Row],[Helper Key]])),tbl_Den[[#This Row],[Helper 1]],\"\"))","v":0},{"$f":"IFERROR(SMALL(tbl_Den[Helper 2],tbl_Den[[#This Row],[Helper 1]]),\"\")","v":0},{"$f":"IF(OR(tbl_Den[[#This Row],[Helper 2]]<>\"\",tbl_Den[[#This Row],[Helper 3]]<>\"\"),1,0)","v":1},{"$f":"IF(rng_Den_Filter=\"\",0,IF(tbl_Den[[#This Row],[Helper 2]]<>\"\",1,0))","v":0},{"$f":"IF(rng_Den_Filter=\"\",tbl_Den[[#This Row],[Helper 1]],INDEX(tbl_Den[Helper 3],tbl_Den[[#This Row],[Helper 1]]))","v":21},{"$f":"IFERROR(INDEX(tbl_Den[Denomination],tbl_Den[[#This Row],[Link]]),\"\")","v":"Semis/Quadrans"}]
["Uncia","Copper alloy",2200,{"$f":"tbl_Den[[#This Row],[Denomination]]","v":"Uncia"},{"$f":"IF(ISTEXT(OFFSET(tbl_Den[[#This Row],[Helper 1]],-1,0)),1,OFFSET(tbl_Den[[#This Row],[Helper 1]],-1,0)+1)","v":22},{"$f":"IF(rng_Den_Filter=\"\",0,IF(ISNUMBER(SEARCH(rng_Den_Filter,tbl_Den[[#This Row],[Helper Key]])),tbl_Den[[#This Row],[Helper 1]],\"\"))","v":0},{"$f":"IFERROR(SMALL(tbl_Den[Helper 2],tbl_Den[[#This Row],[Helper 1]]),\"\")","v":0},{"$f":"IF(OR(tbl_Den[[#This Row],[Helper 2]]<>\"\",tbl_Den[[#This Row],[Helper 3]]<>\"\"),1,0)","v":1},{"$f":"IF(rng_Den_Filter=\"\",0,IF(tbl_Den[[#This Row],[Helper 2]]<>\"\",1,0))","v":0},{"$f":"IF(rng_Den_Filter=\"\",tbl_Den[[#This Row],[Helper 1]],INDEX(tbl_Den[Helper 3],tbl_Den[[#This Row],[Helper 1]]))","v":22},{"$f":"IFERROR(INDEX(tbl_Den[Denomination],tbl_Den[[#This Row],[Link]]),\"\")","v":"Uncia"}]
["Roman Provincial","Copper alloy",2300,{"$f":"tbl_Den[[#This Row],[Denomination]]","v":"Roman Provincial"},{"$f":"IF(ISTEXT(OFFSET(tbl_Den[[#This Row],[Helper 1]],-1,0)),1,OFFSET(tbl_Den[[#This Row],[Helper 1]],-1,0)+1)","v":23},{"$f":"IF(rng_Den_Filter=\"\",0,IF(ISNUMBER(SEARCH(rng_Den_Filter,tbl_Den[[#This Row],[Helper Key]])),tbl_Den[[#This Row],[Helper 1]],\"\"))","v":0},{"$f":"IFERROR(SMALL(tbl_Den[Helper 2],tbl_Den[[#This Row],[Helper 1]]),\"\")","v":0},{"$f":"IF(OR(tbl_Den[[#This Row],[Helper 2]]<>\"\",tbl_Den[[#This Row],[Helper 3]]<>\"\"),1,0)","v":1},{"$f":"IF(rng_Den_Filter=\"\",0,IF(tbl_Den[[#This Row],[Helper 2]]<>\"\",1,0))","v":0},{"$f":"IF(rng_Den_Filter=\"\",tbl_Den[[#This Row],[Helper 1]],INDEX(tbl_Den[Helper 3],tbl_Den[[#This Row],[Helper 1]]))","v":23},{"$f":"IFERROR(INDEX(tbl_Den[Denomination],tbl_Den[[#This Row],[Link]]),\"\")","v":"Roman Provincial"}]
["Nummus","Billon/copper alloy",2400,{"$f":"tbl_Den[[#This Row],[Denomination]]","v":"Nummus"},{"$f":"IF(ISTEXT(OFFSET(tbl_Den[[#This Row],[Helper 1]],-1,0)),1,OFFSET(tbl_Den[[#This Row],[Helper 1]],-1,0)+1)","v":24},{"$f":"IF(rng_Den_Filter=\"\",0,IF(ISNUMBER(SEARCH(rng_Den_Filter,tbl_Den[[#This Row],[Helper Key]])),tbl_Den[[#This Row],[Helper 1]],\"\"))","v":0},{"$f":"IFERROR(SMALL(tbl_Den[Helper 2],tbl_Den[[#This Row],[Helper 1]]),\"\")","v":0},{"$f":"IF(OR(tbl_Den[[#This Row],[Helper 2]]<>\"\",tbl_Den[[#This Row],[Helper 3]]<>\"\"),1,0)","v":1},{"$f":"IF(rng_Den_Filter=\"\",0,IF(tbl_Den[[#This Row],[Helper 2]]<>\"\",1,0))","v":0},{"$f":"IF(rng_Den_Filter=\"\",tbl_Den[[#This Row],[Helper 1]],INDEX(tbl_Den[Helper 3],tbl_Den[[#This Row],[Helper 1]]))","v":24},{"$f":"IFERROR(INDEX(tbl_Den[Denomination],tbl_Den[[#This Row],[Link]]),\"\")","v":"Nummus"}]
["AE1","Billon/copper alloy",2500,{"$f":"tbl_Den[[#This Row],[Denomination]]","v":"AE1"},{"$f":"IF(ISTEXT(OFFSET(tbl_Den[[#This Row],[Helper 1]],-1,0)),1,OFFSET(tbl_Den[[#This Row],[Helper 1]],-1,0)+1)","v":25},{"$f":"IF(rng_Den_Filter=\"\",0,IF(ISNUMBER(SEARCH(rng_Den_Filter,tbl_Den[[#This Row],[Helper Key]])),tbl_Den[[#This Row],[Helper 1]],\"\"))","v":0},{"$f":"IFERROR(SMALL(tbl_Den[Helper 2],tbl_Den[[#This Row],[Helper 1]]),\"\")","v":0},{"$f":"IF(OR(tbl_Den[[#This Row],[Helper 2]]<>\"\",tbl_Den[[#This Row],[Helper 3]]<>\"\"),1,0)","v":1},{"$f":"IF(rng_Den_Filter=\"\",0,IF(tbl_Den[[#This Row],[Helper 2]]<>\"\",1,0))","v":0},{"$f":"IF(rng_Den_Filter=\"\",tbl_Den[[#This Row],[Helper 1]],INDEX(tbl_Den[Helper 3],tbl_Den[[#This Row],[Helper 1]]))","v":25},{"$f":"IFERROR(INDEX(tbl_Den[Denomination],tbl_Den[[#This Row],[Link]]),\"\")","v":"AE1"}]
["AE2","Billon/copper alloy",2600,{"$f":"tbl_Den[[#This Row],[Denomination]]","v":"AE2"},{"$f":"IF(ISTEXT(OFFSET(tbl_Den[[#This Row],[Helper 1]],-1,0)),1,OFFSET(tbl_Den[[#This Row],[Helper 1]],-1,0)+1)","v":26},{"$f":"IF(rng_Den_Filter=\"\",0,IF(ISNUMBER(SEARCH(rng_Den_Filter,tbl_Den[[#This Row],[Helper Key]])),tbl_Den[[#This Row],[Helper 1]],\"\"))","v":0},{"$f":"IFERROR(SMALL(tbl_Den[Helper 2],tbl_Den[[#This Row],[Helper 1]]),\"\")","v":0},{"$f":"IF(OR(tbl_Den[[#This Row],[Helper 2]]<>\"\",tbl_Den[[#This Row],[Helper 3]]<>\"\"),1,0)","v":1},{"$f":"IF(rng_Den_Filter=\"\",0,IF(tbl_Den[[#This Row],[Helper 2]]<>\"\",1,0))","v":0},{"$f":"IF(rng_Den_Filter=\"\",tbl_Den[[#This Row],[Helper 1]],INDEX(tbl_Den[Helper 3],tbl_Den[[#This Row],[Helper 1]]))","v":26},{"$f":"IFERROR(INDEX(tbl_Den[Denomination],tbl_Den[[#This Row],[Link]]),\"\")","v":"AE2"}]
["AE3","Billon/copper alloy",2700,{"$f":"tbl_Den[[#This Row],[Denomination]]","v":"AE3"},{"$f":"IF(ISTEXT(OFFSET(tbl_Den[[#This Row],[Helper 1]],-1,0)),1,OFFSET(tbl_Den[[#This Row],[Helper 1]],-1,0)+1)","v":27},{"$f":"IF(rng_Den_Filter=\"\",0,IF(ISNUMBER(SEARCH(rng_Den_Filter,tbl_Den[[#This Row],[Helper Key]])),tbl_Den[[#This Row],[Helper 1]],\"\"))","v":0},{"$f":"IFERROR(SMALL(tbl_Den[Helper 2],tbl_Den[[#This Row],[Helper 1]]),\"\")","v":0},{"$f":"IF(OR(tbl_Den[[#This Row],[Helper 2]]<>\"\",tbl_Den[[#This Row],[Helper 3]]<>\"\"),1,0)","v":1},{"$f":"IF(rng_Den_Filter=\"\",0,IF(tbl_Den[[#This Row],[Helper 2]]<>\"\",1,0))","v":0},{"$f":"IF(rng_Den_Filter=\"\",tbl_Den[[#This Row],[Helper 1]],INDEX(tbl_Den[Helper 3],tbl_Den[[#This Row],[Helper 1]]))","v":27},{"$f":"IFERROR(INDEX(tbl_Den[Denomination],tbl_Den[[#This Row],[Link]]),\"\")","v":"AE3"}]
["AE4","Copper alloy",2800,{"$f":"tbl_Den[[#This Row],[Denomination]]","v":"AE4"},{"$f":"IF(ISTEXT(OFFSET(tbl_Den[[#This Row],[Helper 1]],-1,0)),1,OFFSET(tbl_Den[[#This Row],[Helper 1]],-1,0)+1)","v":28},{"$f":"IF(rng_Den_Filter=\"\",0,IF(ISNUMBER(SEARCH(rng_Den_Filter,tbl_Den[[#This Row],[Helper Key]])),tbl_Den[[#This Row],[Helper 1]],\"\"))","v":0},{"$f":"IFERROR(SMALL(tbl_Den[Helper 2],tbl_Den[[#This Row],[Helper 1]]),\"\")","v":0},{"$f":"IF(OR(tbl_Den[[#This Row],[Helper 2]]<>\"\",tbl_Den[[#This Row],[Helper 3]]<>\"\"),1,0)","v":1},{"$f":"IF(rng_Den_Filter=\"\",0,IF(tbl_Den[[#This Row],[Helper 2]]<>\"\",1,0))","v":0},{"$f":"IF(rng_Den_Filter=\"\",tbl_Den[[#This Row],[Helper 1]],INDEX(tbl_Den[Helper 3],tbl_Den[[#This Row],[Helper 1]]))","v":28},{"$f":"IFERROR(INDEX(tbl_Den[Denomination],tbl_Den[[#This Row],[Link]]),\"\")","v":"AE4"}]
["AE4 minim","Copper alloy",2900,{"$f":"tbl_Den[[#This Row],[Denomination]]","v":"AE4 minim"},{"$f":"IF(ISTEXT(OFFSET(tbl_Den[[#This Row],[Helper 1]],-1,0)),1,OFFSET(tbl_Den[[#This Row],[Helper 1]],-1,0)+1)","v":29},{"$f":"IF(rng_Den_Filter=\"\",0,IF(ISNUMBER(SEARCH(rng_Den_Filter,tbl_Den[[#This Row],[Helper Key]])),tbl_Den[[#This Row],[Helper 1]],\"\"))","v":0},{"$f":"IFERROR(SMALL(tbl_Den[Helper 2],tbl_Den[[#This Row],[Helper 1]]),\"\")","v":0},{"$f":"IF(OR(tbl_Den[[#This Row],[Helper 2]]<>\"\",tbl_Den[[#This Row],[Helper 3]]<>\"\"),1,0)","v":1},{"$f":"IF(rng_Den_Filter=\"\",0,IF(tbl_Den[[#This Row],[Helper 2]]<>\"\",1,0))","v":0},{"$f":"IF(rng_Den_Filter=\"\",tbl_Den[[#This Row],[Helper 1]],INDEX(tbl_Den[Helper 3],tbl_Den[[#This Row],[Helper 1]]))","v":29},{"$f":"IFERROR(INDEX(tbl_Den[Denomination],tbl_Den[[#This Row],[Link]]),\"\")","v":"AE4 minim"}]
["Uncertain AE","Copper alloy",3000,{"$f":"tbl_Den[[#This Row],[Denomination]]","v":"Uncertain AE"},{"$f":"IF(ISTEXT(OFFSET(tbl_Den[[#This Row],[Helper 1]],-1,0)),1,OFFSET(tbl_Den[[#This Row],[Helper 1]],-1,0)+1)","v":30},{"$f":"IF(rng_Den_Filter=\"\",0,IF(ISNUMBER(SEARCH(rng_Den_Filter,tbl_Den[[#This Row],[Helper Key]])),tbl_Den[[#This Row],[Helper 1]],\"\"))","v":0},{"$f":"IFERROR(SMALL(tbl_Den[Helper 2],tbl_Den[[#This Row],[Helper 1]]),\"\")","v":0},{"$f":"IF(OR(tbl_Den[[#This Row],[Helper 2]]<>\"\",tbl_Den[[#This Row],[Helper 3]]<>\"\"),1,0)","v":1},{"$f":"IF(rng_Den_Filter=\"\",0,IF(tbl_Den[[#This Row],[Helper 2]]<>\"\",1,0))","v":0},{"$f":"IF(rng_Den_Filter=\"\",tbl_Den[[#This Row],[Helper 1]],INDEX(tbl_Den[Helper 3],tbl_Den[[#This Row],[Helper 1]]))","v":30},{"$f":"IFERROR(INDEX(tbl_Den[Denomination],tbl_Den[[#This Row],[Link]]),\"\")","v":"Uncertain AE"}]

{"sheet":"Mints tbl","index":4,"n_rows":38,"n_cols":14,"rows_kept":38,"cut":false,"hidden":false,"merged":[]}
["Mint","Additional information","Helper Key","Helper 1","Helper 2","Helper 3","Helper 4","Helper 5","Link","FilterMint",null,"rng_Mint_Filter >>>",null,"<<< Hidden Technical Area"]
["African mint","Later Republic (Mark Antony)",{"$f":"tbl_Mint[[#This Row],[Mint]]","v":"African mint"},{"$f":"IF(ISTEXT(OFFSET(tbl_Mint[[#This Row],[Helper 1]],-1,0)),1,OFFSET(tbl_Mint[[#This Row],[Helper 1]],-1,0)+1)","v":1},{"$f":"IF(rng_Mint_Filter=\"\",0,IF(ISNUMBER(SEARCH(rng_Mint_Filter,tbl_Mint[[#This Row],[Helper Key]])),tbl_Mint[[#This Row],[Helper 1]],\"\"))","v":0},{"$f":"IFERROR(SMALL(tbl_Mint[Helper 2],tbl_Mint[[#This Row],[Helper 1]]),\"\")","v":0},{"$f":"IF(OR(tbl_Mint[[#This Row],[Helper 2]]<>\"\",tbl_Mint[[#This Row],[Helper 3]]<>\"\"),1,0)","v":1},{"$f":"IF(rng_Mint_Filter=\"\",0,IF(tbl_Mint[[#This Row],[Helper 2]]<>\"\",1,0))","v":0},{"$f":"IF(rng_Mint_Filter=\"\",tbl_Mint[[#This Row],[Helper 1]],INDEX(tbl_Mint[Helper 3],tbl_Mint[[#This Row],[Helper 1]]))","v":1},{"$f":"IFERROR(INDEX(tbl_Mint[Mint],tbl_Mint[[#This Row],[Link]]),\"\")","v":"African mint"},null,"rng_MintCount >>>",{"$f":"COUNTA(tbl_Mint[Helper 1])-COUNTIF(tbl_Mint[Link],\"\")","v":37}]
["Alexandria","Egypt",{"$f":"tbl_Mint[[#This Row],[Mint]]","v":"Alexandria"},{"$f":"IF(ISTEXT(OFFSET(tbl_Mint[[#This Row],[Helper 1]],-1,0)),1,OFFSET(tbl_Mint[[#This Row],[Helper 1]],-1,0)+1)","v":2},{"$f":"IF(rng_Mint_Filter=\"\",0,IF(ISNUMBER(SEARCH(rng_Mint_Filter,tbl_Mint[[#This Row],[Helper Key]])),tbl_Mint[[#This Row],[Helper 1]],\"\"))","v":0},{"$f":"IFERROR(SMALL(tbl_Mint[Helper 2],tbl_Mint[[#This Row],[Helper 1]]),\"\")","v":0},{"$f":"IF(OR(tbl_Mint[[#This Row],[Helper 2]]<>\"\",tbl_Mint[[#This Row],[Helper 3]]<>\"\"),1,0)","v":1},{"$f":"IF(rng_Mint_Filter=\"\",0,IF(tbl_Mint[[#This Row],[Helper 2]]<>\"\",1,0))","v":0},{"$f":"IF(rng_Mint_Filter=\"\",tbl_Mint[[#This Row],[Helper 1]],INDEX(tbl_Mint[Helper 3],tbl_Mint[[#This Row],[Helper 1]]))","v":2},{"$f":"IFERROR(INDEX(tbl_Mint[Mint],tbl_Mint[[#This Row],[Link]]),\"\")","v":"Alexandria"},null,"rng_MintSel >>>"]
["Amien","Ambianum, France",{"$f":"tbl_Mint[[#This Row],[Mint]]","v":"Amien"},{"$f":"IF(ISTEXT(OFFSET(tbl_Mint[[#This Row],[Helper 1]],-1,0)),1,OFFSET(tbl_Mint[[#This Row],[Helper 1]],-1,0)+1)","v":3},{"$f":"IF(rng_Mint_Filter=\"\",0,IF(ISNUMBER(SEARCH(rng_Mint_Filter,tbl_Mint[[#This Row],[Helper Key]])),tbl_Mint[[#This Row],[Helper 1]],\"\"))","v":0},{"$f":"IFERROR(SMALL(tbl_Mint[Helper 2],tbl_Mint[[#This Row],[Helper 1]]),\"\")","v":0},{"$f":"IF(OR(tbl_Mint[[#This Row],[Helper 2]]<>\"\",tbl_Mint[[#This Row],[Helper 3]]<>\"\"),1,0)","v":1},{"$f":"IF(rng_Mint_Filter=\"\",0,IF(tbl_Mint[[#This Row],[Helper 2]]<>\"\",1,0))","v":0},{"$f":"IF(rng_Mint_Filter=\"\",tbl_Mint[[#This Row],[Helper 1]],INDEX(tbl_Mint[Helper 3],tbl_Mint[[#This Row],[Helper 1]]))","v":3},{"$f":"IFERROR(INDEX(tbl_Mint[Mint],tbl_Mint[[#This Row],[Link]]),\"\")","v":"Amien"}]
["Antioch","Antakya, Turkey",{"$f":"tbl_Mint[[#This Row],[Mint]]","v":"Antioch"},{"$f":"IF(ISTEXT(OFFSET(tbl_Mint[[#This Row],[Helper 1]],-1,0)),1,OFFSET(tbl_Mint[[#This Row],[Helper 1]],-1,0)+1)","v":4},{"$f":"IF(rng_Mint_Filter=\"\",0,IF(ISNUMBER(SEARCH(rng_Mint_Filter,tbl_Mint[[#This Row],[Helper Key]])),tbl_Mint[[#This Row],[Helper 1]],\"\"))","v":0},{"$f":"IFERROR(SMALL(tbl_Mint[Helper 2],tbl_Mint[[#This Row],[Helper 1]]),\"\")","v":0},{"$f":"IF(OR(tbl_Mint[[#This Row],[Helper 2]]<>\"\",tbl_Mint[[#This Row],[Helper 3]]<>\"\"),1,0)","v":1},{"$f":"IF(rng_Mint_Filter=\"\",0,IF(tbl_Mint[[#This Row],[Helper 2]]<>\"\",1,0))","v":0},{"$f":"IF(rng_Mint_Filter=\"\",tbl_Mint[[#This Row],[Helper 1]],INDEX(tbl_Mint[Helper 3],tbl_Mint[[#This Row],[Helper 1]]))","v":4},{"$f":"IFERROR(INDEX(tbl_Mint[Mint],tbl_Mint[[#This Row],[Link]]),\"\")","v":"Antioch"}]
["Aquileia","Italy",{"$f":"tbl_Mint[[#This Row],[Mint]]","v":"Aquileia"},{"$f":"IF(ISTEXT(OFFSET(tbl_Mint[[#This Row],[Helper 1]],-1,0)),1,OFFSET(tbl_Mint[[#This Row],[Helper 1]],-1,0)+1)","v":5},{"$f":"IF(rng_Mint_Filter=\"\",0,IF(ISNUMBER(SEARCH(rng_Mint_Filter,tbl_Mint[[#This Row],[Helper Key]])),tbl_Mint[[#This Row],[Helper 1]],\"\"))","v":0},{"$f":"IFERROR(SMALL(tbl_Mint[Helper 2],tbl_Mint[[#This Row],[Helper 1]]),\"\")","v":0},{"$f":"IF(OR(tbl_Mint[[#This Row],[Helper 2]]<>\"\",tbl_Mint[[#This Row],[Helper 3]]<>\"\"),1,0)","v":1},{"$f":"IF(rng_Mint_Filter=\"\",0,IF(tbl_Mint[[#This Row],[Helper 2]]<>\"\",1,0))","v":0},{"$f":"IF(rng_Mint_Filter=\"\",tbl_Mint[[#This Row],[Helper 1]],INDEX(tbl_Mint[Helper 3],tbl_Mint[[#This Row],[Helper 1]]))","v":5},{"$f":"IFERROR(INDEX(tbl_Mint[Mint],tbl_Mint[[#This Row],[Link]]),\"\")","v":"Aquileia"}]
["Arles","Arelatum/Constantina, France",{"$f":"tbl_Mint[[#This Row],[Mint]]","v":"Arles"},{"$f":"IF(ISTEXT(OFFSET(tbl_Mint[[#This Row],[Helper 1]],-1,0)),1,OFFSET(tbl_Mint[[#This Row],[Helper 1]],-1,0)+1)","v":6},{"$f":"IF(rng_Mint_Filter=\"\",0,IF(ISNUMBER(SEARCH(rng_Mint_Filter,tbl_Mint[[#This Row],[Helper Key]])),tbl_Mint[[#This Row],[Helper 1]],\"\"))","v":0},{"$f":"IFERROR(SMALL(tbl_Mint[Helper 2],tbl_Mint[[#This Row],[Helper 1]]),\"\")","v":0},{"$f":"IF(OR(tbl_Mint[[#This Row],[Helper 2]]<>\"\",tbl_Mint[[#This Row],[Helper 3]]<>\"\"),1,0)","v":1},{"$f":"IF(rng_Mint_Filter=\"\",0,IF(tbl_Mint[[#This Row],[Helper 2]]<>\"\",1,0))","v":0},{"$f":"IF(rng_Mint_Filter=\"\",tbl_Mint[[#This Row],[Helper 1]],INDEX(tbl_Mint[Helper 3],tbl_Mint[[#This Row],[Helper 1]]))","v":6},{"$f":"IFERROR(INDEX(tbl_Mint[Mint],tbl_Mint[[#This Row],[Link]]),\"\")","v":"Arles"}]
["C mint","Caruasian / Allectan mint - uncertain location, Britain",{"$f":"tbl_Mint[[#This Row],[Mint]]","v":"C mint"},{"$f":"IF(ISTEXT(OFFSET(tbl_Mint[[#This Row],[Helper 1]],-1,0)),1,OFFSET(tbl_Mint[[#This Row],[Helper 1]],-1,0)+1)","v":7},{"$f":"IF(rng_Mint_Filter=\"\",0,IF(ISNUMBER(SEARCH(rng_Mint_Filter,tbl_Mint[[#This Row],[Helper Key]])),tbl_Mint[[#This Row],[Helper 1]],\"\"))","v":0},{"$f":"IFERROR(SMALL(tbl_Mint[Helper 2],tbl_Mint[[#This Row],[Helper 1]]),\"\")","v":0},{"$f":"IF(OR(tbl_Mint[[#This Row],[Helper 2]]<>\"\",tbl_Mint[[#This Row],[Helper 3]]<>\"\"),1,0)","v":1},{"$f":"IF(rng_Mint_Filter=\"\",0,IF(tbl_Mint[[#This Row],[Helper 2]]<>\"\",1,0))","v":0},{"$f":"IF(rng_Mint_Filter=\"\",tbl_Mint[[#This Row],[Helper 1]],INDEX(tbl_Mint[Helper 3],tbl_Mint[[#This Row],[Helper 1]]))","v":7},{"$f":"IFERROR(INDEX(tbl_Mint[Mint],tbl_Mint[[#This Row],[Link]]),\"\")","v":"C mint"}]
["Carthage","Tunisia",{"$f":"tbl_Mint[[#This Row],[Mint]]","v":"Carthage"},{"$f":"IF(ISTEXT(OFFSET(tbl_Mint[[#This Row],[Helper 1]],-1,0)),1,OFFSET(tbl_Mint[[#This Row],[Helper 1]],-1,0)+1)","v":8},{"$f":"IF(rng_Mint_Filter=\"\",0,IF(ISNUMBER(SEARCH(rng_Mint_Filter,tbl_Mint[[#This Row],[Helper Key]])),tbl_Mint[[#This Row],[Helper 1]],\"\"))","v":0},{"$f":"IFERROR(SMALL(tbl_Mint[Helper 2],tbl_Mint[[#This Row],[Helper 1]]),\"\")","v":0},{"$f":"IF(OR(tbl_Mint[[#This Row],[Helper 2]]<>\"\",tbl_Mint[[#This Row],[Helper 3]]<>\"\"),1,0)","v":1},{"$f":"IF(rng_Mint_Filter=\"\",0,IF(tbl_Mint[[#This Row],[Helper 2]]<>\"\",1,0))","v":0},{"$f":"IF(rng_Mint_Filter=\"\",tbl_Mint[[#This Row],[Helper 1]],INDEX(tbl_Mint[Helper 3],tbl_Mint[[#This Row],[Helper 1]]))","v":8},{"$f":"IFERROR(INDEX(tbl_Mint[Mint],tbl_Mint[[#This Row],[Link]]),\"\")","v":"Carthage"}]
["Cologne","Colonia Agrippina, Germany",{"$f":"tbl_Mint[[#This Row],[Mint]]","v":"Cologne"},{"$f":"IF(ISTEXT(OFFSET(tbl_Mint[[#This Row],[Helper 1]],-1,0)),1,OFFSET(tbl_Mint[[#This Row],[Helper 1]],-1,0)+1)","v":9},{"$f":"IF(rng_Mint_Filter=\"\",0,IF(ISNUMBER(SEARCH(rng_Mint_Filter,tbl_Mint[[#This Row],[Helper Key]])),tbl_Mint[[#This Row],[Helper 1]],\"\"))","v":0},{"$f":"IFERROR(SMALL(tbl_Mint[Helper 2],tbl_Mint[[#This Row],[Helper 1]]),\"\")","v":0},{"$f":"IF(OR(tbl_Mint[[#This Row],[Helper 2]]<>\"\",tbl_Mint[[#This Row],[Helper 3]]<>\"\"),1,0)","v":1},{"$f":"IF(rng_Mint_Filter=\"\",0,IF(tbl_Mint[[#This Row],[Helper 2]]<>\"\",1,0))","v":0},{"$f":"IF(rng_Mint_Filter=\"\",tbl_Mint[[#This Row],[Helper 1]],INDEX(tbl_Mint[Helper 3],tbl_Mint[[#This Row],[Helper 1]]))","v":9},{"$f":"IFERROR(INDEX(tbl_Mint[Mint],tbl_Mint[[#This Row],[Link]]),\"\")","v":"Cologne"}]
["Constantinople","Istanbul, Turkey",{"$f":"tbl_Mint[[#This Row],[Mint]]","v":"Constantinople"},{"$f":"IF(ISTEXT(OFFSET(tbl_Mint[[#This Row],[Helper 1]],-1,0)),1,OFFSET(tbl_Mint[[#This Row],[Helper 1]],-1,0)+1)","v":10},{"$f":"IF(rng_Mint_Filter=\"\",0,IF(ISNUMBER(SEARCH(rng_Mint_Filter,tbl_Mint[[#This Row],[Helper Key]])),tbl_Mint[[#This Row],[Helper 1]],\"\"))","v":0},{"$f":"IFERROR(SMALL(tbl_Mint[Helper 2],tbl_Mint[[#This Row],[Helper 1]]),\"\")","v":0},{"$f":"IF(OR(tbl_Mint[[#This Row],[Helper 2]]<>\"\",tbl_Mint[[#This Row],[Helper 3]]<>\"\"),1,0)","v":1},{"$f":"IF(rng_Mint_Filter=\"\",0,IF(tbl_Mint[[#This Row],[Helper 2]]<>\"\",1,0))","v":0},{"$f":"IF(rng_Mint_Filter=\"\",tbl_Mint[[#This Row],[Helper 1]],INDEX(tbl_Mint[Helper 3],tbl_Mint[[#This Row],[Helper 1]]))","v":10},{"$f":"IFERROR(INDEX(tbl_Mint[Mint],tbl_Mint[[#This Row],[Link]]),\"\")","v":"Constantinople"}]
["Cyzicus","Turkey",{"$f":"tbl_Mint[[#This Row],[Mint]]","v":"Cyzicus"},{"$f":"IF(ISTEXT(OFFSET(tbl_Mint[[#This Row],[Helper 1]],-1,0)),1,OFFSET(tbl_Mint[[#This Row],[Helper 1]],-1,0)+1)","v":11},{"$f":"IF(rng_Mint_Filter=\"\",0,IF(ISNUMBER(SEARCH(rng_Mint_Filter,tbl_Mint[[#This Row],[Helper Key]])),tbl_Mint[[#This Row],[Helper 1]],\"\"))","v":0},{"$f":"IFERROR(SMALL(tbl_Mint[Helper 2],tbl_Mint[[#This Row],[Helper 1]]),\"\")","v":0},{"$f":"IF(OR(tbl_Mint[[#This Row],[Helper 2]]<>\"\",tbl_Mint[[#This Row],[Helper 3]]<>\"\"),1,0)","v":1},{"$f":"IF(rng_Mint_Filter=\"\",0,IF(tbl_Mint[[#This Row],[Helper 2]]<>\"\",1,0))","v":0},{"$f":"IF(rng_Mint_Filter=\"\",tbl_Mint[[#This Row],[Helper 1]],INDEX(tbl_Mint[Helper 3],tbl_Mint[[#This Row],[Helper 1]]))","v":11},{"$f":"IFERROR(INDEX(tbl_Mint[Mint],tbl_Mint[[#This Row],[Link]]),\"\")","v":"Cyzicus"}]
["Eastern mint",null,{"$f":"tbl_Mint[[#This Row],[Mint]]","v":"Eastern mint"},{"$f":"IF(ISTEXT(OFFSET(tbl_Mint[[#This Row],[Helper 1]],-1,0)),1,OFFSET(tbl_Mint[[#This Row],[Helper 1]],-1,0)+1)","v":12},{"$f":"IF(rng_Mint_Filter=\"\",0,IF(ISNUMBER(SEARCH(rng_Mint_Filter,tbl_Mint[[#This Row],[Helper Key]])),tbl_Mint[[#This Row],[Helper 1]],\"\"))","v":0},{"$f":"IFERROR(SMALL(tbl_Mint[Helper 2],tbl_Mint[[#This Row],[Helper 1]]),\"\")","v":0},{"$f":"IF(OR(tbl_Mint[[#This Row],[Helper 2]]<>\"\",tbl_Mint[[#This Row],[Helper 3]]<>\"\"),1,0)","v":1},{"$f":"IF(rng_Mint_Filter=\"\",0,IF(tbl_Mint[[#This Row],[Helper 2]]<>\"\",1,0))","v":0},{"$f":"IF(rng_Mint_Filter=\"\",tbl_Mint[[#This Row],[Helper 1]],INDEX(tbl_Mint[Helper 3],tbl_Mint[[#This Row],[Helper 1]]))","v":12},{"$f":"IFERROR(INDEX(tbl_Mint[Mint],tbl_Mint[[#This Row],[Link]]),\"\")","v":"Eastern mint"}]
["Gallic mint","Gallic Empire - uncertain mint",{"$f":"tbl_Mint[[#This Row],[Mint]]","v":"Gallic mint"},{"$f":"IF(ISTEXT(OFFSET(tbl_Mint[[#This Row],[Helper 1]],-1,0)),1,OFFSET(tbl_Mint[[#This Row],[Helper 1]],-1,0)+1)","v":13},{"$f":"IF(rng_Mint_Filter=\"\",0,IF(ISNUMBER(SEARCH(rng_Mint_Filter,tbl_Mint[[#This Row],[Helper Key]])),tbl_Mint[[#This Row],[Helper 1]],\"\"))","v":0},{"$f":"IFERROR(SMALL(tbl_Mint[Helper 2],tbl_Mint[[#This Row],[Helper 1]]),\"\")","v":0},{"$f":"IF(OR(tbl_Mint[[#This Row],[Helper 2]]<>\"\",tbl_Mint[[#This Row],[Helper 3]]<>\"\"),1,0)","v":1},{"$f":"IF(rng_Mint_Filter=\"\",0,IF(tbl_Mint[[#This Row],[Helper 2]]<>\"\",1,0))","v":0},{"$f":"IF(rng_Mint_Filter=\"\",tbl_Mint[[#This Row],[Helper 1]],INDEX(tbl_Mint[Helper 3],tbl_Mint[[#This Row],[Helper 1]]))","v":13},{"$f":"IFERROR(INDEX(tbl_Mint[Mint],tbl_Mint[[#This Row],[Link]]),\"\")","v":"Gallic mint"}]
["Gallic Mint I","Gallic Empire - uncertain location, France/Germany",{"$f":"tbl_Mint[[#This Row],[Mint]]","v":"Gallic Mint I"},{"$f":"IF(ISTEXT(OFFSET(tbl_Mint[[#This Row],[Helper 1]],-1,0)),1,OFFSET(tbl_Mint[[#This Row],[Helper 1]],-1,0)+1)","v":14},{"$f":"IF(rng_Mint_Filter=\"\",0,IF(ISNUMBER(SEARCH(rng_Mint_Filter,tbl_Mint[[#This Row],[Helper Key]])),tbl_Mint[[#This Row],[Helper 1]],\"\"))","v":0},{"$f":"IFERROR(SMALL(tbl_Mint[Helper 2],tbl_Mint[[#This Row],[Helper 1]]),\"\")","v":0},{"$f":"IF(OR(tbl_Mint[[#This Row],[Helper 2]]<>\"\",tbl_Mint[[#This Row],[Helper 3]]<>\"\"),1,0)","v":1},{"$f":"IF(rng_Mint_Filter=\"\",0,IF(tbl_Mint[[#This Row],[Helper 2]]<>\"\",1,0))","v":0},{"$f":"IF(rng_Mint_Filter=\"\",tbl_Mint[[#This Row],[Helper 1]],INDEX(tbl_Mint[Helper 3],tbl_Mint[[#This Row],[Helper 1]]))","v":14},{"$f":"IFERROR(INDEX(tbl_Mint[Mint],tbl_Mint[[#This Row],[Link]]),\"\")","v":"Gallic Mint I"}]
["Gallic Mint II","Gallic Empire - uncertain location, France/Germany",{"$f":"tbl_Mint[[#This Row],[Mint]]","v":"Gallic Mint II"},{"$f":"IF(ISTEXT(OFFSET(tbl_Mint[[#This Row],[Helper 1]],-1,0)),1,OFFSET(tbl_Mint[[#This Row],[Helper 1]],-1,0)+1)","v":15},{"$f":"IF(rng_Mint_Filter=\"\",0,IF(ISNUMBER(SEARCH(rng_Mint_Filter,tbl_Mint[[#This Row],[Helper Key]])),tbl_Mint[[#This Row],[Helper 1]],\"\"))","v":0},{"$f":"IFERROR(SMALL(tbl_Mint[Helper 2],tbl_Mint[[#This Row],[Helper 1]]),\"\")","v":0},{"$f":"IF(OR(tbl_Mint[[#This Row],[Helper 2]]<>\"\",tbl_Mint[[#This Row],[Helper 3]]<>\"\"),1,0)","v":1},{"$f":"IF(rng_Mint_Filter=\"\",0,IF(tbl_Mint[[#This Row],[Helper 2]]<>\"\",1,0))","v":0},{"$f":"IF(rng_Mint_Filter=\"\",tbl_Mint[[#This Row],[Helper 1]],INDEX(tbl_Mint[Helper 3],tbl_Mint[[#This Row],[Helper 1]]))","v":15},{"$f":"IFERROR(INDEX(tbl_Mint[Mint],tbl_Mint[[#This Row],[Link]]),\"\")","v":"Gallic Mint II"}]
["Greek mint",null,{"$f":"tbl_Mint[[#This Row],[Mint]]","v":"Greek mint"},{"$f":"IF(ISTEXT(OFFSET(tbl_Mint[[#This Row],[Helper 1]],-1,0)),1,OFFSET(tbl_Mint[[#This Row],[Helper 1]],-1,0)+1)","v":16},{"$f":"IF(rng_Mint_Filter=\"\",0,IF(ISNUMBER(SEARCH(rng_Mint_Filter,tbl_Mint[[#This Row],[Helper Key]])),tbl_Mint[[#This Row],[Helper 1]],\"\"))","v":0},{"$f":"IFERROR(SMALL(tbl_Mint[Helper 2],tbl_Mint[[#This Row],[Helper 1]]),\"\")","v":0},{"$f":"IF(OR(tbl_Mint[[#This Row],[Helper 2]]<>\"\",tbl_Mint[[#This Row],[Helper 3]]<>\"\"),1,0)","v":1},{"$f":"IF(rng_Mint_Filter=\"\",0,IF(tbl_Mint[[#This Row],[Helper 2]]<>\"\",1,0))","v":0},{"$f":"IF(rng_Mint_Filter=\"\",tbl_Mint[[#This Row],[Helper 1]],INDEX(tbl_Mint[Helper 3],tbl_Mint[[#This Row],[Helper 1]]))","v":16},{"$f":"IFERROR(INDEX(tbl_Mint[Mint],tbl_Mint[[#This Row],[Link]]),\"\")","v":"Greek mint"}]
["Heraclea","Turkey",{"$f":"tbl_Mint[[#This Row],[Mint]]","v":"Heraclea"},{"$f":"IF(ISTEXT(OFFSET(tbl_Mint[[#This Row],[Helper 1]],-1,0)),1,OFFSET(tbl_Mint[[#This Row],[Helper 1]],-1,0)+1)","v":17},{"$f":"IF(rng_Mint_Filter=\"\",0,IF(ISNUMBER(SEARCH(rng_Mint_Filter,tbl_Mint[[#This Row],[Helper Key]])),tbl_Mint[[#This Row],[Helper 1]],\"\"))","v":0},{"$f":"IFERROR(SMALL(tbl_Mint[Helper 2],tbl_Mint[[#This Row],[Helper 1]]),\"\")","v":0},{"$f":"IF(OR(tbl_Mint[[#This Row],[Helper 2]]<>\"\",tbl_Mint[[#This Row],[Helper 3]]<>\"\"),1,0)","v":1},{"$f":"IF(rng_Mint_Filter=\"\",0,IF(tbl_Mint[[#This Row],[Helper 2]]<>\"\",1,0))","v":0},{"$f":"IF(rng_Mint_Filter=\"\",tbl_Mint[[#This Row],[Helper 1]],INDEX(tbl_Mint[Helper 3],tbl_Mint[[#This Row],[Helper 1]]))","v":17},{"$f":"IFERROR(INDEX(tbl_Mint[Mint],tbl_Mint[[#This Row],[Link]]),\"\")","v":"Heraclea"}]
["Italian mint",null,{"$f":"tbl_Mint[[#This Row],[Mint]]","v":"Italian mint"},{"$f":"IF(ISTEXT(OFFSET(tbl_Mint[[#This Row],[Helper 1]],-1,0)),1,OFFSET(tbl_Mint[[#This Row],[Helper 1]],-1,0)+1)","v":18},{"$f":"IF(rng_Mint_Filter=\"\",0,IF(ISNUMBER(SEARCH(rng_Mint_Filter,tbl_Mint[[#This Row],[Helper Key]])),tbl_Mint[[#This Row],[Helper 1]],\"\"))","v":0},{"$f":"IFERROR(SMALL(tbl_Mint[Helper 2],tbl_Mint[[#This Row],[Helper 1]]),\"\")","v":0},{"$f":"IF(OR(tbl_Mint[[#This Row],[Helper 2]]<>\"\",tbl_Mint[[#This Row],[Helper 3]]<>\"\"),1,0)","v":1},{"$f":"IF(rng_Mint_Filter=\"\",0,IF(tbl_Mint[[#This Row],[Helper 2]]<>\"\",1,0))","v":0},{"$f":"IF(rng_Mint_Filter=\"\",tbl_Mint[[#This Row],[Helper 1]],INDEX(tbl_Mint[Helper 3],tbl_Mint[[#This Row],[Helper 1]]))","v":18},{"$f":"IFERROR(INDEX(tbl_Mint[Mint],tbl_Mint[[#This Row],[Link]]),\"\")","v":"Italian mint"}]
["London","Londinium, Britain",{"$f":"tbl_Mint[[#This Row],[Mint]]","v":"London"},{"$f":"IF(ISTEXT(OFFSET(tbl_Mint[[#This Row],[Helper 1]],-1,0)),1,OFFSET(tbl_Mint[[#This Row],[Helper 1]],-1,0)+1)","v":19},{"$f":"IF(rng_Mint_Filter=\"\",0,IF(ISNUMBER(SEARCH(rng_Mint_Filter,tbl_Mint[[#This Row],[Helper Key]])),tbl_Mint[[#This Row],[Helper 1]],\"\"))","v":0},{"$f":"IFERROR(SMALL(tbl_Mint[Helper 2],tbl_Mint[[#This Row],[Helper 1]]),\"\")","v":0},{"$f":"IF(OR(tbl_Mint[[#This Row],[Helper 2]]<>\"\",tbl_Mint[[#This Row],[Helper 3]]<>\"\"),1,0)","v":1},{"$f":"IF(rng_Mint_Filter=\"\",0,IF(tbl_Mint[[#This Row],[Helper 2]]<>\"\",1,0))","v":0},{"$f":"IF(rng_Mint_Filter=\"\",tbl_Mint[[#This Row],[Helper 1]],INDEX(tbl_Mint[Helper 3],tbl_Mint[[#This Row],[Helper 1]]))","v":19},{"$f":"IFERROR(INDEX(tbl_Mint[Mint],tbl_Mint[[#This Row],[Link]]),\"\")","v":"London"}]
["Lyon","Lugdunum, France",{"$f":"tbl_Mint[[#This Row],[Mint]]","v":"Lyon"},{"$f":"IF(ISTEXT(OFFSET(tbl_Mint[[#This Row],[Helper 1]],-1,0)),1,OFFSET(tbl_Mint[[#This Row],[Helper 1]],-1,0)+1)","v":20},{"$f":"IF(rng_Mint_Filter=\"\",0,IF(ISNUMBER(SEARCH(rng_Mint_Filter,tbl_Mint[[#This Row],[Helper Key]])),tbl_Mint[[#This Row],[Helper 1]],\"\"))","v":0},{"$f":"IFERROR(SMALL(tbl_Mint[Helper 2],tbl_Mint[[#This Row],[Helper 1]]),\"\")","v":0},{"$f":"IF(OR(tbl_Mint[[#This Row],[Helper 2]]<>\"\",tbl_Mint[[#This Row],[Helper 3]]<>\"\"),1,0)","v":1},{"$f":"IF(rng_Mint_Filter=\"\",0,IF(tbl_Mint[[#This Row],[Helper 2]]<>\"\",1,0))","v":0},{"$f":"IF(rng_Mint_Filter=\"\",tbl_Mint[[#This Row],[Helper 1]],INDEX(tbl_Mint[Helper 3],tbl_Mint[[#This Row],[Helper 1]]))","v":20},{"$f":"IFERROR(INDEX(tbl_Mint[Mint],tbl_Mint[[#This Row],[Link]]),\"\")","v":"Lyon"}]
["Milan","Mediolanum, Italy",{"$f":"tbl_Mint[[#This Row],[Mint]]","v":"Milan"},{"$f":"IF(ISTEXT(OFFSET(tbl_Mint[[#This Row],[Helper 1]],-1,0)),1,OFFSET(tbl_Mint[[#This Row],[Helper 1]],-1,0)+1)","v":21},{"$f":"IF(rng_Mint_Filter=\"\",0,IF(ISNUMBER(SEARCH(rng_Mint_Filter,tbl_Mint[[#This Row],[Helper Key]])),tbl_Mint[[#This Row],[Helper 1]],\"\"))","v":0},{"$f":"IFERROR(SMALL(tbl_Mint[Helper 2],tbl_Mint[[#This Row],[Helper 1]]),\"\")","v":0},{"$f":"IF(OR(tbl_Mint[[#This Row],[Helper 2]]<>\"\",tbl_Mint[[#This Row],[Helper 3]]<>\"\"),1,0)","v":1},{"$f":"IF(rng_Mint_Filter=\"\",0,IF(tbl_Mint[[#This Row],[Helper 2]]<>\"\",1,0))","v":0},{"$f":"IF(rng_Mint_Filter=\"\",tbl_Mint[[#This Row],[Helper 1]],INDEX(tbl_Mint[Helper 3],tbl_Mint[[#This Row],[Helper 1]]))","v":21},{"$f":"IFERROR(INDEX(tbl_Mint[Mint],tbl_Mint[[#This Row],[Link]]),\"\")","v":"Milan"}]
["Nicomedia","Izmit, Turkey",{"$f":"tbl_Mint[[#This Row],[Mint]]","v":"Nicomedia"},{"$f":"IF(ISTEXT(OFFSET(tbl_Mint[[#This Row],[Helper 1]],-1,0)),1,OFFSET(tbl_Mint[[#This Row],[Helper 1]],-1,0)+1)","v":22},{"$f":"IF(rng_Mint_Filter=\"\",0,IF(ISNUMBER(SEARCH(rng_Mint_Filter,tbl_Mint[[#This Row],[Helper Key]])),tbl_Mint[[#This Row],[Helper 1]],\"\"))","v":0},{"$f":"IFERROR(SMALL(tbl_Mint[Helper 2],tbl_Mint[[#This Row],[Helper 1]]),\"\")","v":0},{"$f":"IF(OR(tbl_Mint[[#This Row],[Helper 2]]<>\"\",tbl_Mint[[#This Row],[Helper 3]]<>\"\"),1,0)","v":1},{"$f":"IF(rng_Mint_Filter=\"\",0,IF(tbl_Mint[[#This Row],[Helper 2]]<>\"\",1,0))","v":0},{"$f":"IF(rng_Mint_Filter=\"\",tbl_Mint[[#This Row],[Helper 1]],INDEX(tbl_Mint[Helper 3],tbl_Mint[[#This Row],[Helper 1]]))","v":22},{"$f":"IFERROR(INDEX(tbl_Mint[Mint],tbl_Mint[[#This Row],[Link]]),\"\")","v":"Nicomedia"}]
["Ostia","Italy",{"$f":"tbl_Mint[[#This Row],[Mint]]","v":"Ostia"},{"$f":"IF(ISTEXT(OFFSET(tbl_Mint[[#This Row],[Helper 1]],-1,0)),1,OFFSET(tbl_Mint[[#This Row],[Helper 1]],-1,0)+1)","v":23},{"$f":"IF(rng_Mint_Filter=\"\",0,IF(ISNUMBER(SEARCH(rng_Mint_Filter,tbl_Mint[[#This Row],[Helper Key]])),tbl_Mint[[#This Row],[Helper 1]],\"\"))","v":0},{"$f":"IFERROR(SMALL(tbl_Mint[Helper 2],tbl_Mint[[#This Row],[Helper 1]]),\"\")","v":0},{"$f":"IF(OR(tbl_Mint[[#This Row],[Helper 2]]<>\"\",tbl_Mint[[#This Row],[Helper 3]]<>\"\"),1,0)","v":1},{"$f":"IF(rng_Mint_Filter=\"\",0,IF(tbl_Mint[[#This Row],[Helper 2]]<>\"\",1,0))","v":0},{"$f":"IF(rng_Mint_Filter=\"\",tbl_Mint[[#This Row],[Helper 1]],INDEX(tbl_Mint[Helper 3],tbl_Mint[[#This Row],[Helper 1]]))","v":23},{"$f":"IFERROR(INDEX(tbl_Mint[Mint],tbl_Mint[[#This Row],[Link]]),\"\")","v":"Ostia"}]
["Ravenna","Italy",{"$f":"tbl_Mint[[#This Row],[Mint]]","v":"Ravenna"},{"$f":"IF(ISTEXT(OFFSET(tbl_Mint[[#This Row],[Helper 1]],-1,0)),1,OFFSET(tbl_Mint[[#This Row],[Helper 1]],-1,0)+1)","v":24},{"$f":"IF(rng_Mint_Filter=\"\",0,IF(ISNUMBER(SEARCH(rng_Mint_Filter,tbl_Mint[[#This Row],[Helper Key]])),tbl_Mint[[#This Row],[Helper 1]],\"\"))","v":0},{"$f":"IFERROR(SMALL(tbl_Mint[Helper 2],tbl_Mint[[#This Row],[Helper 1]]),\"\")","v":0},{"$f":"IF(OR(tbl_Mint[[#This Row],[Helper 2]]<>\"\",tbl_Mint[[#This Row],[Helper 3]]<>\"\"),1,0)","v":1},{"$f":"IF(rng_Mint_Filter=\"\",0,IF(tbl_Mint[[#This Row],[Helper 2]]<>\"\",1,0))","v":0},{"$f":"IF(rng_Mint_Filter=\"\",tbl_Mint[[#This Row],[Helper 1]],INDEX(tbl_Mint[Helper 3],tbl_Mint[[#This Row],[Helper 1]]))","v":24},{"$f":"IFERROR(INDEX(tbl_Mint[Mint],tbl_Mint[[#This Row],[Link]]),\"\")","v":"Ravenna"}]
["Rome","Italy",{"$f":"tbl_Mint[[#This Row],[Mint]]","v":"Rome"},{"$f":"IF(ISTEXT(OFFSET(tbl_Mint[[#This Row],[Helper 1]],-1,0)),1,OFFSET(tbl_Mint[[#This Row],[Helper 1]],-1,0)+1)","v":25},{"$f":"IF(rng_Mint_Filter=\"\",0,IF(ISNUMBER(SEARCH(rng_Mint_Filter,tbl_Mint[[#This Row],[Helper Key]])),tbl_Mint[[#This Row],[Helper 1]],\"\"))","v":0},{"$f":"IFERROR(SMALL(tbl_Mint[Helper 2],tbl_Mint[[#This Row],[Helper 1]]),\"\")","v":0},{"$f":"IF(OR(tbl_Mint[[#This Row],[Helper 2]]<>\"\",tbl_Mint[[#This Row],[Helper 3]]<>\"\"),1,0)","v":1},{"$f":"IF(rng_Mint_Filter=\"\",0,IF(tbl_Mint[[#This Row],[Helper 2]]<>\"\",1,0))","v":0},{"$f":"IF(rng_Mint_Filter=\"\",tbl_Mint[[#This Row],[Helper 1]],INDEX(tbl_Mint[Helper 3],tbl_Mint[[#This Row],[Helper 1]]))","v":25},{"$f":"IFERROR(INDEX(tbl_Mint[Mint],tbl_Mint[[#This Row],[Link]]),\"\")","v":"Rome"}]
["Rouen","Rotomagus, France",{"$f":"tbl_Mint[[#This Row],[Mint]]","v":"Rouen"},{"$f":"IF(ISTEXT(OFFSET(tbl_Mint[[#This Row],[Helper 1]],-1,0)),1,OFFSET(tbl_Mint[[#This Row],[Helper 1]],-1,0)+1)","v":26},{"$f":"IF(rng_Mint_Filter=\"\",0,IF(ISNUMBER(SEARCH(rng_Mint_Filter,tbl_Mint[[#This Row],[Helper Key]])),tbl_Mint[[#This Row],[Helper 1]],\"\"))","v":0},{"$f":"IFERROR(SMALL(tbl_Mint[Helper 2],tbl_Mint[[#This Row],[Helper 1]]),\"\")","v":0},{"$f":"IF(OR(tbl_Mint[[#This Row],[Helper 2]]<>\"\",tbl_Mint[[#This Row],[Helper 3]]<>\"\"),1,0)","v":1},{"$f":"IF(rng_Mint_Filter=\"\",0,IF(tbl_Mint[[#This Row],[Helper 2]]<>\"\",1,0))","v":0},{"$f":"IF(rng_Mint_Filter=\"\",tbl_Mint[[#This Row],[Helper 1]],INDEX(tbl_Mint[Helper 3],tbl_Mint[[#This Row],[Helper 1]]))","v":26},{"$f":"IFERROR(INDEX(tbl_Mint[Mint],tbl_Mint[[#This Row],[Link]]),\"\")","v":"Rouen"}]
["Serdica","Sophia, Bulgaria",{"$f":"tbl_Mint[[#This Row],[Mint]]","v":"Serdica"},{"$f":"IF(ISTEXT(OFFSET(tbl_Mint[[#This Row],[Helper 1]],-1,0)),1,OFFSET(tbl_Mint[[#This Row],[Helper 1]],-1,0)+1)","v":27},{"$f":"IF(rng_Mint_Filter=\"\",0,IF(ISNUMBER(SEARCH(rng_Mint_Filter,tbl_Mint[[#This Row],[Helper Key]])),tbl_Mint[[#This Row],[Helper 1]],\"\"))","v":0},{"$f":"IFERROR(SMALL(tbl_Mint[Helper 2],tbl_Mint[[#This Row],[Helper 1]]),\"\")","v":0},{"$f":"IF(OR(tbl_Mint[[#This Row],[Helper 2]]<>\"\",tbl_Mint[[#This Row],[Helper 3]]<>\"\"),1,0)","v":1},{"$f":"IF(rng_Mint_Filter=\"\",0,IF(tbl_Mint[[#This Row],[Helper 2]]<>\"\",1,0))","v":0},{"$f":"IF(rng_Mint_Filter=\"\",tbl_Mint[[#This Row],[Helper 1]],INDEX(tbl_Mint[Helper 3],tbl_Mint[[#This Row],[Helper 1]]))","v":27},{"$f":"IFERROR(INDEX(tbl_Mint[Mint],tbl_Mint[[#This Row],[Link]]),\"\")","v":"Serdica"}]
["Sicilian mint",null,{"$f":"tbl_Mint[[#This Row],[Mint]]","v":"Sicilian mint"},{"$f":"IF(ISTEXT(OFFSET(tbl_Mint[[#This Row],[Helper 1]],-1,0)),1,OFFSET(tbl_Mint[[#This Row],[Helper 1]],-1,0)+1)","v":28},{"$f":"IF(rng_Mint_Filter=\"\",0,IF(ISNUMBER(SEARCH(rng_Mint_Filter,tbl_Mint[[#This Row],[Helper Key]])),tbl_Mint[[#This Row],[Helper 1]],\"\"))","v":0},{"$f":"IFERROR(SMALL(tbl_Mint[Helper 2],tbl_Mint[[#This Row],[Helper 1]]),\"\")","v":0},{"$f":"IF(OR(tbl_Mint[[#This Row],[Helper 2]]<>\"\",tbl_Mint[[#This Row],[Helper 3]]<>\"\"),1,0)","v":1},{"$f":"IF(rng_Mint_Filter=\"\",0,IF(tbl_Mint[[#This Row],[Helper 2]]<>\"\",1,0))","v":0},{"$f":"IF(rng_Mint_Filter=\"\",tbl_Mint[[#This Row],[Helper 1]],INDEX(tbl_Mint[Helper 3],tbl_Mint[[#This Row],[Helper 1]]))","v":28},{"$f":"IFERROR(INDEX(tbl_Mint[Mint],tbl_Mint[[#This Row],[Link]]),\"\")","v":"Sicilian mint"}]
["Sirmium","Sremska Mitrovica, Serbia",{"$f":"tbl_Mint[[#This Row],[Mint]]","v":"Sirmium"},{"$f":"IF(ISTEXT(OFFSET(tbl_Mint[[#This Row],[Helper 1]],-1,0)),1,OFFSET(tbl_Mint[[#This Row],[Helper 1]],-1,0)+1)","v":29},{"$f":"IF(rng_Mint_Filter=\"\",0,IF(ISNUMBER(SEARCH(rng_Mint_Filter,tbl_Mint[[#This Row],[Helper Key]])),tbl_Mint[[#This Row],[Helper 1]],\"\"))","v":0},{"$f":"IFERROR(SMALL(tbl_Mint[Helper 2],tbl_Mint[[#This Row],[Helper 1]]),\"\")","v":0},{"$f":"IF(OR(tbl_Mint[[#This Row],[Helper 2]]<>\"\",tbl_Mint[[#This Row],[Helper 3]]<>\"\"),1,0)","v":1},{"$f":"IF(rng_Mint_Filter=\"\",0,IF(tbl_Mint[[#This Row],[Helper 2]]<>\"\",1,0))","v":0},{"$f":"IF(rng_Mint_Filter=\"\",tbl_Mint[[#This Row],[Helper 1]],INDEX(tbl_Mint[Helper 3],tbl_Mint[[#This Row],[Helper 1]]))","v":29},{"$f":"IFERROR(INDEX(tbl_Mint[Mint],tbl_Mint[[#This Row],[Link]]),\"\")","v":"Sirmium"}]
["Siscia","Sisak, Croatia",{"$f":"tbl_Mint[[#This Row],[Mint]]","v":"Siscia"},{"$f":"IF(ISTEXT(OFFSET(tbl_Mint[[#This Row],[Helper 1]],-1,0)),1,OFFSET(tbl_Mint[[#This Row],[Helper 1]],-1,0)+1)","v":30},{"$f":"IF(rng_Mint_Filter=\"\",0,IF(ISNUMBER(SEARCH(rng_Mint_Filter,tbl_Mint[[#This Row],[Helper Key]])),tbl_Mint[[#This Row],[Helper 1]],\"\"))","v":0},{"$f":"IFERROR(SMALL(tbl_Mint[Helper 2],tbl_Mint[[#This Row],[Helper 1]]),\"\")","v":0},{"$f":"IF(OR(tbl_Mint[[#This Row],[Helper 2]]<>\"\",tbl_Mint[[#This Row],[Helper 3]]<>\"\"),1,0)","v":1},{"$f":"IF(rng_Mint_Filter=\"\",0,IF(tbl_Mint[[#This Row],[Helper 2]]<>\"\",1,0))","v":0},{"$f":"IF(rng_Mint_Filter=\"\",tbl_Mint[[#This Row],[Helper 1]],INDEX(tbl_Mint[Helper 3],tbl_Mint[[#This Row],[Helper 1]]))","v":30},{"$f":"IFERROR(INDEX(tbl_Mint[Mint],tbl_Mint[[#This Row],[Link]]),\"\")","v":"Siscia"}]
["Spain mint",null,{"$f":"tbl_Mint[[#This Row],[Mint]]","v":"Spain mint"},{"$f":"IF(ISTEXT(OFFSET(tbl_Mint[[#This Row],[Helper 1]],-1,0)),1,OFFSET(tbl_Mint[[#This Row],[Helper 1]],-1,0)+1)","v":31},{"$f":"IF(rng_Mint_Filter=\"\",0,IF(ISNUMBER(SEARCH(rng_Mint_Filter,tbl_Mint[[#This Row],[Helper Key]])),tbl_Mint[[#This Row],[Helper 1]],\"\"))","v":0},{"$f":"IFERROR(SMALL(tbl_Mint[Helper 2],tbl_Mint[[#This Row],[Helper 1]]),\"\")","v":0},{"$f":"IF(OR(tbl_Mint[[#This Row],[Helper 2]]<>\"\",tbl_Mint[[#This Row],[Helper 3]]<>\"\"),1,0)","v":1},{"$f":"IF(rng_Mint_Filter=\"\",0,IF(tbl_Mint[[#This Row],[Helper 2]]<>\"\",1,0))","v":0},{"$f":"IF(rng_Mint_Filter=\"\",tbl_Mint[[#This Row],[Helper 1]],INDEX(tbl_Mint[Helper 3],tbl_Mint[[#This Row],[Helper 1]]))","v":31},{"$f":"IFERROR(INDEX(tbl_Mint[Mint],tbl_Mint[[#This Row],[Link]]),\"\")","v":"Spain mint"}]
["Tarragona","Tarraco, Spain",{"$f":"tbl_Mint[[#This Row],[Mint]]","v":"Tarragona"},{"$f":"IF(ISTEXT(OFFSET(tbl_Mint[[#This Row],[Helper 1]],-1,0)),1,OFFSET(tbl_Mint[[#This Row],[Helper 1]],-1,0)+1)","v":32},{"$f":"IF(rng_Mint_Filter=\"\",0,IF(ISNUMBER(SEARCH(rng_Mint_Filter,tbl_Mint[[#This Row],[Helper Key]])),tbl_Mint[[#This Row],[Helper 1]],\"\"))","v":0},{"$f":"IFERROR(SMALL(tbl_Mint[Helper 2],tbl_Mint[[#This Row],[Helper 1]]),\"\")","v":0},{"$f":"IF(OR(tbl_Mint[[#This Row],[Helper 2]]<>\"\",tbl_Mint[[#This Row],[Helper 3]]<>\"\"),1,0)","v":1},{"$f":"IF(rng_Mint_Filter=\"\",0,IF(tbl_Mint[[#This Row],[Helper 2]]<>\"\",1,0))","v":0},{"$f":"IF(rng_Mint_Filter=\"\",tbl_Mint[[#This Row],[Helper 1]],INDEX(tbl_Mint[Helper 3],tbl_Mint[[#This Row],[Helper 1]]))","v":32},{"$f":"IFERROR(INDEX(tbl_Mint[Mint],tbl_Mint[[#This Row],[Link]]),\"\")","v":"Tarragona"}]
["Thessalonica","Salonika, Greece",{"$f":"tbl_Mint[[#This Row],[Mint]]","v":"Thessalonica"},{"$f":"IF(ISTEXT(OFFSET(tbl_Mint[[#This Row],[Helper 1]],-1,0)),1,OFFSET(tbl_Mint[[#This Row],[Helper 1]],-1,0)+1)","v":33},{"$f":"IF(rng_Mint_Filter=\"\",0,IF(ISNUMBER(SEARCH(rng_Mint_Filter,tbl_Mint[[#This Row],[Helper Key]])),tbl_Mint[[#This Row],[Helper 1]],\"\"))","v":0},{"$f":"IFERROR(SMALL(tbl_Mint[Helper 2],tbl_Mint[[#This Row],[Helper 1]]),\"\")","v":0},{"$f":"IF(OR(tbl_Mint[[#This Row],[Helper 2]]<>\"\",tbl_Mint[[#This Row],[Helper 3]]<>\"\"),1,0)","v":1},{"$f":"IF(rng_Mint_Filter=\"\",0,IF(tbl_Mint[[#This Row],[Helper 2]]<>\"\",1,0))","v":0},{"$f":"IF(rng_Mint_Filter=\"\",tbl_Mint[[#This Row],[Helper 1]],INDEX(tbl_Mint[Helper 3],tbl_Mint[[#This Row],[Helper 1]]))","v":33},{"$f":"IFERROR(INDEX(tbl_Mint[Mint],tbl_Mint[[#This Row],[Link]]),\"\")","v":"Thessalonica"}]
["Ticinum","Pavia, Italy",{"$f":"tbl_Mint[[#This Row],[Mint]]","v":"Ticinum"},{"$f":"IF(ISTEXT(OFFSET(tbl_Mint[[#This Row],[Helper 1]],-1,0)),1,OFFSET(tbl_Mint[[#This Row],[Helper 1]],-1,0)+1)","v":34},{"$f":"IF(rng_Mint_Filter=\"\",0,IF(ISNUMBER(SEARCH(rng_Mint_Filter,tbl_Mint[[#This Row],[Helper Key]])),tbl_Mint[[#This Row],[Helper 1]],\"\"))","v":0},{"$f":"IFERROR(SMALL(tbl_Mint[Helper 2],tbl_Mint[[#This Row],[Helper 1]]),\"\")","v":0},{"$f":"IF(OR(tbl_Mint[[#This Row],[Helper 2]]<>\"\",tbl_Mint[[#This Row],[Helper 3]]<>\"\"),1,0)","v":1},{"$f":"IF(rng_Mint_Filter=\"\",0,IF(tbl_Mint[[#This Row],[Helper 2]]<>\"\",1,0))","v":0},{"$f":"IF(rng_Mint_Filter=\"\",tbl_Mint[[#This Row],[Helper 1]],INDEX(tbl_Mint[Helper 3],tbl_Mint[[#This Row],[Helper 1]]))","v":34},{"$f":"IFERROR(INDEX(tbl_Mint[Mint],tbl_Mint[[#This Row],[Link]]),\"\")","v":"Ticinum"}]
["Trier","Treveri, Germany",{"$f":"tbl_Mint[[#This Row],[Mint]]","v":"Trier"},{"$f":"IF(ISTEXT(OFFSET(tbl_Mint[[#This Row],[Helper 1]],-1,0)),1,OFFSET(tbl_Mint[[#This Row],[Helper 1]],-1,0)+1)","v":35},{"$f":"IF(rng_Mint_Filter=\"\",0,IF(ISNUMBER(SEARCH(rng_Mint_Filter,tbl_Mint[[#This Row],[Helper Key]])),tbl_Mint[[#This Row],[Helper 1]],\"\"))","v":0},{"$f":"IFERROR(SMALL(tbl_Mint[Helper 2],tbl_Mint[[#This Row],[Helper 1]]),\"\")","v":0},{"$f":"IF(OR(tbl_Mint[[#This Row],[Helper 2]]<>\"\",tbl_Mint[[#This Row],[Helper 3]]<>\"\"),1,0)","v":1},{"$f":"IF(rng_Mint_Filter=\"\",0,IF(tbl_Mint[[#This Row],[Helper 2]]<>\"\",1,0))","v":0},{"$f":"IF(rng_Mint_Filter=\"\",tbl_Mint[[#This Row],[Helper 1]],INDEX(tbl_Mint[Helper 3],tbl_Mint[[#This Row],[Helper 1]]))","v":35},{"$f":"IFERROR(INDEX(tbl_Mint[Mint],tbl_Mint[[#This Row],[Link]]),\"\")","v":"Trier"}]
["Tripolis","Tripoli, Lebanon",{"$f":"tbl_Mint[[#This Row],[Mint]]","v":"Tripolis"},{"$f":"IF(ISTEXT(OFFSET(tbl_Mint[[#This Row],[Helper 1]],-1,0)),1,OFFSET(tbl_Mint[[#This Row],[Helper 1]],-1,0)+1)","v":36},{"$f":"IF(rng_Mint_Filter=\"\",0,IF(ISNUMBER(SEARCH(rng_Mint_Filter,tbl_Mint[[#This Row],[Helper Key]])),tbl_Mint[[#This Row],[Helper 1]],\"\"))","v":0},{"$f":"IFERROR(SMALL(tbl_Mint[Helper 2],tbl_Mint[[#This Row],[Helper 1]]),\"\")","v":0},{"$f":"IF(OR(tbl_Mint[[#This Row],[Helper 2]]<>\"\",tbl_Mint[[#This Row],[Helper 3]]<>\"\"),1,0)","v":1},{"$f":"IF(rng_Mint_Filter=\"\",0,IF(tbl_Mint[[#This Row],[Helper 2]]<>\"\",1,0))","v":0},{"$f":"IF(rng_Mint_Filter=\"\",tbl_Mint[[#This Row],[Helper 1]],INDEX(tbl_Mint[Helper 3],tbl_Mint[[#This Row],[Helper 1]]))","v":36},{"$f":"IFERROR(INDEX(tbl_Mint[Mint],tbl_Mint[[#This Row],[Link]]),\"\")","v":"Tripolis"}]
["Viminacium","Kostalac, Serbia",{"$f":"tbl_Mint[[#This Row],[Mint]]","v":"Viminacium"},{"$f":"IF(ISTEXT(OFFSET(tbl_Mint[[#This Row],[Helper 1]],-1,0)),1,OFFSET(tbl_Mint[[#This Row],[Helper 1]],-1,0)+1)","v":37},{"$f":"IF(rng_Mint_Filter=\"\",0,IF(ISNUMBER(SEARCH(rng_Mint_Filter,tbl_Mint[[#This Row],[Helper Key]])),tbl_Mint[[#This Row],[Helper 1]],\"\"))","v":0},{"$f":"IFERROR(SMALL(tbl_Mint[Helper 2],tbl_Mint[[#This Row],[Helper 1]]),\"\")","v":0},{"$f":"IF(OR(tbl_Mint[[#This Row],[Helper 2]]<>\"\",tbl_Mint[[#This Row],[Helper 3]]<>\"\"),1,0)","v":1},{"$f":"IF(rng_Mint_Filter=\"\",0,IF(tbl_Mint[[#This Row],[Helper 2]]<>\"\",1,0))","v":0},{"$f":"IF(rng_Mint_Filter=\"\",tbl_Mint[[#This Row],[Helper 1]],INDEX(tbl_Mint[Helper 3],tbl_Mint[[#This Row],[Helper 1]]))","v":37},{"$f":"IFERROR(INDEX(tbl_Mint[Mint],tbl_Mint[[#This Row],[Link]]),\"\")","v":"Viminacium"}]

{"sheet":"RCIP tbl","index":5,"n_rows":23,"n_cols":4,"rows_kept":23,"cut":false,"hidden":false,"merged":[]}
["RCIP","IP date range","Emperor / Dynasty","copies in IPs"]
[1,"Roman to AD 41","Republican to Gaius",""]
[2,"41-54","Claudius","Claudian copies"]
[3,"54-69","Nero & Year of Four Emperors",""]
[4,"69-96","Flavian",""]
[5,"96-117","Nerva & Trajan",""]
[6,"117-138","Hadrian",""]
[7,"138-161","Antoninus Pius - Antonine I",""]
[8,"161-180","Marcus Aurelius - Antonine II",""]
[9,"180-192","Commodus - Antonine III",""]
[10,"193-222","Severan I","Severan imitations"]
[11,"222-238","Severan II",""]
[12,"238-260","Military Anarchy I",""]
[13,"260-275","Military Anarchy II",""]
[14,"275-296","Military Anarchy III","Radiate copies"]
[15,"296-317","Tetrarchy",""]
[16,"317-330","House of Constantine I",""]
[17,"330-348","House of Constantine II","GLORIA EXERCITVS etc. copies"]
[18,"348-364","House of Constantine III","FEL TEMP REPARATIO etc. copies"]
[19,"364-378","House of Valentinian I",""]
[20,"378-388","House of Valentinian II",""]
[21,"388-402","House of Theodosius I",""]
[22,"402-445","House of Theodosius II",""]